Workbook

Sheet Sheet1 (hidden)
A4: 1 | I4: =INDEX(Editor!$C$5:$W$40,Editor!DA6+1,Editor!DA$36) ->  | J4: =INDEX(Editor!$C$5:$W$40,Editor!DB6+1,Editor!DB$36) ->  | K4: =INDEX(Editor!$C$5:$W$40,Editor!DC6+1,Editor!DC$36) ->  | L4: =INDEX(Editor!$C$5:$W$40,Editor!DD6+1,Editor!DD$36) ->  | M4: =INDEX(Editor!$C$5:$W$40,Editor!DE6+1,Editor!DE$36) ->  | N4: =INDEX(Editor!$C$5:$W$40,Editor!DF6+1,Editor!DF$36) ->  | O4: =INDEX(Editor!$C$5:$W$40,Editor!DG6+1,Editor!DG$36) ->  | P4: =INDEX(Editor!$C$5:$W$40,Editor!DH6+1,Editor!DH$36) ->  | Q4: =INDEX(Editor!$C$5:$W$40,Editor!DI6+1,Editor!DI$36) ->  | R4: =INDEX(Editor!$C$5:$W$40,Editor!DJ6+1,Editor!DJ$36) ->  | S4: =INDEX(Editor!$C$5:$W$40,Editor!DK6+1,Editor!DK$36) ->  | T4: =INDEX(Editor!$C$5:$W$40,Editor!DL6+1,Editor!DL$36) ->  | U4: =INDEX(Editor!$C$5:$W$40,Editor!DM6+1,Editor!DM$36) ->  | V4: =INDEX(Editor!$C$5:$W$40,Editor!DN6+1,Editor!DN$36) ->  | W4: =INDEX(Editor!$C$5:$W$40,Editor!DO6+1,Editor!DO$36) ->  | X4: =INDEX(Editor!$C$5:$W$40,Editor!DP6+1,Editor!DP$36) ->  | Y4: =INDEX(Editor!$C$5:$W$40,Editor!DQ6+1,Editor!DQ$36) ->  | Z4: =INDEX(Editor!$C$5:$W$40,Editor!DR6+1,Editor!DR$36) ->  | AA4: =INDEX(Editor!$C$5:$W$40,Editor!DS6+1,Editor!DS$36) ->  | AB4: =INDEX(Editor!$C$5:$W$40,Editor!DT6+1,Editor!DT$36) ->  | AC4: =INDEX(Editor!$C$5:$W$40,Editor!DU6+1,Editor!DU$36) ->  | AD4: =INDEX(Editor!$C$5:$W$40,Editor!DV6+1,Editor!DV$36) ->  | AE4: =INDEX(Editor!$C$5:$W$40,Editor!DW6+1,Editor!DW$36) ->  | AF4: =INDEX(Editor!$C$5:$W$40,Editor!DX6+1,Editor!DX$36) ->  | AG4: =INDEX(Editor!$C$5:$W$40,Editor!DY6+1,Editor!DY$36) ->  | AH4: =INDEX(Editor!$C$5:$W$40,Editor!DZ6+1,Editor!DZ$36) ->  | AI4: =INDEX(Editor!$C$5:$W$40,Editor!EA6+1,Editor!EA$36) ->  | AJ4: =INDEX(Editor!$C$5:$W$40,Editor!EB6+1,Editor!EB$36) ->  | AK4: =INDEX(Editor!$C$5:$W$40,Editor!EC6+1,Editor!EC$36) ->  | AL4: =INDEX(Editor!$C$5:$W$40,Editor!ED6+1,Editor!ED$36) ->  | AM4: =INDEX(Editor!$C$5:$W$40,Editor!EE6+1,Editor!EE$36) ->  | AN4: =INDEX(Editor!$C$5:$W$40,Editor!EF6+1,Editor!EF$36) ->  | AO4: =INDEX(Editor!$C$5:$W$40,Editor!EG6+1,Editor!EG$36) ->  | AP4: =INDEX(Editor!$C$5:$W$40,Editor!EH6+1,Editor!EH$36) ->  | AQ4: =INDEX(Editor!$C$5:$W$40,Editor!EI6+1,Editor!EI$36) ->  | AR4: =INDEX(Editor!$C$5:$W$40,Editor!EJ6+1,Editor!EJ$36) ->  | AS4: =INDEX(Editor!$C$5:$W$40,Editor!EK6+1,Editor!EK$36) ->  | AT4: =INDEX(Editor!$C$5:$W$40,Editor!EL6+1,Editor!EL$36) ->  | AU4: =INDEX(Editor!$C$5:$W$40,Editor!EM6+1,Editor!EM$36) ->  | AV4: =INDEX(Editor!$C$5:$W$40,Editor!EN6+1,Editor!EN$36) ->  | AW4: =INDEX(Editor!$C$5:$W$40,Editor!EO6+1,Editor!EO$36) ->  | AX4: =INDEX(Editor!$C$5:$W$40,Editor!EP6+1,Editor!EP$36) ->  | AY4: =INDEX(Editor!$C$5:$W$40,Editor!EQ6+1,Editor!EQ$36) ->  | AZ4: =INDEX(Editor!$C$5:$W$40,Editor!ER6+1,Editor!ER$36) ->  | BA4: =INDEX(Editor!$C$5:$W$40,Editor!ES6+1,Editor!ES$36) ->  | BB4: =INDEX(Editor!$C$5:$W$40,Editor!ET6+1,Editor!ET$36) ->  | BC4: =INDEX(Editor!$C$5:$W$40,Editor!EU6+1,Editor!EU$36) ->  | BD4: =INDEX(Editor!$C$5:$W$40,Editor!EV6+1,Editor!EV$36) ->  | BE4: =INDEX(Editor!$C$5:$W$40,Editor!EW6+1,Editor!EW$36) ->  | BF4: =INDEX(Editor!$C$5:$W$40,Editor!EX6+1,Editor!EX$36) ->  | BG4: =INDEX(Editor!$C$5:$W$40,Editor!EY6+1,Editor!EY$36) ->  | BH4: =INDEX(Editor!$C$5:$W$40,Editor!EZ6+1,Editor!EZ$36) ->  | BI4: =INDEX(Editor!$C$5:$W$40,Editor!FA6+1,Editor!FA$36) ->  | BJ4: =INDEX(Editor!$C$5:$W$40,Editor!FB6+1,Editor!FB$36) ->  | BK4: =INDEX(Editor!$C$5:$W$40,Editor!FC6+1,Editor!FC$36) ->  | BL4: =INDEX(Editor!$C$5:$W$40,Editor!FD6+1,Editor!FD$36) ->  | BM4: =INDEX(Editor!$C$5:$W$40,Editor!FE6+1,Editor!FE$36) ->  | BN4: =INDEX(Editor!$C$5:$W$40,Editor!FF6+1,Editor!FF$36) ->  | BO4: =INDEX(Editor!$C$5:$W$40,Editor!FG6+1,Editor!FG$36) ->  | BP4: =INDEX(Editor!$C$5:$W$40,Editor!FH6+1,Editor!FH$36) ->  | BQ4: =INDEX(Editor!$C$5:$W$40,Editor!FI6+1,Editor!FI$36) ->  | BR4: =INDEX(Editor!$C$5:$W$40,Editor!FJ6+1,Editor!FJ$36) ->  | BS4: =INDEX(Editor!$C$5:$W$40,Editor!FK6+1,Editor!FK$36) ->  | BT4: =INDEX(Editor!$C$5:$W$40,Editor!FL6+1,Editor!FL$36) ->  | BU4: =INDEX(Editor!$C$5:$W$40,Editor!FM6+1,Editor!FM$36) ->  | BV4: =INDEX(Editor!$C$5:$W$40,Editor!FN6+1,Editor!FN$36) ->  | BW4: =INDEX(Editor!$C$5:$W$40,Editor!FO6+1,Editor!FO$36) -> 
A5: 2 | B5: 0 | C5: 0 | D5: 0 | E5: 0 | F5: 0 | I5: =INDEX(Editor!$C$5:$W$40,Editor!DA7+1,Editor!DA$36) ->  | J5: =INDEX(Editor!$C$5:$W$40,Editor!DB7+1,Editor!DB$36) ->  | K5: =INDEX(Editor!$C$5:$W$40,Editor!DC7+1,Editor!DC$36) ->  | L5: =INDEX(Editor!$C$5:$W$40,Editor!DD7+1,Editor!DD$36) ->  | M5: =INDEX(Editor!$C$5:$W$40,Editor!DE7+1,Editor!DE$36) ->  | N5: =INDEX(Editor!$C$5:$W$40,Editor!DF7+1,Editor!DF$36) ->  | O5: =INDEX(Editor!$C$5:$W$40,Editor!DG7+1,Editor!DG$36) ->  | P5: =INDEX(Editor!$C$5:$W$40,Editor!DH7+1,Editor!DH$36) ->  | Q5: =INDEX(Editor!$C$5:$W$40,Editor!DI7+1,Editor!DI$36) ->  | R5: =INDEX(Editor!$C$5:$W$40,Editor!DJ7+1,Editor!DJ$36) ->  | S5: =INDEX(Editor!$C$5:$W$40,Editor!DK7+1,Editor!DK$36) ->  | T5: =INDEX(Editor!$C$5:$W$40,Editor!DL7+1,Editor!DL$36) ->  | U5: =INDEX(Editor!$C$5:$W$40,Editor!DM7+1,Editor!DM$36) ->  | V5: =INDEX(Editor!$C$5:$W$40,Editor!DN7+1,Editor!DN$36) ->  | W5: =INDEX(Editor!$C$5:$W$40,Editor!DO7+1,Editor!DO$36) ->  | X5: =INDEX(Editor!$C$5:$W$40,Editor!DP7+1,Editor!DP$36) ->  | Y5: =INDEX(Editor!$C$5:$W$40,Editor!DQ7+1,Editor!DQ$36) ->  | Z5: =INDEX(Editor!$C$5:$W$40,Editor!DR7+1,Editor!DR$36) ->  | AA5: =INDEX(Editor!$C$5:$W$40,Editor!DS7+1,Editor!DS$36) ->  | AB5: =INDEX(Editor!$C$5:$W$40,Editor!DT7+1,Editor!DT$36) ->  | AC5: =INDEX(Editor!$C$5:$W$40,Editor!DU7+1,Editor!DU$36) ->  | AD5: =INDEX(Editor!$C$5:$W$40,Editor!DV7+1,Editor!DV$36) ->  | AE5: =INDEX(Editor!$C$5:$W$40,Editor!DW7+1,Editor!DW$36) ->  | AF5: =INDEX(Editor!$C$5:$W$40,Editor!DX7+1,Editor!DX$36) ->  | AG5: =INDEX(Editor!$C$5:$W$40,Editor!DY7+1,Editor!DY$36) ->  | AH5: =INDEX(Editor!$C$5:$W$40,Editor!DZ7+1,Editor!DZ$36) ->  | AI5: =INDEX(Editor!$C$5:$W$40,Editor!EA7+1,Editor!EA$36) ->  | AJ5: =INDEX(Editor!$C$5:$W$40,Editor!EB7+1,Editor!EB$36) ->  | AK5: =INDEX(Editor!$C$5:$W$40,Editor!EC7+1,Editor!EC$36) ->  | AL5: =INDEX(Editor!$C$5:$W$40,Editor!ED7+1,Editor!ED$36) ->  | AM5: =INDEX(Editor!$C$5:$W$40,Editor!EE7+1,Editor!EE$36) ->  | AN5: =INDEX(Editor!$C$5:$W$40,Editor!EF7+1,Editor!EF$36) ->  | AO5: =INDEX(Editor!$C$5:$W$40,Editor!EG7+1,Editor!EG$36) ->  | AP5: =INDEX(Editor!$C$5:$W$40,Editor!EH7+1,Editor!EH$36) ->  | AQ5: =INDEX(Editor!$C$5:$W$40,Editor!EI7+1,Editor!EI$36) ->  | AR5: =INDEX(Editor!$C$5:$W$40,Editor!EJ7+1,Editor!EJ$36) ->  | AS5: =INDEX(Editor!$C$5:$W$40,Editor!EK7+1,Editor!EK$36) ->  | AT5: =INDEX(Editor!$C$5:$W$40,Editor!EL7+1,Editor!EL$36) ->  | AU5: =INDEX(Editor!$C$5:$W$40,Editor!EM7+1,Editor!EM$36) ->  | AV5: =INDEX(Editor!$C$5:$W$40,Editor!EN7+1,Editor!EN$36) ->  | AW5: =INDEX(Editor!$C$5:$W$40,Editor!EO7+1,Editor!EO$36) ->  | AX5: =INDEX(Editor!$C$5:$W$40,Editor!EP7+1,Editor!EP$36) ->  | AY5: =INDEX(Editor!$C$5:$W$40,Editor!EQ7+1,Editor!EQ$36) ->  | AZ5: =INDEX(Editor!$C$5:$W$40,Editor!ER7+1,Editor!ER$36) ->  | BA5: =INDEX(Editor!$C$5:$W$40,Editor!ES7+1,Editor!ES$36) ->  | BB5: =INDEX(Editor!$C$5:$W$40,Editor!ET7+1,Editor!ET$36) ->  | BC5: =INDEX(Editor!$C$5:$W$40,Editor!EU7+1,Editor!EU$36) ->  | BD5: =INDEX(Editor!$C$5:$W$40,Editor!EV7+1,Editor!EV$36) ->  | BE5: =INDEX(Editor!$C$5:$W$40,Editor!EW7+1,Editor!EW$36) ->  | BF5: =INDEX(Editor!$C$5:$W$40,Editor!EX7+1,Editor!EX$36) ->  | BG5: =INDEX(Editor!$C$5:$W$40,Editor!EY7+1,Editor!EY$36) ->  | BH5: =INDEX(Editor!$C$5:$W$40,Editor!EZ7+1,Editor!EZ$36) ->  | BI5: =INDEX(Editor!$C$5:$W$40,Editor!FA7+1,Editor!FA$36) ->  | BJ5: =INDEX(Editor!$C$5:$W$40,Editor!FB7+1,Editor!FB$36) ->  | BK5: =INDEX(Editor!$C$5:$W$40,Editor!FC7+1,Editor!FC$36) ->  | BL5: =INDEX(Editor!$C$5:$W$40,Editor!FD7+1,Editor!FD$36) ->  | BM5: =INDEX(Editor!$C$5:$W$40,Editor!FE7+1,Editor!FE$36) ->  | BN5: =INDEX(Editor!$C$5:$W$40,Editor!FF7+1,Editor!FF$36) ->  | BO5: =INDEX(Editor!$C$5:$W$40,Editor!FG7+1,Editor!FG$36) ->  | BP5: =INDEX(Editor!$C$5:$W$40,Editor!FH7+1,Editor!FH$36) ->  | BQ5: =INDEX(Editor!$C$5:$W$40,Editor!FI7+1,Editor!FI$36) ->  | BR5: =INDEX(Editor!$C$5:$W$40,Editor!FJ7+1,Editor!FJ$36) ->  | BS5: =INDEX(Editor!$C$5:$W$40,Editor!FK7+1,Editor!FK$36) ->  | BT5: =INDEX(Editor!$C$5:$W$40,Editor!FL7+1,Editor!FL$36) ->  | BU5: =INDEX(Editor!$C$5:$W$40,Editor!FM7+1,Editor!FM$36) ->  | BV5: =INDEX(Editor!$C$5:$W$40,Editor!FN7+1,Editor!FN$36) ->  | BW5: =INDEX(Editor!$C$5:$W$40,Editor!FO7+1,Editor!FO$36) -> 
A6: 3 | B6: 1 | C6: 1 | D6: 1 | E6: 1 | F6: 1 | I6: =INDEX(Editor!$C$5:$W$40,Editor!DA8+1,Editor!DA$36) ->  | J6: =INDEX(Editor!$C$5:$W$40,Editor!DB8+1,Editor!DB$36) ->  | K6: =INDEX(Editor!$C$5:$W$40,Editor!DC8+1,Editor!DC$36) ->  | L6: =INDEX(Editor!$C$5:$W$40,Editor!DD8+1,Editor!DD$36) ->  | M6: =INDEX(Editor!$C$5:$W$40,Editor!DE8+1,Editor!DE$36) ->  | N6: =INDEX(Editor!$C$5:$W$40,Editor!DF8+1,Editor!DF$36) ->  | O6: =INDEX(Editor!$C$5:$W$40,Editor!DG8+1,Editor!DG$36) ->  | P6: =INDEX(Editor!$C$5:$W$40,Editor!DH8+1,Editor!DH$36) ->  | Q6: =INDEX(Editor!$C$5:$W$40,Editor!DI8+1,Editor!DI$36) ->  | R6: =INDEX(Editor!$C$5:$W$40,Editor!DJ8+1,Editor!DJ$36) ->  | S6: =INDEX(Editor!$C$5:$W$40,Editor!DK8+1,Editor!DK$36) ->  | T6: =INDEX(Editor!$C$5:$W$40,Editor!DL8+1,Editor!DL$36) ->  | U6: =INDEX(Editor!$C$5:$W$40,Editor!DM8+1,Editor!DM$36) ->  | V6: =INDEX(Editor!$C$5:$W$40,Editor!DN8+1,Editor!DN$36) ->  | W6: =INDEX(Editor!$C$5:$W$40,Editor!DO8+1,Editor!DO$36) ->  | X6: =INDEX(Editor!$C$5:$W$40,Editor!DP8+1,Editor!DP$36) ->  | Y6: =INDEX(Editor!$C$5:$W$40,Editor!DQ8+1,Editor!DQ$36) ->  | Z6: =INDEX(Editor!$C$5:$W$40,Editor!DR8+1,Editor!DR$36) ->  | AA6: =INDEX(Editor!$C$5:$W$40,Editor!DS8+1,Editor!DS$36) ->  | AB6: =INDEX(Editor!$C$5:$W$40,Editor!DT8+1,Editor!DT$36) ->  | AC6: =INDEX(Editor!$C$5:$W$40,Editor!DU8+1,Editor!DU$36) ->  | AD6: =INDEX(Editor!$C$5:$W$40,Editor!DV8+1,Editor!DV$36) ->  | AE6: =INDEX(Editor!$C$5:$W$40,Editor!DW8+1,Editor!DW$36) ->  | AF6: =INDEX(Editor!$C$5:$W$40,Editor!DX8+1,Editor!DX$36) ->  | AG6: =INDEX(Editor!$C$5:$W$40,Editor!DY8+1,Editor!DY$36) ->  | AH6: =INDEX(Editor!$C$5:$W$40,Editor!DZ8+1,Editor!DZ$36) ->  | AI6: =INDEX(Editor!$C$5:$W$40,Editor!EA8+1,Editor!EA$36) ->  | AJ6: =INDEX(Editor!$C$5:$W$40,Editor!EB8+1,Editor!EB$36) ->  | AK6: =INDEX(Editor!$C$5:$W$40,Editor!EC8+1,Editor!EC$36) ->  | AL6: =INDEX(Editor!$C$5:$W$40,Editor!ED8+1,Editor!ED$36) ->  | AM6: =INDEX(Editor!$C$5:$W$40,Editor!EE8+1,Editor!EE$36) ->  | AN6: =INDEX(Editor!$C$5:$W$40,Editor!EF8+1,Editor!EF$36) ->  | AO6: =INDEX(Editor!$C$5:$W$40,Editor!EG8+1,Editor!EG$36) ->  | AP6: =INDEX(Editor!$C$5:$W$40,Editor!EH8+1,Editor!EH$36) ->  | AQ6: =INDEX(Editor!$C$5:$W$40,Editor!EI8+1,Editor!EI$36) ->  | AR6: =INDEX(Editor!$C$5:$W$40,Editor!EJ8+1,Editor!EJ$36) ->  | AS6: =INDEX(Editor!$C$5:$W$40,Editor!EK8+1,Editor!EK$36) ->  | AT6: =INDEX(Editor!$C$5:$W$40,Editor!EL8+1,Editor!EL$36) ->  | AU6: =INDEX(Editor!$C$5:$W$40,Editor!EM8+1,Editor!EM$36) ->  | AV6: =INDEX(Editor!$C$5:$W$40,Editor!EN8+1,Editor!EN$36) ->  | AW6: =INDEX(Editor!$C$5:$W$40,Editor!EO8+1,Editor!EO$36) ->  | AX6: =INDEX(Editor!$C$5:$W$40,Editor!EP8+1,Editor!EP$36) ->  | AY6: =INDEX(Editor!$C$5:$W$40,Editor!EQ8+1,Editor!EQ$36) ->  | AZ6: =INDEX(Editor!$C$5:$W$40,Editor!ER8+1,Editor!ER$36) ->  | BA6: =INDEX(Editor!$C$5:$W$40,Editor!ES8+1,Editor!ES$36) ->  | BB6: =INDEX(Editor!$C$5:$W$40,Editor!ET8+1,Editor!ET$36) ->  | BC6: =INDEX(Editor!$C$5:$W$40,Editor!EU8+1,Editor!EU$36) ->  | BD6: =INDEX(Editor!$C$5:$W$40,Editor!EV8+1,Editor!EV$36) ->  | BE6: =INDEX(Editor!$C$5:$W$40,Editor!EW8+1,Editor!EW$36) ->  | BF6: =INDEX(Editor!$C$5:$W$40,Editor!EX8+1,Editor!EX$36) ->  | BG6: =INDEX(Editor!$C$5:$W$40,Editor!EY8+1,Editor!EY$36) ->  | BH6: =INDEX(Editor!$C$5:$W$40,Editor!EZ8+1,Editor!EZ$36) ->  | BI6: =INDEX(Editor!$C$5:$W$40,Editor!FA8+1,Editor!FA$36) ->  | BJ6: =INDEX(Editor!$C$5:$W$40,Editor!FB8+1,Editor!FB$36) ->  | BK6: =INDEX(Editor!$C$5:$W$40,Editor!FC8+1,Editor!FC$36) ->  | BL6: =INDEX(Editor!$C$5:$W$40,Editor!FD8+1,Editor!FD$36) ->  | BM6: =INDEX(Editor!$C$5:$W$40,Editor!FE8+1,Editor!FE$36) ->  | BN6: =INDEX(Editor!$C$5:$W$40,Editor!FF8+1,Editor!FF$36) ->  | BO6: =INDEX(Editor!$C$5:$W$40,Editor!FG8+1,Editor!FG$36) ->  | BP6: =INDEX(Editor!$C$5:$W$40,Editor!FH8+1,Editor!FH$36) ->  | BQ6: =INDEX(Editor!$C$5:$W$40,Editor!FI8+1,Editor!FI$36) ->  | BR6: =INDEX(Editor!$C$5:$W$40,Editor!FJ8+1,Editor!FJ$36) ->  | BS6: =INDEX(Editor!$C$5:$W$40,Editor!FK8+1,Editor!FK$36) ->  | BT6: =INDEX(Editor!$C$5:$W$40,Editor!FL8+1,Editor!FL$36) ->  | BU6: =INDEX(Editor!$C$5:$W$40,Editor!FM8+1,Editor!FM$36) ->  | BV6: =INDEX(Editor!$C$5:$W$40,Editor!FN8+1,Editor!FN$36) ->  | BW6: =INDEX(Editor!$C$5:$W$40,Editor!FO8+1,Editor!FO$36) -> 
A7: 4 | B7: 2 | C7: 2 | D7: 2 | E7: 2 | F7: 2 | I7: =INDEX(Editor!$C$5:$W$40,Editor!DA9+1,Editor!DA$36) ->  | J7: =INDEX(Editor!$C$5:$W$40,Editor!DB9+1,Editor!DB$36) ->  | K7: =INDEX(Editor!$C$5:$W$40,Editor!DC9+1,Editor!DC$36) ->  | L7: =INDEX(Editor!$C$5:$W$40,Editor!DD9+1,Editor!DD$36) ->  | M7: =INDEX(Editor!$C$5:$W$40,Editor!DE9+1,Editor!DE$36) ->  | N7: =INDEX(Editor!$C$5:$W$40,Editor!DF9+1,Editor!DF$36) ->  | O7: =INDEX(Editor!$C$5:$W$40,Editor!DG9+1,Editor!DG$36) ->  | P7: =INDEX(Editor!$C$5:$W$40,Editor!DH9+1,Editor!DH$36) ->  | Q7: =INDEX(Editor!$C$5:$W$40,Editor!DI9+1,Editor!DI$36) ->  | R7: =INDEX(Editor!$C$5:$W$40,Editor!DJ9+1,Editor!DJ$36) ->  | S7: =INDEX(Editor!$C$5:$W$40,Editor!DK9+1,Editor!DK$36) ->  | T7: =INDEX(Editor!$C$5:$W$40,Editor!DL9+1,Editor!DL$36) ->  | U7: =INDEX(Editor!$C$5:$W$40,Editor!DM9+1,Editor!DM$36) ->  | V7: =INDEX(Editor!$C$5:$W$40,Editor!DN9+1,Editor!DN$36) ->  | W7: =INDEX(Editor!$C$5:$W$40,Editor!DO9+1,Editor!DO$36) ->  | X7: =INDEX(Editor!$C$5:$W$40,Editor!DP9+1,Editor!DP$36) ->  | Y7: =INDEX(Editor!$C$5:$W$40,Editor!DQ9+1,Editor!DQ$36) ->  | Z7: =INDEX(Editor!$C$5:$W$40,Editor!DR9+1,Editor!DR$36) ->  | AA7: =INDEX(Editor!$C$5:$W$40,Editor!DS9+1,Editor!DS$36) ->  | AB7: =INDEX(Editor!$C$5:$W$40,Editor!DT9+1,Editor!DT$36) ->  | AC7: =INDEX(Editor!$C$5:$W$40,Editor!DU9+1,Editor!DU$36) ->  | AD7: =INDEX(Editor!$C$5:$W$40,Editor!DV9+1,Editor!DV$36) ->  | AE7: =INDEX(Editor!$C$5:$W$40,Editor!DW9+1,Editor!DW$36) ->  | AF7: =INDEX(Editor!$C$5:$W$40,Editor!DX9+1,Editor!DX$36) ->  | AG7: =INDEX(Editor!$C$5:$W$40,Editor!DY9+1,Editor!DY$36) ->  | AH7: =INDEX(Editor!$C$5:$W$40,Editor!DZ9+1,Editor!DZ$36) ->  | AI7: =INDEX(Editor!$C$5:$W$40,Editor!EA9+1,Editor!EA$36) ->  | AJ7: =INDEX(Editor!$C$5:$W$40,Editor!EB9+1,Editor!EB$36) ->  | AK7: =INDEX(Editor!$C$5:$W$40,Editor!EC9+1,Editor!EC$36) ->  | AL7: =INDEX(Editor!$C$5:$W$40,Editor!ED9+1,Editor!ED$36) ->  | AM7: =INDEX(Editor!$C$5:$W$40,Editor!EE9+1,Editor!EE$36) ->  | AN7: =INDEX(Editor!$C$5:$W$40,Editor!EF9+1,Editor!EF$36) ->  | AO7: =INDEX(Editor!$C$5:$W$40,Editor!EG9+1,Editor!EG$36) ->  | AP7: =INDEX(Editor!$C$5:$W$40,Editor!EH9+1,Editor!EH$36) ->  | AQ7: =INDEX(Editor!$C$5:$W$40,Editor!EI9+1,Editor!EI$36) ->  | AR7: =INDEX(Editor!$C$5:$W$40,Editor!EJ9+1,Editor!EJ$36) ->  | AS7: =INDEX(Editor!$C$5:$W$40,Editor!EK9+1,Editor!EK$36) ->  | AT7: =INDEX(Editor!$C$5:$W$40,Editor!EL9+1,Editor!EL$36) ->  | AU7: =INDEX(Editor!$C$5:$W$40,Editor!EM9+1,Editor!EM$36) ->  | AV7: =INDEX(Editor!$C$5:$W$40,Editor!EN9+1,Editor!EN$36) ->  | AW7: =INDEX(Editor!$C$5:$W$40,Editor!EO9+1,Editor!EO$36) ->  | AX7: =INDEX(Editor!$C$5:$W$40,Editor!EP9+1,Editor!EP$36) ->  | AY7: =INDEX(Editor!$C$5:$W$40,Editor!EQ9+1,Editor!EQ$36) ->  | AZ7: =INDEX(Editor!$C$5:$W$40,Editor!ER9+1,Editor!ER$36) ->  | BA7: =INDEX(Editor!$C$5:$W$40,Editor!ES9+1,Editor!ES$36) ->  | BB7: =INDEX(Editor!$C$5:$W$40,Editor!ET9+1,Editor!ET$36) ->  | BC7: =INDEX(Editor!$C$5:$W$40,Editor!EU9+1,Editor!EU$36) ->  | BD7: =INDEX(Editor!$C$5:$W$40,Editor!EV9+1,Editor!EV$36) ->  | BE7: =INDEX(Editor!$C$5:$W$40,Editor!EW9+1,Editor!EW$36) ->  | BF7: =INDEX(Editor!$C$5:$W$40,Editor!EX9+1,Editor!EX$36) ->  | BG7: =INDEX(Editor!$C$5:$W$40,Editor!EY9+1,Editor!EY$36) ->  | BH7: =INDEX(Editor!$C$5:$W$40,Editor!EZ9+1,Editor!EZ$36) ->  | BI7: =INDEX(Editor!$C$5:$W$40,Editor!FA9+1,Editor!FA$36) ->  | BJ7: =INDEX(Editor!$C$5:$W$40,Editor!FB9+1,Editor!FB$36) ->  | BK7: =INDEX(Editor!$C$5:$W$40,Editor!FC9+1,Editor!FC$36) ->  | BL7: =INDEX(Editor!$C$5:$W$40,Editor!FD9+1,Editor!FD$36) ->  | BM7: =INDEX(Editor!$C$5:$W$40,Editor!FE9+1,Editor!FE$36) ->  | BN7: =INDEX(Editor!$C$5:$W$40,Editor!FF9+1,Editor!FF$36) ->  | BO7: =INDEX(Editor!$C$5:$W$40,Editor!FG9+1,Editor!FG$36) ->  | BP7: =INDEX(Editor!$C$5:$W$40,Editor!FH9+1,Editor!FH$36) ->  | BQ7: =INDEX(Editor!$C$5:$W$40,Editor!FI9+1,Editor!FI$36) ->  | BR7: =INDEX(Editor!$C$5:$W$40,Editor!FJ9+1,Editor!FJ$36) ->  | BS7: =INDEX(Editor!$C$5:$W$40,Editor!FK9+1,Editor!FK$36) ->  | BT7: =INDEX(Editor!$C$5:$W$40,Editor!FL9+1,Editor!FL$36) ->  | BU7: =INDEX(Editor!$C$5:$W$40,Editor!FM9+1,Editor!FM$36) ->  | BV7: =INDEX(Editor!$C$5:$W$40,Editor!FN9+1,Editor!FN$36) ->  | BW7: =INDEX(Editor!$C$5:$W$40,Editor!FO9+1,Editor!FO$36) -> 
A8: 5 | B8: 3 | C8: 3 | D8: 3 | E8: 3 | F8: 3 | I8: =INDEX(Editor!$C$5:$W$40,Editor!DA10+1,Editor!DA$36) ->  | J8: =INDEX(Editor!$C$5:$W$40,Editor!DB10+1,Editor!DB$36) ->  | K8: =INDEX(Editor!$C$5:$W$40,Editor!DC10+1,Editor!DC$36) ->  | L8: =INDEX(Editor!$C$5:$W$40,Editor!DD10+1,Editor!DD$36) ->  | M8: =INDEX(Editor!$C$5:$W$40,Editor!DE10+1,Editor!DE$36) ->  | N8: =INDEX(Editor!$C$5:$W$40,Editor!DF10+1,Editor!DF$36) ->  | O8: =INDEX(Editor!$C$5:$W$40,Editor!DG10+1,Editor!DG$36) ->  | P8: =INDEX(Editor!$C$5:$W$40,Editor!DH10+1,Editor!DH$36) ->  | Q8: =INDEX(Editor!$C$5:$W$40,Editor!DI10+1,Editor!DI$36) ->  | R8: =INDEX(Editor!$C$5:$W$40,Editor!DJ10+1,Editor!DJ$36) ->  | S8: =INDEX(Editor!$C$5:$W$40,Editor!DK10+1,Editor!DK$36) ->  | T8: =INDEX(Editor!$C$5:$W$40,Editor!DL10+1,Editor!DL$36) ->  | U8: =INDEX(Editor!$C$5:$W$40,Editor!DM10+1,Editor!DM$36) ->  | V8: =INDEX(Editor!$C$5:$W$40,Editor!DN10+1,Editor!DN$36) ->  | W8: =INDEX(Editor!$C$5:$W$40,Editor!DO10+1,Editor!DO$36) ->  | X8: =INDEX(Editor!$C$5:$W$40,Editor!DP10+1,Editor!DP$36) ->  | Y8: =INDEX(Editor!$C$5:$W$40,Editor!DQ10+1,Editor!DQ$36) ->  | Z8: =INDEX(Editor!$C$5:$W$40,Editor!DR10+1,Editor!DR$36) ->  | AA8: =INDEX(Editor!$C$5:$W$40,Editor!DS10+1,Editor!DS$36) ->  | AB8: =INDEX(Editor!$C$5:$W$40,Editor!DT10+1,Editor!DT$36) ->  | AC8: =INDEX(Editor!$C$5:$W$40,Editor!DU10+1,Editor!DU$36) ->  | AD8: =INDEX(Editor!$C$5:$W$40,Editor!DV10+1,Editor!DV$36) ->  | AE8: =INDEX(Editor!$C$5:$W$40,Editor!DW10+1,Editor!DW$36) ->  | AF8: =INDEX(Editor!$C$5:$W$40,Editor!DX10+1,Editor!DX$36) ->  | AG8: =INDEX(Editor!$C$5:$W$40,Editor!DY10+1,Editor!DY$36) ->  | AH8: =INDEX(Editor!$C$5:$W$40,Editor!DZ10+1,Editor!DZ$36) ->  | AI8: =INDEX(Editor!$C$5:$W$40,Editor!EA10+1,Editor!EA$36) ->  | AJ8: =INDEX(Editor!$C$5:$W$40,Editor!EB10+1,Editor!EB$36) ->  | AK8: =INDEX(Editor!$C$5:$W$40,Editor!EC10+1,Editor!EC$36) ->  | AL8: =INDEX(Editor!$C$5:$W$40,Editor!ED10+1,Editor!ED$36) ->  | AM8: =INDEX(Editor!$C$5:$W$40,Editor!EE10+1,Editor!EE$36) ->  | AN8: =INDEX(Editor!$C$5:$W$40,Editor!EF10+1,Editor!EF$36) ->  | AO8: =INDEX(Editor!$C$5:$W$40,Editor!EG10+1,Editor!EG$36) ->  | AP8: =INDEX(Editor!$C$5:$W$40,Editor!EH10+1,Editor!EH$36) ->  | AQ8: =INDEX(Editor!$C$5:$W$40,Editor!EI10+1,Editor!EI$36) ->  | AR8: =INDEX(Editor!$C$5:$W$40,Editor!EJ10+1,Editor!EJ$36) ->  | AS8: =INDEX(Editor!$C$5:$W$40,Editor!EK10+1,Editor!EK$36) ->  | AT8: =INDEX(Editor!$C$5:$W$40,Editor!EL10+1,Editor!EL$36) ->  | AU8: =INDEX(Editor!$C$5:$W$40,Editor!EM10+1,Editor!EM$36) ->  | AV8: =INDEX(Editor!$C$5:$W$40,Editor!EN10+1,Editor!EN$36) ->  | AW8: =INDEX(Editor!$C$5:$W$40,Editor!EO10+1,Editor!EO$36) ->  | AX8: =INDEX(Editor!$C$5:$W$40,Editor!EP10+1,Editor!EP$36) ->  | AY8: =INDEX(Editor!$C$5:$W$40,Editor!EQ10+1,Editor!EQ$36) ->  | AZ8: =INDEX(Editor!$C$5:$W$40,Editor!ER10+1,Editor!ER$36) ->  | BA8: =INDEX(Editor!$C$5:$W$40,Editor!ES10+1,Editor!ES$36) ->  | BB8: =INDEX(Editor!$C$5:$W$40,Editor!ET10+1,Editor!ET$36) ->  | BC8: =INDEX(Editor!$C$5:$W$40,Editor!EU10+1,Editor!EU$36) ->  | BD8: =INDEX(Editor!$C$5:$W$40,Editor!EV10+1,Editor!EV$36) ->  | BE8: =INDEX(Editor!$C$5:$W$40,Editor!EW10+1,Editor!EW$36) ->  | BF8: =INDEX(Editor!$C$5:$W$40,Editor!EX10+1,Editor!EX$36) ->  | BG8: =INDEX(Editor!$C$5:$W$40,Editor!EY10+1,Editor!EY$36) ->  | BH8: =INDEX(Editor!$C$5:$W$40,Editor!EZ10+1,Editor!EZ$36) ->  | BI8: =INDEX(Editor!$C$5:$W$40,Editor!FA10+1,Editor!FA$36) ->  | BJ8: =INDEX(Editor!$C$5:$W$40,Editor!FB10+1,Editor!FB$36) ->  | BK8: =INDEX(Editor!$C$5:$W$40,Editor!FC10+1,Editor!FC$36) ->  | BL8: =INDEX(Editor!$C$5:$W$40,Editor!FD10+1,Editor!FD$36) ->  | BM8: =INDEX(Editor!$C$5:$W$40,Editor!FE10+1,Editor!FE$36) ->  | BN8: =INDEX(Editor!$C$5:$W$40,Editor!FF10+1,Editor!FF$36) ->  | BO8: =INDEX(Editor!$C$5:$W$40,Editor!FG10+1,Editor!FG$36) ->  | BP8: =INDEX(Editor!$C$5:$W$40,Editor!FH10+1,Editor!FH$36) ->  | BQ8: =INDEX(Editor!$C$5:$W$40,Editor!FI10+1,Editor!FI$36) ->  | BR8: =INDEX(Editor!$C$5:$W$40,Editor!FJ10+1,Editor!FJ$36) ->  | BS8: =INDEX(Editor!$C$5:$W$40,Editor!FK10+1,Editor!FK$36) ->  | BT8: =INDEX(Editor!$C$5:$W$40,Editor!FL10+1,Editor!FL$36) ->  | BU8: =INDEX(Editor!$C$5:$W$40,Editor!FM10+1,Editor!FM$36) ->  | BV8: =INDEX(Editor!$C$5:$W$40,Editor!FN10+1,Editor!FN$36) ->  | BW8: =INDEX(Editor!$C$5:$W$40,Editor!FO10+1,Editor!FO$36) -> 
A9: 6 | B9: 4 | C9: 4 | D9: 4 | E9: 4 | F9: 4 | I9: =INDEX(Editor!$C$5:$W$40,Editor!DA11+1,Editor!DA$36) ->  | J9: =INDEX(Editor!$C$5:$W$40,Editor!DB11+1,Editor!DB$36) ->  | K9: =INDEX(Editor!$C$5:$W$40,Editor!DC11+1,Editor!DC$36) ->  | L9: =INDEX(Editor!$C$5:$W$40,Editor!DD11+1,Editor!DD$36) ->  | M9: =INDEX(Editor!$C$5:$W$40,Editor!DE11+1,Editor!DE$36) ->  | N9: =INDEX(Editor!$C$5:$W$40,Editor!DF11+1,Editor!DF$36) ->  | O9: =INDEX(Editor!$C$5:$W$40,Editor!DG11+1,Editor!DG$36) ->  | P9: =INDEX(Editor!$C$5:$W$40,Editor!DH11+1,Editor!DH$36) ->  | Q9: =INDEX(Editor!$C$5:$W$40,Editor!DI11+1,Editor!DI$36) ->  | R9: =INDEX(Editor!$C$5:$W$40,Editor!DJ11+1,Editor!DJ$36) ->  | S9: =INDEX(Editor!$C$5:$W$40,Editor!DK11+1,Editor!DK$36) ->  | T9: =INDEX(Editor!$C$5:$W$40,Editor!DL11+1,Editor!DL$36) ->  | U9: =INDEX(Editor!$C$5:$W$40,Editor!DM11+1,Editor!DM$36) ->  | V9: =INDEX(Editor!$C$5:$W$40,Editor!DN11+1,Editor!DN$36) ->  | W9: =INDEX(Editor!$C$5:$W$40,Editor!DO11+1,Editor!DO$36) ->  | X9: =INDEX(Editor!$C$5:$W$40,Editor!DP11+1,Editor!DP$36) ->  | Y9: =INDEX(Editor!$C$5:$W$40,Editor!DQ11+1,Editor!DQ$36) ->  | Z9: =INDEX(Editor!$C$5:$W$40,Editor!DR11+1,Editor!DR$36) ->  | AA9: =INDEX(Editor!$C$5:$W$40,Editor!DS11+1,Editor!DS$36) ->  | AB9: =INDEX(Editor!$C$5:$W$40,Editor!DT11+1,Editor!DT$36) ->  | AC9: =INDEX(Editor!$C$5:$W$40,Editor!DU11+1,Editor!DU$36) ->  | AD9: =INDEX(Editor!$C$5:$W$40,Editor!DV11+1,Editor!DV$36) ->  | AE9: =INDEX(Editor!$C$5:$W$40,Editor!DW11+1,Editor!DW$36) ->  | AF9: =INDEX(Editor!$C$5:$W$40,Editor!DX11+1,Editor!DX$36) ->  | AG9: =INDEX(Editor!$C$5:$W$40,Editor!DY11+1,Editor!DY$36) ->  | AH9: =INDEX(Editor!$C$5:$W$40,Editor!DZ11+1,Editor!DZ$36) ->  | AI9: =INDEX(Editor!$C$5:$W$40,Editor!EA11+1,Editor!EA$36) ->  | AJ9: =INDEX(Editor!$C$5:$W$40,Editor!EB11+1,Editor!EB$36) ->  | AK9: =INDEX(Editor!$C$5:$W$40,Editor!EC11+1,Editor!EC$36) ->  | AL9: =INDEX(Editor!$C$5:$W$40,Editor!ED11+1,Editor!ED$36) ->  | AM9: =INDEX(Editor!$C$5:$W$40,Editor!EE11+1,Editor!EE$36) ->  | AN9: =INDEX(Editor!$C$5:$W$40,Editor!EF11+1,Editor!EF$36) ->  | AO9: =INDEX(Editor!$C$5:$W$40,Editor!EG11+1,Editor!EG$36) ->  | AP9: =INDEX(Editor!$C$5:$W$40,Editor!EH11+1,Editor!EH$36) ->  | AQ9: =INDEX(Editor!$C$5:$W$40,Editor!EI11+1,Editor!EI$36) ->  | AR9: =INDEX(Editor!$C$5:$W$40,Editor!EJ11+1,Editor!EJ$36) ->  | AS9: =INDEX(Editor!$C$5:$W$40,Editor!EK11+1,Editor!EK$36) ->  | AT9: =INDEX(Editor!$C$5:$W$40,Editor!EL11+1,Editor!EL$36) ->  | AU9: =INDEX(Editor!$C$5:$W$40,Editor!EM11+1,Editor!EM$36) ->  | AV9: =INDEX(Editor!$C$5:$W$40,Editor!EN11+1,Editor!EN$36) ->  | AW9: =INDEX(Editor!$C$5:$W$40,Editor!EO11+1,Editor!EO$36) ->  | AX9: =INDEX(Editor!$C$5:$W$40,Editor!EP11+1,Editor!EP$36) ->  | AY9: =INDEX(Editor!$C$5:$W$40,Editor!EQ11+1,Editor!EQ$36) ->  | AZ9: =INDEX(Editor!$C$5:$W$40,Editor!ER11+1,Editor!ER$36) ->  | BA9: =INDEX(Editor!$C$5:$W$40,Editor!ES11+1,Editor!ES$36) ->  | BB9: =INDEX(Editor!$C$5:$W$40,Editor!ET11+1,Editor!ET$36) ->  | BC9: =INDEX(Editor!$C$5:$W$40,Editor!EU11+1,Editor!EU$36) ->  | BD9: =INDEX(Editor!$C$5:$W$40,Editor!EV11+1,Editor!EV$36) ->  | BE9: =INDEX(Editor!$C$5:$W$40,Editor!EW11+1,Editor!EW$36) ->  | BF9: =INDEX(Editor!$C$5:$W$40,Editor!EX11+1,Editor!EX$36) ->  | BG9: =INDEX(Editor!$C$5:$W$40,Editor!EY11+1,Editor!EY$36) ->  | BH9: =INDEX(Editor!$C$5:$W$40,Editor!EZ11+1,Editor!EZ$36) ->  | BI9: =INDEX(Editor!$C$5:$W$40,Editor!FA11+1,Editor!FA$36) ->  | BJ9: =INDEX(Editor!$C$5:$W$40,Editor!FB11+1,Editor!FB$36) ->  | BK9: =INDEX(Editor!$C$5:$W$40,Editor!FC11+1,Editor!FC$36) ->  | BL9: =INDEX(Editor!$C$5:$W$40,Editor!FD11+1,Editor!FD$36) ->  | BM9: =INDEX(Editor!$C$5:$W$40,Editor!FE11+1,Editor!FE$36) ->  | BN9: =INDEX(Editor!$C$5:$W$40,Editor!FF11+1,Editor!FF$36) ->  | BO9: =INDEX(Editor!$C$5:$W$40,Editor!FG11+1,Editor!FG$36) ->  | BP9: =INDEX(Editor!$C$5:$W$40,Editor!FH11+1,Editor!FH$36) ->  | BQ9: =INDEX(Editor!$C$5:$W$40,Editor!FI11+1,Editor!FI$36) ->  | BR9: =INDEX(Editor!$C$5:$W$40,Editor!FJ11+1,Editor!FJ$36) ->  | BS9: =INDEX(Editor!$C$5:$W$40,Editor!FK11+1,Editor!FK$36) ->  | BT9: =INDEX(Editor!$C$5:$W$40,Editor!FL11+1,Editor!FL$36) ->  | BU9: =INDEX(Editor!$C$5:$W$40,Editor!FM11+1,Editor!FM$36) ->  | BV9: =INDEX(Editor!$C$5:$W$40,Editor!FN11+1,Editor!FN$36) ->  | BW9: =INDEX(Editor!$C$5:$W$40,Editor!FO11+1,Editor!FO$36) -> 
A10: 7 | B10: 5 | C10: 5 | D10: 5 | E10: 5 | F10: 5 | I10: =INDEX(Editor!$C$5:$W$40,Editor!DA12+1,Editor!DA$36) ->  | J10: =INDEX(Editor!$C$5:$W$40,Editor!DB12+1,Editor!DB$36) ->  | K10: =INDEX(Editor!$C$5:$W$40,Editor!DC12+1,Editor!DC$36) ->  | L10: =INDEX(Editor!$C$5:$W$40,Editor!DD12+1,Editor!DD$36) ->  | M10: =INDEX(Editor!$C$5:$W$40,Editor!DE12+1,Editor!DE$36) ->  | N10: =INDEX(Editor!$C$5:$W$40,Editor!DF12+1,Editor!DF$36) ->  | O10: =INDEX(Editor!$C$5:$W$40,Editor!DG12+1,Editor!DG$36) ->  | P10: =INDEX(Editor!$C$5:$W$40,Editor!DH12+1,Editor!DH$36) ->  | Q10: =INDEX(Editor!$C$5:$W$40,Editor!DI12+1,Editor!DI$36) ->  | R10: =INDEX(Editor!$C$5:$W$40,Editor!DJ12+1,Editor!DJ$36) ->  | S10: =INDEX(Editor!$C$5:$W$40,Editor!DK12+1,Editor!DK$36) ->  | T10: =INDEX(Editor!$C$5:$W$40,Editor!DL12+1,Editor!DL$36) ->  | U10: =INDEX(Editor!$C$5:$W$40,Editor!DM12+1,Editor!DM$36) ->  | V10: =INDEX(Editor!$C$5:$W$40,Editor!DN12+1,Editor!DN$36) ->  | W10: =INDEX(Editor!$C$5:$W$40,Editor!DO12+1,Editor!DO$36) ->  | X10: =INDEX(Editor!$C$5:$W$40,Editor!DP12+1,Editor!DP$36) ->  | Y10: =INDEX(Editor!$C$5:$W$40,Editor!DQ12+1,Editor!DQ$36) ->  | Z10: =INDEX(Editor!$C$5:$W$40,Editor!DR12+1,Editor!DR$36) ->  | AA10: =INDEX(Editor!$C$5:$W$40,Editor!DS12+1,Editor!DS$36) ->  | AB10: =INDEX(Editor!$C$5:$W$40,Editor!DT12+1,Editor!DT$36) ->  | AC10: =INDEX(Editor!$C$5:$W$40,Editor!DU12+1,Editor!DU$36) ->  | AD10: =INDEX(Editor!$C$5:$W$40,Editor!DV12+1,Editor!DV$36) ->  | AE10: =INDEX(Editor!$C$5:$W$40,Editor!DW12+1,Editor!DW$36) ->  | AF10: =INDEX(Editor!$C$5:$W$40,Editor!DX12+1,Editor!DX$36) ->  | AG10: =INDEX(Editor!$C$5:$W$40,Editor!DY12+1,Editor!DY$36) ->  | AH10: =INDEX(Editor!$C$5:$W$40,Editor!DZ12+1,Editor!DZ$36) ->  | AI10: =INDEX(Editor!$C$5:$W$40,Editor!EA12+1,Editor!EA$36) ->  | AJ10: =INDEX(Editor!$C$5:$W$40,Editor!EB12+1,Editor!EB$36) ->  | AK10: =INDEX(Editor!$C$5:$W$40,Editor!EC12+1,Editor!EC$36) ->  | AL10: =INDEX(Editor!$C$5:$W$40,Editor!ED12+1,Editor!ED$36) ->  | AM10: =INDEX(Editor!$C$5:$W$40,Editor!EE12+1,Editor!EE$36) ->  | AN10: =INDEX(Editor!$C$5:$W$40,Editor!EF12+1,Editor!EF$36) ->  | AO10: =INDEX(Editor!$C$5:$W$40,Editor!EG12+1,Editor!EG$36) ->  | AP10: =INDEX(Editor!$C$5:$W$40,Editor!EH12+1,Editor!EH$36) ->  | AQ10: =INDEX(Editor!$C$5:$W$40,Editor!EI12+1,Editor!EI$36) ->  | AR10: =INDEX(Editor!$C$5:$W$40,Editor!EJ12+1,Editor!EJ$36) ->  | AS10: =INDEX(Editor!$C$5:$W$40,Editor!EK12+1,Editor!EK$36) ->  | AT10: =INDEX(Editor!$C$5:$W$40,Editor!EL12+1,Editor!EL$36) ->  | AU10: =INDEX(Editor!$C$5:$W$40,Editor!EM12+1,Editor!EM$36) ->  | AV10: =INDEX(Editor!$C$5:$W$40,Editor!EN12+1,Editor!EN$36) ->  | AW10: =INDEX(Editor!$C$5:$W$40,Editor!EO12+1,Editor!EO$36) ->  | AX10: =INDEX(Editor!$C$5:$W$40,Editor!EP12+1,Editor!EP$36) ->  | AY10: =INDEX(Editor!$C$5:$W$40,Editor!EQ12+1,Editor!EQ$36) ->  | AZ10: =INDEX(Editor!$C$5:$W$40,Editor!ER12+1,Editor!ER$36) ->  | BA10: =INDEX(Editor!$C$5:$W$40,Editor!ES12+1,Editor!ES$36) ->  | BB10: =INDEX(Editor!$C$5:$W$40,Editor!ET12+1,Editor!ET$36) ->  | BC10: =INDEX(Editor!$C$5:$W$40,Editor!EU12+1,Editor!EU$36) ->  | BD10: =INDEX(Editor!$C$5:$W$40,Editor!EV12+1,Editor!EV$36) ->  | BE10: =INDEX(Editor!$C$5:$W$40,Editor!EW12+1,Editor!EW$36) ->  | BF10: =INDEX(Editor!$C$5:$W$40,Editor!EX12+1,Editor!EX$36) ->  | BG10: =INDEX(Editor!$C$5:$W$40,Editor!EY12+1,Editor!EY$36) ->  | BH10: =INDEX(Editor!$C$5:$W$40,Editor!EZ12+1,Editor!EZ$36) ->  | BI10: =INDEX(Editor!$C$5:$W$40,Editor!FA12+1,Editor!FA$36) ->  | BJ10: =INDEX(Editor!$C$5:$W$40,Editor!FB12+1,Editor!FB$36) ->  | BK10: =INDEX(Editor!$C$5:$W$40,Editor!FC12+1,Editor!FC$36) ->  | BL10: =INDEX(Editor!$C$5:$W$40,Editor!FD12+1,Editor!FD$36) ->  | BM10: =INDEX(Editor!$C$5:$W$40,Editor!FE12+1,Editor!FE$36) ->  | BN10: =INDEX(Editor!$C$5:$W$40,Editor!FF12+1,Editor!FF$36) ->  | BO10: =INDEX(Editor!$C$5:$W$40,Editor!FG12+1,Editor!FG$36) ->  | BP10: =INDEX(Editor!$C$5:$W$40,Editor!FH12+1,Editor!FH$36) ->  | BQ10: =INDEX(Editor!$C$5:$W$40,Editor!FI12+1,Editor!FI$36) ->  | BR10: =INDEX(Editor!$C$5:$W$40,Editor!FJ12+1,Editor!FJ$36) ->  | BS10: =INDEX(Editor!$C$5:$W$40,Editor!FK12+1,Editor!FK$36) ->  | BT10: =INDEX(Editor!$C$5:$W$40,Editor!FL12+1,Editor!FL$36) ->  | BU10: =INDEX(Editor!$C$5:$W$40,Editor!FM12+1,Editor!FM$36) ->  | BV10: =INDEX(Editor!$C$5:$W$40,Editor!FN12+1,Editor!FN$36) ->  | BW10: =INDEX(Editor!$C$5:$W$40,Editor!FO12+1,Editor!FO$36) -> 
A11: 8 | B11: 6 | C11: 6 | D11: 6 | E11: 6 | F11: 6 | I11: =INDEX(Editor!$C$5:$W$40,Editor!DA13+1,Editor!DA$36) ->  | J11: =INDEX(Editor!$C$5:$W$40,Editor!DB13+1,Editor!DB$36) ->  | K11: =INDEX(Editor!$C$5:$W$40,Editor!DC13+1,Editor!DC$36) ->  | L11: =INDEX(Editor!$C$5:$W$40,Editor!DD13+1,Editor!DD$36) ->  | M11: =INDEX(Editor!$C$5:$W$40,Editor!DE13+1,Editor!DE$36) ->  | N11: =INDEX(Editor!$C$5:$W$40,Editor!DF13+1,Editor!DF$36) ->  | O11: =INDEX(Editor!$C$5:$W$40,Editor!DG13+1,Editor!DG$36) ->  | P11: =INDEX(Editor!$C$5:$W$40,Editor!DH13+1,Editor!DH$36) ->  | Q11: =INDEX(Editor!$C$5:$W$40,Editor!DI13+1,Editor!DI$36) ->  | R11: =INDEX(Editor!$C$5:$W$40,Editor!DJ13+1,Editor!DJ$36) ->  | S11: =INDEX(Editor!$C$5:$W$40,Editor!DK13+1,Editor!DK$36) ->  | T11: =INDEX(Editor!$C$5:$W$40,Editor!DL13+1,Editor!DL$36) ->  | U11: =INDEX(Editor!$C$5:$W$40,Editor!DM13+1,Editor!DM$36) ->  | V11: =INDEX(Editor!$C$5:$W$40,Editor!DN13+1,Editor!DN$36) ->  | W11: =INDEX(Editor!$C$5:$W$40,Editor!DO13+1,Editor!DO$36) ->  | X11: =INDEX(Editor!$C$5:$W$40,Editor!DP13+1,Editor!DP$36) ->  | Y11: =INDEX(Editor!$C$5:$W$40,Editor!DQ13+1,Editor!DQ$36) ->  | Z11: =INDEX(Editor!$C$5:$W$40,Editor!DR13+1,Editor!DR$36) ->  | AA11: =INDEX(Editor!$C$5:$W$40,Editor!DS13+1,Editor!DS$36) ->  | AB11: =INDEX(Editor!$C$5:$W$40,Editor!DT13+1,Editor!DT$36) ->  | AC11: =INDEX(Editor!$C$5:$W$40,Editor!DU13+1,Editor!DU$36) ->  | AD11: =INDEX(Editor!$C$5:$W$40,Editor!DV13+1,Editor!DV$36) ->  | AE11: =INDEX(Editor!$C$5:$W$40,Editor!DW13+1,Editor!DW$36) ->  | AF11: =INDEX(Editor!$C$5:$W$40,Editor!DX13+1,Editor!DX$36) ->  | AG11: =INDEX(Editor!$C$5:$W$40,Editor!DY13+1,Editor!DY$36) ->  | AH11: =INDEX(Editor!$C$5:$W$40,Editor!DZ13+1,Editor!DZ$36) ->  | AI11: =INDEX(Editor!$C$5:$W$40,Editor!EA13+1,Editor!EA$36) ->  | AJ11: =INDEX(Editor!$C$5:$W$40,Editor!EB13+1,Editor!EB$36) ->  | AK11: =INDEX(Editor!$C$5:$W$40,Editor!EC13+1,Editor!EC$36) ->  | AL11: =INDEX(Editor!$C$5:$W$40,Editor!ED13+1,Editor!ED$36) ->  | AM11: =INDEX(Editor!$C$5:$W$40,Editor!EE13+1,Editor!EE$36) ->  | AN11: =INDEX(Editor!$C$5:$W$40,Editor!EF13+1,Editor!EF$36) ->  | AO11: =INDEX(Editor!$C$5:$W$40,Editor!EG13+1,Editor!EG$36) ->  | AP11: =INDEX(Editor!$C$5:$W$40,Editor!EH13+1,Editor!EH$36) ->  | AQ11: =INDEX(Editor!$C$5:$W$40,Editor!EI13+1,Editor!EI$36) ->  | AR11: =INDEX(Editor!$C$5:$W$40,Editor!EJ13+1,Editor!EJ$36) ->  | AS11: =INDEX(Editor!$C$5:$W$40,Editor!EK13+1,Editor!EK$36) ->  | AT11: =INDEX(Editor!$C$5:$W$40,Editor!EL13+1,Editor!EL$36) ->  | AU11: =INDEX(Editor!$C$5:$W$40,Editor!EM13+1,Editor!EM$36) ->  | AV11: =INDEX(Editor!$C$5:$W$40,Editor!EN13+1,Editor!EN$36) ->  | AW11: =INDEX(Editor!$C$5:$W$40,Editor!EO13+1,Editor!EO$36) ->  | AX11: =INDEX(Editor!$C$5:$W$40,Editor!EP13+1,Editor!EP$36) ->  | AY11: =INDEX(Editor!$C$5:$W$40,Editor!EQ13+1,Editor!EQ$36) ->  | AZ11: =INDEX(Editor!$C$5:$W$40,Editor!ER13+1,Editor!ER$36) ->  | BA11: =INDEX(Editor!$C$5:$W$40,Editor!ES13+1,Editor!ES$36) ->  | BB11: =INDEX(Editor!$C$5:$W$40,Editor!ET13+1,Editor!ET$36) ->  | BC11: =INDEX(Editor!$C$5:$W$40,Editor!EU13+1,Editor!EU$36) ->  | BD11: =INDEX(Editor!$C$5:$W$40,Editor!EV13+1,Editor!EV$36) ->  | BE11: =INDEX(Editor!$C$5:$W$40,Editor!EW13+1,Editor!EW$36) ->  | BF11: =INDEX(Editor!$C$5:$W$40,Editor!EX13+1,Editor!EX$36) ->  | BG11: =INDEX(Editor!$C$5:$W$40,Editor!EY13+1,Editor!EY$36) ->  | BH11: =INDEX(Editor!$C$5:$W$40,Editor!EZ13+1,Editor!EZ$36) ->  | BI11: =INDEX(Editor!$C$5:$W$40,Editor!FA13+1,Editor!FA$36) ->  | BJ11: =INDEX(Editor!$C$5:$W$40,Editor!FB13+1,Editor!FB$36) ->  | BK11: =INDEX(Editor!$C$5:$W$40,Editor!FC13+1,Editor!FC$36) ->  | BL11: =INDEX(Editor!$C$5:$W$40,Editor!FD13+1,Editor!FD$36) ->  | BM11: =INDEX(Editor!$C$5:$W$40,Editor!FE13+1,Editor!FE$36) ->  | BN11: =INDEX(Editor!$C$5:$W$40,Editor!FF13+1,Editor!FF$36) ->  | BO11: =INDEX(Editor!$C$5:$W$40,Editor!FG13+1,Editor!FG$36) ->  | BP11: =INDEX(Editor!$C$5:$W$40,Editor!FH13+1,Editor!FH$36) ->  | BQ11: =INDEX(Editor!$C$5:$W$40,Editor!FI13+1,Editor!FI$36) ->  | BR11: =INDEX(Editor!$C$5:$W$40,Editor!FJ13+1,Editor!FJ$36) ->  | BS11: =INDEX(Editor!$C$5:$W$40,Editor!FK13+1,Editor!FK$36) ->  | BT11: =INDEX(Editor!$C$5:$W$40,Editor!FL13+1,Editor!FL$36) ->  | BU11: =INDEX(Editor!$C$5:$W$40,Editor!FM13+1,Editor!FM$36) ->  | BV11: =INDEX(Editor!$C$5:$W$40,Editor!FN13+1,Editor!FN$36) ->  | BW11: =INDEX(Editor!$C$5:$W$40,Editor!FO13+1,Editor!FO$36) -> 
A12: 9 | B12: 7 | C12: 7 | D12: 7 | E12: 7 | F12: 7 | I12: =INDEX(Editor!$C$5:$W$40,Editor!DA14+1,Editor!DA$36) ->  | J12: =INDEX(Editor!$C$5:$W$40,Editor!DB14+1,Editor!DB$36) ->  | K12: =INDEX(Editor!$C$5:$W$40,Editor!DC14+1,Editor!DC$36) ->  | L12: =INDEX(Editor!$C$5:$W$40,Editor!DD14+1,Editor!DD$36) ->  | M12: =INDEX(Editor!$C$5:$W$40,Editor!DE14+1,Editor!DE$36) ->  | N12: =INDEX(Editor!$C$5:$W$40,Editor!DF14+1,Editor!DF$36) ->  | O12: =INDEX(Editor!$C$5:$W$40,Editor!DG14+1,Editor!DG$36) ->  | P12: =INDEX(Editor!$C$5:$W$40,Editor!DH14+1,Editor!DH$36) ->  | Q12: =INDEX(Editor!$C$5:$W$40,Editor!DI14+1,Editor!DI$36) ->  | R12: =INDEX(Editor!$C$5:$W$40,Editor!DJ14+1,Editor!DJ$36) ->  | S12: =INDEX(Editor!$C$5:$W$40,Editor!DK14+1,Editor!DK$36) ->  | T12: =INDEX(Editor!$C$5:$W$40,Editor!DL14+1,Editor!DL$36) ->  | U12: =INDEX(Editor!$C$5:$W$40,Editor!DM14+1,Editor!DM$36) ->  | V12: =INDEX(Editor!$C$5:$W$40,Editor!DN14+1,Editor!DN$36) ->  | W12: =INDEX(Editor!$C$5:$W$40,Editor!DO14+1,Editor!DO$36) ->  | X12: =INDEX(Editor!$C$5:$W$40,Editor!DP14+1,Editor!DP$36) ->  | Y12: =INDEX(Editor!$C$5:$W$40,Editor!DQ14+1,Editor!DQ$36) ->  | Z12: =INDEX(Editor!$C$5:$W$40,Editor!DR14+1,Editor!DR$36) ->  | AA12: =INDEX(Editor!$C$5:$W$40,Editor!DS14+1,Editor!DS$36) ->  | AB12: =INDEX(Editor!$C$5:$W$40,Editor!DT14+1,Editor!DT$36) ->  | AC12: =INDEX(Editor!$C$5:$W$40,Editor!DU14+1,Editor!DU$36) ->  | AD12: =INDEX(Editor!$C$5:$W$40,Editor!DV14+1,Editor!DV$36) ->  | AE12: =INDEX(Editor!$C$5:$W$40,Editor!DW14+1,Editor!DW$36) ->  | AF12: =INDEX(Editor!$C$5:$W$40,Editor!DX14+1,Editor!DX$36) ->  | AG12: =INDEX(Editor!$C$5:$W$40,Editor!DY14+1,Editor!DY$36) ->  | AH12: =INDEX(Editor!$C$5:$W$40,Editor!DZ14+1,Editor!DZ$36) ->  | AI12: =INDEX(Editor!$C$5:$W$40,Editor!EA14+1,Editor!EA$36) ->  | AJ12: =INDEX(Editor!$C$5:$W$40,Editor!EB14+1,Editor!EB$36) ->  | AK12: =INDEX(Editor!$C$5:$W$40,Editor!EC14+1,Editor!EC$36) ->  | AL12: =INDEX(Editor!$C$5:$W$40,Editor!ED14+1,Editor!ED$36) ->  | AM12: =INDEX(Editor!$C$5:$W$40,Editor!EE14+1,Editor!EE$36) ->  | AN12: =INDEX(Editor!$C$5:$W$40,Editor!EF14+1,Editor!EF$36) ->  | AO12: =INDEX(Editor!$C$5:$W$40,Editor!EG14+1,Editor!EG$36) ->  | AP12: =INDEX(Editor!$C$5:$W$40,Editor!EH14+1,Editor!EH$36) ->  | AQ12: =INDEX(Editor!$C$5:$W$40,Editor!EI14+1,Editor!EI$36) ->  | AR12: =INDEX(Editor!$C$5:$W$40,Editor!EJ14+1,Editor!EJ$36) ->  | AS12: =INDEX(Editor!$C$5:$W$40,Editor!EK14+1,Editor!EK$36) ->  | AT12: =INDEX(Editor!$C$5:$W$40,Editor!EL14+1,Editor!EL$36) ->  | AU12: =INDEX(Editor!$C$5:$W$40,Editor!EM14+1,Editor!EM$36) ->  | AV12: =INDEX(Editor!$C$5:$W$40,Editor!EN14+1,Editor!EN$36) ->  | AW12: =INDEX(Editor!$C$5:$W$40,Editor!EO14+1,Editor!EO$36) ->  | AX12: =INDEX(Editor!$C$5:$W$40,Editor!EP14+1,Editor!EP$36) ->  | AY12: =INDEX(Editor!$C$5:$W$40,Editor!EQ14+1,Editor!EQ$36) ->  | AZ12: =INDEX(Editor!$C$5:$W$40,Editor!ER14+1,Editor!ER$36) ->  | BA12: =INDEX(Editor!$C$5:$W$40,Editor!ES14+1,Editor!ES$36) ->  | BB12: =INDEX(Editor!$C$5:$W$40,Editor!ET14+1,Editor!ET$36) ->  | BC12: =INDEX(Editor!$C$5:$W$40,Editor!EU14+1,Editor!EU$36) ->  | BD12: =INDEX(Editor!$C$5:$W$40,Editor!EV14+1,Editor!EV$36) ->  | BE12: =INDEX(Editor!$C$5:$W$40,Editor!EW14+1,Editor!EW$36) ->  | BF12: =INDEX(Editor!$C$5:$W$40,Editor!EX14+1,Editor!EX$36) ->  | BG12: =INDEX(Editor!$C$5:$W$40,Editor!EY14+1,Editor!EY$36) ->  | BH12: =INDEX(Editor!$C$5:$W$40,Editor!EZ14+1,Editor!EZ$36) ->  | BI12: =INDEX(Editor!$C$5:$W$40,Editor!FA14+1,Editor!FA$36) ->  | BJ12: =INDEX(Editor!$C$5:$W$40,Editor!FB14+1,Editor!FB$36) ->  | BK12: =INDEX(Editor!$C$5:$W$40,Editor!FC14+1,Editor!FC$36) ->  | BL12: =INDEX(Editor!$C$5:$W$40,Editor!FD14+1,Editor!FD$36) ->  | BM12: =INDEX(Editor!$C$5:$W$40,Editor!FE14+1,Editor!FE$36) ->  | BN12: =INDEX(Editor!$C$5:$W$40,Editor!FF14+1,Editor!FF$36) ->  | BO12: =INDEX(Editor!$C$5:$W$40,Editor!FG14+1,Editor!FG$36) ->  | BP12: =INDEX(Editor!$C$5:$W$40,Editor!FH14+1,Editor!FH$36) ->  | BQ12: =INDEX(Editor!$C$5:$W$40,Editor!FI14+1,Editor!FI$36) ->  | BR12: =INDEX(Editor!$C$5:$W$40,Editor!FJ14+1,Editor!FJ$36) ->  | BS12: =INDEX(Editor!$C$5:$W$40,Editor!FK14+1,Editor!FK$36) ->  | BT12: =INDEX(Editor!$C$5:$W$40,Editor!FL14+1,Editor!FL$36) ->  | BU12: =INDEX(Editor!$C$5:$W$40,Editor!FM14+1,Editor!FM$36) ->  | BV12: =INDEX(Editor!$C$5:$W$40,Editor!FN14+1,Editor!FN$36) ->  | BW12: =INDEX(Editor!$C$5:$W$40,Editor!FO14+1,Editor!FO$36) -> 
A13: 10 | B13: 8 | C13: 8 | D13: 8 | E13: 8 | F13: 8 | I13: =INDEX(Editor!$C$5:$W$40,Editor!DA15+1,Editor!DA$36) ->  | J13: =INDEX(Editor!$C$5:$W$40,Editor!DB15+1,Editor!DB$36) ->  | K13: =INDEX(Editor!$C$5:$W$40,Editor!DC15+1,Editor!DC$36) ->  | L13: =INDEX(Editor!$C$5:$W$40,Editor!DD15+1,Editor!DD$36) ->  | M13: =INDEX(Editor!$C$5:$W$40,Editor!DE15+1,Editor!DE$36) ->  | N13: =INDEX(Editor!$C$5:$W$40,Editor!DF15+1,Editor!DF$36) ->  | O13: =INDEX(Editor!$C$5:$W$40,Editor!DG15+1,Editor!DG$36) ->  | P13: =INDEX(Editor!$C$5:$W$40,Editor!DH15+1,Editor!DH$36) ->  | Q13: =INDEX(Editor!$C$5:$W$40,Editor!DI15+1,Editor!DI$36) ->  | R13: =INDEX(Editor!$C$5:$W$40,Editor!DJ15+1,Editor!DJ$36) ->  | S13: =INDEX(Editor!$C$5:$W$40,Editor!DK15+1,Editor!DK$36) ->  | T13: =INDEX(Editor!$C$5:$W$40,Editor!DL15+1,Editor!DL$36) ->  | U13: =INDEX(Editor!$C$5:$W$40,Editor!DM15+1,Editor!DM$36) ->  | V13: =INDEX(Editor!$C$5:$W$40,Editor!DN15+1,Editor!DN$36) ->  | W13: =INDEX(Editor!$C$5:$W$40,Editor!DO15+1,Editor!DO$36) ->  | X13: =INDEX(Editor!$C$5:$W$40,Editor!DP15+1,Editor!DP$36) ->  | Y13: =INDEX(Editor!$C$5:$W$40,Editor!DQ15+1,Editor!DQ$36) ->  | Z13: =INDEX(Editor!$C$5:$W$40,Editor!DR15+1,Editor!DR$36) ->  | AA13: =INDEX(Editor!$C$5:$W$40,Editor!DS15+1,Editor!DS$36) ->  | AB13: =INDEX(Editor!$C$5:$W$40,Editor!DT15+1,Editor!DT$36) ->  | AC13: =INDEX(Editor!$C$5:$W$40,Editor!DU15+1,Editor!DU$36) ->  | AD13: =INDEX(Editor!$C$5:$W$40,Editor!DV15+1,Editor!DV$36) ->  | AE13: =INDEX(Editor!$C$5:$W$40,Editor!DW15+1,Editor!DW$36) ->  | AF13: =INDEX(Editor!$C$5:$W$40,Editor!DX15+1,Editor!DX$36) ->  | AG13: =INDEX(Editor!$C$5:$W$40,Editor!DY15+1,Editor!DY$36) ->  | AH13: =INDEX(Editor!$C$5:$W$40,Editor!DZ15+1,Editor!DZ$36) ->  | AI13: =INDEX(Editor!$C$5:$W$40,Editor!EA15+1,Editor!EA$36) ->  | AJ13: =INDEX(Editor!$C$5:$W$40,Editor!EB15+1,Editor!EB$36) ->  | AK13: =INDEX(Editor!$C$5:$W$40,Editor!EC15+1,Editor!EC$36) ->  | AL13: =INDEX(Editor!$C$5:$W$40,Editor!ED15+1,Editor!ED$36) ->  | AM13: =INDEX(Editor!$C$5:$W$40,Editor!EE15+1,Editor!EE$36) ->  | AN13: =INDEX(Editor!$C$5:$W$40,Editor!EF15+1,Editor!EF$36) ->  | AO13: =INDEX(Editor!$C$5:$W$40,Editor!EG15+1,Editor!EG$36) ->  | AP13: =INDEX(Editor!$C$5:$W$40,Editor!EH15+1,Editor!EH$36) ->  | AQ13: =INDEX(Editor!$C$5:$W$40,Editor!EI15+1,Editor!EI$36) ->  | AR13: =INDEX(Editor!$C$5:$W$40,Editor!EJ15+1,Editor!EJ$36) ->  | AS13: =INDEX(Editor!$C$5:$W$40,Editor!EK15+1,Editor!EK$36) ->  | AT13: =INDEX(Editor!$C$5:$W$40,Editor!EL15+1,Editor!EL$36) ->  | AU13: =INDEX(Editor!$C$5:$W$40,Editor!EM15+1,Editor!EM$36) ->  | AV13: =INDEX(Editor!$C$5:$W$40,Editor!EN15+1,Editor!EN$36) ->  | AW13: =INDEX(Editor!$C$5:$W$40,Editor!EO15+1,Editor!EO$36) ->  | AX13: =INDEX(Editor!$C$5:$W$40,Editor!EP15+1,Editor!EP$36) ->  | AY13: =INDEX(Editor!$C$5:$W$40,Editor!EQ15+1,Editor!EQ$36) ->  | AZ13: =INDEX(Editor!$C$5:$W$40,Editor!ER15+1,Editor!ER$36) ->  | BA13: =INDEX(Editor!$C$5:$W$40,Editor!ES15+1,Editor!ES$36) ->  | BB13: =INDEX(Editor!$C$5:$W$40,Editor!ET15+1,Editor!ET$36) ->  | BC13: =INDEX(Editor!$C$5:$W$40,Editor!EU15+1,Editor!EU$36) ->  | BD13: =INDEX(Editor!$C$5:$W$40,Editor!EV15+1,Editor!EV$36) ->  | BE13: =INDEX(Editor!$C$5:$W$40,Editor!EW15+1,Editor!EW$36) ->  | BF13: =INDEX(Editor!$C$5:$W$40,Editor!EX15+1,Editor!EX$36) ->  | BG13: =INDEX(Editor!$C$5:$W$40,Editor!EY15+1,Editor!EY$36) ->  | BH13: =INDEX(Editor!$C$5:$W$40,Editor!EZ15+1,Editor!EZ$36) ->  | BI13: =INDEX(Editor!$C$5:$W$40,Editor!FA15+1,Editor!FA$36) ->  | BJ13: =INDEX(Editor!$C$5:$W$40,Editor!FB15+1,Editor!FB$36) ->  | BK13: =INDEX(Editor!$C$5:$W$40,Editor!FC15+1,Editor!FC$36) ->  | BL13: =INDEX(Editor!$C$5:$W$40,Editor!FD15+1,Editor!FD$36) ->  | BM13: =INDEX(Editor!$C$5:$W$40,Editor!FE15+1,Editor!FE$36) ->  | BN13: =INDEX(Editor!$C$5:$W$40,Editor!FF15+1,Editor!FF$36) ->  | BO13: =INDEX(Editor!$C$5:$W$40,Editor!FG15+1,Editor!FG$36) ->  | BP13: =INDEX(Editor!$C$5:$W$40,Editor!FH15+1,Editor!FH$36) ->  | BQ13: =INDEX(Editor!$C$5:$W$40,Editor!FI15+1,Editor!FI$36) ->  | BR13: =INDEX(Editor!$C$5:$W$40,Editor!FJ15+1,Editor!FJ$36) ->  | BS13: =INDEX(Editor!$C$5:$W$40,Editor!FK15+1,Editor!FK$36) ->  | BT13: =INDEX(Editor!$C$5:$W$40,Editor!FL15+1,Editor!FL$36) ->  | BU13: =INDEX(Editor!$C$5:$W$40,Editor!FM15+1,Editor!FM$36) ->  | BV13: =INDEX(Editor!$C$5:$W$40,Editor!FN15+1,Editor!FN$36) ->  | BW13: =INDEX(Editor!$C$5:$W$40,Editor!FO15+1,Editor!FO$36) -> 
A14: 11 | B14: 9 | C14: 9 | D14: 9 | E14: 9 | F14: 9 | I14: =INDEX(Editor!$C$5:$W$40,Editor!DA16+1,Editor!DA$36) ->  | J14: =INDEX(Editor!$C$5:$W$40,Editor!DB16+1,Editor!DB$36) ->  | K14: =INDEX(Editor!$C$5:$W$40,Editor!DC16+1,Editor!DC$36) ->  | L14: =INDEX(Editor!$C$5:$W$40,Editor!DD16+1,Editor!DD$36) ->  | M14: =INDEX(Editor!$C$5:$W$40,Editor!DE16+1,Editor!DE$36) ->  | N14: =INDEX(Editor!$C$5:$W$40,Editor!DF16+1,Editor!DF$36) ->  | O14: =INDEX(Editor!$C$5:$W$40,Editor!DG16+1,Editor!DG$36) ->  | P14: =INDEX(Editor!$C$5:$W$40,Editor!DH16+1,Editor!DH$36) ->  | Q14: =INDEX(Editor!$C$5:$W$40,Editor!DI16+1,Editor!DI$36) ->  | R14: =INDEX(Editor!$C$5:$W$40,Editor!DJ16+1,Editor!DJ$36) ->  | S14: =INDEX(Editor!$C$5:$W$40,Editor!DK16+1,Editor!DK$36) ->  | T14: =INDEX(Editor!$C$5:$W$40,Editor!DL16+1,Editor!DL$36) ->  | U14: =INDEX(Editor!$C$5:$W$40,Editor!DM16+1,Editor!DM$36) ->  | V14: =INDEX(Editor!$C$5:$W$40,Editor!DN16+1,Editor!DN$36) ->  | W14: =INDEX(Editor!$C$5:$W$40,Editor!DO16+1,Editor!DO$36) ->  | X14: =INDEX(Editor!$C$5:$W$40,Editor!DP16+1,Editor!DP$36) ->  | Y14: =INDEX(Editor!$C$5:$W$40,Editor!DQ16+1,Editor!DQ$36) ->  | Z14: =INDEX(Editor!$C$5:$W$40,Editor!DR16+1,Editor!DR$36) ->  | AA14: =INDEX(Editor!$C$5:$W$40,Editor!DS16+1,Editor!DS$36) ->  | AB14: =INDEX(Editor!$C$5:$W$40,Editor!DT16+1,Editor!DT$36) ->  | AC14: =INDEX(Editor!$C$5:$W$40,Editor!DU16+1,Editor!DU$36) ->  | AD14: =INDEX(Editor!$C$5:$W$40,Editor!DV16+1,Editor!DV$36) ->  | AE14: =INDEX(Editor!$C$5:$W$40,Editor!DW16+1,Editor!DW$36) ->  | AF14: =INDEX(Editor!$C$5:$W$40,Editor!DX16+1,Editor!DX$36) ->  | AG14: =INDEX(Editor!$C$5:$W$40,Editor!DY16+1,Editor!DY$36) ->  | AH14: =INDEX(Editor!$C$5:$W$40,Editor!DZ16+1,Editor!DZ$36) ->  | AI14: =INDEX(Editor!$C$5:$W$40,Editor!EA16+1,Editor!EA$36) ->  | AJ14: =INDEX(Editor!$C$5:$W$40,Editor!EB16+1,Editor!EB$36) ->  | AK14: =INDEX(Editor!$C$5:$W$40,Editor!EC16+1,Editor!EC$36) ->  | AL14: =INDEX(Editor!$C$5:$W$40,Editor!ED16+1,Editor!ED$36) ->  | AM14: =INDEX(Editor!$C$5:$W$40,Editor!EE16+1,Editor!EE$36) ->  | AN14: =INDEX(Editor!$C$5:$W$40,Editor!EF16+1,Editor!EF$36) ->  | AO14: =INDEX(Editor!$C$5:$W$40,Editor!EG16+1,Editor!EG$36) ->  | AP14: =INDEX(Editor!$C$5:$W$40,Editor!EH16+1,Editor!EH$36) ->  | AQ14: =INDEX(Editor!$C$5:$W$40,Editor!EI16+1,Editor!EI$36) ->  | AR14: =INDEX(Editor!$C$5:$W$40,Editor!EJ16+1,Editor!EJ$36) ->  | AS14: =INDEX(Editor!$C$5:$W$40,Editor!EK16+1,Editor!EK$36) ->  | AT14: =INDEX(Editor!$C$5:$W$40,Editor!EL16+1,Editor!EL$36) ->  | AU14: =INDEX(Editor!$C$5:$W$40,Editor!EM16+1,Editor!EM$36) ->  | AV14: =INDEX(Editor!$C$5:$W$40,Editor!EN16+1,Editor!EN$36) ->  | AW14: =INDEX(Editor!$C$5:$W$40,Editor!EO16+1,Editor!EO$36) ->  | AX14: =INDEX(Editor!$C$5:$W$40,Editor!EP16+1,Editor!EP$36) ->  | AY14: =INDEX(Editor!$C$5:$W$40,Editor!EQ16+1,Editor!EQ$36) ->  | AZ14: =INDEX(Editor!$C$5:$W$40,Editor!ER16+1,Editor!ER$36) ->  | BA14: =INDEX(Editor!$C$5:$W$40,Editor!ES16+1,Editor!ES$36) ->  | BB14: =INDEX(Editor!$C$5:$W$40,Editor!ET16+1,Editor!ET$36) ->  | BC14: =INDEX(Editor!$C$5:$W$40,Editor!EU16+1,Editor!EU$36) ->  | BD14: =INDEX(Editor!$C$5:$W$40,Editor!EV16+1,Editor!EV$36) ->  | BE14: =INDEX(Editor!$C$5:$W$40,Editor!EW16+1,Editor!EW$36) ->  | BF14: =INDEX(Editor!$C$5:$W$40,Editor!EX16+1,Editor!EX$36) ->  | BG14: =INDEX(Editor!$C$5:$W$40,Editor!EY16+1,Editor!EY$36) ->  | BH14: =INDEX(Editor!$C$5:$W$40,Editor!EZ16+1,Editor!EZ$36) ->  | BI14: =INDEX(Editor!$C$5:$W$40,Editor!FA16+1,Editor!FA$36) ->  | BJ14: =INDEX(Editor!$C$5:$W$40,Editor!FB16+1,Editor!FB$36) ->  | BK14: =INDEX(Editor!$C$5:$W$40,Editor!FC16+1,Editor!FC$36) ->  | BL14: =INDEX(Editor!$C$5:$W$40,Editor!FD16+1,Editor!FD$36) ->  | BM14: =INDEX(Editor!$C$5:$W$40,Editor!FE16+1,Editor!FE$36) ->  | BN14: =INDEX(Editor!$C$5:$W$40,Editor!FF16+1,Editor!FF$36) ->  | BO14: =INDEX(Editor!$C$5:$W$40,Editor!FG16+1,Editor!FG$36) ->  | BP14: =INDEX(Editor!$C$5:$W$40,Editor!FH16+1,Editor!FH$36) ->  | BQ14: =INDEX(Editor!$C$5:$W$40,Editor!FI16+1,Editor!FI$36) ->  | BR14: =INDEX(Editor!$C$5:$W$40,Editor!FJ16+1,Editor!FJ$36) ->  | BS14: =INDEX(Editor!$C$5:$W$40,Editor!FK16+1,Editor!FK$36) ->  | BT14: =INDEX(Editor!$C$5:$W$40,Editor!FL16+1,Editor!FL$36) ->  | BU14: =INDEX(Editor!$C$5:$W$40,Editor!FM16+1,Editor!FM$36) ->  | BV14: =INDEX(Editor!$C$5:$W$40,Editor!FN16+1,Editor!FN$36) ->  | BW14: =INDEX(Editor!$C$5:$W$40,Editor!FO16+1,Editor!FO$36) -> 
A15: 12 | I15: =INDEX(Editor!$C$5:$W$40,Editor!DA17+1,Editor!DA$36) ->  | J15: =INDEX(Editor!$C$5:$W$40,Editor!DB17+1,Editor!DB$36) ->  | K15: =INDEX(Editor!$C$5:$W$40,Editor!DC17+1,Editor!DC$36) ->  | L15: =INDEX(Editor!$C$5:$W$40,Editor!DD17+1,Editor!DD$36) ->  | M15: =INDEX(Editor!$C$5:$W$40,Editor!DE17+1,Editor!DE$36) ->  | N15: =INDEX(Editor!$C$5:$W$40,Editor!DF17+1,Editor!DF$36) ->  | O15: =INDEX(Editor!$C$5:$W$40,Editor!DG17+1,Editor!DG$36) ->  | P15: =INDEX(Editor!$C$5:$W$40,Editor!DH17+1,Editor!DH$36) ->  | Q15: =INDEX(Editor!$C$5:$W$40,Editor!DI17+1,Editor!DI$36) ->  | R15: =INDEX(Editor!$C$5:$W$40,Editor!DJ17+1,Editor!DJ$36) ->  | S15: =INDEX(Editor!$C$5:$W$40,Editor!DK17+1,Editor!DK$36) ->  | T15: =INDEX(Editor!$C$5:$W$40,Editor!DL17+1,Editor!DL$36) ->  | U15: =INDEX(Editor!$C$5:$W$40,Editor!DM17+1,Editor!DM$36) ->  | V15: =INDEX(Editor!$C$5:$W$40,Editor!DN17+1,Editor!DN$36) ->  | W15: =INDEX(Editor!$C$5:$W$40,Editor!DO17+1,Editor!DO$36) ->  | X15: =INDEX(Editor!$C$5:$W$40,Editor!DP17+1,Editor!DP$36) ->  | Y15: =INDEX(Editor!$C$5:$W$40,Editor!DQ17+1,Editor!DQ$36) ->  | Z15: =INDEX(Editor!$C$5:$W$40,Editor!DR17+1,Editor!DR$36) ->  | AA15: =INDEX(Editor!$C$5:$W$40,Editor!DS17+1,Editor!DS$36) ->  | AB15: =INDEX(Editor!$C$5:$W$40,Editor!DT17+1,Editor!DT$36) ->  | AC15: =INDEX(Editor!$C$5:$W$40,Editor!DU17+1,Editor!DU$36) ->  | AD15: =INDEX(Editor!$C$5:$W$40,Editor!DV17+1,Editor!DV$36) ->  | AE15: =INDEX(Editor!$C$5:$W$40,Editor!DW17+1,Editor!DW$36) ->  | AF15: =INDEX(Editor!$C$5:$W$40,Editor!DX17+1,Editor!DX$36) ->  | AG15: =INDEX(Editor!$C$5:$W$40,Editor!DY17+1,Editor!DY$36) ->  | AH15: =INDEX(Editor!$C$5:$W$40,Editor!DZ17+1,Editor!DZ$36) ->  | AI15: =INDEX(Editor!$C$5:$W$40,Editor!EA17+1,Editor!EA$36) ->  | AJ15: =INDEX(Editor!$C$5:$W$40,Editor!EB17+1,Editor!EB$36) ->  | AK15: =INDEX(Editor!$C$5:$W$40,Editor!EC17+1,Editor!EC$36) ->  | AL15: =INDEX(Editor!$C$5:$W$40,Editor!ED17+1,Editor!ED$36) ->  | AM15: =INDEX(Editor!$C$5:$W$40,Editor!EE17+1,Editor!EE$36) ->  | AN15: =INDEX(Editor!$C$5:$W$40,Editor!EF17+1,Editor!EF$36) ->  | AO15: =INDEX(Editor!$C$5:$W$40,Editor!EG17+1,Editor!EG$36) ->  | AP15: =INDEX(Editor!$C$5:$W$40,Editor!EH17+1,Editor!EH$36) ->  | AQ15: =INDEX(Editor!$C$5:$W$40,Editor!EI17+1,Editor!EI$36) ->  | AR15: =INDEX(Editor!$C$5:$W$40,Editor!EJ17+1,Editor!EJ$36) ->  | AS15: =INDEX(Editor!$C$5:$W$40,Editor!EK17+1,Editor!EK$36) ->  | AT15: =INDEX(Editor!$C$5:$W$40,Editor!EL17+1,Editor!EL$36) ->  | AU15: =INDEX(Editor!$C$5:$W$40,Editor!EM17+1,Editor!EM$36) ->  | AV15: =INDEX(Editor!$C$5:$W$40,Editor!EN17+1,Editor!EN$36) ->  | AW15: =INDEX(Editor!$C$5:$W$40,Editor!EO17+1,Editor!EO$36) ->  | AX15: =INDEX(Editor!$C$5:$W$40,Editor!EP17+1,Editor!EP$36) ->  | AY15: =INDEX(Editor!$C$5:$W$40,Editor!EQ17+1,Editor!EQ$36) ->  | AZ15: =INDEX(Editor!$C$5:$W$40,Editor!ER17+1,Editor!ER$36) ->  | BA15: =INDEX(Editor!$C$5:$W$40,Editor!ES17+1,Editor!ES$36) ->  | BB15: =INDEX(Editor!$C$5:$W$40,Editor!ET17+1,Editor!ET$36) ->  | BC15: =INDEX(Editor!$C$5:$W$40,Editor!EU17+1,Editor!EU$36) ->  | BD15: =INDEX(Editor!$C$5:$W$40,Editor!EV17+1,Editor!EV$36) ->  | BE15: =INDEX(Editor!$C$5:$W$40,Editor!EW17+1,Editor!EW$36) ->  | BF15: =INDEX(Editor!$C$5:$W$40,Editor!EX17+1,Editor!EX$36) ->  | BG15: =INDEX(Editor!$C$5:$W$40,Editor!EY17+1,Editor!EY$36) ->  | BH15: =INDEX(Editor!$C$5:$W$40,Editor!EZ17+1,Editor!EZ$36) ->  | BI15: =INDEX(Editor!$C$5:$W$40,Editor!FA17+1,Editor!FA$36) ->  | BJ15: =INDEX(Editor!$C$5:$W$40,Editor!FB17+1,Editor!FB$36) ->  | BK15: =INDEX(Editor!$C$5:$W$40,Editor!FC17+1,Editor!FC$36) ->  | BL15: =INDEX(Editor!$C$5:$W$40,Editor!FD17+1,Editor!FD$36) ->  | BM15: =INDEX(Editor!$C$5:$W$40,Editor!FE17+1,Editor!FE$36) ->  | BN15: =INDEX(Editor!$C$5:$W$40,Editor!FF17+1,Editor!FF$36) ->  | BO15: =INDEX(Editor!$C$5:$W$40,Editor!FG17+1,Editor!FG$36) ->  | BP15: =INDEX(Editor!$C$5:$W$40,Editor!FH17+1,Editor!FH$36) ->  | BQ15: =INDEX(Editor!$C$5:$W$40,Editor!FI17+1,Editor!FI$36) ->  | BR15: =INDEX(Editor!$C$5:$W$40,Editor!FJ17+1,Editor!FJ$36) ->  | BS15: =INDEX(Editor!$C$5:$W$40,Editor!FK17+1,Editor!FK$36) ->  | BT15: =INDEX(Editor!$C$5:$W$40,Editor!FL17+1,Editor!FL$36) ->  | BU15: =INDEX(Editor!$C$5:$W$40,Editor!FM17+1,Editor!FM$36) ->  | BV15: =INDEX(Editor!$C$5:$W$40,Editor!FN17+1,Editor!FN$36) ->  | BW15: =INDEX(Editor!$C$5:$W$40,Editor!FO17+1,Editor!FO$36) -> 
A16: 13 | I16: =INDEX(Editor!$C$5:$W$40,Editor!DA18+1,Editor!DA$36) ->  | J16: =INDEX(Editor!$C$5:$W$40,Editor!DB18+1,Editor!DB$36) ->  | K16: =INDEX(Editor!$C$5:$W$40,Editor!DC18+1,Editor!DC$36) ->  | L16: =INDEX(Editor!$C$5:$W$40,Editor!DD18+1,Editor!DD$36) ->  | M16: =INDEX(Editor!$C$5:$W$40,Editor!DE18+1,Editor!DE$36) ->  | N16: =INDEX(Editor!$C$5:$W$40,Editor!DF18+1,Editor!DF$36) ->  | O16: =INDEX(Editor!$C$5:$W$40,Editor!DG18+1,Editor!DG$36) ->  | P16: =INDEX(Editor!$C$5:$W$40,Editor!DH18+1,Editor!DH$36) ->  | Q16: =INDEX(Editor!$C$5:$W$40,Editor!DI18+1,Editor!DI$36) ->  | R16: =INDEX(Editor!$C$5:$W$40,Editor!DJ18+1,Editor!DJ$36) ->  | S16: =INDEX(Editor!$C$5:$W$40,Editor!DK18+1,Editor!DK$36) ->  | T16: =INDEX(Editor!$C$5:$W$40,Editor!DL18+1,Editor!DL$36) ->  | U16: =INDEX(Editor!$C$5:$W$40,Editor!DM18+1,Editor!DM$36) ->  | V16: =INDEX(Editor!$C$5:$W$40,Editor!DN18+1,Editor!DN$36) ->  | W16: =INDEX(Editor!$C$5:$W$40,Editor!DO18+1,Editor!DO$36) ->  | X16: =INDEX(Editor!$C$5:$W$40,Editor!DP18+1,Editor!DP$36) ->  | Y16: =INDEX(Editor!$C$5:$W$40,Editor!DQ18+1,Editor!DQ$36) ->  | Z16: =INDEX(Editor!$C$5:$W$40,Editor!DR18+1,Editor!DR$36) ->  | AA16: =INDEX(Editor!$C$5:$W$40,Editor!DS18+1,Editor!DS$36) ->  | AB16: =INDEX(Editor!$C$5:$W$40,Editor!DT18+1,Editor!DT$36) ->  | AC16: =INDEX(Editor!$C$5:$W$40,Editor!DU18+1,Editor!DU$36) ->  | AD16: =INDEX(Editor!$C$5:$W$40,Editor!DV18+1,Editor!DV$36) ->  | AE16: =INDEX(Editor!$C$5:$W$40,Editor!DW18+1,Editor!DW$36) ->  | AF16: =INDEX(Editor!$C$5:$W$40,Editor!DX18+1,Editor!DX$36) ->  | AG16: =INDEX(Editor!$C$5:$W$40,Editor!DY18+1,Editor!DY$36) ->  | AH16: =INDEX(Editor!$C$5:$W$40,Editor!DZ18+1,Editor!DZ$36) ->  | AI16: =INDEX(Editor!$C$5:$W$40,Editor!EA18+1,Editor!EA$36) ->  | AJ16: =INDEX(Editor!$C$5:$W$40,Editor!EB18+1,Editor!EB$36) ->  | AK16: =INDEX(Editor!$C$5:$W$40,Editor!EC18+1,Editor!EC$36) ->  | AL16: =INDEX(Editor!$C$5:$W$40,Editor!ED18+1,Editor!ED$36) ->  | AM16: =INDEX(Editor!$C$5:$W$40,Editor!EE18+1,Editor!EE$36) ->  | AN16: =INDEX(Editor!$C$5:$W$40,Editor!EF18+1,Editor!EF$36) ->  | AO16: =INDEX(Editor!$C$5:$W$40,Editor!EG18+1,Editor!EG$36) ->  | AP16: =INDEX(Editor!$C$5:$W$40,Editor!EH18+1,Editor!EH$36) ->  | AQ16: =INDEX(Editor!$C$5:$W$40,Editor!EI18+1,Editor!EI$36) ->  | AR16: =INDEX(Editor!$C$5:$W$40,Editor!EJ18+1,Editor!EJ$36) ->  | AS16: =INDEX(Editor!$C$5:$W$40,Editor!EK18+1,Editor!EK$36) ->  | AT16: =INDEX(Editor!$C$5:$W$40,Editor!EL18+1,Editor!EL$36) ->  | AU16: =INDEX(Editor!$C$5:$W$40,Editor!EM18+1,Editor!EM$36) ->  | AV16: =INDEX(Editor!$C$5:$W$40,Editor!EN18+1,Editor!EN$36) ->  | AW16: =INDEX(Editor!$C$5:$W$40,Editor!EO18+1,Editor!EO$36) ->  | AX16: =INDEX(Editor!$C$5:$W$40,Editor!EP18+1,Editor!EP$36) ->  | AY16: =INDEX(Editor!$C$5:$W$40,Editor!EQ18+1,Editor!EQ$36) ->  | AZ16: =INDEX(Editor!$C$5:$W$40,Editor!ER18+1,Editor!ER$36) ->  | BA16: =INDEX(Editor!$C$5:$W$40,Editor!ES18+1,Editor!ES$36) ->  | BB16: =INDEX(Editor!$C$5:$W$40,Editor!ET18+1,Editor!ET$36) ->  | BC16: =INDEX(Editor!$C$5:$W$40,Editor!EU18+1,Editor!EU$36) ->  | BD16: =INDEX(Editor!$C$5:$W$40,Editor!EV18+1,Editor!EV$36) ->  | BE16: =INDEX(Editor!$C$5:$W$40,Editor!EW18+1,Editor!EW$36) ->  | BF16: =INDEX(Editor!$C$5:$W$40,Editor!EX18+1,Editor!EX$36) ->  | BG16: =INDEX(Editor!$C$5:$W$40,Editor!EY18+1,Editor!EY$36) ->  | BH16: =INDEX(Editor!$C$5:$W$40,Editor!EZ18+1,Editor!EZ$36) ->  | BI16: =INDEX(Editor!$C$5:$W$40,Editor!FA18+1,Editor!FA$36) ->  | BJ16: =INDEX(Editor!$C$5:$W$40,Editor!FB18+1,Editor!FB$36) ->  | BK16: =INDEX(Editor!$C$5:$W$40,Editor!FC18+1,Editor!FC$36) ->  | BL16: =INDEX(Editor!$C$5:$W$40,Editor!FD18+1,Editor!FD$36) ->  | BM16: =INDEX(Editor!$C$5:$W$40,Editor!FE18+1,Editor!FE$36) ->  | BN16: =INDEX(Editor!$C$5:$W$40,Editor!FF18+1,Editor!FF$36) ->  | BO16: =INDEX(Editor!$C$5:$W$40,Editor!FG18+1,Editor!FG$36) ->  | BP16: =INDEX(Editor!$C$5:$W$40,Editor!FH18+1,Editor!FH$36) ->  | BQ16: =INDEX(Editor!$C$5:$W$40,Editor!FI18+1,Editor!FI$36) ->  | BR16: =INDEX(Editor!$C$5:$W$40,Editor!FJ18+1,Editor!FJ$36) ->  | BS16: =INDEX(Editor!$C$5:$W$40,Editor!FK18+1,Editor!FK$36) ->  | BT16: =INDEX(Editor!$C$5:$W$40,Editor!FL18+1,Editor!FL$36) ->  | BU16: =INDEX(Editor!$C$5:$W$40,Editor!FM18+1,Editor!FM$36) ->  | BV16: =INDEX(Editor!$C$5:$W$40,Editor!FN18+1,Editor!FN$36) ->  | BW16: =INDEX(Editor!$C$5:$W$40,Editor!FO18+1,Editor!FO$36) -> 
A17: 14 | I17: =INDEX(Editor!$C$5:$W$40,Editor!DA19+1,Editor!DA$36) ->  | J17: =INDEX(Editor!$C$5:$W$40,Editor!DB19+1,Editor!DB$36) ->  | K17: =INDEX(Editor!$C$5:$W$40,Editor!DC19+1,Editor!DC$36) ->  | L17: =INDEX(Editor!$C$5:$W$40,Editor!DD19+1,Editor!DD$36) ->  | M17: =INDEX(Editor!$C$5:$W$40,Editor!DE19+1,Editor!DE$36) ->  | N17: =INDEX(Editor!$C$5:$W$40,Editor!DF19+1,Editor!DF$36) ->  | O17: =INDEX(Editor!$C$5:$W$40,Editor!DG19+1,Editor!DG$36) ->  | P17: =INDEX(Editor!$C$5:$W$40,Editor!DH19+1,Editor!DH$36) ->  | Q17: =INDEX(Editor!$C$5:$W$40,Editor!DI19+1,Editor!DI$36) ->  | R17: =INDEX(Editor!$C$5:$W$40,Editor!DJ19+1,Editor!DJ$36) ->  | S17: =INDEX(Editor!$C$5:$W$40,Editor!DK19+1,Editor!DK$36) ->  | T17: =INDEX(Editor!$C$5:$W$40,Editor!DL19+1,Editor!DL$36) ->  | U17: =INDEX(Editor!$C$5:$W$40,Editor!DM19+1,Editor!DM$36) ->  | V17: =INDEX(Editor!$C$5:$W$40,Editor!DN19+1,Editor!DN$36) ->  | W17: =INDEX(Editor!$C$5:$W$40,Editor!DO19+1,Editor!DO$36) ->  | X17: =INDEX(Editor!$C$5:$W$40,Editor!DP19+1,Editor!DP$36) ->  | Y17: =INDEX(Editor!$C$5:$W$40,Editor!DQ19+1,Editor!DQ$36) ->  | Z17: =INDEX(Editor!$C$5:$W$40,Editor!DR19+1,Editor!DR$36) ->  | AA17: =INDEX(Editor!$C$5:$W$40,Editor!DS19+1,Editor!DS$36) ->  | AB17: =INDEX(Editor!$C$5:$W$40,Editor!DT19+1,Editor!DT$36) ->  | AC17: =INDEX(Editor!$C$5:$W$40,Editor!DU19+1,Editor!DU$36) ->  | AD17: =INDEX(Editor!$C$5:$W$40,Editor!DV19+1,Editor!DV$36) ->  | AE17: =INDEX(Editor!$C$5:$W$40,Editor!DW19+1,Editor!DW$36) ->  | AF17: =INDEX(Editor!$C$5:$W$40,Editor!DX19+1,Editor!DX$36) ->  | AG17: =INDEX(Editor!$C$5:$W$40,Editor!DY19+1,Editor!DY$36) ->  | AH17: =INDEX(Editor!$C$5:$W$40,Editor!DZ19+1,Editor!DZ$36) ->  | AI17: =INDEX(Editor!$C$5:$W$40,Editor!EA19+1,Editor!EA$36) ->  | AJ17: =INDEX(Editor!$C$5:$W$40,Editor!EB19+1,Editor!EB$36) ->  | AK17: =INDEX(Editor!$C$5:$W$40,Editor!EC19+1,Editor!EC$36) ->  | AL17: =INDEX(Editor!$C$5:$W$40,Editor!ED19+1,Editor!ED$36) ->  | AM17: =INDEX(Editor!$C$5:$W$40,Editor!EE19+1,Editor!EE$36) ->  | AN17: =INDEX(Editor!$C$5:$W$40,Editor!EF19+1,Editor!EF$36) ->  | AO17: =INDEX(Editor!$C$5:$W$40,Editor!EG19+1,Editor!EG$36) ->  | AP17: =INDEX(Editor!$C$5:$W$40,Editor!EH19+1,Editor!EH$36) ->  | AQ17: =INDEX(Editor!$C$5:$W$40,Editor!EI19+1,Editor!EI$36) ->  | AR17: =INDEX(Editor!$C$5:$W$40,Editor!EJ19+1,Editor!EJ$36) ->  | AS17: =INDEX(Editor!$C$5:$W$40,Editor!EK19+1,Editor!EK$36) ->  | AT17: =INDEX(Editor!$C$5:$W$40,Editor!EL19+1,Editor!EL$36) ->  | AU17: =INDEX(Editor!$C$5:$W$40,Editor!EM19+1,Editor!EM$36) ->  | AV17: =INDEX(Editor!$C$5:$W$40,Editor!EN19+1,Editor!EN$36) ->  | AW17: =INDEX(Editor!$C$5:$W$40,Editor!EO19+1,Editor!EO$36) ->  | AX17: =INDEX(Editor!$C$5:$W$40,Editor!EP19+1,Editor!EP$36) ->  | AY17: =INDEX(Editor!$C$5:$W$40,Editor!EQ19+1,Editor!EQ$36) ->  | AZ17: =INDEX(Editor!$C$5:$W$40,Editor!ER19+1,Editor!ER$36) ->  | BA17: =INDEX(Editor!$C$5:$W$40,Editor!ES19+1,Editor!ES$36) ->  | BB17: =INDEX(Editor!$C$5:$W$40,Editor!ET19+1,Editor!ET$36) ->  | BC17: =INDEX(Editor!$C$5:$W$40,Editor!EU19+1,Editor!EU$36) ->  | BD17: =INDEX(Editor!$C$5:$W$40,Editor!EV19+1,Editor!EV$36) ->  | BE17: =INDEX(Editor!$C$5:$W$40,Editor!EW19+1,Editor!EW$36) ->  | BF17: =INDEX(Editor!$C$5:$W$40,Editor!EX19+1,Editor!EX$36) ->  | BG17: =INDEX(Editor!$C$5:$W$40,Editor!EY19+1,Editor!EY$36) ->  | BH17: =INDEX(Editor!$C$5:$W$40,Editor!EZ19+1,Editor!EZ$36) ->  | BI17: =INDEX(Editor!$C$5:$W$40,Editor!FA19+1,Editor!FA$36) ->  | BJ17: =INDEX(Editor!$C$5:$W$40,Editor!FB19+1,Editor!FB$36) ->  | BK17: =INDEX(Editor!$C$5:$W$40,Editor!FC19+1,Editor!FC$36) ->  | BL17: =INDEX(Editor!$C$5:$W$40,Editor!FD19+1,Editor!FD$36) ->  | BM17: =INDEX(Editor!$C$5:$W$40,Editor!FE19+1,Editor!FE$36) ->  | BN17: =INDEX(Editor!$C$5:$W$40,Editor!FF19+1,Editor!FF$36) ->  | BO17: =INDEX(Editor!$C$5:$W$40,Editor!FG19+1,Editor!FG$36) ->  | BP17: =INDEX(Editor!$C$5:$W$40,Editor!FH19+1,Editor!FH$36) ->  | BQ17: =INDEX(Editor!$C$5:$W$40,Editor!FI19+1,Editor!FI$36) ->  | BR17: =INDEX(Editor!$C$5:$W$40,Editor!FJ19+1,Editor!FJ$36) ->  | BS17: =INDEX(Editor!$C$5:$W$40,Editor!FK19+1,Editor!FK$36) ->  | BT17: =INDEX(Editor!$C$5:$W$40,Editor!FL19+1,Editor!FL$36) ->  | BU17: =INDEX(Editor!$C$5:$W$40,Editor!FM19+1,Editor!FM$36) ->  | BV17: =INDEX(Editor!$C$5:$W$40,Editor!FN19+1,Editor!FN$36) ->  | BW17: =INDEX(Editor!$C$5:$W$40,Editor!FO19+1,Editor!FO$36) -> 
A18: 15 | I18: =INDEX(Editor!$C$5:$W$40,Editor!DA20+1,Editor!DA$36) ->  | J18: =INDEX(Editor!$C$5:$W$40,Editor!DB20+1,Editor!DB$36) ->  | K18: =INDEX(Editor!$C$5:$W$40,Editor!DC20+1,Editor!DC$36) ->  | L18: =INDEX(Editor!$C$5:$W$40,Editor!DD20+1,Editor!DD$36) ->  | M18: =INDEX(Editor!$C$5:$W$40,Editor!DE20+1,Editor!DE$36) ->  | N18: =INDEX(Editor!$C$5:$W$40,Editor!DF20+1,Editor!DF$36) ->  | O18: =INDEX(Editor!$C$5:$W$40,Editor!DG20+1,Editor!DG$36) ->  | P18: =INDEX(Editor!$C$5:$W$40,Editor!DH20+1,Editor!DH$36) ->  | Q18: =INDEX(Editor!$C$5:$W$40,Editor!DI20+1,Editor!DI$36) ->  | R18: =INDEX(Editor!$C$5:$W$40,Editor!DJ20+1,Editor!DJ$36) ->  | S18: =INDEX(Editor!$C$5:$W$40,Editor!DK20+1,Editor!DK$36) ->  | T18: =INDEX(Editor!$C$5:$W$40,Editor!DL20+1,Editor!DL$36) ->  | U18: =INDEX(Editor!$C$5:$W$40,Editor!DM20+1,Editor!DM$36) ->  | V18: =INDEX(Editor!$C$5:$W$40,Editor!DN20+1,Editor!DN$36) ->  | W18: =INDEX(Editor!$C$5:$W$40,Editor!DO20+1,Editor!DO$36) ->  | X18: =INDEX(Editor!$C$5:$W$40,Editor!DP20+1,Editor!DP$36) ->  | Y18: =INDEX(Editor!$C$5:$W$40,Editor!DQ20+1,Editor!DQ$36) ->  | Z18: =INDEX(Editor!$C$5:$W$40,Editor!DR20+1,Editor!DR$36) ->  | AA18: =INDEX(Editor!$C$5:$W$40,Editor!DS20+1,Editor!DS$36) ->  | AB18: =INDEX(Editor!$C$5:$W$40,Editor!DT20+1,Editor!DT$36) ->  | AC18: =INDEX(Editor!$C$5:$W$40,Editor!DU20+1,Editor!DU$36) ->  | AD18: =INDEX(Editor!$C$5:$W$40,Editor!DV20+1,Editor!DV$36) ->  | AE18: =INDEX(Editor!$C$5:$W$40,Editor!DW20+1,Editor!DW$36) ->  | AF18: =INDEX(Editor!$C$5:$W$40,Editor!DX20+1,Editor!DX$36) ->  | AG18: =INDEX(Editor!$C$5:$W$40,Editor!DY20+1,Editor!DY$36) ->  | AH18: =INDEX(Editor!$C$5:$W$40,Editor!DZ20+1,Editor!DZ$36) ->  | AI18: =INDEX(Editor!$C$5:$W$40,Editor!EA20+1,Editor!EA$36) ->  | AJ18: =INDEX(Editor!$C$5:$W$40,Editor!EB20+1,Editor!EB$36) ->  | AK18: =INDEX(Editor!$C$5:$W$40,Editor!EC20+1,Editor!EC$36) ->  | AL18: =INDEX(Editor!$C$5:$W$40,Editor!ED20+1,Editor!ED$36) ->  | AM18: =INDEX(Editor!$C$5:$W$40,Editor!EE20+1,Editor!EE$36) ->  | AN18: =INDEX(Editor!$C$5:$W$40,Editor!EF20+1,Editor!EF$36) ->  | AO18: =INDEX(Editor!$C$5:$W$40,Editor!EG20+1,Editor!EG$36) ->  | AP18: =INDEX(Editor!$C$5:$W$40,Editor!EH20+1,Editor!EH$36) ->  | AQ18: =INDEX(Editor!$C$5:$W$40,Editor!EI20+1,Editor!EI$36) ->  | AR18: =INDEX(Editor!$C$5:$W$40,Editor!EJ20+1,Editor!EJ$36) ->  | AS18: =INDEX(Editor!$C$5:$W$40,Editor!EK20+1,Editor!EK$36) ->  | AT18: =INDEX(Editor!$C$5:$W$40,Editor!EL20+1,Editor!EL$36) ->  | AU18: =INDEX(Editor!$C$5:$W$40,Editor!EM20+1,Editor!EM$36) ->  | AV18: =INDEX(Editor!$C$5:$W$40,Editor!EN20+1,Editor!EN$36) ->  | AW18: =INDEX(Editor!$C$5:$W$40,Editor!EO20+1,Editor!EO$36) ->  | AX18: =INDEX(Editor!$C$5:$W$40,Editor!EP20+1,Editor!EP$36) ->  | AY18: =INDEX(Editor!$C$5:$W$40,Editor!EQ20+1,Editor!EQ$36) ->  | AZ18: =INDEX(Editor!$C$5:$W$40,Editor!ER20+1,Editor!ER$36) ->  | BA18: =INDEX(Editor!$C$5:$W$40,Editor!ES20+1,Editor!ES$36) ->  | BB18: =INDEX(Editor!$C$5:$W$40,Editor!ET20+1,Editor!ET$36) ->  | BC18: =INDEX(Editor!$C$5:$W$40,Editor!EU20+1,Editor!EU$36) ->  | BD18: =INDEX(Editor!$C$5:$W$40,Editor!EV20+1,Editor!EV$36) ->  | BE18: =INDEX(Editor!$C$5:$W$40,Editor!EW20+1,Editor!EW$36) ->  | BF18: =INDEX(Editor!$C$5:$W$40,Editor!EX20+1,Editor!EX$36) ->  | BG18: =INDEX(Editor!$C$5:$W$40,Editor!EY20+1,Editor!EY$36) ->  | BH18: =INDEX(Editor!$C$5:$W$40,Editor!EZ20+1,Editor!EZ$36) ->  | BI18: =INDEX(Editor!$C$5:$W$40,Editor!FA20+1,Editor!FA$36) ->  | BJ18: =INDEX(Editor!$C$5:$W$40,Editor!FB20+1,Editor!FB$36) ->  | BK18: =INDEX(Editor!$C$5:$W$40,Editor!FC20+1,Editor!FC$36) ->  | BL18: =INDEX(Editor!$C$5:$W$40,Editor!FD20+1,Editor!FD$36) ->  | BM18: =INDEX(Editor!$C$5:$W$40,Editor!FE20+1,Editor!FE$36) ->  | BN18: =INDEX(Editor!$C$5:$W$40,Editor!FF20+1,Editor!FF$36) ->  | BO18: =INDEX(Editor!$C$5:$W$40,Editor!FG20+1,Editor!FG$36) ->  | BP18: =INDEX(Editor!$C$5:$W$40,Editor!FH20+1,Editor!FH$36) ->  | BQ18: =INDEX(Editor!$C$5:$W$40,Editor!FI20+1,Editor!FI$36) ->  | BR18: =INDEX(Editor!$C$5:$W$40,Editor!FJ20+1,Editor!FJ$36) ->  | BS18: =INDEX(Editor!$C$5:$W$40,Editor!FK20+1,Editor!FK$36) ->  | BT18: =INDEX(Editor!$C$5:$W$40,Editor!FL20+1,Editor!FL$36) ->  | BU18: =INDEX(Editor!$C$5:$W$40,Editor!FM20+1,Editor!FM$36) ->  | BV18: =INDEX(Editor!$C$5:$W$40,Editor!FN20+1,Editor!FN$36) ->  | BW18: =INDEX(Editor!$C$5:$W$40,Editor!FO20+1,Editor!FO$36) -> 
A19: 16 | I19: =INDEX(Editor!$C$5:$W$40,Editor!DA21+1,Editor!DA$36) ->  | J19: =INDEX(Editor!$C$5:$W$40,Editor!DB21+1,Editor!DB$36) ->  | K19: =INDEX(Editor!$C$5:$W$40,Editor!DC21+1,Editor!DC$36) ->  | L19: =INDEX(Editor!$C$5:$W$40,Editor!DD21+1,Editor!DD$36) ->  | M19: =INDEX(Editor!$C$5:$W$40,Editor!DE21+1,Editor!DE$36) ->  | N19: =INDEX(Editor!$C$5:$W$40,Editor!DF21+1,Editor!DF$36) ->  | O19: =INDEX(Editor!$C$5:$W$40,Editor!DG21+1,Editor!DG$36) ->  | P19: =INDEX(Editor!$C$5:$W$40,Editor!DH21+1,Editor!DH$36) ->  | Q19: =INDEX(Editor!$C$5:$W$40,Editor!DI21+1,Editor!DI$36) ->  | R19: =INDEX(Editor!$C$5:$W$40,Editor!DJ21+1,Editor!DJ$36) ->  | S19: =INDEX(Editor!$C$5:$W$40,Editor!DK21+1,Editor!DK$36) ->  | T19: =INDEX(Editor!$C$5:$W$40,Editor!DL21+1,Editor!DL$36) ->  | U19: =INDEX(Editor!$C$5:$W$40,Editor!DM21+1,Editor!DM$36) ->  | V19: =INDEX(Editor!$C$5:$W$40,Editor!DN21+1,Editor!DN$36) ->  | W19: =INDEX(Editor!$C$5:$W$40,Editor!DO21+1,Editor!DO$36) ->  | X19: =INDEX(Editor!$C$5:$W$40,Editor!DP21+1,Editor!DP$36) ->  | Y19: =INDEX(Editor!$C$5:$W$40,Editor!DQ21+1,Editor!DQ$36) ->  | Z19: =INDEX(Editor!$C$5:$W$40,Editor!DR21+1,Editor!DR$36) ->  | AA19: =INDEX(Editor!$C$5:$W$40,Editor!DS21+1,Editor!DS$36) ->  | AB19: =INDEX(Editor!$C$5:$W$40,Editor!DT21+1,Editor!DT$36) ->  | AC19: =INDEX(Editor!$C$5:$W$40,Editor!DU21+1,Editor!DU$36) ->  | AD19: =INDEX(Editor!$C$5:$W$40,Editor!DV21+1,Editor!DV$36) ->  | AE19: =INDEX(Editor!$C$5:$W$40,Editor!DW21+1,Editor!DW$36) ->  | AF19: =INDEX(Editor!$C$5:$W$40,Editor!DX21+1,Editor!DX$36) ->  | AG19: =INDEX(Editor!$C$5:$W$40,Editor!DY21+1,Editor!DY$36) ->  | AH19: =INDEX(Editor!$C$5:$W$40,Editor!DZ21+1,Editor!DZ$36) ->  | AI19: =INDEX(Editor!$C$5:$W$40,Editor!EA21+1,Editor!EA$36) ->  | AJ19: =INDEX(Editor!$C$5:$W$40,Editor!EB21+1,Editor!EB$36) ->  | AK19: =INDEX(Editor!$C$5:$W$40,Editor!EC21+1,Editor!EC$36) ->  | AL19: =INDEX(Editor!$C$5:$W$40,Editor!ED21+1,Editor!ED$36) ->  | AM19: =INDEX(Editor!$C$5:$W$40,Editor!EE21+1,Editor!EE$36) ->  | AN19: =INDEX(Editor!$C$5:$W$40,Editor!EF21+1,Editor!EF$36) ->  | AO19: =INDEX(Editor!$C$5:$W$40,Editor!EG21+1,Editor!EG$36) ->  | AP19: =INDEX(Editor!$C$5:$W$40,Editor!EH21+1,Editor!EH$36) ->  | AQ19: =INDEX(Editor!$C$5:$W$40,Editor!EI21+1,Editor!EI$36) ->  | AR19: =INDEX(Editor!$C$5:$W$40,Editor!EJ21+1,Editor!EJ$36) ->  | AS19: =INDEX(Editor!$C$5:$W$40,Editor!EK21+1,Editor!EK$36) ->  | AT19: =INDEX(Editor!$C$5:$W$40,Editor!EL21+1,Editor!EL$36) ->  | AU19: =INDEX(Editor!$C$5:$W$40,Editor!EM21+1,Editor!EM$36) ->  | AV19: =INDEX(Editor!$C$5:$W$40,Editor!EN21+1,Editor!EN$36) ->  | AW19: =INDEX(Editor!$C$5:$W$40,Editor!EO21+1,Editor!EO$36) ->  | AX19: =INDEX(Editor!$C$5:$W$40,Editor!EP21+1,Editor!EP$36) ->  | AY19: =INDEX(Editor!$C$5:$W$40,Editor!EQ21+1,Editor!EQ$36) ->  | AZ19: =INDEX(Editor!$C$5:$W$40,Editor!ER21+1,Editor!ER$36) ->  | BA19: =INDEX(Editor!$C$5:$W$40,Editor!ES21+1,Editor!ES$36) ->  | BB19: =INDEX(Editor!$C$5:$W$40,Editor!ET21+1,Editor!ET$36) ->  | BC19: =INDEX(Editor!$C$5:$W$40,Editor!EU21+1,Editor!EU$36) ->  | BD19: =INDEX(Editor!$C$5:$W$40,Editor!EV21+1,Editor!EV$36) ->  | BE19: =INDEX(Editor!$C$5:$W$40,Editor!EW21+1,Editor!EW$36) ->  | BF19: =INDEX(Editor!$C$5:$W$40,Editor!EX21+1,Editor!EX$36) ->  | BG19: =INDEX(Editor!$C$5:$W$40,Editor!EY21+1,Editor!EY$36) ->  | BH19: =INDEX(Editor!$C$5:$W$40,Editor!EZ21+1,Editor!EZ$36) ->  | BI19: =INDEX(Editor!$C$5:$W$40,Editor!FA21+1,Editor!FA$36) ->  | BJ19: =INDEX(Editor!$C$5:$W$40,Editor!FB21+1,Editor!FB$36) ->  | BK19: =INDEX(Editor!$C$5:$W$40,Editor!FC21+1,Editor!FC$36) ->  | BL19: =INDEX(Editor!$C$5:$W$40,Editor!FD21+1,Editor!FD$36) ->  | BM19: =INDEX(Editor!$C$5:$W$40,Editor!FE21+1,Editor!FE$36) ->  | BN19: =INDEX(Editor!$C$5:$W$40,Editor!FF21+1,Editor!FF$36) ->  | BO19: =INDEX(Editor!$C$5:$W$40,Editor!FG21+1,Editor!FG$36) ->  | BP19: =INDEX(Editor!$C$5:$W$40,Editor!FH21+1,Editor!FH$36) ->  | BQ19: =INDEX(Editor!$C$5:$W$40,Editor!FI21+1,Editor!FI$36) ->  | BR19: =INDEX(Editor!$C$5:$W$40,Editor!FJ21+1,Editor!FJ$36) ->  | BS19: =INDEX(Editor!$C$5:$W$40,Editor!FK21+1,Editor!FK$36) ->  | BT19: =INDEX(Editor!$C$5:$W$40,Editor!FL21+1,Editor!FL$36) ->  | BU19: =INDEX(Editor!$C$5:$W$40,Editor!FM21+1,Editor!FM$36) ->  | BV19: =INDEX(Editor!$C$5:$W$40,Editor!FN21+1,Editor!FN$36) ->  | BW19: =INDEX(Editor!$C$5:$W$40,Editor!FO21+1,Editor!FO$36) -> 
A20: 17 | I20: =INDEX(Editor!$C$5:$W$40,Editor!DA22+1,Editor!DA$36) ->  | J20: =INDEX(Editor!$C$5:$W$40,Editor!DB22+1,Editor!DB$36) ->  | K20: =INDEX(Editor!$C$5:$W$40,Editor!DC22+1,Editor!DC$36) ->  | L20: =INDEX(Editor!$C$5:$W$40,Editor!DD22+1,Editor!DD$36) ->  | M20: =INDEX(Editor!$C$5:$W$40,Editor!DE22+1,Editor!DE$36) ->  | N20: =INDEX(Editor!$C$5:$W$40,Editor!DF22+1,Editor!DF$36) ->  | O20: =INDEX(Editor!$C$5:$W$40,Editor!DG22+1,Editor!DG$36) ->  | P20: =INDEX(Editor!$C$5:$W$40,Editor!DH22+1,Editor!DH$36) ->  | Q20: =INDEX(Editor!$C$5:$W$40,Editor!DI22+1,Editor!DI$36) ->  | R20: =INDEX(Editor!$C$5:$W$40,Editor!DJ22+1,Editor!DJ$36) ->  | S20: =INDEX(Editor!$C$5:$W$40,Editor!DK22+1,Editor!DK$36) ->  | T20: =INDEX(Editor!$C$5:$W$40,Editor!DL22+1,Editor!DL$36) ->  | U20: =INDEX(Editor!$C$5:$W$40,Editor!DM22+1,Editor!DM$36) ->  | V20: =INDEX(Editor!$C$5:$W$40,Editor!DN22+1,Editor!DN$36) ->  | W20: =INDEX(Editor!$C$5:$W$40,Editor!DO22+1,Editor!DO$36) ->  | X20: =INDEX(Editor!$C$5:$W$40,Editor!DP22+1,Editor!DP$36) ->  | Y20: =INDEX(Editor!$C$5:$W$40,Editor!DQ22+1,Editor!DQ$36) ->  | Z20: =INDEX(Editor!$C$5:$W$40,Editor!DR22+1,Editor!DR$36) ->  | AA20: =INDEX(Editor!$C$5:$W$40,Editor!DS22+1,Editor!DS$36) ->  | AB20: =INDEX(Editor!$C$5:$W$40,Editor!DT22+1,Editor!DT$36) ->  | AC20: =INDEX(Editor!$C$5:$W$40,Editor!DU22+1,Editor!DU$36) ->  | AD20: =INDEX(Editor!$C$5:$W$40,Editor!DV22+1,Editor!DV$36) ->  | AE20: =INDEX(Editor!$C$5:$W$40,Editor!DW22+1,Editor!DW$36) ->  | AF20: =INDEX(Editor!$C$5:$W$40,Editor!DX22+1,Editor!DX$36) ->  | AG20: =INDEX(Editor!$C$5:$W$40,Editor!DY22+1,Editor!DY$36) ->  | AH20: =INDEX(Editor!$C$5:$W$40,Editor!DZ22+1,Editor!DZ$36) ->  | AI20: =INDEX(Editor!$C$5:$W$40,Editor!EA22+1,Editor!EA$36) ->  | AJ20: =INDEX(Editor!$C$5:$W$40,Editor!EB22+1,Editor!EB$36) ->  | AK20: =INDEX(Editor!$C$5:$W$40,Editor!EC22+1,Editor!EC$36) ->  | AL20: =INDEX(Editor!$C$5:$W$40,Editor!ED22+1,Editor!ED$36) ->  | AM20: =INDEX(Editor!$C$5:$W$40,Editor!EE22+1,Editor!EE$36) ->  | AN20: =INDEX(Editor!$C$5:$W$40,Editor!EF22+1,Editor!EF$36) ->  | AO20: =INDEX(Editor!$C$5:$W$40,Editor!EG22+1,Editor!EG$36) ->  | AP20: =INDEX(Editor!$C$5:$W$40,Editor!EH22+1,Editor!EH$36) ->  | AQ20: =INDEX(Editor!$C$5:$W$40,Editor!EI22+1,Editor!EI$36) ->  | AR20: =INDEX(Editor!$C$5:$W$40,Editor!EJ22+1,Editor!EJ$36) ->  | AS20: =INDEX(Editor!$C$5:$W$40,Editor!EK22+1,Editor!EK$36) ->  | AT20: =INDEX(Editor!$C$5:$W$40,Editor!EL22+1,Editor!EL$36) ->  | AU20: =INDEX(Editor!$C$5:$W$40,Editor!EM22+1,Editor!EM$36) ->  | AV20: =INDEX(Editor!$C$5:$W$40,Editor!EN22+1,Editor!EN$36) ->  | AW20: =INDEX(Editor!$C$5:$W$40,Editor!EO22+1,Editor!EO$36) ->  | AX20: =INDEX(Editor!$C$5:$W$40,Editor!EP22+1,Editor!EP$36) ->  | AY20: =INDEX(Editor!$C$5:$W$40,Editor!EQ22+1,Editor!EQ$36) ->  | AZ20: =INDEX(Editor!$C$5:$W$40,Editor!ER22+1,Editor!ER$36) ->  | BA20: =INDEX(Editor!$C$5:$W$40,Editor!ES22+1,Editor!ES$36) ->  | BB20: =INDEX(Editor!$C$5:$W$40,Editor!ET22+1,Editor!ET$36) ->  | BC20: =INDEX(Editor!$C$5:$W$40,Editor!EU22+1,Editor!EU$36) ->  | BD20: =INDEX(Editor!$C$5:$W$40,Editor!EV22+1,Editor!EV$36) ->  | BE20: =INDEX(Editor!$C$5:$W$40,Editor!EW22+1,Editor!EW$36) ->  | BF20: =INDEX(Editor!$C$5:$W$40,Editor!EX22+1,Editor!EX$36) ->  | BG20: =INDEX(Editor!$C$5:$W$40,Editor!EY22+1,Editor!EY$36) ->  | BH20: =INDEX(Editor!$C$5:$W$40,Editor!EZ22+1,Editor!EZ$36) ->  | BI20: =INDEX(Editor!$C$5:$W$40,Editor!FA22+1,Editor!FA$36) ->  | BJ20: =INDEX(Editor!$C$5:$W$40,Editor!FB22+1,Editor!FB$36) ->  | BK20: =INDEX(Editor!$C$5:$W$40,Editor!FC22+1,Editor!FC$36) ->  | BL20: =INDEX(Editor!$C$5:$W$40,Editor!FD22+1,Editor!FD$36) ->  | BM20: =INDEX(Editor!$C$5:$W$40,Editor!FE22+1,Editor!FE$36) ->  | BN20: =INDEX(Editor!$C$5:$W$40,Editor!FF22+1,Editor!FF$36) ->  | BO20: =INDEX(Editor!$C$5:$W$40,Editor!FG22+1,Editor!FG$36) ->  | BP20: =INDEX(Editor!$C$5:$W$40,Editor!FH22+1,Editor!FH$36) ->  | BQ20: =INDEX(Editor!$C$5:$W$40,Editor!FI22+1,Editor!FI$36) ->  | BR20: =INDEX(Editor!$C$5:$W$40,Editor!FJ22+1,Editor!FJ$36) ->  | BS20: =INDEX(Editor!$C$5:$W$40,Editor!FK22+1,Editor!FK$36) ->  | BT20: =INDEX(Editor!$C$5:$W$40,Editor!FL22+1,Editor!FL$36) ->  | BU20: =INDEX(Editor!$C$5:$W$40,Editor!FM22+1,Editor!FM$36) ->  | BV20: =INDEX(Editor!$C$5:$W$40,Editor!FN22+1,Editor!FN$36) ->  | BW20: =INDEX(Editor!$C$5:$W$40,Editor!FO22+1,Editor!FO$36) -> 
A21: 18 | I21: =INDEX(Editor!$C$5:$W$40,Editor!DA23+1,Editor!DA$36) ->  | J21: =INDEX(Editor!$C$5:$W$40,Editor!DB23+1,Editor!DB$36) ->  | K21: =INDEX(Editor!$C$5:$W$40,Editor!DC23+1,Editor!DC$36) ->  | L21: =INDEX(Editor!$C$5:$W$40,Editor!DD23+1,Editor!DD$36) ->  | M21: =INDEX(Editor!$C$5:$W$40,Editor!DE23+1,Editor!DE$36) ->  | N21: =INDEX(Editor!$C$5:$W$40,Editor!DF23+1,Editor!DF$36) ->  | O21: =INDEX(Editor!$C$5:$W$40,Editor!DG23+1,Editor!DG$36) ->  | P21: =INDEX(Editor!$C$5:$W$40,Editor!DH23+1,Editor!DH$36) ->  | Q21: =INDEX(Editor!$C$5:$W$40,Editor!DI23+1,Editor!DI$36) ->  | R21: =INDEX(Editor!$C$5:$W$40,Editor!DJ23+1,Editor!DJ$36) ->  | S21: =INDEX(Editor!$C$5:$W$40,Editor!DK23+1,Editor!DK$36) ->  | T21: =INDEX(Editor!$C$5:$W$40,Editor!DL23+1,Editor!DL$36) ->  | U21: =INDEX(Editor!$C$5:$W$40,Editor!DM23+1,Editor!DM$36) ->  | V21: =INDEX(Editor!$C$5:$W$40,Editor!DN23+1,Editor!DN$36) ->  | W21: =INDEX(Editor!$C$5:$W$40,Editor!DO23+1,Editor!DO$36) ->  | X21: =INDEX(Editor!$C$5:$W$40,Editor!DP23+1,Editor!DP$36) ->  | Y21: =INDEX(Editor!$C$5:$W$40,Editor!DQ23+1,Editor!DQ$36) ->  | Z21: =INDEX(Editor!$C$5:$W$40,Editor!DR23+1,Editor!DR$36) ->  | AA21: =INDEX(Editor!$C$5:$W$40,Editor!DS23+1,Editor!DS$36) ->  | AB21: =INDEX(Editor!$C$5:$W$40,Editor!DT23+1,Editor!DT$36) ->  | AC21: =INDEX(Editor!$C$5:$W$40,Editor!DU23+1,Editor!DU$36) ->  | AD21: =INDEX(Editor!$C$5:$W$40,Editor!DV23+1,Editor!DV$36) ->  | AE21: =INDEX(Editor!$C$5:$W$40,Editor!DW23+1,Editor!DW$36) ->  | AF21: =INDEX(Editor!$C$5:$W$40,Editor!DX23+1,Editor!DX$36) ->  | AG21: =INDEX(Editor!$C$5:$W$40,Editor!DY23+1,Editor!DY$36) ->  | AH21: =INDEX(Editor!$C$5:$W$40,Editor!DZ23+1,Editor!DZ$36) ->  | AI21: =INDEX(Editor!$C$5:$W$40,Editor!EA23+1,Editor!EA$36) ->  | AJ21: =INDEX(Editor!$C$5:$W$40,Editor!EB23+1,Editor!EB$36) ->  | AK21: =INDEX(Editor!$C$5:$W$40,Editor!EC23+1,Editor!EC$36) ->  | AL21: =INDEX(Editor!$C$5:$W$40,Editor!ED23+1,Editor!ED$36) ->  | AM21: =INDEX(Editor!$C$5:$W$40,Editor!EE23+1,Editor!EE$36) ->  | AN21: =INDEX(Editor!$C$5:$W$40,Editor!EF23+1,Editor!EF$36) ->  | AO21: =INDEX(Editor!$C$5:$W$40,Editor!EG23+1,Editor!EG$36) ->  | AP21: =INDEX(Editor!$C$5:$W$40,Editor!EH23+1,Editor!EH$36) ->  | AQ21: =INDEX(Editor!$C$5:$W$40,Editor!EI23+1,Editor!EI$36) ->  | AR21: =INDEX(Editor!$C$5:$W$40,Editor!EJ23+1,Editor!EJ$36) ->  | AS21: =INDEX(Editor!$C$5:$W$40,Editor!EK23+1,Editor!EK$36) ->  | AT21: =INDEX(Editor!$C$5:$W$40,Editor!EL23+1,Editor!EL$36) ->  | AU21: =INDEX(Editor!$C$5:$W$40,Editor!EM23+1,Editor!EM$36) ->  | AV21: =INDEX(Editor!$C$5:$W$40,Editor!EN23+1,Editor!EN$36) ->  | AW21: =INDEX(Editor!$C$5:$W$40,Editor!EO23+1,Editor!EO$36) ->  | AX21: =INDEX(Editor!$C$5:$W$40,Editor!EP23+1,Editor!EP$36) ->  | AY21: =INDEX(Editor!$C$5:$W$40,Editor!EQ23+1,Editor!EQ$36) ->  | AZ21: =INDEX(Editor!$C$5:$W$40,Editor!ER23+1,Editor!ER$36) ->  | BA21: =INDEX(Editor!$C$5:$W$40,Editor!ES23+1,Editor!ES$36) ->  | BB21: =INDEX(Editor!$C$5:$W$40,Editor!ET23+1,Editor!ET$36) ->  | BC21: =INDEX(Editor!$C$5:$W$40,Editor!EU23+1,Editor!EU$36) ->  | BD21: =INDEX(Editor!$C$5:$W$40,Editor!EV23+1,Editor!EV$36) ->  | BE21: =INDEX(Editor!$C$5:$W$40,Editor!EW23+1,Editor!EW$36) ->  | BF21: =INDEX(Editor!$C$5:$W$40,Editor!EX23+1,Editor!EX$36) ->  | BG21: =INDEX(Editor!$C$5:$W$40,Editor!EY23+1,Editor!EY$36) ->  | BH21: =INDEX(Editor!$C$5:$W$40,Editor!EZ23+1,Editor!EZ$36) ->  | BI21: =INDEX(Editor!$C$5:$W$40,Editor!FA23+1,Editor!FA$36) ->  | BJ21: =INDEX(Editor!$C$5:$W$40,Editor!FB23+1,Editor!FB$36) ->  | BK21: =INDEX(Editor!$C$5:$W$40,Editor!FC23+1,Editor!FC$36) ->  | BL21: =INDEX(Editor!$C$5:$W$40,Editor!FD23+1,Editor!FD$36) ->  | BM21: =INDEX(Editor!$C$5:$W$40,Editor!FE23+1,Editor!FE$36) ->  | BN21: =INDEX(Editor!$C$5:$W$40,Editor!FF23+1,Editor!FF$36) ->  | BO21: =INDEX(Editor!$C$5:$W$40,Editor!FG23+1,Editor!FG$36) ->  | BP21: =INDEX(Editor!$C$5:$W$40,Editor!FH23+1,Editor!FH$36) ->  | BQ21: =INDEX(Editor!$C$5:$W$40,Editor!FI23+1,Editor!FI$36) ->  | BR21: =INDEX(Editor!$C$5:$W$40,Editor!FJ23+1,Editor!FJ$36) ->  | BS21: =INDEX(Editor!$C$5:$W$40,Editor!FK23+1,Editor!FK$36) ->  | BT21: =INDEX(Editor!$C$5:$W$40,Editor!FL23+1,Editor!FL$36) ->  | BU21: =INDEX(Editor!$C$5:$W$40,Editor!FM23+1,Editor!FM$36) ->  | BV21: =INDEX(Editor!$C$5:$W$40,Editor!FN23+1,Editor!FN$36) ->  | BW21: =INDEX(Editor!$C$5:$W$40,Editor!FO23+1,Editor!FO$36) -> 
A22: 19 | I22: =INDEX(Editor!$C$5:$W$40,Editor!DA24+1,Editor!DA$36) ->  | J22: =INDEX(Editor!$C$5:$W$40,Editor!DB24+1,Editor!DB$36) ->  | K22: =INDEX(Editor!$C$5:$W$40,Editor!DC24+1,Editor!DC$36) ->  | L22: =INDEX(Editor!$C$5:$W$40,Editor!DD24+1,Editor!DD$36) ->  | M22: =INDEX(Editor!$C$5:$W$40,Editor!DE24+1,Editor!DE$36) ->  | N22: =INDEX(Editor!$C$5:$W$40,Editor!DF24+1,Editor!DF$36) ->  | O22: =INDEX(Editor!$C$5:$W$40,Editor!DG24+1,Editor!DG$36) ->  | P22: =INDEX(Editor!$C$5:$W$40,Editor!DH24+1,Editor!DH$36) ->  | Q22: =INDEX(Editor!$C$5:$W$40,Editor!DI24+1,Editor!DI$36) ->  | R22: =INDEX(Editor!$C$5:$W$40,Editor!DJ24+1,Editor!DJ$36) ->  | S22: =INDEX(Editor!$C$5:$W$40,Editor!DK24+1,Editor!DK$36) ->  | T22: =INDEX(Editor!$C$5:$W$40,Editor!DL24+1,Editor!DL$36) ->  | U22: =INDEX(Editor!$C$5:$W$40,Editor!DM24+1,Editor!DM$36) ->  | V22: =INDEX(Editor!$C$5:$W$40,Editor!DN24+1,Editor!DN$36) ->  | W22: =INDEX(Editor!$C$5:$W$40,Editor!DO24+1,Editor!DO$36) ->  | X22: =INDEX(Editor!$C$5:$W$40,Editor!DP24+1,Editor!DP$36) ->  | Y22: =INDEX(Editor!$C$5:$W$40,Editor!DQ24+1,Editor!DQ$36) ->  | Z22: =INDEX(Editor!$C$5:$W$40,Editor!DR24+1,Editor!DR$36) ->  | AA22: =INDEX(Editor!$C$5:$W$40,Editor!DS24+1,Editor!DS$36) ->  | AB22: =INDEX(Editor!$C$5:$W$40,Editor!DT24+1,Editor!DT$36) ->  | AC22: =INDEX(Editor!$C$5:$W$40,Editor!DU24+1,Editor!DU$36) ->  | AD22: =INDEX(Editor!$C$5:$W$40,Editor!DV24+1,Editor!DV$36) ->  | AE22: =INDEX(Editor!$C$5:$W$40,Editor!DW24+1,Editor!DW$36) ->  | AF22: =INDEX(Editor!$C$5:$W$40,Editor!DX24+1,Editor!DX$36) ->  | AG22: =INDEX(Editor!$C$5:$W$40,Editor!DY24+1,Editor!DY$36) ->  | AH22: =INDEX(Editor!$C$5:$W$40,Editor!DZ24+1,Editor!DZ$36) ->  | AI22: =INDEX(Editor!$C$5:$W$40,Editor!EA24+1,Editor!EA$36) ->  | AJ22: =INDEX(Editor!$C$5:$W$40,Editor!EB24+1,Editor!EB$36) ->  | AK22: =INDEX(Editor!$C$5:$W$40,Editor!EC24+1,Editor!EC$36) ->  | AL22: =INDEX(Editor!$C$5:$W$40,Editor!ED24+1,Editor!ED$36) ->  | AM22: =INDEX(Editor!$C$5:$W$40,Editor!EE24+1,Editor!EE$36) ->  | AN22: =INDEX(Editor!$C$5:$W$40,Editor!EF24+1,Editor!EF$36) ->  | AO22: =INDEX(Editor!$C$5:$W$40,Editor!EG24+1,Editor!EG$36) ->  | AP22: =INDEX(Editor!$C$5:$W$40,Editor!EH24+1,Editor!EH$36) ->  | AQ22: =INDEX(Editor!$C$5:$W$40,Editor!EI24+1,Editor!EI$36) ->  | AR22: =INDEX(Editor!$C$5:$W$40,Editor!EJ24+1,Editor!EJ$36) ->  | AS22: =INDEX(Editor!$C$5:$W$40,Editor!EK24+1,Editor!EK$36) ->  | AT22: =INDEX(Editor!$C$5:$W$40,Editor!EL24+1,Editor!EL$36) ->  | AU22: =INDEX(Editor!$C$5:$W$40,Editor!EM24+1,Editor!EM$36) ->  | AV22: =INDEX(Editor!$C$5:$W$40,Editor!EN24+1,Editor!EN$36) ->  | AW22: =INDEX(Editor!$C$5:$W$40,Editor!EO24+1,Editor!EO$36) ->  | AX22: =INDEX(Editor!$C$5:$W$40,Editor!EP24+1,Editor!EP$36) ->  | AY22: =INDEX(Editor!$C$5:$W$40,Editor!EQ24+1,Editor!EQ$36) ->  | AZ22: =INDEX(Editor!$C$5:$W$40,Editor!ER24+1,Editor!ER$36) ->  | BA22: =INDEX(Editor!$C$5:$W$40,Editor!ES24+1,Editor!ES$36) ->  | BB22: =INDEX(Editor!$C$5:$W$40,Editor!ET24+1,Editor!ET$36) ->  | BC22: =INDEX(Editor!$C$5:$W$40,Editor!EU24+1,Editor!EU$36) ->  | BD22: =INDEX(Editor!$C$5:$W$40,Editor!EV24+1,Editor!EV$36) ->  | BE22: =INDEX(Editor!$C$5:$W$40,Editor!EW24+1,Editor!EW$36) ->  | BF22: =INDEX(Editor!$C$5:$W$40,Editor!EX24+1,Editor!EX$36) ->  | BG22: =INDEX(Editor!$C$5:$W$40,Editor!EY24+1,Editor!EY$36) ->  | BH22: =INDEX(Editor!$C$5:$W$40,Editor!EZ24+1,Editor!EZ$36) ->  | BI22: =INDEX(Editor!$C$5:$W$40,Editor!FA24+1,Editor!FA$36) ->  | BJ22: =INDEX(Editor!$C$5:$W$40,Editor!FB24+1,Editor!FB$36) ->  | BK22: =INDEX(Editor!$C$5:$W$40,Editor!FC24+1,Editor!FC$36) ->  | BL22: =INDEX(Editor!$C$5:$W$40,Editor!FD24+1,Editor!FD$36) ->  | BM22: =INDEX(Editor!$C$5:$W$40,Editor!FE24+1,Editor!FE$36) ->  | BN22: =INDEX(Editor!$C$5:$W$40,Editor!FF24+1,Editor!FF$36) ->  | BO22: =INDEX(Editor!$C$5:$W$40,Editor!FG24+1,Editor!FG$36) ->  | BP22: =INDEX(Editor!$C$5:$W$40,Editor!FH24+1,Editor!FH$36) ->  | BQ22: =INDEX(Editor!$C$5:$W$40,Editor!FI24+1,Editor!FI$36) ->  | BR22: =INDEX(Editor!$C$5:$W$40,Editor!FJ24+1,Editor!FJ$36) ->  | BS22: =INDEX(Editor!$C$5:$W$40,Editor!FK24+1,Editor!FK$36) ->  | BT22: =INDEX(Editor!$C$5:$W$40,Editor!FL24+1,Editor!FL$36) ->  | BU22: =INDEX(Editor!$C$5:$W$40,Editor!FM24+1,Editor!FM$36) ->  | BV22: =INDEX(Editor!$C$5:$W$40,Editor!FN24+1,Editor!FN$36) ->  | BW22: =INDEX(Editor!$C$5:$W$40,Editor!FO24+1,Editor!FO$36) -> 
A23: 20 | I23: =INDEX(Editor!$C$5:$W$40,Editor!DA25+1,Editor!DA$36) ->  | J23: =INDEX(Editor!$C$5:$W$40,Editor!DB25+1,Editor!DB$36) ->  | K23: =INDEX(Editor!$C$5:$W$40,Editor!DC25+1,Editor!DC$36) ->  | L23: =INDEX(Editor!$C$5:$W$40,Editor!DD25+1,Editor!DD$36) ->  | M23: =INDEX(Editor!$C$5:$W$40,Editor!DE25+1,Editor!DE$36) ->  | N23: =INDEX(Editor!$C$5:$W$40,Editor!DF25+1,Editor!DF$36) ->  | O23: =INDEX(Editor!$C$5:$W$40,Editor!DG25+1,Editor!DG$36) ->  | P23: =INDEX(Editor!$C$5:$W$40,Editor!DH25+1,Editor!DH$36) ->  | Q23: =INDEX(Editor!$C$5:$W$40,Editor!DI25+1,Editor!DI$36) ->  | R23: =INDEX(Editor!$C$5:$W$40,Editor!DJ25+1,Editor!DJ$36) ->  | S23: =INDEX(Editor!$C$5:$W$40,Editor!DK25+1,Editor!DK$36) ->  | T23: =INDEX(Editor!$C$5:$W$40,Editor!DL25+1,Editor!DL$36) ->  | U23: =INDEX(Editor!$C$5:$W$40,Editor!DM25+1,Editor!DM$36) ->  | V23: =INDEX(Editor!$C$5:$W$40,Editor!DN25+1,Editor!DN$36) ->  | W23: =INDEX(Editor!$C$5:$W$40,Editor!DO25+1,Editor!DO$36) ->  | X23: =INDEX(Editor!$C$5:$W$40,Editor!DP25+1,Editor!DP$36) ->  | Y23: =INDEX(Editor!$C$5:$W$40,Editor!DQ25+1,Editor!DQ$36) ->  | Z23: =INDEX(Editor!$C$5:$W$40,Editor!DR25+1,Editor!DR$36) ->  | AA23: =INDEX(Editor!$C$5:$W$40,Editor!DS25+1,Editor!DS$36) ->  | AB23: =INDEX(Editor!$C$5:$W$40,Editor!DT25+1,Editor!DT$36) ->  | AC23: =INDEX(Editor!$C$5:$W$40,Editor!DU25+1,Editor!DU$36) ->  | AD23: =INDEX(Editor!$C$5:$W$40,Editor!DV25+1,Editor!DV$36) ->  | AE23: =INDEX(Editor!$C$5:$W$40,Editor!DW25+1,Editor!DW$36) ->  | AF23: =INDEX(Editor!$C$5:$W$40,Editor!DX25+1,Editor!DX$36) ->  | AG23: =INDEX(Editor!$C$5:$W$40,Editor!DY25+1,Editor!DY$36) ->  | AH23: =INDEX(Editor!$C$5:$W$40,Editor!DZ25+1,Editor!DZ$36) ->  | AI23: =INDEX(Editor!$C$5:$W$40,Editor!EA25+1,Editor!EA$36) ->  | AJ23: =INDEX(Editor!$C$5:$W$40,Editor!EB25+1,Editor!EB$36) ->  | AK23: =INDEX(Editor!$C$5:$W$40,Editor!EC25+1,Editor!EC$36) ->  | AL23: =INDEX(Editor!$C$5:$W$40,Editor!ED25+1,Editor!ED$36) ->  | AM23: =INDEX(Editor!$C$5:$W$40,Editor!EE25+1,Editor!EE$36) ->  | AN23: =INDEX(Editor!$C$5:$W$40,Editor!EF25+1,Editor!EF$36) ->  | AO23: =INDEX(Editor!$C$5:$W$40,Editor!EG25+1,Editor!EG$36) ->  | AP23: =INDEX(Editor!$C$5:$W$40,Editor!EH25+1,Editor!EH$36) ->  | AQ23: =INDEX(Editor!$C$5:$W$40,Editor!EI25+1,Editor!EI$36) ->  | AR23: =INDEX(Editor!$C$5:$W$40,Editor!EJ25+1,Editor!EJ$36) ->  | AS23: =INDEX(Editor!$C$5:$W$40,Editor!EK25+1,Editor!EK$36) ->  | AT23: =INDEX(Editor!$C$5:$W$40,Editor!EL25+1,Editor!EL$36) ->  | AU23: =INDEX(Editor!$C$5:$W$40,Editor!EM25+1,Editor!EM$36) ->  | AV23: =INDEX(Editor!$C$5:$W$40,Editor!EN25+1,Editor!EN$36) ->  | AW23: =INDEX(Editor!$C$5:$W$40,Editor!EO25+1,Editor!EO$36) ->  | AX23: =INDEX(Editor!$C$5:$W$40,Editor!EP25+1,Editor!EP$36) ->  | AY23: =INDEX(Editor!$C$5:$W$40,Editor!EQ25+1,Editor!EQ$36) ->  | AZ23: =INDEX(Editor!$C$5:$W$40,Editor!ER25+1,Editor!ER$36) ->  | BA23: =INDEX(Editor!$C$5:$W$40,Editor!ES25+1,Editor!ES$36) ->  | BB23: =INDEX(Editor!$C$5:$W$40,Editor!ET25+1,Editor!ET$36) ->  | BC23: =INDEX(Editor!$C$5:$W$40,Editor!EU25+1,Editor!EU$36) ->  | BD23: =INDEX(Editor!$C$5:$W$40,Editor!EV25+1,Editor!EV$36) ->  | BE23: =INDEX(Editor!$C$5:$W$40,Editor!EW25+1,Editor!EW$36) ->  | BF23: =INDEX(Editor!$C$5:$W$40,Editor!EX25+1,Editor!EX$36) ->  | BG23: =INDEX(Editor!$C$5:$W$40,Editor!EY25+1,Editor!EY$36) ->  | BH23: =INDEX(Editor!$C$5:$W$40,Editor!EZ25+1,Editor!EZ$36) ->  | BI23: =INDEX(Editor!$C$5:$W$40,Editor!FA25+1,Editor!FA$36) ->  | BJ23: =INDEX(Editor!$C$5:$W$40,Editor!FB25+1,Editor!FB$36) ->  | BK23: =INDEX(Editor!$C$5:$W$40,Editor!FC25+1,Editor!FC$36) ->  | BL23: =INDEX(Editor!$C$5:$W$40,Editor!FD25+1,Editor!FD$36) ->  | BM23: =INDEX(Editor!$C$5:$W$40,Editor!FE25+1,Editor!FE$36) ->  | BN23: =INDEX(Editor!$C$5:$W$40,Editor!FF25+1,Editor!FF$36) ->  | BO23: =INDEX(Editor!$C$5:$W$40,Editor!FG25+1,Editor!FG$36) ->  | BP23: =INDEX(Editor!$C$5:$W$40,Editor!FH25+1,Editor!FH$36) ->  | BQ23: =INDEX(Editor!$C$5:$W$40,Editor!FI25+1,Editor!FI$36) ->  | BR23: =INDEX(Editor!$C$5:$W$40,Editor!FJ25+1,Editor!FJ$36) ->  | BS23: =INDEX(Editor!$C$5:$W$40,Editor!FK25+1,Editor!FK$36) ->  | BT23: =INDEX(Editor!$C$5:$W$40,Editor!FL25+1,Editor!FL$36) ->  | BU23: =INDEX(Editor!$C$5:$W$40,Editor!FM25+1,Editor!FM$36) ->  | BV23: =INDEX(Editor!$C$5:$W$40,Editor!FN25+1,Editor!FN$36) ->  | BW23: =INDEX(Editor!$C$5:$W$40,Editor!FO25+1,Editor!FO$36) -> 
A24: 21 | I24: =INDEX(Editor!$C$5:$W$40,Editor!DA26+1,Editor!DA$36) ->  | J24: =INDEX(Editor!$C$5:$W$40,Editor!DB26+1,Editor!DB$36) ->  | K24: =INDEX(Editor!$C$5:$W$40,Editor!DC26+1,Editor!DC$36) ->  | L24: =INDEX(Editor!$C$5:$W$40,Editor!DD26+1,Editor!DD$36) ->  | M24: =INDEX(Editor!$C$5:$W$40,Editor!DE26+1,Editor!DE$36) ->  | N24: =INDEX(Editor!$C$5:$W$40,Editor!DF26+1,Editor!DF$36) ->  | O24: =INDEX(Editor!$C$5:$W$40,Editor!DG26+1,Editor!DG$36) ->  | P24: =INDEX(Editor!$C$5:$W$40,Editor!DH26+1,Editor!DH$36) ->  | Q24: =INDEX(Editor!$C$5:$W$40,Editor!DI26+1,Editor!DI$36) ->  | R24: =INDEX(Editor!$C$5:$W$40,Editor!DJ26+1,Editor!DJ$36) ->  | S24: =INDEX(Editor!$C$5:$W$40,Editor!DK26+1,Editor!DK$36) ->  | T24: =INDEX(Editor!$C$5:$W$40,Editor!DL26+1,Editor!DL$36) ->  | U24: =INDEX(Editor!$C$5:$W$40,Editor!DM26+1,Editor!DM$36) ->  | V24: =INDEX(Editor!$C$5:$W$40,Editor!DN26+1,Editor!DN$36) ->  | W24: =INDEX(Editor!$C$5:$W$40,Editor!DO26+1,Editor!DO$36) ->  | X24: =INDEX(Editor!$C$5:$W$40,Editor!DP26+1,Editor!DP$36) ->  | Y24: =INDEX(Editor!$C$5:$W$40,Editor!DQ26+1,Editor!DQ$36) ->  | Z24: =INDEX(Editor!$C$5:$W$40,Editor!DR26+1,Editor!DR$36) ->  | AA24: =INDEX(Editor!$C$5:$W$40,Editor!DS26+1,Editor!DS$36) ->  | AB24: =INDEX(Editor!$C$5:$W$40,Editor!DT26+1,Editor!DT$36) ->  | AC24: =INDEX(Editor!$C$5:$W$40,Editor!DU26+1,Editor!DU$36) ->  | AD24: =INDEX(Editor!$C$5:$W$40,Editor!DV26+1,Editor!DV$36) ->  | AE24: =INDEX(Editor!$C$5:$W$40,Editor!DW26+1,Editor!DW$36) ->  | AF24: =INDEX(Editor!$C$5:$W$40,Editor!DX26+1,Editor!DX$36) ->  | AG24: =INDEX(Editor!$C$5:$W$40,Editor!DY26+1,Editor!DY$36) ->  | AH24: =INDEX(Editor!$C$5:$W$40,Editor!DZ26+1,Editor!DZ$36) ->  | AI24: =INDEX(Editor!$C$5:$W$40,Editor!EA26+1,Editor!EA$36) ->  | AJ24: =INDEX(Editor!$C$5:$W$40,Editor!EB26+1,Editor!EB$36) ->  | AK24: =INDEX(Editor!$C$5:$W$40,Editor!EC26+1,Editor!EC$36) ->  | AL24: =INDEX(Editor!$C$5:$W$40,Editor!ED26+1,Editor!ED$36) ->  | AM24: =INDEX(Editor!$C$5:$W$40,Editor!EE26+1,Editor!EE$36) ->  | AN24: =INDEX(Editor!$C$5:$W$40,Editor!EF26+1,Editor!EF$36) ->  | AO24: =INDEX(Editor!$C$5:$W$40,Editor!EG26+1,Editor!EG$36) ->  | AP24: =INDEX(Editor!$C$5:$W$40,Editor!EH26+1,Editor!EH$36) ->  | AQ24: =INDEX(Editor!$C$5:$W$40,Editor!EI26+1,Editor!EI$36) ->  | AR24: =INDEX(Editor!$C$5:$W$40,Editor!EJ26+1,Editor!EJ$36) ->  | AS24: =INDEX(Editor!$C$5:$W$40,Editor!EK26+1,Editor!EK$36) ->  | AT24: =INDEX(Editor!$C$5:$W$40,Editor!EL26+1,Editor!EL$36) ->  | AU24: =INDEX(Editor!$C$5:$W$40,Editor!EM26+1,Editor!EM$36) ->  | AV24: =INDEX(Editor!$C$5:$W$40,Editor!EN26+1,Editor!EN$36) ->  | AW24: =INDEX(Editor!$C$5:$W$40,Editor!EO26+1,Editor!EO$36) ->  | AX24: =INDEX(Editor!$C$5:$W$40,Editor!EP26+1,Editor!EP$36) ->  | AY24: =INDEX(Editor!$C$5:$W$40,Editor!EQ26+1,Editor!EQ$36) ->  | AZ24: =INDEX(Editor!$C$5:$W$40,Editor!ER26+1,Editor!ER$36) ->  | BA24: =INDEX(Editor!$C$5:$W$40,Editor!ES26+1,Editor!ES$36) ->  | BB24: =INDEX(Editor!$C$5:$W$40,Editor!ET26+1,Editor!ET$36) ->  | BC24: =INDEX(Editor!$C$5:$W$40,Editor!EU26+1,Editor!EU$36) ->  | BD24: =INDEX(Editor!$C$5:$W$40,Editor!EV26+1,Editor!EV$36) ->  | BE24: =INDEX(Editor!$C$5:$W$40,Editor!EW26+1,Editor!EW$36) ->  | BF24: =INDEX(Editor!$C$5:$W$40,Editor!EX26+1,Editor!EX$36) ->  | BG24: =INDEX(Editor!$C$5:$W$40,Editor!EY26+1,Editor!EY$36) ->  | BH24: =INDEX(Editor!$C$5:$W$40,Editor!EZ26+1,Editor!EZ$36) ->  | BI24: =INDEX(Editor!$C$5:$W$40,Editor!FA26+1,Editor!FA$36) ->  | BJ24: =INDEX(Editor!$C$5:$W$40,Editor!FB26+1,Editor!FB$36) ->  | BK24: =INDEX(Editor!$C$5:$W$40,Editor!FC26+1,Editor!FC$36) ->  | BL24: =INDEX(Editor!$C$5:$W$40,Editor!FD26+1,Editor!FD$36) ->  | BM24: =INDEX(Editor!$C$5:$W$40,Editor!FE26+1,Editor!FE$36) ->  | BN24: =INDEX(Editor!$C$5:$W$40,Editor!FF26+1,Editor!FF$36) ->  | BO24: =INDEX(Editor!$C$5:$W$40,Editor!FG26+1,Editor!FG$36) ->  | BP24: =INDEX(Editor!$C$5:$W$40,Editor!FH26+1,Editor!FH$36) ->  | BQ24: =INDEX(Editor!$C$5:$W$40,Editor!FI26+1,Editor!FI$36) ->  | BR24: =INDEX(Editor!$C$5:$W$40,Editor!FJ26+1,Editor!FJ$36) ->  | BS24: =INDEX(Editor!$C$5:$W$40,Editor!FK26+1,Editor!FK$36) ->  | BT24: =INDEX(Editor!$C$5:$W$40,Editor!FL26+1,Editor!FL$36) ->  | BU24: =INDEX(Editor!$C$5:$W$40,Editor!FM26+1,Editor!FM$36) ->  | BV24: =INDEX(Editor!$C$5:$W$40,Editor!FN26+1,Editor!FN$36) ->  | BW24: =INDEX(Editor!$C$5:$W$40,Editor!FO26+1,Editor!FO$36) -> 
A25: 22 | I25: =INDEX(Editor!$C$5:$W$40,Editor!DA27+1,Editor!DA$36) ->  | J25: =INDEX(Editor!$C$5:$W$40,Editor!DB27+1,Editor!DB$36) ->  | K25: =INDEX(Editor!$C$5:$W$40,Editor!DC27+1,Editor!DC$36) ->  | L25: =INDEX(Editor!$C$5:$W$40,Editor!DD27+1,Editor!DD$36) ->  | M25: =INDEX(Editor!$C$5:$W$40,Editor!DE27+1,Editor!DE$36) ->  | N25: =INDEX(Editor!$C$5:$W$40,Editor!DF27+1,Editor!DF$36) ->  | O25: =INDEX(Editor!$C$5:$W$40,Editor!DG27+1,Editor!DG$36) ->  | P25: =INDEX(Editor!$C$5:$W$40,Editor!DH27+1,Editor!DH$36) ->  | Q25: =INDEX(Editor!$C$5:$W$40,Editor!DI27+1,Editor!DI$36) ->  | R25: =INDEX(Editor!$C$5:$W$40,Editor!DJ27+1,Editor!DJ$36) ->  | S25: =INDEX(Editor!$C$5:$W$40,Editor!DK27+1,Editor!DK$36) ->  | T25: =INDEX(Editor!$C$5:$W$40,Editor!DL27+1,Editor!DL$36) ->  | U25: =INDEX(Editor!$C$5:$W$40,Editor!DM27+1,Editor!DM$36) ->  | V25: =INDEX(Editor!$C$5:$W$40,Editor!DN27+1,Editor!DN$36) ->  | W25: =INDEX(Editor!$C$5:$W$40,Editor!DO27+1,Editor!DO$36) ->  | X25: =INDEX(Editor!$C$5:$W$40,Editor!DP27+1,Editor!DP$36) ->  | Y25: =INDEX(Editor!$C$5:$W$40,Editor!DQ27+1,Editor!DQ$36) ->  | Z25: =INDEX(Editor!$C$5:$W$40,Editor!DR27+1,Editor!DR$36) ->  | AA25: =INDEX(Editor!$C$5:$W$40,Editor!DS27+1,Editor!DS$36) ->  | AB25: =INDEX(Editor!$C$5:$W$40,Editor!DT27+1,Editor!DT$36) ->  | AC25: =INDEX(Editor!$C$5:$W$40,Editor!DU27+1,Editor!DU$36) ->  | AD25: =INDEX(Editor!$C$5:$W$40,Editor!DV27+1,Editor!DV$36) ->  | AE25: =INDEX(Editor!$C$5:$W$40,Editor!DW27+1,Editor!DW$36) ->  | AF25: =INDEX(Editor!$C$5:$W$40,Editor!DX27+1,Editor!DX$36) ->  | AG25: =INDEX(Editor!$C$5:$W$40,Editor!DY27+1,Editor!DY$36) ->  | AH25: =INDEX(Editor!$C$5:$W$40,Editor!DZ27+1,Editor!DZ$36) ->  | AI25: =INDEX(Editor!$C$5:$W$40,Editor!EA27+1,Editor!EA$36) ->  | AJ25: =INDEX(Editor!$C$5:$W$40,Editor!EB27+1,Editor!EB$36) ->  | AK25: =INDEX(Editor!$C$5:$W$40,Editor!EC27+1,Editor!EC$36) ->  | AL25: =INDEX(Editor!$C$5:$W$40,Editor!ED27+1,Editor!ED$36) ->  | AM25: =INDEX(Editor!$C$5:$W$40,Editor!EE27+1,Editor!EE$36) ->  | AN25: =INDEX(Editor!$C$5:$W$40,Editor!EF27+1,Editor!EF$36) ->  | AO25: =INDEX(Editor!$C$5:$W$40,Editor!EG27+1,Editor!EG$36) ->  | AP25: =INDEX(Editor!$C$5:$W$40,Editor!EH27+1,Editor!EH$36) ->  | AQ25: =INDEX(Editor!$C$5:$W$40,Editor!EI27+1,Editor!EI$36) ->  | AR25: =INDEX(Editor!$C$5:$W$40,Editor!EJ27+1,Editor!EJ$36) ->  | AS25: =INDEX(Editor!$C$5:$W$40,Editor!EK27+1,Editor!EK$36) ->  | AT25: =INDEX(Editor!$C$5:$W$40,Editor!EL27+1,Editor!EL$36) ->  | AU25: =INDEX(Editor!$C$5:$W$40,Editor!EM27+1,Editor!EM$36) ->  | AV25: =INDEX(Editor!$C$5:$W$40,Editor!EN27+1,Editor!EN$36) ->  | AW25: =INDEX(Editor!$C$5:$W$40,Editor!EO27+1,Editor!EO$36) ->  | AX25: =INDEX(Editor!$C$5:$W$40,Editor!EP27+1,Editor!EP$36) ->  | AY25: =INDEX(Editor!$C$5:$W$40,Editor!EQ27+1,Editor!EQ$36) ->  | AZ25: =INDEX(Editor!$C$5:$W$40,Editor!ER27+1,Editor!ER$36) ->  | BA25: =INDEX(Editor!$C$5:$W$40,Editor!ES27+1,Editor!ES$36) ->  | BB25: =INDEX(Editor!$C$5:$W$40,Editor!ET27+1,Editor!ET$36) ->  | BC25: =INDEX(Editor!$C$5:$W$40,Editor!EU27+1,Editor!EU$36) ->  | BD25: =INDEX(Editor!$C$5:$W$40,Editor!EV27+1,Editor!EV$36) ->  | BE25: =INDEX(Editor!$C$5:$W$40,Editor!EW27+1,Editor!EW$36) ->  | BF25: =INDEX(Editor!$C$5:$W$40,Editor!EX27+1,Editor!EX$36) ->  | BG25: =INDEX(Editor!$C$5:$W$40,Editor!EY27+1,Editor!EY$36) ->  | BH25: =INDEX(Editor!$C$5:$W$40,Editor!EZ27+1,Editor!EZ$36) ->  | BI25: =INDEX(Editor!$C$5:$W$40,Editor!FA27+1,Editor!FA$36) ->  | BJ25: =INDEX(Editor!$C$5:$W$40,Editor!FB27+1,Editor!FB$36) ->  | BK25: =INDEX(Editor!$C$5:$W$40,Editor!FC27+1,Editor!FC$36) ->  | BL25: =INDEX(Editor!$C$5:$W$40,Editor!FD27+1,Editor!FD$36) ->  | BM25: =INDEX(Editor!$C$5:$W$40,Editor!FE27+1,Editor!FE$36) ->  | BN25: =INDEX(Editor!$C$5:$W$40,Editor!FF27+1,Editor!FF$36) ->  | BO25: =INDEX(Editor!$C$5:$W$40,Editor!FG27+1,Editor!FG$36) ->  | BP25: =INDEX(Editor!$C$5:$W$40,Editor!FH27+1,Editor!FH$36) ->  | BQ25: =INDEX(Editor!$C$5:$W$40,Editor!FI27+1,Editor!FI$36) ->  | BR25: =INDEX(Editor!$C$5:$W$40,Editor!FJ27+1,Editor!FJ$36) ->  | BS25: =INDEX(Editor!$C$5:$W$40,Editor!FK27+1,Editor!FK$36) ->  | BT25: =INDEX(Editor!$C$5:$W$40,Editor!FL27+1,Editor!FL$36) ->  | BU25: =INDEX(Editor!$C$5:$W$40,Editor!FM27+1,Editor!FM$36) ->  | BV25: =INDEX(Editor!$C$5:$W$40,Editor!FN27+1,Editor!FN$36) ->  | BW25: =INDEX(Editor!$C$5:$W$40,Editor!FO27+1,Editor!FO$36) -> 
A26: 23 | I26: =INDEX(Editor!$C$5:$W$40,Editor!DA28+1,Editor!DA$36) ->  | J26: =INDEX(Editor!$C$5:$W$40,Editor!DB28+1,Editor!DB$36) ->  | K26: =INDEX(Editor!$C$5:$W$40,Editor!DC28+1,Editor!DC$36) ->  | L26: =INDEX(Editor!$C$5:$W$40,Editor!DD28+1,Editor!DD$36) ->  | M26: =INDEX(Editor!$C$5:$W$40,Editor!DE28+1,Editor!DE$36) ->  | N26: =INDEX(Editor!$C$5:$W$40,Editor!DF28+1,Editor!DF$36) ->  | O26: =INDEX(Editor!$C$5:$W$40,Editor!DG28+1,Editor!DG$36) ->  | P26: =INDEX(Editor!$C$5:$W$40,Editor!DH28+1,Editor!DH$36) ->  | Q26: =INDEX(Editor!$C$5:$W$40,Editor!DI28+1,Editor!DI$36) ->  | R26: =INDEX(Editor!$C$5:$W$40,Editor!DJ28+1,Editor!DJ$36) ->  | S26: =INDEX(Editor!$C$5:$W$40,Editor!DK28+1,Editor!DK$36) ->  | T26: =INDEX(Editor!$C$5:$W$40,Editor!DL28+1,Editor!DL$36) ->  | U26: =INDEX(Editor!$C$5:$W$40,Editor!DM28+1,Editor!DM$36) ->  | V26: =INDEX(Editor!$C$5:$W$40,Editor!DN28+1,Editor!DN$36) ->  | W26: =INDEX(Editor!$C$5:$W$40,Editor!DO28+1,Editor!DO$36) ->  | X26: =INDEX(Editor!$C$5:$W$40,Editor!DP28+1,Editor!DP$36) ->  | Y26: =INDEX(Editor!$C$5:$W$40,Editor!DQ28+1,Editor!DQ$36) ->  | Z26: =INDEX(Editor!$C$5:$W$40,Editor!DR28+1,Editor!DR$36) ->  | AA26: =INDEX(Editor!$C$5:$W$40,Editor!DS28+1,Editor!DS$36) ->  | AB26: =INDEX(Editor!$C$5:$W$40,Editor!DT28+1,Editor!DT$36) ->  | AC26: =INDEX(Editor!$C$5:$W$40,Editor!DU28+1,Editor!DU$36) ->  | AD26: =INDEX(Editor!$C$5:$W$40,Editor!DV28+1,Editor!DV$36) ->  | AE26: =INDEX(Editor!$C$5:$W$40,Editor!DW28+1,Editor!DW$36) ->  | AF26: =INDEX(Editor!$C$5:$W$40,Editor!DX28+1,Editor!DX$36) ->  | AG26: =INDEX(Editor!$C$5:$W$40,Editor!DY28+1,Editor!DY$36) ->  | AH26: =INDEX(Editor!$C$5:$W$40,Editor!DZ28+1,Editor!DZ$36) ->  | AI26: =INDEX(Editor!$C$5:$W$40,Editor!EA28+1,Editor!EA$36) ->  | AJ26: =INDEX(Editor!$C$5:$W$40,Editor!EB28+1,Editor!EB$36) ->  | AK26: =INDEX(Editor!$C$5:$W$40,Editor!EC28+1,Editor!EC$36) ->  | AL26: =INDEX(Editor!$C$5:$W$40,Editor!ED28+1,Editor!ED$36) ->  | AM26: =INDEX(Editor!$C$5:$W$40,Editor!EE28+1,Editor!EE$36) ->  | AN26: =INDEX(Editor!$C$5:$W$40,Editor!EF28+1,Editor!EF$36) ->  | AO26: =INDEX(Editor!$C$5:$W$40,Editor!EG28+1,Editor!EG$36) ->  | AP26: =INDEX(Editor!$C$5:$W$40,Editor!EH28+1,Editor!EH$36) ->  | AQ26: =INDEX(Editor!$C$5:$W$40,Editor!EI28+1,Editor!EI$36) ->  | AR26: =INDEX(Editor!$C$5:$W$40,Editor!EJ28+1,Editor!EJ$36) ->  | AS26: =INDEX(Editor!$C$5:$W$40,Editor!EK28+1,Editor!EK$36) ->  | AT26: =INDEX(Editor!$C$5:$W$40,Editor!EL28+1,Editor!EL$36) ->  | AU26: =INDEX(Editor!$C$5:$W$40,Editor!EM28+1,Editor!EM$36) ->  | AV26: =INDEX(Editor!$C$5:$W$40,Editor!EN28+1,Editor!EN$36) ->  | AW26: =INDEX(Editor!$C$5:$W$40,Editor!EO28+1,Editor!EO$36) ->  | AX26: =INDEX(Editor!$C$5:$W$40,Editor!EP28+1,Editor!EP$36) ->  | AY26: =INDEX(Editor!$C$5:$W$40,Editor!EQ28+1,Editor!EQ$36) ->  | AZ26: =INDEX(Editor!$C$5:$W$40,Editor!ER28+1,Editor!ER$36) ->  | BA26: =INDEX(Editor!$C$5:$W$40,Editor!ES28+1,Editor!ES$36) ->  | BB26: =INDEX(Editor!$C$5:$W$40,Editor!ET28+1,Editor!ET$36) ->  | BC26: =INDEX(Editor!$C$5:$W$40,Editor!EU28+1,Editor!EU$36) ->  | BD26: =INDEX(Editor!$C$5:$W$40,Editor!EV28+1,Editor!EV$36) ->  | BE26: =INDEX(Editor!$C$5:$W$40,Editor!EW28+1,Editor!EW$36) ->  | BF26: =INDEX(Editor!$C$5:$W$40,Editor!EX28+1,Editor!EX$36) ->  | BG26: =INDEX(Editor!$C$5:$W$40,Editor!EY28+1,Editor!EY$36) ->  | BH26: =INDEX(Editor!$C$5:$W$40,Editor!EZ28+1,Editor!EZ$36) ->  | BI26: =INDEX(Editor!$C$5:$W$40,Editor!FA28+1,Editor!FA$36) ->  | BJ26: =INDEX(Editor!$C$5:$W$40,Editor!FB28+1,Editor!FB$36) ->  | BK26: =INDEX(Editor!$C$5:$W$40,Editor!FC28+1,Editor!FC$36) ->  | BL26: =INDEX(Editor!$C$5:$W$40,Editor!FD28+1,Editor!FD$36) ->  | BM26: =INDEX(Editor!$C$5:$W$40,Editor!FE28+1,Editor!FE$36) ->  | BN26: =INDEX(Editor!$C$5:$W$40,Editor!FF28+1,Editor!FF$36) ->  | BO26: =INDEX(Editor!$C$5:$W$40,Editor!FG28+1,Editor!FG$36) ->  | BP26: =INDEX(Editor!$C$5:$W$40,Editor!FH28+1,Editor!FH$36) ->  | BQ26: =INDEX(Editor!$C$5:$W$40,Editor!FI28+1,Editor!FI$36) ->  | BR26: =INDEX(Editor!$C$5:$W$40,Editor!FJ28+1,Editor!FJ$36) ->  | BS26: =INDEX(Editor!$C$5:$W$40,Editor!FK28+1,Editor!FK$36) ->  | BT26: =INDEX(Editor!$C$5:$W$40,Editor!FL28+1,Editor!FL$36) ->  | BU26: =INDEX(Editor!$C$5:$W$40,Editor!FM28+1,Editor!FM$36) ->  | BV26: =INDEX(Editor!$C$5:$W$40,Editor!FN28+1,Editor!FN$36) ->  | BW26: =INDEX(Editor!$C$5:$W$40,Editor!FO28+1,Editor!FO$36) -> 
A27: 24 | I27: =INDEX(Editor!$C$5:$W$40,Editor!DA29+1,Editor!DA$36) ->  | J27: =INDEX(Editor!$C$5:$W$40,Editor!DB29+1,Editor!DB$36) ->  | K27: =INDEX(Editor!$C$5:$W$40,Editor!DC29+1,Editor!DC$36) ->  | L27: =INDEX(Editor!$C$5:$W$40,Editor!DD29+1,Editor!DD$36) ->  | M27: =INDEX(Editor!$C$5:$W$40,Editor!DE29+1,Editor!DE$36) ->  | N27: =INDEX(Editor!$C$5:$W$40,Editor!DF29+1,Editor!DF$36) ->  | O27: =INDEX(Editor!$C$5:$W$40,Editor!DG29+1,Editor!DG$36) ->  | P27: =INDEX(Editor!$C$5:$W$40,Editor!DH29+1,Editor!DH$36) ->  | Q27: =INDEX(Editor!$C$5:$W$40,Editor!DI29+1,Editor!DI$36) ->  | R27: =INDEX(Editor!$C$5:$W$40,Editor!DJ29+1,Editor!DJ$36) ->  | S27: =INDEX(Editor!$C$5:$W$40,Editor!DK29+1,Editor!DK$36) ->  | T27: =INDEX(Editor!$C$5:$W$40,Editor!DL29+1,Editor!DL$36) ->  | U27: =INDEX(Editor!$C$5:$W$40,Editor!DM29+1,Editor!DM$36) ->  | V27: =INDEX(Editor!$C$5:$W$40,Editor!DN29+1,Editor!DN$36) ->  | W27: =INDEX(Editor!$C$5:$W$40,Editor!DO29+1,Editor!DO$36) ->  | X27: =INDEX(Editor!$C$5:$W$40,Editor!DP29+1,Editor!DP$36) ->  | Y27: =INDEX(Editor!$C$5:$W$40,Editor!DQ29+1,Editor!DQ$36) ->  | Z27: =INDEX(Editor!$C$5:$W$40,Editor!DR29+1,Editor!DR$36) ->  | AA27: =INDEX(Editor!$C$5:$W$40,Editor!DS29+1,Editor!DS$36) ->  | AB27: =INDEX(Editor!$C$5:$W$40,Editor!DT29+1,Editor!DT$36) ->  | AC27: =INDEX(Editor!$C$5:$W$40,Editor!DU29+1,Editor!DU$36) ->  | AD27: =INDEX(Editor!$C$5:$W$40,Editor!DV29+1,Editor!DV$36) ->  | AE27: =INDEX(Editor!$C$5:$W$40,Editor!DW29+1,Editor!DW$36) ->  | AF27: =INDEX(Editor!$C$5:$W$40,Editor!DX29+1,Editor!DX$36) ->  | AG27: =INDEX(Editor!$C$5:$W$40,Editor!DY29+1,Editor!DY$36) ->  | AH27: =INDEX(Editor!$C$5:$W$40,Editor!DZ29+1,Editor!DZ$36) ->  | AI27: =INDEX(Editor!$C$5:$W$40,Editor!EA29+1,Editor!EA$36) ->  | AJ27: =INDEX(Editor!$C$5:$W$40,Editor!EB29+1,Editor!EB$36) ->  | AK27: =INDEX(Editor!$C$5:$W$40,Editor!EC29+1,Editor!EC$36) ->  | AL27: =INDEX(Editor!$C$5:$W$40,Editor!ED29+1,Editor!ED$36) ->  | AM27: =INDEX(Editor!$C$5:$W$40,Editor!EE29+1,Editor!EE$36) ->  | AN27: =INDEX(Editor!$C$5:$W$40,Editor!EF29+1,Editor!EF$36) ->  | AO27: =INDEX(Editor!$C$5:$W$40,Editor!EG29+1,Editor!EG$36) ->  | AP27: =INDEX(Editor!$C$5:$W$40,Editor!EH29+1,Editor!EH$36) ->  | AQ27: =INDEX(Editor!$C$5:$W$40,Editor!EI29+1,Editor!EI$36) ->  | AR27: =INDEX(Editor!$C$5:$W$40,Editor!EJ29+1,Editor!EJ$36) ->  | AS27: =INDEX(Editor!$C$5:$W$40,Editor!EK29+1,Editor!EK$36) ->  | AT27: =INDEX(Editor!$C$5:$W$40,Editor!EL29+1,Editor!EL$36) ->  | AU27: =INDEX(Editor!$C$5:$W$40,Editor!EM29+1,Editor!EM$36) ->  | AV27: =INDEX(Editor!$C$5:$W$40,Editor!EN29+1,Editor!EN$36) ->  | AW27: =INDEX(Editor!$C$5:$W$40,Editor!EO29+1,Editor!EO$36) ->  | AX27: =INDEX(Editor!$C$5:$W$40,Editor!EP29+1,Editor!EP$36) ->  | AY27: =INDEX(Editor!$C$5:$W$40,Editor!EQ29+1,Editor!EQ$36) ->  | AZ27: =INDEX(Editor!$C$5:$W$40,Editor!ER29+1,Editor!ER$36) ->  | BA27: =INDEX(Editor!$C$5:$W$40,Editor!ES29+1,Editor!ES$36) ->  | BB27: =INDEX(Editor!$C$5:$W$40,Editor!ET29+1,Editor!ET$36) ->  | BC27: =INDEX(Editor!$C$5:$W$40,Editor!EU29+1,Editor!EU$36) ->  | BD27: =INDEX(Editor!$C$5:$W$40,Editor!EV29+1,Editor!EV$36) ->  | BE27: =INDEX(Editor!$C$5:$W$40,Editor!EW29+1,Editor!EW$36) ->  | BF27: =INDEX(Editor!$C$5:$W$40,Editor!EX29+1,Editor!EX$36) ->  | BG27: =INDEX(Editor!$C$5:$W$40,Editor!EY29+1,Editor!EY$36) ->  | BH27: =INDEX(Editor!$C$5:$W$40,Editor!EZ29+1,Editor!EZ$36) ->  | BI27: =INDEX(Editor!$C$5:$W$40,Editor!FA29+1,Editor!FA$36) ->  | BJ27: =INDEX(Editor!$C$5:$W$40,Editor!FB29+1,Editor!FB$36) ->  | BK27: =INDEX(Editor!$C$5:$W$40,Editor!FC29+1,Editor!FC$36) ->  | BL27: =INDEX(Editor!$C$5:$W$40,Editor!FD29+1,Editor!FD$36) ->  | BM27: =INDEX(Editor!$C$5:$W$40,Editor!FE29+1,Editor!FE$36) ->  | BN27: =INDEX(Editor!$C$5:$W$40,Editor!FF29+1,Editor!FF$36) ->  | BO27: =INDEX(Editor!$C$5:$W$40,Editor!FG29+1,Editor!FG$36) ->  | BP27: =INDEX(Editor!$C$5:$W$40,Editor!FH29+1,Editor!FH$36) ->  | BQ27: =INDEX(Editor!$C$5:$W$40,Editor!FI29+1,Editor!FI$36) ->  | BR27: =INDEX(Editor!$C$5:$W$40,Editor!FJ29+1,Editor!FJ$36) ->  | BS27: =INDEX(Editor!$C$5:$W$40,Editor!FK29+1,Editor!FK$36) ->  | BT27: =INDEX(Editor!$C$5:$W$40,Editor!FL29+1,Editor!FL$36) ->  | BU27: =INDEX(Editor!$C$5:$W$40,Editor!FM29+1,Editor!FM$36) ->  | BV27: =INDEX(Editor!$C$5:$W$40,Editor!FN29+1,Editor!FN$36) ->  | BW27: =INDEX(Editor!$C$5:$W$40,Editor!FO29+1,Editor!FO$36) -> 
A28: 25 | I28: =INDEX(Editor!$C$5:$W$40,Editor!DA30+1,Editor!DA$36) ->  | J28: =INDEX(Editor!$C$5:$W$40,Editor!DB30+1,Editor!DB$36) ->  | K28: =INDEX(Editor!$C$5:$W$40,Editor!DC30+1,Editor!DC$36) ->  | L28: =INDEX(Editor!$C$5:$W$40,Editor!DD30+1,Editor!DD$36) ->  | M28: =INDEX(Editor!$C$5:$W$40,Editor!DE30+1,Editor!DE$36) ->  | N28: =INDEX(Editor!$C$5:$W$40,Editor!DF30+1,Editor!DF$36) ->  | O28: =INDEX(Editor!$C$5:$W$40,Editor!DG30+1,Editor!DG$36) ->  | P28: =INDEX(Editor!$C$5:$W$40,Editor!DH30+1,Editor!DH$36) ->  | Q28: =INDEX(Editor!$C$5:$W$40,Editor!DI30+1,Editor!DI$36) ->  | R28: =INDEX(Editor!$C$5:$W$40,Editor!DJ30+1,Editor!DJ$36) ->  | S28: =INDEX(Editor!$C$5:$W$40,Editor!DK30+1,Editor!DK$36) ->  | T28: =INDEX(Editor!$C$5:$W$40,Editor!DL30+1,Editor!DL$36) ->  | U28: =INDEX(Editor!$C$5:$W$40,Editor!DM30+1,Editor!DM$36) ->  | V28: =INDEX(Editor!$C$5:$W$40,Editor!DN30+1,Editor!DN$36) ->  | W28: =INDEX(Editor!$C$5:$W$40,Editor!DO30+1,Editor!DO$36) ->  | X28: =INDEX(Editor!$C$5:$W$40,Editor!DP30+1,Editor!DP$36) ->  | Y28: =INDEX(Editor!$C$5:$W$40,Editor!DQ30+1,Editor!DQ$36) ->  | Z28: =INDEX(Editor!$C$5:$W$40,Editor!DR30+1,Editor!DR$36) ->  | AA28: =INDEX(Editor!$C$5:$W$40,Editor!DS30+1,Editor!DS$36) ->  | AB28: =INDEX(Editor!$C$5:$W$40,Editor!DT30+1,Editor!DT$36) ->  | AC28: =INDEX(Editor!$C$5:$W$40,Editor!DU30+1,Editor!DU$36) ->  | AD28: =INDEX(Editor!$C$5:$W$40,Editor!DV30+1,Editor!DV$36) ->  | AE28: =INDEX(Editor!$C$5:$W$40,Editor!DW30+1,Editor!DW$36) ->  | AF28: =INDEX(Editor!$C$5:$W$40,Editor!DX30+1,Editor!DX$36) ->  | AG28: =INDEX(Editor!$C$5:$W$40,Editor!DY30+1,Editor!DY$36) ->  | AH28: =INDEX(Editor!$C$5:$W$40,Editor!DZ30+1,Editor!DZ$36) ->  | AI28: =INDEX(Editor!$C$5:$W$40,Editor!EA30+1,Editor!EA$36) ->  | AJ28: =INDEX(Editor!$C$5:$W$40,Editor!EB30+1,Editor!EB$36) ->  | AK28: =INDEX(Editor!$C$5:$W$40,Editor!EC30+1,Editor!EC$36) ->  | AL28: =INDEX(Editor!$C$5:$W$40,Editor!ED30+1,Editor!ED$36) ->  | AM28: =INDEX(Editor!$C$5:$W$40,Editor!EE30+1,Editor!EE$36) ->  | AN28: =INDEX(Editor!$C$5:$W$40,Editor!EF30+1,Editor!EF$36) ->  | AO28: =INDEX(Editor!$C$5:$W$40,Editor!EG30+1,Editor!EG$36) ->  | AP28: =INDEX(Editor!$C$5:$W$40,Editor!EH30+1,Editor!EH$36) ->  | AQ28: =INDEX(Editor!$C$5:$W$40,Editor!EI30+1,Editor!EI$36) ->  | AR28: =INDEX(Editor!$C$5:$W$40,Editor!EJ30+1,Editor!EJ$36) ->  | AS28: =INDEX(Editor!$C$5:$W$40,Editor!EK30+1,Editor!EK$36) ->  | AT28: =INDEX(Editor!$C$5:$W$40,Editor!EL30+1,Editor!EL$36) ->  | AU28: =INDEX(Editor!$C$5:$W$40,Editor!EM30+1,Editor!EM$36) ->  | AV28: =INDEX(Editor!$C$5:$W$40,Editor!EN30+1,Editor!EN$36) ->  | AW28: =INDEX(Editor!$C$5:$W$40,Editor!EO30+1,Editor!EO$36) ->  | AX28: =INDEX(Editor!$C$5:$W$40,Editor!EP30+1,Editor!EP$36) ->  | AY28: =INDEX(Editor!$C$5:$W$40,Editor!EQ30+1,Editor!EQ$36) ->  | AZ28: =INDEX(Editor!$C$5:$W$40,Editor!ER30+1,Editor!ER$36) ->  | BA28: =INDEX(Editor!$C$5:$W$40,Editor!ES30+1,Editor!ES$36) ->  | BB28: =INDEX(Editor!$C$5:$W$40,Editor!ET30+1,Editor!ET$36) ->  | BC28: =INDEX(Editor!$C$5:$W$40,Editor!EU30+1,Editor!EU$36) ->  | BD28: =INDEX(Editor!$C$5:$W$40,Editor!EV30+1,Editor!EV$36) ->  | BE28: =INDEX(Editor!$C$5:$W$40,Editor!EW30+1,Editor!EW$36) ->  | BF28: =INDEX(Editor!$C$5:$W$40,Editor!EX30+1,Editor!EX$36) ->  | BG28: =INDEX(Editor!$C$5:$W$40,Editor!EY30+1,Editor!EY$36) ->  | BH28: =INDEX(Editor!$C$5:$W$40,Editor!EZ30+1,Editor!EZ$36) ->  | BI28: =INDEX(Editor!$C$5:$W$40,Editor!FA30+1,Editor!FA$36) ->  | BJ28: =INDEX(Editor!$C$5:$W$40,Editor!FB30+1,Editor!FB$36) ->  | BK28: =INDEX(Editor!$C$5:$W$40,Editor!FC30+1,Editor!FC$36) ->  | BL28: =INDEX(Editor!$C$5:$W$40,Editor!FD30+1,Editor!FD$36) ->  | BM28: =INDEX(Editor!$C$5:$W$40,Editor!FE30+1,Editor!FE$36) ->  | BN28: =INDEX(Editor!$C$5:$W$40,Editor!FF30+1,Editor!FF$36) ->  | BO28: =INDEX(Editor!$C$5:$W$40,Editor!FG30+1,Editor!FG$36) ->  | BP28: =INDEX(Editor!$C$5:$W$40,Editor!FH30+1,Editor!FH$36) ->  | BQ28: =INDEX(Editor!$C$5:$W$40,Editor!FI30+1,Editor!FI$36) ->  | BR28: =INDEX(Editor!$C$5:$W$40,Editor!FJ30+1,Editor!FJ$36) ->  | BS28: =INDEX(Editor!$C$5:$W$40,Editor!FK30+1,Editor!FK$36) ->  | BT28: =INDEX(Editor!$C$5:$W$40,Editor!FL30+1,Editor!FL$36) ->  | BU28: =INDEX(Editor!$C$5:$W$40,Editor!FM30+1,Editor!FM$36) ->  | BV28: =INDEX(Editor!$C$5:$W$40,Editor!FN30+1,Editor!FN$36) ->  | BW28: =INDEX(Editor!$C$5:$W$40,Editor!FO30+1,Editor!FO$36) -> 
A29: 26 | I29: =INDEX(Editor!$C$5:$W$40,Editor!DA31+1,Editor!DA$36) ->  | J29: =INDEX(Editor!$C$5:$W$40,Editor!DB31+1,Editor!DB$36) ->  | K29: =INDEX(Editor!$C$5:$W$40,Editor!DC31+1,Editor!DC$36) ->  | L29: =INDEX(Editor!$C$5:$W$40,Editor!DD31+1,Editor!DD$36) ->  | M29: =INDEX(Editor!$C$5:$W$40,Editor!DE31+1,Editor!DE$36) ->  | N29: =INDEX(Editor!$C$5:$W$40,Editor!DF31+1,Editor!DF$36) ->  | O29: =INDEX(Editor!$C$5:$W$40,Editor!DG31+1,Editor!DG$36) ->  | P29: =INDEX(Editor!$C$5:$W$40,Editor!DH31+1,Editor!DH$36) ->  | Q29: =INDEX(Editor!$C$5:$W$40,Editor!DI31+1,Editor!DI$36) ->  | R29: =INDEX(Editor!$C$5:$W$40,Editor!DJ31+1,Editor!DJ$36) ->  | S29: =INDEX(Editor!$C$5:$W$40,Editor!DK31+1,Editor!DK$36) ->  | T29: =INDEX(Editor!$C$5:$W$40,Editor!DL31+1,Editor!DL$36) ->  | U29: =INDEX(Editor!$C$5:$W$40,Editor!DM31+1,Editor!DM$36) ->  | V29: =INDEX(Editor!$C$5:$W$40,Editor!DN31+1,Editor!DN$36) ->  | W29: =INDEX(Editor!$C$5:$W$40,Editor!DO31+1,Editor!DO$36) ->  | X29: =INDEX(Editor!$C$5:$W$40,Editor!DP31+1,Editor!DP$36) ->  | Y29: =INDEX(Editor!$C$5:$W$40,Editor!DQ31+1,Editor!DQ$36) ->  | Z29: =INDEX(Editor!$C$5:$W$40,Editor!DR31+1,Editor!DR$36) ->  | AA29: =INDEX(Editor!$C$5:$W$40,Editor!DS31+1,Editor!DS$36) ->  | AB29: =INDEX(Editor!$C$5:$W$40,Editor!DT31+1,Editor!DT$36) ->  | AC29: =INDEX(Editor!$C$5:$W$40,Editor!DU31+1,Editor!DU$36) ->  | AD29: =INDEX(Editor!$C$5:$W$40,Editor!DV31+1,Editor!DV$36) ->  | AE29: =INDEX(Editor!$C$5:$W$40,Editor!DW31+1,Editor!DW$36) ->  | AF29: =INDEX(Editor!$C$5:$W$40,Editor!DX31+1,Editor!DX$36) ->  | AG29: =INDEX(Editor!$C$5:$W$40,Editor!DY31+1,Editor!DY$36) ->  | AH29: =INDEX(Editor!$C$5:$W$40,Editor!DZ31+1,Editor!DZ$36) ->  | AI29: =INDEX(Editor!$C$5:$W$40,Editor!EA31+1,Editor!EA$36) ->  | AJ29: =INDEX(Editor!$C$5:$W$40,Editor!EB31+1,Editor!EB$36) ->  | AK29: =INDEX(Editor!$C$5:$W$40,Editor!EC31+1,Editor!EC$36) ->  | AL29: =INDEX(Editor!$C$5:$W$40,Editor!ED31+1,Editor!ED$36) ->  | AM29: =INDEX(Editor!$C$5:$W$40,Editor!EE31+1,Editor!EE$36) ->  | AN29: =INDEX(Editor!$C$5:$W$40,Editor!EF31+1,Editor!EF$36) ->  | AO29: =INDEX(Editor!$C$5:$W$40,Editor!EG31+1,Editor!EG$36) ->  | AP29: =INDEX(Editor!$C$5:$W$40,Editor!EH31+1,Editor!EH$36) ->  | AQ29: =INDEX(Editor!$C$5:$W$40,Editor!EI31+1,Editor!EI$36) ->  | AR29: =INDEX(Editor!$C$5:$W$40,Editor!EJ31+1,Editor!EJ$36) ->  | AS29: =INDEX(Editor!$C$5:$W$40,Editor!EK31+1,Editor!EK$36) ->  | AT29: =INDEX(Editor!$C$5:$W$40,Editor!EL31+1,Editor!EL$36) ->  | AU29: =INDEX(Editor!$C$5:$W$40,Editor!EM31+1,Editor!EM$36) ->  | AV29: =INDEX(Editor!$C$5:$W$40,Editor!EN31+1,Editor!EN$36) ->  | AW29: =INDEX(Editor!$C$5:$W$40,Editor!EO31+1,Editor!EO$36) ->  | AX29: =INDEX(Editor!$C$5:$W$40,Editor!EP31+1,Editor!EP$36) ->  | AY29: =INDEX(Editor!$C$5:$W$40,Editor!EQ31+1,Editor!EQ$36) ->  | AZ29: =INDEX(Editor!$C$5:$W$40,Editor!ER31+1,Editor!ER$36) ->  | BA29: =INDEX(Editor!$C$5:$W$40,Editor!ES31+1,Editor!ES$36) ->  | BB29: =INDEX(Editor!$C$5:$W$40,Editor!ET31+1,Editor!ET$36) ->  | BC29: =INDEX(Editor!$C$5:$W$40,Editor!EU31+1,Editor!EU$36) ->  | BD29: =INDEX(Editor!$C$5:$W$40,Editor!EV31+1,Editor!EV$36) ->  | BE29: =INDEX(Editor!$C$5:$W$40,Editor!EW31+1,Editor!EW$36) ->  | BF29: =INDEX(Editor!$C$5:$W$40,Editor!EX31+1,Editor!EX$36) ->  | BG29: =INDEX(Editor!$C$5:$W$40,Editor!EY31+1,Editor!EY$36) ->  | BH29: =INDEX(Editor!$C$5:$W$40,Editor!EZ31+1,Editor!EZ$36) ->  | BI29: =INDEX(Editor!$C$5:$W$40,Editor!FA31+1,Editor!FA$36) ->  | BJ29: =INDEX(Editor!$C$5:$W$40,Editor!FB31+1,Editor!FB$36) ->  | BK29: =INDEX(Editor!$C$5:$W$40,Editor!FC31+1,Editor!FC$36) ->  | BL29: =INDEX(Editor!$C$5:$W$40,Editor!FD31+1,Editor!FD$36) ->  | BM29: =INDEX(Editor!$C$5:$W$40,Editor!FE31+1,Editor!FE$36) ->  | BN29: =INDEX(Editor!$C$5:$W$40,Editor!FF31+1,Editor!FF$36) ->  | BO29: =INDEX(Editor!$C$5:$W$40,Editor!FG31+1,Editor!FG$36) ->  | BP29: =INDEX(Editor!$C$5:$W$40,Editor!FH31+1,Editor!FH$36) ->  | BQ29: =INDEX(Editor!$C$5:$W$40,Editor!FI31+1,Editor!FI$36) ->  | BR29: =INDEX(Editor!$C$5:$W$40,Editor!FJ31+1,Editor!FJ$36) ->  | BS29: =INDEX(Editor!$C$5:$W$40,Editor!FK31+1,Editor!FK$36) ->  | BT29: =INDEX(Editor!$C$5:$W$40,Editor!FL31+1,Editor!FL$36) ->  | BU29: =INDEX(Editor!$C$5:$W$40,Editor!FM31+1,Editor!FM$36) ->  | BV29: =INDEX(Editor!$C$5:$W$40,Editor!FN31+1,Editor!FN$36) ->  | BW29: =INDEX(Editor!$C$5:$W$40,Editor!FO31+1,Editor!FO$36) -> 
A30: 27 | I30: =INDEX(Editor!$C$5:$W$40,Editor!DA32+1,Editor!DA$36) ->  | J30: =INDEX(Editor!$C$5:$W$40,Editor!DB32+1,Editor!DB$36) ->  | K30: =INDEX(Editor!$C$5:$W$40,Editor!DC32+1,Editor!DC$36) ->  | L30: =INDEX(Editor!$C$5:$W$40,Editor!DD32+1,Editor!DD$36) ->  | M30: =INDEX(Editor!$C$5:$W$40,Editor!DE32+1,Editor!DE$36) ->  | N30: =INDEX(Editor!$C$5:$W$40,Editor!DF32+1,Editor!DF$36) ->  | O30: =INDEX(Editor!$C$5:$W$40,Editor!DG32+1,Editor!DG$36) ->  | P30: =INDEX(Editor!$C$5:$W$40,Editor!DH32+1,Editor!DH$36) ->  | Q30: =INDEX(Editor!$C$5:$W$40,Editor!DI32+1,Editor!DI$36) ->  | R30: =INDEX(Editor!$C$5:$W$40,Editor!DJ32+1,Editor!DJ$36) ->  | S30: =INDEX(Editor!$C$5:$W$40,Editor!DK32+1,Editor!DK$36) ->  | T30: =INDEX(Editor!$C$5:$W$40,Editor!DL32+1,Editor!DL$36) ->  | U30: =INDEX(Editor!$C$5:$W$40,Editor!DM32+1,Editor!DM$36) ->  | V30: =INDEX(Editor!$C$5:$W$40,Editor!DN32+1,Editor!DN$36) ->  | W30: =INDEX(Editor!$C$5:$W$40,Editor!DO32+1,Editor!DO$36) ->  | X30: =INDEX(Editor!$C$5:$W$40,Editor!DP32+1,Editor!DP$36) ->  | Y30: =INDEX(Editor!$C$5:$W$40,Editor!DQ32+1,Editor!DQ$36) ->  | Z30: =INDEX(Editor!$C$5:$W$40,Editor!DR32+1,Editor!DR$36) ->  | AA30: =INDEX(Editor!$C$5:$W$40,Editor!DS32+1,Editor!DS$36) ->  | AB30: =INDEX(Editor!$C$5:$W$40,Editor!DT32+1,Editor!DT$36) ->  | AC30: =INDEX(Editor!$C$5:$W$40,Editor!DU32+1,Editor!DU$36) ->  | AD30: =INDEX(Editor!$C$5:$W$40,Editor!DV32+1,Editor!DV$36) ->  | AE30: =INDEX(Editor!$C$5:$W$40,Editor!DW32+1,Editor!DW$36) ->  | AF30: =INDEX(Editor!$C$5:$W$40,Editor!DX32+1,Editor!DX$36) ->  | AG30: =INDEX(Editor!$C$5:$W$40,Editor!DY32+1,Editor!DY$36) ->  | AH30: =INDEX(Editor!$C$5:$W$40,Editor!DZ32+1,Editor!DZ$36) ->  | AI30: =INDEX(Editor!$C$5:$W$40,Editor!EA32+1,Editor!EA$36) ->  | AJ30: =INDEX(Editor!$C$5:$W$40,Editor!EB32+1,Editor!EB$36) ->  | AK30: =INDEX(Editor!$C$5:$W$40,Editor!EC32+1,Editor!EC$36) ->  | AL30: =INDEX(Editor!$C$5:$W$40,Editor!ED32+1,Editor!ED$36) ->  | AM30: =INDEX(Editor!$C$5:$W$40,Editor!EE32+1,Editor!EE$36) ->  | AN30: =INDEX(Editor!$C$5:$W$40,Editor!EF32+1,Editor!EF$36) ->  | AO30: =INDEX(Editor!$C$5:$W$40,Editor!EG32+1,Editor!EG$36) ->  | AP30: =INDEX(Editor!$C$5:$W$40,Editor!EH32+1,Editor!EH$36) ->  | AQ30: =INDEX(Editor!$C$5:$W$40,Editor!EI32+1,Editor!EI$36) ->  | AR30: =INDEX(Editor!$C$5:$W$40,Editor!EJ32+1,Editor!EJ$36) ->  | AS30: =INDEX(Editor!$C$5:$W$40,Editor!EK32+1,Editor!EK$36) ->  | AT30: =INDEX(Editor!$C$5:$W$40,Editor!EL32+1,Editor!EL$36) ->  | AU30: =INDEX(Editor!$C$5:$W$40,Editor!EM32+1,Editor!EM$36) ->  | AV30: =INDEX(Editor!$C$5:$W$40,Editor!EN32+1,Editor!EN$36) ->  | AW30: =INDEX(Editor!$C$5:$W$40,Editor!EO32+1,Editor!EO$36) ->  | AX30: =INDEX(Editor!$C$5:$W$40,Editor!EP32+1,Editor!EP$36) ->  | AY30: =INDEX(Editor!$C$5:$W$40,Editor!EQ32+1,Editor!EQ$36) ->  | AZ30: =INDEX(Editor!$C$5:$W$40,Editor!ER32+1,Editor!ER$36) ->  | BA30: =INDEX(Editor!$C$5:$W$40,Editor!ES32+1,Editor!ES$36) ->  | BB30: =INDEX(Editor!$C$5:$W$40,Editor!ET32+1,Editor!ET$36) ->  | BC30: =INDEX(Editor!$C$5:$W$40,Editor!EU32+1,Editor!EU$36) ->  | BD30: =INDEX(Editor!$C$5:$W$40,Editor!EV32+1,Editor!EV$36) ->  | BE30: =INDEX(Editor!$C$5:$W$40,Editor!EW32+1,Editor!EW$36) ->  | BF30: =INDEX(Editor!$C$5:$W$40,Editor!EX32+1,Editor!EX$36) ->  | BG30: =INDEX(Editor!$C$5:$W$40,Editor!EY32+1,Editor!EY$36) ->  | BH30: =INDEX(Editor!$C$5:$W$40,Editor!EZ32+1,Editor!EZ$36) ->  | BI30: =INDEX(Editor!$C$5:$W$40,Editor!FA32+1,Editor!FA$36) ->  | BJ30: =INDEX(Editor!$C$5:$W$40,Editor!FB32+1,Editor!FB$36) ->  | BK30: =INDEX(Editor!$C$5:$W$40,Editor!FC32+1,Editor!FC$36) ->  | BL30: =INDEX(Editor!$C$5:$W$40,Editor!FD32+1,Editor!FD$36) ->  | BM30: =INDEX(Editor!$C$5:$W$40,Editor!FE32+1,Editor!FE$36) ->  | BN30: =INDEX(Editor!$C$5:$W$40,Editor!FF32+1,Editor!FF$36) ->  | BO30: =INDEX(Editor!$C$5:$W$40,Editor!FG32+1,Editor!FG$36) ->  | BP30: =INDEX(Editor!$C$5:$W$40,Editor!FH32+1,Editor!FH$36) ->  | BQ30: =INDEX(Editor!$C$5:$W$40,Editor!FI32+1,Editor!FI$36) ->  | BR30: =INDEX(Editor!$C$5:$W$40,Editor!FJ32+1,Editor!FJ$36) ->  | BS30: =INDEX(Editor!$C$5:$W$40,Editor!FK32+1,Editor!FK$36) ->  | BT30: =INDEX(Editor!$C$5:$W$40,Editor!FL32+1,Editor!FL$36) ->  | BU30: =INDEX(Editor!$C$5:$W$40,Editor!FM32+1,Editor!FM$36) ->  | BV30: =INDEX(Editor!$C$5:$W$40,Editor!FN32+1,Editor!FN$36) ->  | BW30: =INDEX(Editor!$C$5:$W$40,Editor!FO32+1,Editor!FO$36) -> 
A31: 28 | I31: =INDEX(Editor!$C$5:$W$40,Editor!DA33+1,Editor!DA$36) ->  | J31: =INDEX(Editor!$C$5:$W$40,Editor!DB33+1,Editor!DB$36) ->  | K31: =INDEX(Editor!$C$5:$W$40,Editor!DC33+1,Editor!DC$36) ->  | L31: =INDEX(Editor!$C$5:$W$40,Editor!DD33+1,Editor!DD$36) ->  | M31: =INDEX(Editor!$C$5:$W$40,Editor!DE33+1,Editor!DE$36) ->  | N31: =INDEX(Editor!$C$5:$W$40,Editor!DF33+1,Editor!DF$36) ->  | O31: =INDEX(Editor!$C$5:$W$40,Editor!DG33+1,Editor!DG$36) ->  | P31: =INDEX(Editor!$C$5:$W$40,Editor!DH33+1,Editor!DH$36) ->  | Q31: =INDEX(Editor!$C$5:$W$40,Editor!DI33+1,Editor!DI$36) ->  | R31: =INDEX(Editor!$C$5:$W$40,Editor!DJ33+1,Editor!DJ$36) ->  | S31: =INDEX(Editor!$C$5:$W$40,Editor!DK33+1,Editor!DK$36) ->  | T31: =INDEX(Editor!$C$5:$W$40,Editor!DL33+1,Editor!DL$36) ->  | U31: =INDEX(Editor!$C$5:$W$40,Editor!DM33+1,Editor!DM$36) ->  | V31: =INDEX(Editor!$C$5:$W$40,Editor!DN33+1,Editor!DN$36) ->  | W31: =INDEX(Editor!$C$5:$W$40,Editor!DO33+1,Editor!DO$36) ->  | X31: =INDEX(Editor!$C$5:$W$40,Editor!DP33+1,Editor!DP$36) ->  | Y31: =INDEX(Editor!$C$5:$W$40,Editor!DQ33+1,Editor!DQ$36) ->  | Z31: =INDEX(Editor!$C$5:$W$40,Editor!DR33+1,Editor!DR$36) ->  | AA31: =INDEX(Editor!$C$5:$W$40,Editor!DS33+1,Editor!DS$36) ->  | AB31: =INDEX(Editor!$C$5:$W$40,Editor!DT33+1,Editor!DT$36) ->  | AC31: =INDEX(Editor!$C$5:$W$40,Editor!DU33+1,Editor!DU$36) ->  | AD31: =INDEX(Editor!$C$5:$W$40,Editor!DV33+1,Editor!DV$36) ->  | AE31: =INDEX(Editor!$C$5:$W$40,Editor!DW33+1,Editor!DW$36) ->  | AF31: =INDEX(Editor!$C$5:$W$40,Editor!DX33+1,Editor!DX$36) ->  | AG31: =INDEX(Editor!$C$5:$W$40,Editor!DY33+1,Editor!DY$36) ->  | AH31: =INDEX(Editor!$C$5:$W$40,Editor!DZ33+1,Editor!DZ$36) ->  | AI31: =INDEX(Editor!$C$5:$W$40,Editor!EA33+1,Editor!EA$36) ->  | AJ31: =INDEX(Editor!$C$5:$W$40,Editor!EB33+1,Editor!EB$36) ->  | AK31: =INDEX(Editor!$C$5:$W$40,Editor!EC33+1,Editor!EC$36) ->  | AL31: =INDEX(Editor!$C$5:$W$40,Editor!ED33+1,Editor!ED$36) ->  | AM31: =INDEX(Editor!$C$5:$W$40,Editor!EE33+1,Editor!EE$36) ->  | AN31: =INDEX(Editor!$C$5:$W$40,Editor!EF33+1,Editor!EF$36) ->  | AO31: =INDEX(Editor!$C$5:$W$40,Editor!EG33+1,Editor!EG$36) ->  | AP31: =INDEX(Editor!$C$5:$W$40,Editor!EH33+1,Editor!EH$36) ->  | AQ31: =INDEX(Editor!$C$5:$W$40,Editor!EI33+1,Editor!EI$36) ->  | AR31: =INDEX(Editor!$C$5:$W$40,Editor!EJ33+1,Editor!EJ$36) ->  | AS31: =INDEX(Editor!$C$5:$W$40,Editor!EK33+1,Editor!EK$36) ->  | AT31: =INDEX(Editor!$C$5:$W$40,Editor!EL33+1,Editor!EL$36) ->  | AU31: =INDEX(Editor!$C$5:$W$40,Editor!EM33+1,Editor!EM$36) ->  | AV31: =INDEX(Editor!$C$5:$W$40,Editor!EN33+1,Editor!EN$36) ->  | AW31: =INDEX(Editor!$C$5:$W$40,Editor!EO33+1,Editor!EO$36) ->  | AX31: =INDEX(Editor!$C$5:$W$40,Editor!EP33+1,Editor!EP$36) ->  | AY31: =INDEX(Editor!$C$5:$W$40,Editor!EQ33+1,Editor!EQ$36) ->  | AZ31: =INDEX(Editor!$C$5:$W$40,Editor!ER33+1,Editor!ER$36) ->  | BA31: =INDEX(Editor!$C$5:$W$40,Editor!ES33+1,Editor!ES$36) ->  | BB31: =INDEX(Editor!$C$5:$W$40,Editor!ET33+1,Editor!ET$36) ->  | BC31: =INDEX(Editor!$C$5:$W$40,Editor!EU33+1,Editor!EU$36) ->  | BD31: =INDEX(Editor!$C$5:$W$40,Editor!EV33+1,Editor!EV$36) ->  | BE31: =INDEX(Editor!$C$5:$W$40,Editor!EW33+1,Editor!EW$36) ->  | BF31: =INDEX(Editor!$C$5:$W$40,Editor!EX33+1,Editor!EX$36) ->  | BG31: =INDEX(Editor!$C$5:$W$40,Editor!EY33+1,Editor!EY$36) ->  | BH31: =INDEX(Editor!$C$5:$W$40,Editor!EZ33+1,Editor!EZ$36) ->  | BI31: =INDEX(Editor!$C$5:$W$40,Editor!FA33+1,Editor!FA$36) ->  | BJ31: =INDEX(Editor!$C$5:$W$40,Editor!FB33+1,Editor!FB$36) ->  | BK31: =INDEX(Editor!$C$5:$W$40,Editor!FC33+1,Editor!FC$36) ->  | BL31: =INDEX(Editor!$C$5:$W$40,Editor!FD33+1,Editor!FD$36) ->  | BM31: =INDEX(Editor!$C$5:$W$40,Editor!FE33+1,Editor!FE$36) ->  | BN31: =INDEX(Editor!$C$5:$W$40,Editor!FF33+1,Editor!FF$36) ->  | BO31: =INDEX(Editor!$C$5:$W$40,Editor!FG33+1,Editor!FG$36) ->  | BP31: =INDEX(Editor!$C$5:$W$40,Editor!FH33+1,Editor!FH$36) ->  | BQ31: =INDEX(Editor!$C$5:$W$40,Editor!FI33+1,Editor!FI$36) ->  | BR31: =INDEX(Editor!$C$5:$W$40,Editor!FJ33+1,Editor!FJ$36) ->  | BS31: =INDEX(Editor!$C$5:$W$40,Editor!FK33+1,Editor!FK$36) ->  | BT31: =INDEX(Editor!$C$5:$W$40,Editor!FL33+1,Editor!FL$36) ->  | BU31: =INDEX(Editor!$C$5:$W$40,Editor!FM33+1,Editor!FM$36) ->  | BV31: =INDEX(Editor!$C$5:$W$40,Editor!FN33+1,Editor!FN$36) ->  | BW31: =INDEX(Editor!$C$5:$W$40,Editor!FO33+1,Editor!FO$36) -> 
A32: 29 | I32: =INDEX(Editor!$C$5:$W$40,Editor!DA34+1,Editor!DA$36) ->  | J32: =INDEX(Editor!$C$5:$W$40,Editor!DB34+1,Editor!DB$36) ->  | K32: =INDEX(Editor!$C$5:$W$40,Editor!DC34+1,Editor!DC$36) ->  | L32: =INDEX(Editor!$C$5:$W$40,Editor!DD34+1,Editor!DD$36) ->  | M32: =INDEX(Editor!$C$5:$W$40,Editor!DE34+1,Editor!DE$36) ->  | N32: =INDEX(Editor!$C$5:$W$40,Editor!DF34+1,Editor!DF$36) ->  | O32: =INDEX(Editor!$C$5:$W$40,Editor!DG34+1,Editor!DG$36) ->  | P32: =INDEX(Editor!$C$5:$W$40,Editor!DH34+1,Editor!DH$36) ->  | Q32: =INDEX(Editor!$C$5:$W$40,Editor!DI34+1,Editor!DI$36) ->  | R32: =INDEX(Editor!$C$5:$W$40,Editor!DJ34+1,Editor!DJ$36) ->  | S32: =INDEX(Editor!$C$5:$W$40,Editor!DK34+1,Editor!DK$36) ->  | T32: =INDEX(Editor!$C$5:$W$40,Editor!DL34+1,Editor!DL$36) ->  | U32: =INDEX(Editor!$C$5:$W$40,Editor!DM34+1,Editor!DM$36) ->  | V32: =INDEX(Editor!$C$5:$W$40,Editor!DN34+1,Editor!DN$36) ->  | W32: =INDEX(Editor!$C$5:$W$40,Editor!DO34+1,Editor!DO$36) ->  | X32: =INDEX(Editor!$C$5:$W$40,Editor!DP34+1,Editor!DP$36) ->  | Y32: =INDEX(Editor!$C$5:$W$40,Editor!DQ34+1,Editor!DQ$36) ->  | Z32: =INDEX(Editor!$C$5:$W$40,Editor!DR34+1,Editor!DR$36) ->  | AA32: =INDEX(Editor!$C$5:$W$40,Editor!DS34+1,Editor!DS$36) ->  | AB32: =INDEX(Editor!$C$5:$W$40,Editor!DT34+1,Editor!DT$36) ->  | AC32: =INDEX(Editor!$C$5:$W$40,Editor!DU34+1,Editor!DU$36) ->  | AD32: =INDEX(Editor!$C$5:$W$40,Editor!DV34+1,Editor!DV$36) ->  | AE32: =INDEX(Editor!$C$5:$W$40,Editor!DW34+1,Editor!DW$36) ->  | AF32: =INDEX(Editor!$C$5:$W$40,Editor!DX34+1,Editor!DX$36) ->  | AG32: =INDEX(Editor!$C$5:$W$40,Editor!DY34+1,Editor!DY$36) ->  | AH32: =INDEX(Editor!$C$5:$W$40,Editor!DZ34+1,Editor!DZ$36) ->  | AI32: =INDEX(Editor!$C$5:$W$40,Editor!EA34+1,Editor!EA$36) ->  | AJ32: =INDEX(Editor!$C$5:$W$40,Editor!EB34+1,Editor!EB$36) ->  | AK32: =INDEX(Editor!$C$5:$W$40,Editor!EC34+1,Editor!EC$36) ->  | AL32: =INDEX(Editor!$C$5:$W$40,Editor!ED34+1,Editor!ED$36) ->  | AM32: =INDEX(Editor!$C$5:$W$40,Editor!EE34+1,Editor!EE$36) ->  | AN32: =INDEX(Editor!$C$5:$W$40,Editor!EF34+1,Editor!EF$36) ->  | AO32: =INDEX(Editor!$C$5:$W$40,Editor!EG34+1,Editor!EG$36) ->  | AP32: =INDEX(Editor!$C$5:$W$40,Editor!EH34+1,Editor!EH$36) ->  | AQ32: =INDEX(Editor!$C$5:$W$40,Editor!EI34+1,Editor!EI$36) ->  | AR32: =INDEX(Editor!$C$5:$W$40,Editor!EJ34+1,Editor!EJ$36) ->  | AS32: =INDEX(Editor!$C$5:$W$40,Editor!EK34+1,Editor!EK$36) ->  | AT32: =INDEX(Editor!$C$5:$W$40,Editor!EL34+1,Editor!EL$36) ->  | AU32: =INDEX(Editor!$C$5:$W$40,Editor!EM34+1,Editor!EM$36) ->  | AV32: =INDEX(Editor!$C$5:$W$40,Editor!EN34+1,Editor!EN$36) ->  | AW32: =INDEX(Editor!$C$5:$W$40,Editor!EO34+1,Editor!EO$36) ->  | AX32: =INDEX(Editor!$C$5:$W$40,Editor!EP34+1,Editor!EP$36) ->  | AY32: =INDEX(Editor!$C$5:$W$40,Editor!EQ34+1,Editor!EQ$36) ->  | AZ32: =INDEX(Editor!$C$5:$W$40,Editor!ER34+1,Editor!ER$36) ->  | BA32: =INDEX(Editor!$C$5:$W$40,Editor!ES34+1,Editor!ES$36) ->  | BB32: =INDEX(Editor!$C$5:$W$40,Editor!ET34+1,Editor!ET$36) ->  | BC32: =INDEX(Editor!$C$5:$W$40,Editor!EU34+1,Editor!EU$36) ->  | BD32: =INDEX(Editor!$C$5:$W$40,Editor!EV34+1,Editor!EV$36) ->  | BE32: =INDEX(Editor!$C$5:$W$40,Editor!EW34+1,Editor!EW$36) ->  | BF32: =INDEX(Editor!$C$5:$W$40,Editor!EX34+1,Editor!EX$36) ->  | BG32: =INDEX(Editor!$C$5:$W$40,Editor!EY34+1,Editor!EY$36) ->  | BH32: =INDEX(Editor!$C$5:$W$40,Editor!EZ34+1,Editor!EZ$36) ->  | BI32: =INDEX(Editor!$C$5:$W$40,Editor!FA34+1,Editor!FA$36) ->  | BJ32: =INDEX(Editor!$C$5:$W$40,Editor!FB34+1,Editor!FB$36) ->  | BK32: =INDEX(Editor!$C$5:$W$40,Editor!FC34+1,Editor!FC$36) ->  | BL32: =INDEX(Editor!$C$5:$W$40,Editor!FD34+1,Editor!FD$36) ->  | BM32: =INDEX(Editor!$C$5:$W$40,Editor!FE34+1,Editor!FE$36) ->  | BN32: =INDEX(Editor!$C$5:$W$40,Editor!FF34+1,Editor!FF$36) ->  | BO32: =INDEX(Editor!$C$5:$W$40,Editor!FG34+1,Editor!FG$36) ->  | BP32: =INDEX(Editor!$C$5:$W$40,Editor!FH34+1,Editor!FH$36) ->  | BQ32: =INDEX(Editor!$C$5:$W$40,Editor!FI34+1,Editor!FI$36) ->  | BR32: =INDEX(Editor!$C$5:$W$40,Editor!FJ34+1,Editor!FJ$36) ->  | BS32: =INDEX(Editor!$C$5:$W$40,Editor!FK34+1,Editor!FK$36) ->  | BT32: =INDEX(Editor!$C$5:$W$40,Editor!FL34+1,Editor!FL$36) ->  | BU32: =INDEX(Editor!$C$5:$W$40,Editor!FM34+1,Editor!FM$36) ->  | BV32: =INDEX(Editor!$C$5:$W$40,Editor!FN34+1,Editor!FN$36) ->  | BW32: =INDEX(Editor!$C$5:$W$40,Editor!FO34+1,Editor!FO$36) -> 
A33: 30 | I33: =INDEX(Editor!$C$5:$W$40,Editor!DA35+1,Editor!DA$36) ->  | J33: =INDEX(Editor!$C$5:$W$40,Editor!DB35+1,Editor!DB$36) ->  | K33: =INDEX(Editor!$C$5:$W$40,Editor!DC35+1,Editor!DC$36) ->  | L33: =INDEX(Editor!$C$5:$W$40,Editor!DD35+1,Editor!DD$36) ->  | M33: =INDEX(Editor!$C$5:$W$40,Editor!DE35+1,Editor!DE$36) ->  | N33: =INDEX(Editor!$C$5:$W$40,Editor!DF35+1,Editor!DF$36) ->  | O33: =INDEX(Editor!$C$5:$W$40,Editor!DG35+1,Editor!DG$36) ->  | P33: =INDEX(Editor!$C$5:$W$40,Editor!DH35+1,Editor!DH$36) ->  | Q33: =INDEX(Editor!$C$5:$W$40,Editor!DI35+1,Editor!DI$36) ->  | R33: =INDEX(Editor!$C$5:$W$40,Editor!DJ35+1,Editor!DJ$36) ->  | S33: =INDEX(Editor!$C$5:$W$40,Editor!DK35+1,Editor!DK$36) ->  | T33: =INDEX(Editor!$C$5:$W$40,Editor!DL35+1,Editor!DL$36) ->  | U33: =INDEX(Editor!$C$5:$W$40,Editor!DM35+1,Editor!DM$36) ->  | V33: =INDEX(Editor!$C$5:$W$40,Editor!DN35+1,Editor!DN$36) ->  | W33: =INDEX(Editor!$C$5:$W$40,Editor!DO35+1,Editor!DO$36) ->  | X33: =INDEX(Editor!$C$5:$W$40,Editor!DP35+1,Editor!DP$36) ->  | Y33: =INDEX(Editor!$C$5:$W$40,Editor!DQ35+1,Editor!DQ$36) ->  | Z33: =INDEX(Editor!$C$5:$W$40,Editor!DR35+1,Editor!DR$36) ->  | AA33: =INDEX(Editor!$C$5:$W$40,Editor!DS35+1,Editor!DS$36) ->  | AB33: =INDEX(Editor!$C$5:$W$40,Editor!DT35+1,Editor!DT$36) ->  | AC33: =INDEX(Editor!$C$5:$W$40,Editor!DU35+1,Editor!DU$36) ->  | AD33: =INDEX(Editor!$C$5:$W$40,Editor!DV35+1,Editor!DV$36) ->  | AE33: =INDEX(Editor!$C$5:$W$40,Editor!DW35+1,Editor!DW$36) ->  | AF33: =INDEX(Editor!$C$5:$W$40,Editor!DX35+1,Editor!DX$36) ->  | AG33: =INDEX(Editor!$C$5:$W$40,Editor!DY35+1,Editor!DY$36) ->  | AH33: =INDEX(Editor!$C$5:$W$40,Editor!DZ35+1,Editor!DZ$36) ->  | AI33: =INDEX(Editor!$C$5:$W$40,Editor!EA35+1,Editor!EA$36) ->  | AJ33: =INDEX(Editor!$C$5:$W$40,Editor!EB35+1,Editor!EB$36) ->  | AK33: =INDEX(Editor!$C$5:$W$40,Editor!EC35+1,Editor!EC$36) ->  | AL33: =INDEX(Editor!$C$5:$W$40,Editor!ED35+1,Editor!ED$36) ->  | AM33: =INDEX(Editor!$C$5:$W$40,Editor!EE35+1,Editor!EE$36) ->  | AN33: =INDEX(Editor!$C$5:$W$40,Editor!EF35+1,Editor!EF$36) ->  | AO33: =INDEX(Editor!$C$5:$W$40,Editor!EG35+1,Editor!EG$36) ->  | AP33: =INDEX(Editor!$C$5:$W$40,Editor!EH35+1,Editor!EH$36) ->  | AQ33: =INDEX(Editor!$C$5:$W$40,Editor!EI35+1,Editor!EI$36) ->  | AR33: =INDEX(Editor!$C$5:$W$40,Editor!EJ35+1,Editor!EJ$36) ->  | AS33: =INDEX(Editor!$C$5:$W$40,Editor!EK35+1,Editor!EK$36) ->  | AT33: =INDEX(Editor!$C$5:$W$40,Editor!EL35+1,Editor!EL$36) ->  | AU33: =INDEX(Editor!$C$5:$W$40,Editor!EM35+1,Editor!EM$36) ->  | AV33: =INDEX(Editor!$C$5:$W$40,Editor!EN35+1,Editor!EN$36) ->  | AW33: =INDEX(Editor!$C$5:$W$40,Editor!EO35+1,Editor!EO$36) ->  | AX33: =INDEX(Editor!$C$5:$W$40,Editor!EP35+1,Editor!EP$36) ->  | AY33: =INDEX(Editor!$C$5:$W$40,Editor!EQ35+1,Editor!EQ$36) ->  | AZ33: =INDEX(Editor!$C$5:$W$40,Editor!ER35+1,Editor!ER$36) ->  | BA33: =INDEX(Editor!$C$5:$W$40,Editor!ES35+1,Editor!ES$36) ->  | BB33: =INDEX(Editor!$C$5:$W$40,Editor!ET35+1,Editor!ET$36) ->  | BC33: =INDEX(Editor!$C$5:$W$40,Editor!EU35+1,Editor!EU$36) ->  | BD33: =INDEX(Editor!$C$5:$W$40,Editor!EV35+1,Editor!EV$36) ->  | BE33: =INDEX(Editor!$C$5:$W$40,Editor!EW35+1,Editor!EW$36) ->  | BF33: =INDEX(Editor!$C$5:$W$40,Editor!EX35+1,Editor!EX$36) ->  | BG33: =INDEX(Editor!$C$5:$W$40,Editor!EY35+1,Editor!EY$36) ->  | BH33: =INDEX(Editor!$C$5:$W$40,Editor!EZ35+1,Editor!EZ$36) ->  | BI33: =INDEX(Editor!$C$5:$W$40,Editor!FA35+1,Editor!FA$36) ->  | BJ33: =INDEX(Editor!$C$5:$W$40,Editor!FB35+1,Editor!FB$36) ->  | BK33: =INDEX(Editor!$C$5:$W$40,Editor!FC35+1,Editor!FC$36) ->  | BL33: =INDEX(Editor!$C$5:$W$40,Editor!FD35+1,Editor!FD$36) ->  | BM33: =INDEX(Editor!$C$5:$W$40,Editor!FE35+1,Editor!FE$36) ->  | BN33: =INDEX(Editor!$C$5:$W$40,Editor!FF35+1,Editor!FF$36) ->  | BO33: =INDEX(Editor!$C$5:$W$40,Editor!FG35+1,Editor!FG$36) ->  | BP33: =INDEX(Editor!$C$5:$W$40,Editor!FH35+1,Editor!FH$36) ->  | BQ33: =INDEX(Editor!$C$5:$W$40,Editor!FI35+1,Editor!FI$36) ->  | BR33: =INDEX(Editor!$C$5:$W$40,Editor!FJ35+1,Editor!FJ$36) ->  | BS33: =INDEX(Editor!$C$5:$W$40,Editor!FK35+1,Editor!FK$36) ->  | BT33: =INDEX(Editor!$C$5:$W$40,Editor!FL35+1,Editor!FL$36) ->  | BU33: =INDEX(Editor!$C$5:$W$40,Editor!FM35+1,Editor!FM$36) ->  | BV33: =INDEX(Editor!$C$5:$W$40,Editor!FN35+1,Editor!FN$36) ->  | BW33: =INDEX(Editor!$C$5:$W$40,Editor!FO35+1,Editor!FO$36) -> 
J34: =J41 -> 0 | K34: =K41 -> 0 | L34: 0 | M34: 0 | N34: 0 | O34: 0 | P34: 0 | Q34: 0 | R34: 0 | S34: 0 | T34: 0 | U34: 0 | V34: 0 | W34: 0 | X34: 0 | Y34: 0 | Z34: 0 | AA34: 0 | AB34: 0 | AC34: 0 | AD34: 0 | AE34: 0 | AF34: 0 | AG34: 0 | AH34: 0 | AI34: 0 | AJ34: 0 | AK34: 0 | AL34: 0 | AM34: 0 | AN34: 0 | AO34: 0 | AP34: 0 | AQ34: 0 | AR34: 0 | AS34: 0 | AT34: 0 | AU34: 0 | AV34: 0 | AW34: 0 | AX34: 0 | AY34: 0 | AZ34: 0 | BA34: 0 | BB34: 0 | BC34: 0 | BD34: 0 | BE34: 0 | BF34: 0 | BG34: 0 | BH34: 0 | BI34: 0 | BJ34: 0 | BK34: 0 | BL34: 0 | BM34: 0 | BN34: 0 | BO34: 0 | BP34: 0 | BQ34: 0 | BR34: 0 | BS34: 0 | BT34: 0 | BU34: 0 | BV34: 0
I36: 1 | J36: 2 | K36: 3 | L36: 4 | M36: 5 | N36: 6 | O36: 7 | P36: 8 | Q36: 9 | R36: 10 | S36: 11 | T36: 12 | U36: 13 | V36: 14 | W36: 15 | X36: 16 | Y36: 17 | Z36: 18 | AA36: 19 | AB36: 20 | AC36: 21 | AD36: 22 | AE36: 23 | AF36: 24 | AG36: 25 | AH36: 26 | AI36: 27 | AJ36: 28 | AK36: 29 | AL36: 30 | AM36: 31 | AN36: 32 | AO36: 33 | AP36: 34 | AQ36: 35 | AR36: 36 | AS36: 37 | AT36: 38 | AU36: 39 | AV36: 40 | AW36: 41 | AX36: 42 | AY36: 43 | AZ36: 44 | BA36: 45 | BB36: 46 | BC36: 47 | BD36: 48 | BE36: 49 | BF36: 50 | BG36: 51 | BH36: 52 | BI36: 53 | BJ36: 54 | BK36: 55 | BL36: 56 | BM36: 57 | BN36: 58 | BO36: 59 | BP36: 60 | BQ36: 61 | BR36: 62 | BS36: 63 | BT36: 64 | BU36: 65 | BV36: 66 | BW36: 67
A37: 1 | B37: 2 | C37: 3 | D37: 4 | E37: 5 | F37: 6 | G37: 7 | H37: 8 | I37: 9 | J37: 10 | K37: 11 | L37: 12 | M37: 13 | N37: 14 | O37: 15 | P37: 16 | Q37: 17 | R37: 18 | S37: 19 | T37: 20 | U37: 21 | V37: 22 | W37: 23 | X37: 24 | Y37: 25 | Z37: 26 | AA37: 27 | AB37: 28 | AC37: 29 | AD37: 30 | AE37: 31 | AF37: 32 | AG37: 33 | AH37: 34 | AI37: 35 | AJ37: 36 | AK37: 37 | AL37: 38 | AM37: 39 | AN37: 40 | AO37: 41 | AP37: 42 | AQ37: 43 | AR37: 44 | AS37: 45 | AT37: 46 | AU37: 47 | AV37: 48 | AW37: 49 | AX37: 50 | AY37: 51 | AZ37: 52 | BA37: 53 | BB37: 54 | BC37: 55 | BD37: 56 | BE37: 57 | BF37: 58 | BG37: 59 | BH37: 60 | BI37: 61 | BJ37: 62 | BK37: 63 | BL37: 64 | BM37: 65 | BN37: 66 | BO37: 67 | BP37: 68 | BQ37: 69 | BR37: 70 | BS37: 71 | BT37: 72 | BU37: 73 | BV37: 74 | BW37: 75
I39: 1 | J39: =IF(ISNA(VLOOKUP(J36,Editor!$BM$39:$BN$43,2,FALSE)),0,VLOOKUP(J36,Editor!$BM$39:$BN$43,2,FALSE)) -> 0 | K39: =IF(ISNA(VLOOKUP(K36,Editor!$BM$39:$BN$43,2,FALSE)),0,VLOOKUP(K36,Editor!$BM$39:$BN$43,2,FALSE)) -> 0 | L39: =IF(ISNA(VLOOKUP(L36,Editor!$BM$39:$BN$43,2,FALSE)),0,VLOOKUP(L36,Editor!$BM$39:$BN$43,2,FALSE)) -> 0 | M39: =IF(ISNA(VLOOKUP(M36,Editor!$BM$39:$BN$43,2,FALSE)),0,VLOOKUP(M36,Editor!$BM$39:$BN$43,2,FALSE)) -> 0 | N39: =IF(ISNA(VLOOKUP(N36,Editor!$BM$39:$BN$43,2,FALSE)),0,VLOOKUP(N36,Editor!$BM$39:$BN$43,2,FALSE)) -> 0 | O39: =IF(ISNA(VLOOKUP(O36,Editor!$BM$39:$BN$43,2,FALSE)),0,VLOOKUP(O36,Editor!$BM$39:$BN$43,2,FALSE)) -> 0 | P39: =IF(ISNA(VLOOKUP(P36,Editor!$BM$39:$BN$43,2,FALSE)),0,VLOOKUP(P36,Editor!$BM$39:$BN$43,2,FALSE)) -> 0 | Q39: =IF(ISNA(VLOOKUP(Q36,Editor!$BM$39:$BN$43,2,FALSE)),0,VLOOKUP(Q36,Editor!$BM$39:$BN$43,2,FALSE)) -> 0 | R39: =IF(ISNA(VLOOKUP(R36,Editor!$BM$39:$BN$43,2,FALSE)),0,VLOOKUP(R36,Editor!$BM$39:$BN$43,2,FALSE)) -> 0 | S39: =IF(ISNA(VLOOKUP(S36,Editor!$BM$39:$BN$43,2,FALSE)),0,VLOOKUP(S36,Editor!$BM$39:$BN$43,2,FALSE)) -> 0 | T39: =IF(ISNA(VLOOKUP(T36,Editor!$BM$39:$BN$43,2,FALSE)),0,VLOOKUP(T36,Editor!$BM$39:$BN$43,2,FALSE)) -> 0 | U39: =IF(ISNA(VLOOKUP(U36,Editor!$BM$39:$BN$43,2,FALSE)),0,VLOOKUP(U36,Editor!$BM$39:$BN$43,2,FALSE)) -> 0 | V39: =IF(ISNA(VLOOKUP(V36,Editor!$BM$39:$BN$43,2,FALSE)),0,VLOOKUP(V36,Editor!$BM$39:$BN$43,2,FALSE)) -> 0 | W39: =IF(ISNA(VLOOKUP(W36,Editor!$BM$39:$BN$43,2,FALSE)),0,VLOOKUP(W36,Editor!$BM$39:$BN$43,2,FALSE)) -> 0 | X39: =IF(ISNA(VLOOKUP(X36,Editor!$BM$39:$BN$43,2,FALSE)),0,VLOOKUP(X36,Editor!$BM$39:$BN$43,2,FALSE)) -> 0 | Y39: =IF(ISNA(VLOOKUP(Y36,Editor!$BM$39:$BN$43,2,FALSE)),0,VLOOKUP(Y36,Editor!$BM$39:$BN$43,2,FALSE)) -> 0 | Z39: =IF(ISNA(VLOOKUP(Z36,Editor!$BM$39:$BN$43,2,FALSE)),0,VLOOKUP(Z36,Editor!$BM$39:$BN$43,2,FALSE)) -> 0 | AA39: =IF(ISNA(VLOOKUP(AA36,Editor!$BM$39:$BN$43,2,FALSE)),0,VLOOKUP(AA36,Editor!$BM$39:$BN$43,2,FALSE)) -> 0 | AB39: =IF(ISNA(VLOOKUP(AB36,Editor!$BM$39:$BN$43,2,FALSE)),0,VLOOKUP(AB36,Editor!$BM$39:$BN$43,2,FALSE)) -> 0 | AC39: =IF(ISNA(VLOOKUP(AC36,Editor!$BM$39:$BN$43,2,FALSE)),0,VLOOKUP(AC36,Editor!$BM$39:$BN$43,2,FALSE)) -> 0 | AD39: =IF(ISNA(VLOOKUP(AD36,Editor!$BM$39:$BN$43,2,FALSE)),0,VLOOKUP(AD36,Editor!$BM$39:$BN$43,2,FALSE)) -> 0 | AE39: =IF(ISNA(VLOOKUP(AE36,Editor!$BM$39:$BN$43,2,FALSE)),0,VLOOKUP(AE36,Editor!$BM$39:$BN$43,2,FALSE)) -> 0 | AF39: =IF(ISNA(VLOOKUP(AF36,Editor!$BM$39:$BN$43,2,FALSE)),0,VLOOKUP(AF36,Editor!$BM$39:$BN$43,2,FALSE)) -> 0 | AG39: =IF(ISNA(VLOOKUP(AG36,Editor!$BM$39:$BN$43,2,FALSE)),0,VLOOKUP(AG36,Editor!$BM$39:$BN$43,2,FALSE)) -> 0 | AH39: =IF(ISNA(VLOOKUP(AH36,Editor!$BM$39:$BN$43,2,FALSE)),0,VLOOKUP(AH36,Editor!$BM$39:$BN$43,2,FALSE)) -> 0 | AI39: =IF(ISNA(VLOOKUP(AI36,Editor!$BM$39:$BN$43,2,FALSE)),0,VLOOKUP(AI36,Editor!$BM$39:$BN$43,2,FALSE)) -> 0 | AJ39: =IF(ISNA(VLOOKUP(AJ36,Editor!$BM$39:$BN$43,2,FALSE)),0,VLOOKUP(AJ36,Editor!$BM$39:$BN$43,2,FALSE)) -> 0 | AK39: =IF(ISNA(VLOOKUP(AK36,Editor!$BM$39:$BN$43,2,FALSE)),0,VLOOKUP(AK36,Editor!$BM$39:$BN$43,2,FALSE)) -> 0 | AL39: =IF(ISNA(VLOOKUP(AL36,Editor!$BM$39:$BN$43,2,FALSE)),0,VLOOKUP(AL36,Editor!$BM$39:$BN$43,2,FALSE)) -> 0 | AM39: =IF(ISNA(VLOOKUP(AM36,Editor!$BM$39:$BN$43,2,FALSE)),0,VLOOKUP(AM36,Editor!$BM$39:$BN$43,2,FALSE)) -> 0 | AN39: =IF(ISNA(VLOOKUP(AN36,Editor!$BM$39:$BN$43,2,FALSE)),0,VLOOKUP(AN36,Editor!$BM$39:$BN$43,2,FALSE)) -> 0 | AO39: =IF(ISNA(VLOOKUP(AO36,Editor!$BM$39:$BN$43,2,FALSE)),0,VLOOKUP(AO36,Editor!$BM$39:$BN$43,2,FALSE)) -> 0 | AP39: =IF(ISNA(VLOOKUP(AP36,Editor!$BM$39:$BN$43,2,FALSE)),0,VLOOKUP(AP36,Editor!$BM$39:$BN$43,2,FALSE)) -> 0 | AQ39: =IF(ISNA(VLOOKUP(AQ36,Editor!$BM$39:$BN$43,2,FALSE)),0,VLOOKUP(AQ36,Editor!$BM$39:$BN$43,2,FALSE)) -> 0 | AR39: =IF(ISNA(VLOOKUP(AR36,Editor!$BM$39:$BN$43,2,FALSE)),0,VLOOKUP(AR36,Editor!$BM$39:$BN$43,2,FALSE)) -> 0 | AS39: =IF(ISNA(VLOOKUP(AS36,Editor!$BM$39:$BN$43,2,FALSE)),0,VLOOKUP(AS36,Editor!$BM$39:$BN$43,2,FALSE)) -> 0 | AT39: =IF(ISNA(VLOOKUP(AT36,Editor!$BM$39:$BN$43,2,FALSE)),0,VLOOKUP(AT36,Editor!$BM$39:$BN$43,2,FALSE)) -> 0 | AU39: =IF(ISNA(VLOOKUP(AU36,Editor!$BM$39:$BN$43,2,FALSE)),0,VLOOKUP(AU36,Editor!$BM$39:$BN$43,2,FALSE)) -> 0 | AV39: =IF(ISNA(VLOOKUP(AV36,Editor!$BM$39:$BN$43,2,FALSE)),0,VLOOKUP(AV36,Editor!$BM$39:$BN$43,2,FALSE)) -> 0 | AW39: =IF(ISNA(VLOOKUP(AW36,Editor!$BM$39:$BN$43,2,FALSE)),0,VLOOKUP(AW36,Editor!$BM$39:$BN$43,2,FALSE)) -> 0 | AX39: =IF(ISNA(VLOOKUP(AX36,Editor!$BM$39:$BN$43,2,FALSE)),0,VLOOKUP(AX36,Editor!$BM$39:$BN$43,2,FALSE)) -> 0 | AY39: =IF(ISNA(VLOOKUP(AY36,Editor!$BM$39:$BN$43,2,FALSE)),0,VLOOKUP(AY36,Editor!$BM$39:$BN$43,2,FALSE)) -> 0 | AZ39: =IF(ISNA(VLOOKUP(AZ36,Editor!$BM$39:$BN$43,2,FALSE)),0,VLOOKUP(AZ36,Editor!$BM$39:$BN$43,2,FALSE)) -> 0 | BA39: =IF(ISNA(VLOOKUP(BA36,Editor!$BM$39:$BN$43,2,FALSE)),0,VLOOKUP(BA36,Editor!$BM$39:$BN$43,2,FALSE)) -> 0 | BB39: =IF(ISNA(VLOOKUP(BB36,Editor!$BM$39:$BN$43,2,FALSE)),0,VLOOKUP(BB36,Editor!$BM$39:$BN$43,2,FALSE)) -> 0 | BC39: =IF(ISNA(VLOOKUP(BC36,Editor!$BM$39:$BN$43,2,FALSE)),0,VLOOKUP(BC36,Editor!$BM$39:$BN$43,2,FALSE)) -> 0 | BD39: =IF(ISNA(VLOOKUP(BD36,Editor!$BM$39:$BN$43,2,FALSE)),0,VLOOKUP(BD36,Editor!$BM$39:$BN$43,2,FALSE)) -> 0 | BE39: =IF(ISNA(VLOOKUP(BE36,Editor!$BM$39:$BN$43,2,FALSE)),0,VLOOKUP(BE36,Editor!$BM$39:$BN$43,2,FALSE)) -> 0 | BF39: =IF(ISNA(VLOOKUP(BF36,Editor!$BM$39:$BN$43,2,FALSE)),0,VLOOKUP(BF36,Editor!$BM$39:$BN$43,2,FALSE)) -> 0 | BG39: =IF(ISNA(VLOOKUP(BG36,Editor!$BM$39:$BN$43,2,FALSE)),0,VLOOKUP(BG36,Editor!$BM$39:$BN$43,2,FALSE)) -> 0 | BH39: =IF(ISNA(VLOOKUP(BH36,Editor!$BM$39:$BN$43,2,FALSE)),0,VLOOKUP(BH36,Editor!$BM$39:$BN$43,2,FALSE)) -> 0 | BI39: =IF(ISNA(VLOOKUP(BI36,Editor!$BM$39:$BN$43,2,FALSE)),0,VLOOKUP(BI36,Editor!$BM$39:$BN$43,2,FALSE)) -> 0 | BJ39: =IF(ISNA(VLOOKUP(BJ36,Editor!$BM$39:$BN$43,2,FALSE)),0,VLOOKUP(BJ36,Editor!$BM$39:$BN$43,2,FALSE)) -> 0 | BK39: =IF(ISNA(VLOOKUP(BK36,Editor!$BM$39:$BN$43,2,FALSE)),0,VLOOKUP(BK36,Editor!$BM$39:$BN$43,2,FALSE)) -> 0 | BL39: =IF(ISNA(VLOOKUP(BL36,Editor!$BM$39:$BN$43,2,FALSE)),0,VLOOKUP(BL36,Editor!$BM$39:$BN$43,2,FALSE)) -> 0 | BM39: =IF(ISNA(VLOOKUP(BM36,Editor!$BM$39:$BN$43,2,FALSE)),0,VLOOKUP(BM36,Editor!$BM$39:$BN$43,2,FALSE)) -> 0 | BN39: =IF(ISNA(VLOOKUP(BN36,Editor!$BM$39:$BN$43,2,FALSE)),0,VLOOKUP(BN36,Editor!$BM$39:$BN$43,2,FALSE)) -> 0 | BO39: =IF(ISNA(VLOOKUP(BO36,Editor!$BM$39:$BN$43,2,FALSE)),0,VLOOKUP(BO36,Editor!$BM$39:$BN$43,2,FALSE)) -> 0 | BP39: =IF(ISNA(VLOOKUP(BP36,Editor!$BM$39:$BN$43,2,FALSE)),0,VLOOKUP(BP36,Editor!$BM$39:$BN$43,2,FALSE)) -> 0 | BQ39: =IF(ISNA(VLOOKUP(BQ36,Editor!$BM$39:$BN$43,2,FALSE)),0,VLOOKUP(BQ36,Editor!$BM$39:$BN$43,2,FALSE)) -> 0 | BR39: =IF(ISNA(VLOOKUP(BR36,Editor!$BM$39:$BN$43,2,FALSE)),0,VLOOKUP(BR36,Editor!$BM$39:$BN$43,2,FALSE)) -> 0 | BS39: =IF(ISNA(VLOOKUP(BS36,Editor!$BM$39:$BN$43,2,FALSE)),0,VLOOKUP(BS36,Editor!$BM$39:$BN$43,2,FALSE)) -> 0 | BT39: =IF(ISNA(VLOOKUP(BT36,Editor!$BM$39:$BN$43,2,FALSE)),0,VLOOKUP(BT36,Editor!$BM$39:$BN$43,2,FALSE)) -> 0 | BU39: =IF(ISNA(VLOOKUP(BU36,Editor!$BM$39:$BN$43,2,FALSE)),0,VLOOKUP(BU36,Editor!$BM$39:$BN$43,2,FALSE)) -> 0 | BV39: =IF(ISNA(VLOOKUP(BV36,Editor!$BM$39:$BN$43,2,FALSE)),0,VLOOKUP(BV36,Editor!$BM$39:$BN$43,2,FALSE)) -> 0 | BW39: =IF(ISNA(VLOOKUP(BW36,Editor!$BM$39:$BN$43,2,FALSE)),0,VLOOKUP(BW36,Editor!$BM$39:$BN$43,2,FALSE)) -> 0
I40: 0 | J40: =IF(ISNA(VLOOKUP(J36,Editor!$BO$39:$BP$43,2,FALSE)),0,VLOOKUP(J36,Editor!$BO$39:$BP$43,2,FALSE)) -> 0 | K40: =IF(ISNA(VLOOKUP(K36,Editor!$BO$39:$BP$43,2,FALSE)),0,VLOOKUP(K36,Editor!$BO$39:$BP$43,2,FALSE)) -> 0 | L40: =IF(ISNA(VLOOKUP(L36,Editor!$BO$39:$BP$43,2,FALSE)),0,VLOOKUP(L36,Editor!$BO$39:$BP$43,2,FALSE)) -> 0 | M40: =IF(ISNA(VLOOKUP(M36,Editor!$BO$39:$BP$43,2,FALSE)),0,VLOOKUP(M36,Editor!$BO$39:$BP$43,2,FALSE)) -> 0 | N40: =IF(ISNA(VLOOKUP(N36,Editor!$BO$39:$BP$43,2,FALSE)),0,VLOOKUP(N36,Editor!$BO$39:$BP$43,2,FALSE)) -> 0 | O40: =IF(ISNA(VLOOKUP(O36,Editor!$BO$39:$BP$43,2,FALSE)),0,VLOOKUP(O36,Editor!$BO$39:$BP$43,2,FALSE)) -> 0 | P40: =IF(ISNA(VLOOKUP(P36,Editor!$BO$39:$BP$43,2,FALSE)),0,VLOOKUP(P36,Editor!$BO$39:$BP$43,2,FALSE)) -> 0 | Q40: =IF(ISNA(VLOOKUP(Q36,Editor!$BO$39:$BP$43,2,FALSE)),0,VLOOKUP(Q36,Editor!$BO$39:$BP$43,2,FALSE)) -> 0 | R40: =IF(ISNA(VLOOKUP(R36,Editor!$BO$39:$BP$43,2,FALSE)),0,VLOOKUP(R36,Editor!$BO$39:$BP$43,2,FALSE)) -> 0 | S40: =IF(ISNA(VLOOKUP(S36,Editor!$BO$39:$BP$43,2,FALSE)),0,VLOOKUP(S36,Editor!$BO$39:$BP$43,2,FALSE)) -> 0 | T40: =IF(ISNA(VLOOKUP(T36,Editor!$BO$39:$BP$43,2,FALSE)),0,VLOOKUP(T36,Editor!$BO$39:$BP$43,2,FALSE)) -> 0 | U40: =IF(ISNA(VLOOKUP(U36,Editor!$BO$39:$BP$43,2,FALSE)),0,VLOOKUP(U36,Editor!$BO$39:$BP$43,2,FALSE)) -> 0 | V40: =IF(ISNA(VLOOKUP(V36,Editor!$BO$39:$BP$43,2,FALSE)),0,VLOOKUP(V36,Editor!$BO$39:$BP$43,2,FALSE)) -> 0 | W40: =IF(ISNA(VLOOKUP(W36,Editor!$BO$39:$BP$43,2,FALSE)),0,VLOOKUP(W36,Editor!$BO$39:$BP$43,2,FALSE)) -> 0 | X40: =IF(ISNA(VLOOKUP(X36,Editor!$BO$39:$BP$43,2,FALSE)),0,VLOOKUP(X36,Editor!$BO$39:$BP$43,2,FALSE)) -> 0 | Y40: =IF(ISNA(VLOOKUP(Y36,Editor!$BO$39:$BP$43,2,FALSE)),0,VLOOKUP(Y36,Editor!$BO$39:$BP$43,2,FALSE)) -> 0 | Z40: =IF(ISNA(VLOOKUP(Z36,Editor!$BO$39:$BP$43,2,FALSE)),0,VLOOKUP(Z36,Editor!$BO$39:$BP$43,2,FALSE)) -> 0 | AA40: =IF(ISNA(VLOOKUP(AA36,Editor!$BO$39:$BP$43,2,FALSE)),0,VLOOKUP(AA36,Editor!$BO$39:$BP$43,2,FALSE)) -> 0 | AB40: =IF(ISNA(VLOOKUP(AB36,Editor!$BO$39:$BP$43,2,FALSE)),0,VLOOKUP(AB36,Editor!$BO$39:$BP$43,2,FALSE)) -> 0 | AC40: =IF(ISNA(VLOOKUP(AC36,Editor!$BO$39:$BP$43,2,FALSE)),0,VLOOKUP(AC36,Editor!$BO$39:$BP$43,2,FALSE)) -> 0 | AD40: =IF(ISNA(VLOOKUP(AD36,Editor!$BO$39:$BP$43,2,FALSE)),0,VLOOKUP(AD36,Editor!$BO$39:$BP$43,2,FALSE)) -> 0 | AE40: =IF(ISNA(VLOOKUP(AE36,Editor!$BO$39:$BP$43,2,FALSE)),0,VLOOKUP(AE36,Editor!$BO$39:$BP$43,2,FALSE)) -> 0 | AF40: =IF(ISNA(VLOOKUP(AF36,Editor!$BO$39:$BP$43,2,FALSE)),0,VLOOKUP(AF36,Editor!$BO$39:$BP$43,2,FALSE)) -> 0 | AG40: =IF(ISNA(VLOOKUP(AG36,Editor!$BO$39:$BP$43,2,FALSE)),0,VLOOKUP(AG36,Editor!$BO$39:$BP$43,2,FALSE)) -> 0 | AH40: =IF(ISNA(VLOOKUP(AH36,Editor!$BO$39:$BP$43,2,FALSE)),0,VLOOKUP(AH36,Editor!$BO$39:$BP$43,2,FALSE)) -> 0 | AI40: =IF(ISNA(VLOOKUP(AI36,Editor!$BO$39:$BP$43,2,FALSE)),0,VLOOKUP(AI36,Editor!$BO$39:$BP$43,2,FALSE)) -> 0 | AJ40: =IF(ISNA(VLOOKUP(AJ36,Editor!$BO$39:$BP$43,2,FALSE)),0,VLOOKUP(AJ36,Editor!$BO$39:$BP$43,2,FALSE)) -> 0 | AK40: =IF(ISNA(VLOOKUP(AK36,Editor!$BO$39:$BP$43,2,FALSE)),0,VLOOKUP(AK36,Editor!$BO$39:$BP$43,2,FALSE)) -> 0 | AL40: =IF(ISNA(VLOOKUP(AL36,Editor!$BO$39:$BP$43,2,FALSE)),0,VLOOKUP(AL36,Editor!$BO$39:$BP$43,2,FALSE)) -> 0 | AM40: =IF(ISNA(VLOOKUP(AM36,Editor!$BO$39:$BP$43,2,FALSE)),0,VLOOKUP(AM36,Editor!$BO$39:$BP$43,2,FALSE)) -> 0 | AN40: =IF(ISNA(VLOOKUP(AN36,Editor!$BO$39:$BP$43,2,FALSE)),0,VLOOKUP(AN36,Editor!$BO$39:$BP$43,2,FALSE)) -> 0 | AO40: =IF(ISNA(VLOOKUP(AO36,Editor!$BO$39:$BP$43,2,FALSE)),0,VLOOKUP(AO36,Editor!$BO$39:$BP$43,2,FALSE)) -> 0 | AP40: =IF(ISNA(VLOOKUP(AP36,Editor!$BO$39:$BP$43,2,FALSE)),0,VLOOKUP(AP36,Editor!$BO$39:$BP$43,2,FALSE)) -> 0 | AQ40: =IF(ISNA(VLOOKUP(AQ36,Editor!$BO$39:$BP$43,2,FALSE)),0,VLOOKUP(AQ36,Editor!$BO$39:$BP$43,2,FALSE)) -> 0 | AR40: =IF(ISNA(VLOOKUP(AR36,Editor!$BO$39:$BP$43,2,FALSE)),0,VLOOKUP(AR36,Editor!$BO$39:$BP$43,2,FALSE)) -> 0 | AS40: =IF(ISNA(VLOOKUP(AS36,Editor!$BO$39:$BP$43,2,FALSE)),0,VLOOKUP(AS36,Editor!$BO$39:$BP$43,2,FALSE)) -> 0 | AT40: =IF(ISNA(VLOOKUP(AT36,Editor!$BO$39:$BP$43,2,FALSE)),0,VLOOKUP(AT36,Editor!$BO$39:$BP$43,2,FALSE)) -> 0 | AU40: =IF(ISNA(VLOOKUP(AU36,Editor!$BO$39:$BP$43,2,FALSE)),0,VLOOKUP(AU36,Editor!$BO$39:$BP$43,2,FALSE)) -> 0 | AV40: =IF(ISNA(VLOOKUP(AV36,Editor!$BO$39:$BP$43,2,FALSE)),0,VLOOKUP(AV36,Editor!$BO$39:$BP$43,2,FALSE)) -> 0 | AW40: =IF(ISNA(VLOOKUP(AW36,Editor!$BO$39:$BP$43,2,FALSE)),0,VLOOKUP(AW36,Editor!$BO$39:$BP$43,2,FALSE)) -> 0 | AX40: =IF(ISNA(VLOOKUP(AX36,Editor!$BO$39:$BP$43,2,FALSE)),0,VLOOKUP(AX36,Editor!$BO$39:$BP$43,2,FALSE)) -> 0 | AY40: =IF(ISNA(VLOOKUP(AY36,Editor!$BO$39:$BP$43,2,FALSE)),0,VLOOKUP(AY36,Editor!$BO$39:$BP$43,2,FALSE)) -> 0 | AZ40: =IF(ISNA(VLOOKUP(AZ36,Editor!$BO$39:$BP$43,2,FALSE)),0,VLOOKUP(AZ36,Editor!$BO$39:$BP$43,2,FALSE)) -> 0 | BA40: =IF(ISNA(VLOOKUP(BA36,Editor!$BO$39:$BP$43,2,FALSE)),0,VLOOKUP(BA36,Editor!$BO$39:$BP$43,2,FALSE)) -> 0 | BB40: =IF(ISNA(VLOOKUP(BB36,Editor!$BO$39:$BP$43,2,FALSE)),0,VLOOKUP(BB36,Editor!$BO$39:$BP$43,2,FALSE)) -> 0 | BC40: =IF(ISNA(VLOOKUP(BC36,Editor!$BO$39:$BP$43,2,FALSE)),0,VLOOKUP(BC36,Editor!$BO$39:$BP$43,2,FALSE)) -> 0 | BD40: =IF(ISNA(VLOOKUP(BD36,Editor!$BO$39:$BP$43,2,FALSE)),0,VLOOKUP(BD36,Editor!$BO$39:$BP$43,2,FALSE)) -> 0 | BE40: =IF(ISNA(VLOOKUP(BE36,Editor!$BO$39:$BP$43,2,FALSE)),0,VLOOKUP(BE36,Editor!$BO$39:$BP$43,2,FALSE)) -> 0 | BF40: =IF(ISNA(VLOOKUP(BF36,Editor!$BO$39:$BP$43,2,FALSE)),0,VLOOKUP(BF36,Editor!$BO$39:$BP$43,2,FALSE)) -> 0 | BG40: =IF(ISNA(VLOOKUP(BG36,Editor!$BO$39:$BP$43,2,FALSE)),0,VLOOKUP(BG36,Editor!$BO$39:$BP$43,2,FALSE)) -> 0 | BH40: =IF(ISNA(VLOOKUP(BH36,Editor!$BO$39:$BP$43,2,FALSE)),0,VLOOKUP(BH36,Editor!$BO$39:$BP$43,2,FALSE)) -> 0 | BI40: =IF(ISNA(VLOOKUP(BI36,Editor!$BO$39:$BP$43,2,FALSE)),0,VLOOKUP(BI36,Editor!$BO$39:$BP$43,2,FALSE)) -> 0 | BJ40: =IF(ISNA(VLOOKUP(BJ36,Editor!$BO$39:$BP$43,2,FALSE)),0,VLOOKUP(BJ36,Editor!$BO$39:$BP$43,2,FALSE)) -> 0 | BK40: =IF(ISNA(VLOOKUP(BK36,Editor!$BO$39:$BP$43,2,FALSE)),0,VLOOKUP(BK36,Editor!$BO$39:$BP$43,2,FALSE)) -> 0 | BL40: =IF(ISNA(VLOOKUP(BL36,Editor!$BO$39:$BP$43,2,FALSE)),0,VLOOKUP(BL36,Editor!$BO$39:$BP$43,2,FALSE)) -> 0 | BM40: =IF(ISNA(VLOOKUP(BM36,Editor!$BO$39:$BP$43,2,FALSE)),0,VLOOKUP(BM36,Editor!$BO$39:$BP$43,2,FALSE)) -> 0 | BN40: =IF(ISNA(VLOOKUP(BN36,Editor!$BO$39:$BP$43,2,FALSE)),0,VLOOKUP(BN36,Editor!$BO$39:$BP$43,2,FALSE)) -> 0 | BO40: =IF(ISNA(VLOOKUP(BO36,Editor!$BO$39:$BP$43,2,FALSE)),0,VLOOKUP(BO36,Editor!$BO$39:$BP$43,2,FALSE)) -> 0 | BP40: =IF(ISNA(VLOOKUP(BP36,Editor!$BO$39:$BP$43,2,FALSE)),0,VLOOKUP(BP36,Editor!$BO$39:$BP$43,2,FALSE)) -> 0 | BQ40: =IF(ISNA(VLOOKUP(BQ36,Editor!$BO$39:$BP$43,2,FALSE)),0,VLOOKUP(BQ36,Editor!$BO$39:$BP$43,2,FALSE)) -> 0 | BR40: =IF(ISNA(VLOOKUP(BR36,Editor!$BO$39:$BP$43,2,FALSE)),0,VLOOKUP(BR36,Editor!$BO$39:$BP$43,2,FALSE)) -> 0 | BS40: =IF(ISNA(VLOOKUP(BS36,Editor!$BO$39:$BP$43,2,FALSE)),0,VLOOKUP(BS36,Editor!$BO$39:$BP$43,2,FALSE)) -> 0 | BT40: =IF(ISNA(VLOOKUP(BT36,Editor!$BO$39:$BP$43,2,FALSE)),0,VLOOKUP(BT36,Editor!$BO$39:$BP$43,2,FALSE)) -> 0 | BU40: =IF(ISNA(VLOOKUP(BU36,Editor!$BO$39:$BP$43,2,FALSE)),0,VLOOKUP(BU36,Editor!$BO$39:$BP$43,2,FALSE)) -> 0 | BV40: =IF(ISNA(VLOOKUP(BV36,Editor!$BO$39:$BP$43,2,FALSE)),0,VLOOKUP(BV36,Editor!$BO$39:$BP$43,2,FALSE)) -> 0 | BW40: =IF(ISNA(VLOOKUP(BW36,Editor!$BO$39:$BP$43,2,FALSE)),0,VLOOKUP(BW36,Editor!$BO$39:$BP$43,2,FALSE)) -> 0
I41: 1 | J41: =J40+J39 -> 0 | K41: =K40+K39 -> 0 | L41: 0 | M41: 0 | N41: 0 | O41: 0 | P41: 0 | Q41: 0 | R41: 0 | S41: 0 | T41: 0 | U41: 0 | V41: 0 | W41: 0 | X41: 0 | Y41: 0 | Z41: 0 | AA41: 0 | AB41: 0 | AC41: 0 | AD41: 0 | AE41: 0 | AF41: 0 | AG41: 0 | AH41: 0 | AI41: 0 | AJ41: 0 | AK41: 0 | AL41: 0 | AM41: 0 | AN41: 0 | AO41: 0 | AP41: 0 | AQ41: 0 | AR41: 0 | AS41: 0 | AT41: 0 | AU41: 0 | AV41: 0 | AW41: 0 | AX41: 0 | AY41: 0 | AZ41: 0 | BA41: 0 | BB41: 0 | BC41: 0 | BD41: 0 | BE41: 0 | BF41: 0 | BG41: 0 | BH41: 0 | BI41: 0 | BJ41: 0 | BK41: 0 | BL41: 0 | BM41: 0 | BN41: 0 | BO41: 0 | BP41: 0 | BQ41: 0 | BR41: 0 | BS41: 0 | BT41: 0 | BU41: 0 | BV41: 0 | BW41: =BW40+BW39 -> 0
I42: 1 | J42: =IF(J41=1,1,I42+1) -> 2 | K42: =IF(K41=1,1,J42+1) -> 3 | L42: 4 | M42: 5 | N42: 6 | O42: 7 | P42: 8 | Q42: 9 | R42: 10 | S42: 11 | T42: 12 | U42: 13 | V42: 14 | W42: 15 | X42: 16 | Y42: 17 | Z42: 18 | AA42: 19 | AB42: 20 | AC42: 21 | AD42: 22 | AE42: 23 | AF42: 24 | AG42: 25 | AH42: 26 | AI42: 27 | AJ42: 28 | AK42: 29 | AL42: 30 | AM42: 31 | AN42: 32 | AO42: 33 | AP42: 34 | AQ42: 35 | AR42: 36 | AS42: 37 | AT42: 38 | AU42: 39 | AV42: 40 | AW42: 41 | AX42: 42 | AY42: 43 | AZ42: 44 | BA42: 45 | BB42: 46 | BC42: 47 | BD42: 48 | BE42: 49 | BF42: 50 | BG42: 51 | BH42: 52 | BI42: 53 | BJ42: 54 | BK42: 55 | BL42: 56 | BM42: 57 | BN42: 58 | BO42: 59 | BP42: 60 | BQ42: 61 | BR42: 62 | BS42: 63 | BT42: 64 | BU42: 65 | BV42: 66 | BW42: =IF(BW41=1,1,BV42+1) -> 67

Sheet 最初にお読みください
A1: マークシート作成用エクセルマクロについて 2024.12.25
A2: PCソリューション・ヨシダ | J2: 【重要】セキュリティ レベルを変更する （マクロを有効にする）
A3: （学校情報化支援e-ict.info) | J3: ※本プログラム（マクロ）は「マクロを有効に」してお使いください。
A4: ------------------------------------------------------------------- | J4: マクロのセキュリティ レベルを変更するには、次の手順を実行します。
A5: 0.バージョンアップ情報 | J5: 【Excel 2003以前の場合】
A6: 2020.10.03 | J6: 1. [ツール] メニューの [オプション] をクリックします。
A7: ・解答番号欄の幅を大きくしました。 | J7: 2. [マクロ セキュリティ] の [マクロ セキュリティ] をクリックします。
A8: 2010.11.20 | J8: 3. [セキュリティ レベル] タブをクリックし、適用するセキュリティ レベルを中または低にします。
A9: ・高速化しました | J9: 【Office 2007】
A10: 2010.10.20 | J10: https://support.microsoft.com/ja-jp/office/office-%E3%83%89%E3%82%AD%E3%83%A5%E3%83%A1%E3%83%B3%E3%83%88%E3%81%AE%E3%83%9E%E3%82%AF%E3%83%AD%E3%82%92%E6%9C%89%E5%8A%B9%E3%81%BE%E3%81%9F%E3%81%AF%E7%84%A1%E5%8A%B9%E3%81%AB%E3%81%99%E3%82%8B-12b036fd-d140-4e74-b45e-16fed1a7e5c6
A11: ・一部不具合を修正しました
A12: 2010.5.20
A13: ・一部不具合を修正しました
A14: 2009.9.14 | J14: 【Office 365, Office Online, Office 2019, Office 2016, Office 2013, Office 2010】
A15: ・マークシート表記文字列（0 1 2 3 ･･･ など)のカスタマイズを可能としました。 | J15: https://support.microsoft.com/ja-jp/office/office-%E3%83%89%E3%82%AD%E3%83%A5%E3%83%A1%E3%83%B3%E3%83%88%E3%81%AE%E3%83%9E%E3%82%AF%E3%83%AD%E3%82%92%E6%9C%89%E5%8A%B9%E3%81%BE%E3%81%9F%E3%81%AF%E7%84%A1%E5%8A%B9%E3%81%AB%E3%81%99%E3%82%8B-12b036fd-d140-4e74-b45e-16fed1a7e5c6
A16: ※シート「Editor」の下部（38行以降)をご覧ください。
A17: 2009.9.10
A18: ・マークシート採点／集計プログラム Markun V4.1 に対応しました。
A19: ・マークシートのID部(学年組番号等記述欄)の桁数を４桁～１５桁の
A20: 値にすることができます。
A21: ・マークシートの罫線色を変更することができます。
A22: ※罫線色と文字色を同時に指定色にします。マーク（だ円）の色は変更されません。
A23: ・マーク(だ円など)の色,形状,線の種類などを変更することができます。
A24: （注意）罫線やマークの色を濃くしたり線を太くするとマークシートの読
A25: み取り時の誤読につながるので、注意してください。
A26: ・マークシート作成マクロバージョン３としました。
A28: 1.本プログラム（Microsoft Excel マクロ)について
A30: ◇このフォルダは以下のファイルが含まれています。
A32: marksheet_Editor_for_markun.xls
A33: →マークシートを作成するツールです。exlcel2000以降で使用できます。
A34: marksheet_Editor_for_markun_V4.1(exlcel2007).xlsm
A35: →マークシートを作成するツールです。Exlcel2007以降で使用できます。
A36: (それ以前のエクセルでは正常に動作しません。)
A37: marksheet_sample_for_center.xls
A38: →マークシートのサンプルです。exlcel2000以降で使用できます。
A39: アンケートサンプル.xls
A40: →マークシートのサンプルです。exlcel2000以降で使用できます。
A41: 最初にお読みください.txt
A42: →このファイルです。
A44: ◇このプログラム(エクセルマクロ)で作成したマークシートは
A45: 「マークシート答案採点プログラム Markun V4.1～V4.7」
A46: で読み取り採点することができます。
A48: 「マークシート答案採点プログラム Markun V4.7(試用版)」は下記サイトからダウンロード
A49: することができます。
B50: https://pcsol-yoshida.sakura.ne.jp/
A51: ◇マークシートのID(学年組番号等記入欄)を5桁以外に設定したものはV4.03 以前の
A52: プログラムでは利用できません。
A53: ◇MicrosoftExcelで「VBAマクロを有効にする」にチェックが無い場合、
A54: 本プログラムは動作しません。MicrosoftExcelのマニュアルなどを参考にして
A55: VBAマクロを有効にしてください。
A57: ◇マクロの操作方法などは、当該エクセルブックに記入してあります。
A59: 2.使用条件など
A61: ◇普通紙マークシート採点ソフトマーくん（以下本ソフトウェア）の著作権は、
A62: 販売者であるPCソリューション・ヨシダ（以下著作権者）が著作権を所有しています。
A64: 本ソフトウェアを、著作権者の許可なく逆コンパイル、逆アセンブリ、また
A65: はリバースエンジニアリングしないでください。
A67: ◇本ソフトウェアに対し、本ソフトの利用者および第三者からの請求・損害・
A68: トラブル等には一切関与いたしません。
A70: ◇本ソフトに関するサポートは、基本的にはメール(toiawase@e-ict.info)（ユーザー質問等）
A71: とその返信（作者回答）により行ないます。
A72: 尚、本ソフトウェア以外に関するサポートは、できかねますのでご了承ください。

Sheet Marksheet
A1: 作成したマークシート(このファイル)は必ず別名で保存してください。 | AM1: このワークシートは「保護」されています。枠の詳細を変更したい場合、保護を解除してください(パスワードは不要です）
BY2: ※使用上の注意事項
BY3: ・行や列を追加したり削除したりしないでください。 ・セル幅・セル高、だ円の位置や形状などを規定外に変更しないでください。 ・印刷範囲（A2:BV35)を変更しないでください。 ・文字の色やだ円の色を濃くしたり太字にすると読み取りミスが起こりやすくなります。 ・外枠線(黒)および最下行は変更しないでください。 ・外枠線の周囲には何も記入しないでください。 ・実際の使用前に読み取りﾃｽﾄを行ってください。
C4: =TRIM(IF(ISERR(Sheet1!C4),"",Sheet1!C4)) ->  | D4: =TRIM(IF(ISERR(Sheet1!D4),"",Sheet1!D4)) ->  | E4: =TRIM(IF(ISERR(Sheet1!E4),"",Sheet1!E4)) ->  | F4: =TRIM(IF(ISERR(Sheet1!F4),"",Sheet1!F4)) ->  | G4: =TRIM(IF(ISERR(Sheet1!G4),"",Sheet1!G4)) ->  | H4: =TRIM(IF(ISERR(Sheet1!H4),"",Sheet1!H4)) ->  | I4: =TRIM(IF(ISERR(Sheet1!I4),"",Sheet1!I4)) ->  | J4: =TRIM(IF(ISERR(Sheet1!J4),"",Sheet1!J4)) ->  | K4: =TRIM(IF(ISERR(Sheet1!K4),"",Sheet1!K4)) ->  | L4: =TRIM(IF(ISERR(Sheet1!L4),"",Sheet1!L4)) ->  | M4: =TRIM(IF(ISERR(Sheet1!M4),"",Sheet1!M4)) ->  | N4: =TRIM(IF(ISERR(Sheet1!N4),"",Sheet1!N4)) ->  | O4: =TRIM(IF(ISERR(Sheet1!O4),"",Sheet1!O4)) ->  | P4: =TRIM(IF(ISERR(Sheet1!P4),"",Sheet1!P4)) ->  | Q4: =TRIM(IF(ISERR(Sheet1!Q4),"",Sheet1!Q4)) ->  | R4: =TRIM(IF(ISERR(Sheet1!R4),"",Sheet1!R4)) ->  | S4: =TRIM(IF(ISERR(Sheet1!S4),"",Sheet1!S4)) ->  | T4: =TRIM(IF(ISERR(Sheet1!T4),"",Sheet1!T4)) ->  | U4: =TRIM(IF(ISERR(Sheet1!U4),"",Sheet1!U4)) ->  | V4: =TRIM(IF(ISERR(Sheet1!V4),"",Sheet1!V4)) ->  | W4: =TRIM(IF(ISERR(Sheet1!W4),"",Sheet1!W4)) ->  | X4: =TRIM(IF(ISERR(Sheet1!X4),"",Sheet1!X4)) ->  | Y4: =TRIM(IF(ISERR(Sheet1!Y4),"",Sheet1!Y4)) ->  | Z4: =TRIM(IF(ISERR(Sheet1!Z4),"",Sheet1!Z4)) ->  | AA4: =TRIM(IF(ISERR(Sheet1!AA4),"",Sheet1!AA4)) ->  | AB4: =TRIM(IF(ISERR(Sheet1!AB4),"",Sheet1!AB4)) ->  | AC4: =TRIM(IF(ISERR(Sheet1!AC4),"",Sheet1!AC4)) ->  | AD4: =TRIM(IF(ISERR(Sheet1!AD4),"",Sheet1!AD4)) ->  | AE4: =TRIM(IF(ISERR(Sheet1!AE4),"",Sheet1!AE4)) ->  | AF4: =TRIM(IF(ISERR(Sheet1!AF4),"",Sheet1!AF4)) ->  | AG4: =TRIM(IF(ISERR(Sheet1!AG4),"",Sheet1!AG4)) ->  | AH4: =TRIM(IF(ISERR(Sheet1!AH4),"",Sheet1!AH4)) ->  | AI4: =TRIM(IF(ISERR(Sheet1!AI4),"",Sheet1!AI4)) ->  | AJ4: =TRIM(IF(ISERR(Sheet1!AJ4),"",Sheet1!AJ4)) ->  | AK4: =TRIM(IF(ISERR(Sheet1!AK4),"",Sheet1!AK4)) ->  | AL4: =TRIM(IF(ISERR(Sheet1!AL4),"",Sheet1!AL4)) ->  | AM4: =TRIM(IF(ISERR(Sheet1!AM4),"",Sheet1!AM4)) ->  | AN4: =TRIM(IF(ISERR(Sheet1!AN4),"",Sheet1!AN4)) ->  | AO4: =TRIM(IF(ISERR(Sheet1!AO4),"",Sheet1!AO4)) ->  | AP4: =TRIM(IF(ISERR(Sheet1!AP4),"",Sheet1!AP4)) ->  | AQ4: =TRIM(IF(ISERR(Sheet1!AQ4),"",Sheet1!AQ4)) ->  | AR4: =TRIM(IF(ISERR(Sheet1!AR4),"",Sheet1!AR4)) ->  | AS4: =TRIM(IF(ISERR(Sheet1!AS4),"",Sheet1!AS4)) ->  | AT4: =TRIM(IF(ISERR(Sheet1!AT4),"",Sheet1!AT4)) ->  | AU4: =TRIM(IF(ISERR(Sheet1!AU4),"",Sheet1!AU4)) ->  | AV4: =TRIM(IF(ISERR(Sheet1!AV4),"",Sheet1!AV4)) ->  | AW4: =TRIM(IF(ISERR(Sheet1!AW4),"",Sheet1!AW4)) ->  | AX4: =TRIM(IF(ISERR(Sheet1!AX4),"",Sheet1!AX4)) ->  | AY4: =TRIM(IF(ISERR(Sheet1!AY4),"",Sheet1!AY4)) ->  | AZ4: =TRIM(IF(ISERR(Sheet1!AZ4),"",Sheet1!AZ4)) ->  | BA4: =TRIM(IF(ISERR(Sheet1!BA4),"",Sheet1!BA4)) ->  | BB4: =TRIM(IF(ISERR(Sheet1!BB4),"",Sheet1!BB4)) ->  | BC4: =TRIM(IF(ISERR(Sheet1!BC4),"",Sheet1!BC4)) ->  | BD4: =TRIM(IF(ISERR(Sheet1!BD4),"",Sheet1!BD4)) ->  | BE4: =TRIM(IF(ISERR(Sheet1!BE4),"",Sheet1!BE4)) ->  | BF4: =TRIM(IF(ISERR(Sheet1!BF4),"",Sheet1!BF4)) ->  | BG4: =TRIM(IF(ISERR(Sheet1!BG4),"",Sheet1!BG4)) -> 
G5: =TRIM(IF(ISERR(Sheet1!G5),"",Sheet1!G5)) ->  | H5: =TRIM(IF(ISERR(Sheet1!H5),"",Sheet1!H5)) ->  | I5: =TRIM(IF(ISERR(Sheet1!I5),"",Sheet1!I5)) ->  | J5: =TRIM(IF(ISERR(Sheet1!J5),"",Sheet1!J5)) ->  | K5: =TRIM(IF(ISERR(Sheet1!K5),"",Sheet1!K5)) ->  | L5: =TRIM(IF(ISERR(Sheet1!L5),"",Sheet1!L5)) ->  | M5: =TRIM(IF(ISERR(Sheet1!M5),"",Sheet1!M5)) ->  | N5: =TRIM(IF(ISERR(Sheet1!N5),"",Sheet1!N5)) ->  | O5: =TRIM(IF(ISERR(Sheet1!O5),"",Sheet1!O5)) ->  | P5: =TRIM(IF(ISERR(Sheet1!P5),"",Sheet1!P5)) ->  | Q5: =TRIM(IF(ISERR(Sheet1!Q5),"",Sheet1!Q5)) ->  | R5: =TRIM(IF(ISERR(Sheet1!R5),"",Sheet1!R5)) ->  | S5: =TRIM(IF(ISERR(Sheet1!S5),"",Sheet1!S5)) ->  | T5: =TRIM(IF(ISERR(Sheet1!T5),"",Sheet1!T5)) ->  | U5: =TRIM(IF(ISERR(Sheet1!U5),"",Sheet1!U5)) ->  | V5: =TRIM(IF(ISERR(Sheet1!V5),"",Sheet1!V5)) ->  | W5: =TRIM(IF(ISERR(Sheet1!W5),"",Sheet1!W5)) ->  | X5: =TRIM(IF(ISERR(Sheet1!X5),"",Sheet1!X5)) ->  | Y5: =TRIM(IF(ISERR(Sheet1!Y5),"",Sheet1!Y5)) ->  | Z5: =TRIM(IF(ISERR(Sheet1!Z5),"",Sheet1!Z5)) ->  | AA5: =TRIM(IF(ISERR(Sheet1!AA5),"",Sheet1!AA5)) ->  | AB5: =TRIM(IF(ISERR(Sheet1!AB5),"",Sheet1!AB5)) ->  | AC5: =TRIM(IF(ISERR(Sheet1!AC5),"",Sheet1!AC5)) ->  | AD5: =TRIM(IF(ISERR(Sheet1!AD5),"",Sheet1!AD5)) ->  | AE5: =TRIM(IF(ISERR(Sheet1!AE5),"",Sheet1!AE5)) ->  | AF5: =TRIM(IF(ISERR(Sheet1!AF5),"",Sheet1!AF5)) ->  | AG5: =TRIM(IF(ISERR(Sheet1!AG5),"",Sheet1!AG5)) ->  | AH5: =TRIM(IF(ISERR(Sheet1!AH5),"",Sheet1!AH5)) ->  | AI5: =TRIM(IF(ISERR(Sheet1!AI5),"",Sheet1!AI5)) ->  | AJ5: =TRIM(IF(ISERR(Sheet1!AJ5),"",Sheet1!AJ5)) ->  | AK5: =TRIM(IF(ISERR(Sheet1!AK5),"",Sheet1!AK5)) ->  | AL5: =TRIM(IF(ISERR(Sheet1!AL5),"",Sheet1!AL5)) ->  | AM5: =TRIM(IF(ISERR(Sheet1!AM5),"",Sheet1!AM5)) ->  | AN5: =TRIM(IF(ISERR(Sheet1!AN5),"",Sheet1!AN5)) ->  | AO5: =TRIM(IF(ISERR(Sheet1!AO5),"",Sheet1!AO5)) ->  | AP5: =TRIM(IF(ISERR(Sheet1!AP5),"",Sheet1!AP5)) ->  | AQ5: =TRIM(IF(ISERR(Sheet1!AQ5),"",Sheet1!AQ5)) ->  | AR5: =TRIM(IF(ISERR(Sheet1!AR5),"",Sheet1!AR5)) ->  | AS5: =TRIM(IF(ISERR(Sheet1!AS5),"",Sheet1!AS5)) ->  | AT5: =TRIM(IF(ISERR(Sheet1!AT5),"",Sheet1!AT5)) ->  | AU5: =TRIM(IF(ISERR(Sheet1!AU5),"",Sheet1!AU5)) ->  | AV5: =TRIM(IF(ISERR(Sheet1!AV5),"",Sheet1!AV5)) ->  | AW5: =TRIM(IF(ISERR(Sheet1!AW5),"",Sheet1!AW5)) ->  | AX5: =TRIM(IF(ISERR(Sheet1!AX5),"",Sheet1!AX5)) ->  | AY5: =TRIM(IF(ISERR(Sheet1!AY5),"",Sheet1!AY5)) ->  | AZ5: =TRIM(IF(ISERR(Sheet1!AZ5),"",Sheet1!AZ5)) ->  | BA5: =TRIM(IF(ISERR(Sheet1!BA5),"",Sheet1!BA5)) ->  | BB5: =TRIM(IF(ISERR(Sheet1!BB5),"",Sheet1!BB5)) ->  | BC5: =TRIM(IF(ISERR(Sheet1!BC5),"",Sheet1!BC5)) ->  | BD5: =TRIM(IF(ISERR(Sheet1!BD5),"",Sheet1!BD5)) ->  | BE5: =TRIM(IF(ISERR(Sheet1!BE5),"",Sheet1!BE5)) ->  | BF5: =TRIM(IF(ISERR(Sheet1!BF5),"",Sheet1!BF5)) ->  | BG5: =TRIM(IF(ISERR(Sheet1!BG5),"",Sheet1!BG5)) -> 
G6: =TRIM(IF(ISERR(Sheet1!G6),"",Sheet1!G6)) ->  | H6: =TRIM(IF(ISERR(Sheet1!H6),"",Sheet1!H6)) ->  | I6: =TRIM(IF(ISERR(Sheet1!I6),"",Sheet1!I6)) ->  | J6: =TRIM(IF(ISERR(Sheet1!J6),"",Sheet1!J6)) ->  | K6: =TRIM(IF(ISERR(Sheet1!K6),"",Sheet1!K6)) ->  | L6: =TRIM(IF(ISERR(Sheet1!L6),"",Sheet1!L6)) ->  | M6: =TRIM(IF(ISERR(Sheet1!M6),"",Sheet1!M6)) ->  | N6: =TRIM(IF(ISERR(Sheet1!N6),"",Sheet1!N6)) ->  | O6: =TRIM(IF(ISERR(Sheet1!O6),"",Sheet1!O6)) ->  | P6: =TRIM(IF(ISERR(Sheet1!P6),"",Sheet1!P6)) ->  | Q6: =TRIM(IF(ISERR(Sheet1!Q6),"",Sheet1!Q6)) ->  | R6: =TRIM(IF(ISERR(Sheet1!R6),"",Sheet1!R6)) ->  | S6: =TRIM(IF(ISERR(Sheet1!S6),"",Sheet1!S6)) ->  | T6: =TRIM(IF(ISERR(Sheet1!T6),"",Sheet1!T6)) ->  | U6: =TRIM(IF(ISERR(Sheet1!U6),"",Sheet1!U6)) ->  | V6: =TRIM(IF(ISERR(Sheet1!V6),"",Sheet1!V6)) ->  | W6: =TRIM(IF(ISERR(Sheet1!W6),"",Sheet1!W6)) ->  | X6: =TRIM(IF(ISERR(Sheet1!X6),"",Sheet1!X6)) ->  | Y6: =TRIM(IF(ISERR(Sheet1!Y6),"",Sheet1!Y6)) ->  | Z6: =TRIM(IF(ISERR(Sheet1!Z6),"",Sheet1!Z6)) ->  | AA6: =TRIM(IF(ISERR(Sheet1!AA6),"",Sheet1!AA6)) ->  | AB6: =TRIM(IF(ISERR(Sheet1!AB6),"",Sheet1!AB6)) ->  | AC6: =TRIM(IF(ISERR(Sheet1!AC6),"",Sheet1!AC6)) ->  | AD6: =TRIM(IF(ISERR(Sheet1!AD6),"",Sheet1!AD6)) ->  | AE6: =TRIM(IF(ISERR(Sheet1!AE6),"",Sheet1!AE6)) ->  | AF6: =TRIM(IF(ISERR(Sheet1!AF6),"",Sheet1!AF6)) ->  | AG6: =TRIM(IF(ISERR(Sheet1!AG6),"",Sheet1!AG6)) ->  | AH6: =TRIM(IF(ISERR(Sheet1!AH6),"",Sheet1!AH6)) ->  | AI6: =TRIM(IF(ISERR(Sheet1!AI6),"",Sheet1!AI6)) ->  | AJ6: =TRIM(IF(ISERR(Sheet1!AJ6),"",Sheet1!AJ6)) ->  | AK6: =TRIM(IF(ISERR(Sheet1!AK6),"",Sheet1!AK6)) ->  | AL6: =TRIM(IF(ISERR(Sheet1!AL6),"",Sheet1!AL6)) ->  | AM6: =TRIM(IF(ISERR(Sheet1!AM6),"",Sheet1!AM6)) ->  | AN6: =TRIM(IF(ISERR(Sheet1!AN6),"",Sheet1!AN6)) ->  | AO6: =TRIM(IF(ISERR(Sheet1!AO6),"",Sheet1!AO6)) ->  | AP6: =TRIM(IF(ISERR(Sheet1!AP6),"",Sheet1!AP6)) ->  | AQ6: =TRIM(IF(ISERR(Sheet1!AQ6),"",Sheet1!AQ6)) ->  | AR6: =TRIM(IF(ISERR(Sheet1!AR6),"",Sheet1!AR6)) ->  | AS6: =TRIM(IF(ISERR(Sheet1!AS6),"",Sheet1!AS6)) ->  | AT6: =TRIM(IF(ISERR(Sheet1!AT6),"",Sheet1!AT6)) ->  | AU6: =TRIM(IF(ISERR(Sheet1!AU6),"",Sheet1!AU6)) ->  | AV6: =TRIM(IF(ISERR(Sheet1!AV6),"",Sheet1!AV6)) ->  | AW6: =TRIM(IF(ISERR(Sheet1!AW6),"",Sheet1!AW6)) ->  | AX6: =TRIM(IF(ISERR(Sheet1!AX6),"",Sheet1!AX6)) ->  | AY6: =TRIM(IF(ISERR(Sheet1!AY6),"",Sheet1!AY6)) ->  | AZ6: =TRIM(IF(ISERR(Sheet1!AZ6),"",Sheet1!AZ6)) ->  | BA6: =TRIM(IF(ISERR(Sheet1!BA6),"",Sheet1!BA6)) ->  | BB6: =TRIM(IF(ISERR(Sheet1!BB6),"",Sheet1!BB6)) ->  | BC6: =TRIM(IF(ISERR(Sheet1!BC6),"",Sheet1!BC6)) ->  | BD6: =TRIM(IF(ISERR(Sheet1!BD6),"",Sheet1!BD6)) ->  | BE6: =TRIM(IF(ISERR(Sheet1!BE6),"",Sheet1!BE6)) ->  | BF6: =TRIM(IF(ISERR(Sheet1!BF6),"",Sheet1!BF6)) ->  | BG6: =TRIM(IF(ISERR(Sheet1!BG6),"",Sheet1!BG6)) -> 
G7: =TRIM(IF(ISERR(Sheet1!G7),"",Sheet1!G7)) ->  | H7: =TRIM(IF(ISERR(Sheet1!H7),"",Sheet1!H7)) ->  | I7: =TRIM(IF(ISERR(Sheet1!I7),"",Sheet1!I7)) ->  | J7: =TRIM(IF(ISERR(Sheet1!J7),"",Sheet1!J7)) ->  | K7: =TRIM(IF(ISERR(Sheet1!K7),"",Sheet1!K7)) ->  | L7: =TRIM(IF(ISERR(Sheet1!L7),"",Sheet1!L7)) ->  | M7: =TRIM(IF(ISERR(Sheet1!M7),"",Sheet1!M7)) ->  | N7: =TRIM(IF(ISERR(Sheet1!N7),"",Sheet1!N7)) ->  | O7: =TRIM(IF(ISERR(Sheet1!O7),"",Sheet1!O7)) ->  | P7: =TRIM(IF(ISERR(Sheet1!P7),"",Sheet1!P7)) ->  | Q7: =TRIM(IF(ISERR(Sheet1!Q7),"",Sheet1!Q7)) ->  | R7: =TRIM(IF(ISERR(Sheet1!R7),"",Sheet1!R7)) ->  | S7: =TRIM(IF(ISERR(Sheet1!S7),"",Sheet1!S7)) ->  | T7: =TRIM(IF(ISERR(Sheet1!T7),"",Sheet1!T7)) ->  | U7: =TRIM(IF(ISERR(Sheet1!U7),"",Sheet1!U7)) ->  | V7: =TRIM(IF(ISERR(Sheet1!V7),"",Sheet1!V7)) ->  | W7: =TRIM(IF(ISERR(Sheet1!W7),"",Sheet1!W7)) ->  | X7: =TRIM(IF(ISERR(Sheet1!X7),"",Sheet1!X7)) ->  | Y7: =TRIM(IF(ISERR(Sheet1!Y7),"",Sheet1!Y7)) ->  | Z7: =TRIM(IF(ISERR(Sheet1!Z7),"",Sheet1!Z7)) ->  | AA7: =TRIM(IF(ISERR(Sheet1!AA7),"",Sheet1!AA7)) ->  | AB7: =TRIM(IF(ISERR(Sheet1!AB7),"",Sheet1!AB7)) ->  | AC7: =TRIM(IF(ISERR(Sheet1!AC7),"",Sheet1!AC7)) ->  | AD7: =TRIM(IF(ISERR(Sheet1!AD7),"",Sheet1!AD7)) ->  | AE7: =TRIM(IF(ISERR(Sheet1!AE7),"",Sheet1!AE7)) ->  | AF7: =TRIM(IF(ISERR(Sheet1!AF7),"",Sheet1!AF7)) ->  | AG7: =TRIM(IF(ISERR(Sheet1!AG7),"",Sheet1!AG7)) ->  | AH7: =TRIM(IF(ISERR(Sheet1!AH7),"",Sheet1!AH7)) ->  | AI7: =TRIM(IF(ISERR(Sheet1!AI7),"",Sheet1!AI7)) ->  | AJ7: =TRIM(IF(ISERR(Sheet1!AJ7),"",Sheet1!AJ7)) ->  | AK7: =TRIM(IF(ISERR(Sheet1!AK7),"",Sheet1!AK7)) ->  | AL7: =TRIM(IF(ISERR(Sheet1!AL7),"",Sheet1!AL7)) ->  | AM7: =TRIM(IF(ISERR(Sheet1!AM7),"",Sheet1!AM7)) ->  | AN7: =TRIM(IF(ISERR(Sheet1!AN7),"",Sheet1!AN7)) ->  | AO7: =TRIM(IF(ISERR(Sheet1!AO7),"",Sheet1!AO7)) ->  | AP7: =TRIM(IF(ISERR(Sheet1!AP7),"",Sheet1!AP7)) ->  | AQ7: =TRIM(IF(ISERR(Sheet1!AQ7),"",Sheet1!AQ7)) ->  | AR7: =TRIM(IF(ISERR(Sheet1!AR7),"",Sheet1!AR7)) ->  | AS7: =TRIM(IF(ISERR(Sheet1!AS7),"",Sheet1!AS7)) ->  | AT7: =TRIM(IF(ISERR(Sheet1!AT7),"",Sheet1!AT7)) ->  | AU7: =TRIM(IF(ISERR(Sheet1!AU7),"",Sheet1!AU7)) ->  | AV7: =TRIM(IF(ISERR(Sheet1!AV7),"",Sheet1!AV7)) ->  | AW7: =TRIM(IF(ISERR(Sheet1!AW7),"",Sheet1!AW7)) ->  | AX7: =TRIM(IF(ISERR(Sheet1!AX7),"",Sheet1!AX7)) ->  | AY7: =TRIM(IF(ISERR(Sheet1!AY7),"",Sheet1!AY7)) ->  | AZ7: =TRIM(IF(ISERR(Sheet1!AZ7),"",Sheet1!AZ7)) ->  | BA7: =TRIM(IF(ISERR(Sheet1!BA7),"",Sheet1!BA7)) ->  | BB7: =TRIM(IF(ISERR(Sheet1!BB7),"",Sheet1!BB7)) ->  | BC7: =TRIM(IF(ISERR(Sheet1!BC7),"",Sheet1!BC7)) ->  | BD7: =TRIM(IF(ISERR(Sheet1!BD7),"",Sheet1!BD7)) ->  | BE7: =TRIM(IF(ISERR(Sheet1!BE7),"",Sheet1!BE7)) ->  | BF7: =TRIM(IF(ISERR(Sheet1!BF7),"",Sheet1!BF7)) ->  | BG7: =TRIM(IF(ISERR(Sheet1!BG7),"",Sheet1!BG7)) -> 
G8: =TRIM(IF(ISERR(Sheet1!G8),"",Sheet1!G8)) ->  | H8: =TRIM(IF(ISERR(Sheet1!H8),"",Sheet1!H8)) ->  | I8: =TRIM(IF(ISERR(Sheet1!I8),"",Sheet1!I8)) ->  | J8: =TRIM(IF(ISERR(Sheet1!J8),"",Sheet1!J8)) ->  | K8: =TRIM(IF(ISERR(Sheet1!K8),"",Sheet1!K8)) ->  | L8: =TRIM(IF(ISERR(Sheet1!L8),"",Sheet1!L8)) ->  | M8: =TRIM(IF(ISERR(Sheet1!M8),"",Sheet1!M8)) ->  | N8: =TRIM(IF(ISERR(Sheet1!N8),"",Sheet1!N8)) ->  | O8: =TRIM(IF(ISERR(Sheet1!O8),"",Sheet1!O8)) ->  | P8: =TRIM(IF(ISERR(Sheet1!P8),"",Sheet1!P8)) ->  | Q8: =TRIM(IF(ISERR(Sheet1!Q8),"",Sheet1!Q8)) ->  | R8: =TRIM(IF(ISERR(Sheet1!R8),"",Sheet1!R8)) ->  | S8: =TRIM(IF(ISERR(Sheet1!S8),"",Sheet1!S8)) ->  | T8: =TRIM(IF(ISERR(Sheet1!T8),"",Sheet1!T8)) ->  | U8: =TRIM(IF(ISERR(Sheet1!U8),"",Sheet1!U8)) ->  | V8: =TRIM(IF(ISERR(Sheet1!V8),"",Sheet1!V8)) ->  | W8: =TRIM(IF(ISERR(Sheet1!W8),"",Sheet1!W8)) ->  | X8: =TRIM(IF(ISERR(Sheet1!X8),"",Sheet1!X8)) ->  | Y8: =TRIM(IF(ISERR(Sheet1!Y8),"",Sheet1!Y8)) ->  | Z8: =TRIM(IF(ISERR(Sheet1!Z8),"",Sheet1!Z8)) ->  | AA8: =TRIM(IF(ISERR(Sheet1!AA8),"",Sheet1!AA8)) ->  | AB8: =TRIM(IF(ISERR(Sheet1!AB8),"",Sheet1!AB8)) ->  | AC8: =TRIM(IF(ISERR(Sheet1!AC8),"",Sheet1!AC8)) ->  | AD8: =TRIM(IF(ISERR(Sheet1!AD8),"",Sheet1!AD8)) ->  | AE8: =TRIM(IF(ISERR(Sheet1!AE8),"",Sheet1!AE8)) ->  | AF8: =TRIM(IF(ISERR(Sheet1!AF8),"",Sheet1!AF8)) ->  | AG8: =TRIM(IF(ISERR(Sheet1!AG8),"",Sheet1!AG8)) ->  | AH8: =TRIM(IF(ISERR(Sheet1!AH8),"",Sheet1!AH8)) ->  | AI8: =TRIM(IF(ISERR(Sheet1!AI8),"",Sheet1!AI8)) ->  | AJ8: =TRIM(IF(ISERR(Sheet1!AJ8),"",Sheet1!AJ8)) ->  | AK8: =TRIM(IF(ISERR(Sheet1!AK8),"",Sheet1!AK8)) ->  | AL8: =TRIM(IF(ISERR(Sheet1!AL8),"",Sheet1!AL8)) ->  | AM8: =TRIM(IF(ISERR(Sheet1!AM8),"",Sheet1!AM8)) ->  | AN8: =TRIM(IF(ISERR(Sheet1!AN8),"",Sheet1!AN8)) ->  | AO8: =TRIM(IF(ISERR(Sheet1!AO8),"",Sheet1!AO8)) ->  | AP8: =TRIM(IF(ISERR(Sheet1!AP8),"",Sheet1!AP8)) ->  | AQ8: =TRIM(IF(ISERR(Sheet1!AQ8),"",Sheet1!AQ8)) ->  | AR8: =TRIM(IF(ISERR(Sheet1!AR8),"",Sheet1!AR8)) ->  | AS8: =TRIM(IF(ISERR(Sheet1!AS8),"",Sheet1!AS8)) ->  | AT8: =TRIM(IF(ISERR(Sheet1!AT8),"",Sheet1!AT8)) ->  | AU8: =TRIM(IF(ISERR(Sheet1!AU8),"",Sheet1!AU8)) ->  | AV8: =TRIM(IF(ISERR(Sheet1!AV8),"",Sheet1!AV8)) ->  | AW8: =TRIM(IF(ISERR(Sheet1!AW8),"",Sheet1!AW8)) ->  | AX8: =TRIM(IF(ISERR(Sheet1!AX8),"",Sheet1!AX8)) ->  | AY8: =TRIM(IF(ISERR(Sheet1!AY8),"",Sheet1!AY8)) ->  | AZ8: =TRIM(IF(ISERR(Sheet1!AZ8),"",Sheet1!AZ8)) ->  | BA8: =TRIM(IF(ISERR(Sheet1!BA8),"",Sheet1!BA8)) ->  | BB8: =TRIM(IF(ISERR(Sheet1!BB8),"",Sheet1!BB8)) ->  | BC8: =TRIM(IF(ISERR(Sheet1!BC8),"",Sheet1!BC8)) ->  | BD8: =TRIM(IF(ISERR(Sheet1!BD8),"",Sheet1!BD8)) ->  | BE8: =TRIM(IF(ISERR(Sheet1!BE8),"",Sheet1!BE8)) ->  | BF8: =TRIM(IF(ISERR(Sheet1!BF8),"",Sheet1!BF8)) ->  | BG8: =TRIM(IF(ISERR(Sheet1!BG8),"",Sheet1!BG8)) -> 
G9: =TRIM(IF(ISERR(Sheet1!G9),"",Sheet1!G9)) ->  | H9: =TRIM(IF(ISERR(Sheet1!H9),"",Sheet1!H9)) ->  | I9: =TRIM(IF(ISERR(Sheet1!I9),"",Sheet1!I9)) ->  | J9: =TRIM(IF(ISERR(Sheet1!J9),"",Sheet1!J9)) ->  | K9: =TRIM(IF(ISERR(Sheet1!K9),"",Sheet1!K9)) ->  | L9: =TRIM(IF(ISERR(Sheet1!L9),"",Sheet1!L9)) ->  | M9: =TRIM(IF(ISERR(Sheet1!M9),"",Sheet1!M9)) ->  | N9: =TRIM(IF(ISERR(Sheet1!N9),"",Sheet1!N9)) ->  | O9: =TRIM(IF(ISERR(Sheet1!O9),"",Sheet1!O9)) ->  | P9: =TRIM(IF(ISERR(Sheet1!P9),"",Sheet1!P9)) ->  | Q9: =TRIM(IF(ISERR(Sheet1!Q9),"",Sheet1!Q9)) ->  | R9: =TRIM(IF(ISERR(Sheet1!R9),"",Sheet1!R9)) ->  | S9: =TRIM(IF(ISERR(Sheet1!S9),"",Sheet1!S9)) ->  | T9: =TRIM(IF(ISERR(Sheet1!T9),"",Sheet1!T9)) ->  | U9: =TRIM(IF(ISERR(Sheet1!U9),"",Sheet1!U9)) ->  | V9: =TRIM(IF(ISERR(Sheet1!V9),"",Sheet1!V9)) ->  | W9: =TRIM(IF(ISERR(Sheet1!W9),"",Sheet1!W9)) ->  | X9: =TRIM(IF(ISERR(Sheet1!X9),"",Sheet1!X9)) ->  | Y9: =TRIM(IF(ISERR(Sheet1!Y9),"",Sheet1!Y9)) ->  | Z9: =TRIM(IF(ISERR(Sheet1!Z9),"",Sheet1!Z9)) ->  | AA9: =TRIM(IF(ISERR(Sheet1!AA9),"",Sheet1!AA9)) ->  | AB9: =TRIM(IF(ISERR(Sheet1!AB9),"",Sheet1!AB9)) ->  | AC9: =TRIM(IF(ISERR(Sheet1!AC9),"",Sheet1!AC9)) ->  | AD9: =TRIM(IF(ISERR(Sheet1!AD9),"",Sheet1!AD9)) ->  | AE9: =TRIM(IF(ISERR(Sheet1!AE9),"",Sheet1!AE9)) ->  | AF9: =TRIM(IF(ISERR(Sheet1!AF9),"",Sheet1!AF9)) ->  | AG9: =TRIM(IF(ISERR(Sheet1!AG9),"",Sheet1!AG9)) ->  | AH9: =TRIM(IF(ISERR(Sheet1!AH9),"",Sheet1!AH9)) ->  | AI9: =TRIM(IF(ISERR(Sheet1!AI9),"",Sheet1!AI9)) ->  | AJ9: =TRIM(IF(ISERR(Sheet1!AJ9),"",Sheet1!AJ9)) ->  | AK9: =TRIM(IF(ISERR(Sheet1!AK9),"",Sheet1!AK9)) ->  | AL9: =TRIM(IF(ISERR(Sheet1!AL9),"",Sheet1!AL9)) ->  | AM9: =TRIM(IF(ISERR(Sheet1!AM9),"",Sheet1!AM9)) ->  | AN9: =TRIM(IF(ISERR(Sheet1!AN9),"",Sheet1!AN9)) ->  | AO9: =TRIM(IF(ISERR(Sheet1!AO9),"",Sheet1!AO9)) ->  | AP9: =TRIM(IF(ISERR(Sheet1!AP9),"",Sheet1!AP9)) ->  | AQ9: =TRIM(IF(ISERR(Sheet1!AQ9),"",Sheet1!AQ9)) ->  | AR9: =TRIM(IF(ISERR(Sheet1!AR9),"",Sheet1!AR9)) ->  | AS9: =TRIM(IF(ISERR(Sheet1!AS9),"",Sheet1!AS9)) ->  | AT9: =TRIM(IF(ISERR(Sheet1!AT9),"",Sheet1!AT9)) ->  | AU9: =TRIM(IF(ISERR(Sheet1!AU9),"",Sheet1!AU9)) ->  | AV9: =TRIM(IF(ISERR(Sheet1!AV9),"",Sheet1!AV9)) ->  | AW9: =TRIM(IF(ISERR(Sheet1!AW9),"",Sheet1!AW9)) ->  | AX9: =TRIM(IF(ISERR(Sheet1!AX9),"",Sheet1!AX9)) ->  | AY9: =TRIM(IF(ISERR(Sheet1!AY9),"",Sheet1!AY9)) ->  | AZ9: =TRIM(IF(ISERR(Sheet1!AZ9),"",Sheet1!AZ9)) ->  | BA9: =TRIM(IF(ISERR(Sheet1!BA9),"",Sheet1!BA9)) ->  | BB9: =TRIM(IF(ISERR(Sheet1!BB9),"",Sheet1!BB9)) ->  | BC9: =TRIM(IF(ISERR(Sheet1!BC9),"",Sheet1!BC9)) ->  | BD9: =TRIM(IF(ISERR(Sheet1!BD9),"",Sheet1!BD9)) ->  | BE9: =TRIM(IF(ISERR(Sheet1!BE9),"",Sheet1!BE9)) ->  | BF9: =TRIM(IF(ISERR(Sheet1!BF9),"",Sheet1!BF9)) ->  | BG9: =TRIM(IF(ISERR(Sheet1!BG9),"",Sheet1!BG9)) -> 
G10: =TRIM(IF(ISERR(Sheet1!G10),"",Sheet1!G10)) ->  | H10: =TRIM(IF(ISERR(Sheet1!H10),"",Sheet1!H10)) ->  | I10: =TRIM(IF(ISERR(Sheet1!I10),"",Sheet1!I10)) ->  | J10: =TRIM(IF(ISERR(Sheet1!J10),"",Sheet1!J10)) ->  | K10: =TRIM(IF(ISERR(Sheet1!K10),"",Sheet1!K10)) ->  | L10: =TRIM(IF(ISERR(Sheet1!L10),"",Sheet1!L10)) ->  | M10: =TRIM(IF(ISERR(Sheet1!M10),"",Sheet1!M10)) ->  | N10: =TRIM(IF(ISERR(Sheet1!N10),"",Sheet1!N10)) ->  | O10: =TRIM(IF(ISERR(Sheet1!O10),"",Sheet1!O10)) ->  | P10: =TRIM(IF(ISERR(Sheet1!P10),"",Sheet1!P10)) ->  | Q10: =TRIM(IF(ISERR(Sheet1!Q10),"",Sheet1!Q10)) ->  | R10: =TRIM(IF(ISERR(Sheet1!R10),"",Sheet1!R10)) ->  | S10: =TRIM(IF(ISERR(Sheet1!S10),"",Sheet1!S10)) ->  | T10: =TRIM(IF(ISERR(Sheet1!T10),"",Sheet1!T10)) ->  | U10: =TRIM(IF(ISERR(Sheet1!U10),"",Sheet1!U10)) ->  | V10: =TRIM(IF(ISERR(Sheet1!V10),"",Sheet1!V10)) ->  | W10: =TRIM(IF(ISERR(Sheet1!W10),"",Sheet1!W10)) ->  | X10: =TRIM(IF(ISERR(Sheet1!X10),"",Sheet1!X10)) ->  | Y10: =TRIM(IF(ISERR(Sheet1!Y10),"",Sheet1!Y10)) ->  | Z10: =TRIM(IF(ISERR(Sheet1!Z10),"",Sheet1!Z10)) ->  | AA10: =TRIM(IF(ISERR(Sheet1!AA10),"",Sheet1!AA10)) ->  | AB10: =TRIM(IF(ISERR(Sheet1!AB10),"",Sheet1!AB10)) ->  | AC10: =TRIM(IF(ISERR(Sheet1!AC10),"",Sheet1!AC10)) ->  | AD10: =TRIM(IF(ISERR(Sheet1!AD10),"",Sheet1!AD10)) ->  | AE10: =TRIM(IF(ISERR(Sheet1!AE10),"",Sheet1!AE10)) ->  | AF10: =TRIM(IF(ISERR(Sheet1!AF10),"",Sheet1!AF10)) ->  | AG10: =TRIM(IF(ISERR(Sheet1!AG10),"",Sheet1!AG10)) ->  | AH10: =TRIM(IF(ISERR(Sheet1!AH10),"",Sheet1!AH10)) ->  | AI10: =TRIM(IF(ISERR(Sheet1!AI10),"",Sheet1!AI10)) ->  | AJ10: =TRIM(IF(ISERR(Sheet1!AJ10),"",Sheet1!AJ10)) ->  | AK10: =TRIM(IF(ISERR(Sheet1!AK10),"",Sheet1!AK10)) ->  | AL10: =TRIM(IF(ISERR(Sheet1!AL10),"",Sheet1!AL10)) ->  | AM10: =TRIM(IF(ISERR(Sheet1!AM10),"",Sheet1!AM10)) ->  | AN10: =TRIM(IF(ISERR(Sheet1!AN10),"",Sheet1!AN10)) ->  | AO10: =TRIM(IF(ISERR(Sheet1!AO10),"",Sheet1!AO10)) ->  | AP10: =TRIM(IF(ISERR(Sheet1!AP10),"",Sheet1!AP10)) ->  | AQ10: =TRIM(IF(ISERR(Sheet1!AQ10),"",Sheet1!AQ10)) ->  | AR10: =TRIM(IF(ISERR(Sheet1!AR10),"",Sheet1!AR10)) ->  | AS10: =TRIM(IF(ISERR(Sheet1!AS10),"",Sheet1!AS10)) ->  | AT10: =TRIM(IF(ISERR(Sheet1!AT10),"",Sheet1!AT10)) ->  | AU10: =TRIM(IF(ISERR(Sheet1!AU10),"",Sheet1!AU10)) ->  | AV10: =TRIM(IF(ISERR(Sheet1!AV10),"",Sheet1!AV10)) ->  | AW10: =TRIM(IF(ISERR(Sheet1!AW10),"",Sheet1!AW10)) ->  | AX10: =TRIM(IF(ISERR(Sheet1!AX10),"",Sheet1!AX10)) ->  | AY10: =TRIM(IF(ISERR(Sheet1!AY10),"",Sheet1!AY10)) ->  | AZ10: =TRIM(IF(ISERR(Sheet1!AZ10),"",Sheet1!AZ10)) ->  | BA10: =TRIM(IF(ISERR(Sheet1!BA10),"",Sheet1!BA10)) ->  | BB10: =TRIM(IF(ISERR(Sheet1!BB10),"",Sheet1!BB10)) ->  | BC10: =TRIM(IF(ISERR(Sheet1!BC10),"",Sheet1!BC10)) ->  | BD10: =TRIM(IF(ISERR(Sheet1!BD10),"",Sheet1!BD10)) ->  | BE10: =TRIM(IF(ISERR(Sheet1!BE10),"",Sheet1!BE10)) ->  | BF10: =TRIM(IF(ISERR(Sheet1!BF10),"",Sheet1!BF10)) ->  | BG10: =TRIM(IF(ISERR(Sheet1!BG10),"",Sheet1!BG10)) -> 
G11: =TRIM(IF(ISERR(Sheet1!G11),"",Sheet1!G11)) ->  | H11: =TRIM(IF(ISERR(Sheet1!H11),"",Sheet1!H11)) ->  | I11: =TRIM(IF(ISERR(Sheet1!I11),"",Sheet1!I11)) ->  | J11: =TRIM(IF(ISERR(Sheet1!J11),"",Sheet1!J11)) ->  | K11: =TRIM(IF(ISERR(Sheet1!K11),"",Sheet1!K11)) ->  | L11: =TRIM(IF(ISERR(Sheet1!L11),"",Sheet1!L11)) ->  | M11: =TRIM(IF(ISERR(Sheet1!M11),"",Sheet1!M11)) ->  | N11: =TRIM(IF(ISERR(Sheet1!N11),"",Sheet1!N11)) ->  | O11: =TRIM(IF(ISERR(Sheet1!O11),"",Sheet1!O11)) ->  | P11: =TRIM(IF(ISERR(Sheet1!P11),"",Sheet1!P11)) ->  | Q11: =TRIM(IF(ISERR(Sheet1!Q11),"",Sheet1!Q11)) ->  | R11: =TRIM(IF(ISERR(Sheet1!R11),"",Sheet1!R11)) ->  | S11: =TRIM(IF(ISERR(Sheet1!S11),"",Sheet1!S11)) ->  | T11: =TRIM(IF(ISERR(Sheet1!T11),"",Sheet1!T11)) ->  | U11: =TRIM(IF(ISERR(Sheet1!U11),"",Sheet1!U11)) ->  | V11: =TRIM(IF(ISERR(Sheet1!V11),"",Sheet1!V11)) ->  | W11: =TRIM(IF(ISERR(Sheet1!W11),"",Sheet1!W11)) ->  | X11: =TRIM(IF(ISERR(Sheet1!X11),"",Sheet1!X11)) ->  | Y11: =TRIM(IF(ISERR(Sheet1!Y11),"",Sheet1!Y11)) ->  | Z11: =TRIM(IF(ISERR(Sheet1!Z11),"",Sheet1!Z11)) ->  | AA11: =TRIM(IF(ISERR(Sheet1!AA11),"",Sheet1!AA11)) ->  | AB11: =TRIM(IF(ISERR(Sheet1!AB11),"",Sheet1!AB11)) ->  | AC11: =TRIM(IF(ISERR(Sheet1!AC11),"",Sheet1!AC11)) ->  | AD11: =TRIM(IF(ISERR(Sheet1!AD11),"",Sheet1!AD11)) ->  | AE11: =TRIM(IF(ISERR(Sheet1!AE11),"",Sheet1!AE11)) ->  | AF11: =TRIM(IF(ISERR(Sheet1!AF11),"",Sheet1!AF11)) ->  | AG11: =TRIM(IF(ISERR(Sheet1!AG11),"",Sheet1!AG11)) ->  | AH11: =TRIM(IF(ISERR(Sheet1!AH11),"",Sheet1!AH11)) ->  | AI11: =TRIM(IF(ISERR(Sheet1!AI11),"",Sheet1!AI11)) ->  | AJ11: =TRIM(IF(ISERR(Sheet1!AJ11),"",Sheet1!AJ11)) ->  | AK11: =TRIM(IF(ISERR(Sheet1!AK11),"",Sheet1!AK11)) ->  | AL11: =TRIM(IF(ISERR(Sheet1!AL11),"",Sheet1!AL11)) ->  | AM11: =TRIM(IF(ISERR(Sheet1!AM11),"",Sheet1!AM11)) ->  | AN11: =TRIM(IF(ISERR(Sheet1!AN11),"",Sheet1!AN11)) ->  | AO11: =TRIM(IF(ISERR(Sheet1!AO11),"",Sheet1!AO11)) ->  | AP11: =TRIM(IF(ISERR(Sheet1!AP11),"",Sheet1!AP11)) ->  | AQ11: =TRIM(IF(ISERR(Sheet1!AQ11),"",Sheet1!AQ11)) ->  | AR11: =TRIM(IF(ISERR(Sheet1!AR11),"",Sheet1!AR11)) ->  | AS11: =TRIM(IF(ISERR(Sheet1!AS11),"",Sheet1!AS11)) ->  | AT11: =TRIM(IF(ISERR(Sheet1!AT11),"",Sheet1!AT11)) ->  | AU11: =TRIM(IF(ISERR(Sheet1!AU11),"",Sheet1!AU11)) ->  | AV11: =TRIM(IF(ISERR(Sheet1!AV11),"",Sheet1!AV11)) ->  | AW11: =TRIM(IF(ISERR(Sheet1!AW11),"",Sheet1!AW11)) ->  | AX11: =TRIM(IF(ISERR(Sheet1!AX11),"",Sheet1!AX11)) ->  | AY11: =TRIM(IF(ISERR(Sheet1!AY11),"",Sheet1!AY11)) ->  | AZ11: =TRIM(IF(ISERR(Sheet1!AZ11),"",Sheet1!AZ11)) ->  | BA11: =TRIM(IF(ISERR(Sheet1!BA11),"",Sheet1!BA11)) ->  | BB11: =TRIM(IF(ISERR(Sheet1!BB11),"",Sheet1!BB11)) ->  | BC11: =TRIM(IF(ISERR(Sheet1!BC11),"",Sheet1!BC11)) ->  | BD11: =TRIM(IF(ISERR(Sheet1!BD11),"",Sheet1!BD11)) ->  | BE11: =TRIM(IF(ISERR(Sheet1!BE11),"",Sheet1!BE11)) ->  | BF11: =TRIM(IF(ISERR(Sheet1!BF11),"",Sheet1!BF11)) ->  | BG11: =TRIM(IF(ISERR(Sheet1!BG11),"",Sheet1!BG11)) -> 
G12: =TRIM(IF(ISERR(Sheet1!G12),"",Sheet1!G12)) ->  | H12: =TRIM(IF(ISERR(Sheet1!H12),"",Sheet1!H12)) ->  | I12: =TRIM(IF(ISERR(Sheet1!I12),"",Sheet1!I12)) ->  | J12: =TRIM(IF(ISERR(Sheet1!J12),"",Sheet1!J12)) ->  | K12: =TRIM(IF(ISERR(Sheet1!K12),"",Sheet1!K12)) ->  | L12: =TRIM(IF(ISERR(Sheet1!L12),"",Sheet1!L12)) ->  | M12: =TRIM(IF(ISERR(Sheet1!M12),"",Sheet1!M12)) ->  | N12: =TRIM(IF(ISERR(Sheet1!N12),"",Sheet1!N12)) ->  | O12: =TRIM(IF(ISERR(Sheet1!O12),"",Sheet1!O12)) ->  | P12: =TRIM(IF(ISERR(Sheet1!P12),"",Sheet1!P12)) ->  | Q12: =TRIM(IF(ISERR(Sheet1!Q12),"",Sheet1!Q12)) ->  | R12: =TRIM(IF(ISERR(Sheet1!R12),"",Sheet1!R12)) ->  | S12: =TRIM(IF(ISERR(Sheet1!S12),"",Sheet1!S12)) ->  | T12: =TRIM(IF(ISERR(Sheet1!T12),"",Sheet1!T12)) ->  | U12: =TRIM(IF(ISERR(Sheet1!U12),"",Sheet1!U12)) ->  | V12: =TRIM(IF(ISERR(Sheet1!V12),"",Sheet1!V12)) ->  | W12: =TRIM(IF(ISERR(Sheet1!W12),"",Sheet1!W12)) ->  | X12: =TRIM(IF(ISERR(Sheet1!X12),"",Sheet1!X12)) ->  | Y12: =TRIM(IF(ISERR(Sheet1!Y12),"",Sheet1!Y12)) ->  | Z12: =TRIM(IF(ISERR(Sheet1!Z12),"",Sheet1!Z12)) ->  | AA12: =TRIM(IF(ISERR(Sheet1!AA12),"",Sheet1!AA12)) ->  | AB12: =TRIM(IF(ISERR(Sheet1!AB12),"",Sheet1!AB12)) ->  | AC12: =TRIM(IF(ISERR(Sheet1!AC12),"",Sheet1!AC12)) ->  | AD12: =TRIM(IF(ISERR(Sheet1!AD12),"",Sheet1!AD12)) ->  | AE12: =TRIM(IF(ISERR(Sheet1!AE12),"",Sheet1!AE12)) ->  | AF12: =TRIM(IF(ISERR(Sheet1!AF12),"",Sheet1!AF12)) ->  | AG12: =TRIM(IF(ISERR(Sheet1!AG12),"",Sheet1!AG12)) ->  | AH12: =TRIM(IF(ISERR(Sheet1!AH12),"",Sheet1!AH12)) ->  | AI12: =TRIM(IF(ISERR(Sheet1!AI12),"",Sheet1!AI12)) ->  | AJ12: =TRIM(IF(ISERR(Sheet1!AJ12),"",Sheet1!AJ12)) ->  | AK12: =TRIM(IF(ISERR(Sheet1!AK12),"",Sheet1!AK12)) ->  | AL12: =TRIM(IF(ISERR(Sheet1!AL12),"",Sheet1!AL12)) ->  | AM12: =TRIM(IF(ISERR(Sheet1!AM12),"",Sheet1!AM12)) ->  | AN12: =TRIM(IF(ISERR(Sheet1!AN12),"",Sheet1!AN12)) ->  | AO12: =TRIM(IF(ISERR(Sheet1!AO12),"",Sheet1!AO12)) ->  | AP12: =TRIM(IF(ISERR(Sheet1!AP12),"",Sheet1!AP12)) ->  | AQ12: =TRIM(IF(ISERR(Sheet1!AQ12),"",Sheet1!AQ12)) ->  | AR12: =TRIM(IF(ISERR(Sheet1!AR12),"",Sheet1!AR12)) ->  | AS12: =TRIM(IF(ISERR(Sheet1!AS12),"",Sheet1!AS12)) ->  | AT12: =TRIM(IF(ISERR(Sheet1!AT12),"",Sheet1!AT12)) ->  | AU12: =TRIM(IF(ISERR(Sheet1!AU12),"",Sheet1!AU12)) ->  | AV12: =TRIM(IF(ISERR(Sheet1!AV12),"",Sheet1!AV12)) ->  | AW12: =TRIM(IF(ISERR(Sheet1!AW12),"",Sheet1!AW12)) ->  | AX12: =TRIM(IF(ISERR(Sheet1!AX12),"",Sheet1!AX12)) ->  | AY12: =TRIM(IF(ISERR(Sheet1!AY12),"",Sheet1!AY12)) ->  | AZ12: =TRIM(IF(ISERR(Sheet1!AZ12),"",Sheet1!AZ12)) ->  | BA12: =TRIM(IF(ISERR(Sheet1!BA12),"",Sheet1!BA12)) ->  | BB12: =TRIM(IF(ISERR(Sheet1!BB12),"",Sheet1!BB12)) ->  | BC12: =TRIM(IF(ISERR(Sheet1!BC12),"",Sheet1!BC12)) ->  | BD12: =TRIM(IF(ISERR(Sheet1!BD12),"",Sheet1!BD12)) ->  | BE12: =TRIM(IF(ISERR(Sheet1!BE12),"",Sheet1!BE12)) ->  | BF12: =TRIM(IF(ISERR(Sheet1!BF12),"",Sheet1!BF12)) ->  | BG12: =TRIM(IF(ISERR(Sheet1!BG12),"",Sheet1!BG12)) -> 
G13: =TRIM(IF(ISERR(Sheet1!G13),"",Sheet1!G13)) ->  | H13: =TRIM(IF(ISERR(Sheet1!H13),"",Sheet1!H13)) ->  | I13: =TRIM(IF(ISERR(Sheet1!I13),"",Sheet1!I13)) ->  | J13: =TRIM(IF(ISERR(Sheet1!J13),"",Sheet1!J13)) ->  | K13: =TRIM(IF(ISERR(Sheet1!K13),"",Sheet1!K13)) ->  | L13: =TRIM(IF(ISERR(Sheet1!L13),"",Sheet1!L13)) ->  | M13: =TRIM(IF(ISERR(Sheet1!M13),"",Sheet1!M13)) ->  | N13: =TRIM(IF(ISERR(Sheet1!N13),"",Sheet1!N13)) ->  | O13: =TRIM(IF(ISERR(Sheet1!O13),"",Sheet1!O13)) ->  | P13: =TRIM(IF(ISERR(Sheet1!P13),"",Sheet1!P13)) ->  | Q13: =TRIM(IF(ISERR(Sheet1!Q13),"",Sheet1!Q13)) ->  | R13: =TRIM(IF(ISERR(Sheet1!R13),"",Sheet1!R13)) ->  | S13: =TRIM(IF(ISERR(Sheet1!S13),"",Sheet1!S13)) ->  | T13: =TRIM(IF(ISERR(Sheet1!T13),"",Sheet1!T13)) ->  | U13: =TRIM(IF(ISERR(Sheet1!U13),"",Sheet1!U13)) ->  | V13: =TRIM(IF(ISERR(Sheet1!V13),"",Sheet1!V13)) ->  | W13: =TRIM(IF(ISERR(Sheet1!W13),"",Sheet1!W13)) ->  | X13: =TRIM(IF(ISERR(Sheet1!X13),"",Sheet1!X13)) ->  | Y13: =TRIM(IF(ISERR(Sheet1!Y13),"",Sheet1!Y13)) ->  | Z13: =TRIM(IF(ISERR(Sheet1!Z13),"",Sheet1!Z13)) ->  | AA13: =TRIM(IF(ISERR(Sheet1!AA13),"",Sheet1!AA13)) ->  | AB13: =TRIM(IF(ISERR(Sheet1!AB13),"",Sheet1!AB13)) ->  | AC13: =TRIM(IF(ISERR(Sheet1!AC13),"",Sheet1!AC13)) ->  | AD13: =TRIM(IF(ISERR(Sheet1!AD13),"",Sheet1!AD13)) ->  | AE13: =TRIM(IF(ISERR(Sheet1!AE13),"",Sheet1!AE13)) ->  | AF13: =TRIM(IF(ISERR(Sheet1!AF13),"",Sheet1!AF13)) ->  | AG13: =TRIM(IF(ISERR(Sheet1!AG13),"",Sheet1!AG13)) ->  | AH13: =TRIM(IF(ISERR(Sheet1!AH13),"",Sheet1!AH13)) ->  | AI13: =TRIM(IF(ISERR(Sheet1!AI13),"",Sheet1!AI13)) ->  | AJ13: =TRIM(IF(ISERR(Sheet1!AJ13),"",Sheet1!AJ13)) ->  | AK13: =TRIM(IF(ISERR(Sheet1!AK13),"",Sheet1!AK13)) ->  | AL13: =TRIM(IF(ISERR(Sheet1!AL13),"",Sheet1!AL13)) ->  | AM13: =TRIM(IF(ISERR(Sheet1!AM13),"",Sheet1!AM13)) ->  | AN13: =TRIM(IF(ISERR(Sheet1!AN13),"",Sheet1!AN13)) ->  | AO13: =TRIM(IF(ISERR(Sheet1!AO13),"",Sheet1!AO13)) ->  | AP13: =TRIM(IF(ISERR(Sheet1!AP13),"",Sheet1!AP13)) ->  | AQ13: =TRIM(IF(ISERR(Sheet1!AQ13),"",Sheet1!AQ13)) ->  | AR13: =TRIM(IF(ISERR(Sheet1!AR13),"",Sheet1!AR13)) ->  | AS13: =TRIM(IF(ISERR(Sheet1!AS13),"",Sheet1!AS13)) ->  | AT13: =TRIM(IF(ISERR(Sheet1!AT13),"",Sheet1!AT13)) ->  | AU13: =TRIM(IF(ISERR(Sheet1!AU13),"",Sheet1!AU13)) ->  | AV13: =TRIM(IF(ISERR(Sheet1!AV13),"",Sheet1!AV13)) ->  | AW13: =TRIM(IF(ISERR(Sheet1!AW13),"",Sheet1!AW13)) ->  | AX13: =TRIM(IF(ISERR(Sheet1!AX13),"",Sheet1!AX13)) ->  | AY13: =TRIM(IF(ISERR(Sheet1!AY13),"",Sheet1!AY13)) ->  | AZ13: =TRIM(IF(ISERR(Sheet1!AZ13),"",Sheet1!AZ13)) ->  | BA13: =TRIM(IF(ISERR(Sheet1!BA13),"",Sheet1!BA13)) ->  | BB13: =TRIM(IF(ISERR(Sheet1!BB13),"",Sheet1!BB13)) ->  | BC13: =TRIM(IF(ISERR(Sheet1!BC13),"",Sheet1!BC13)) ->  | BD13: =TRIM(IF(ISERR(Sheet1!BD13),"",Sheet1!BD13)) ->  | BE13: =TRIM(IF(ISERR(Sheet1!BE13),"",Sheet1!BE13)) ->  | BF13: =TRIM(IF(ISERR(Sheet1!BF13),"",Sheet1!BF13)) ->  | BG13: =TRIM(IF(ISERR(Sheet1!BG13),"",Sheet1!BG13)) -> 
G14: =TRIM(IF(ISERR(Sheet1!G14),"",Sheet1!G14)) ->  | H14: =TRIM(IF(ISERR(Sheet1!H14),"",Sheet1!H14)) ->  | I14: =TRIM(IF(ISERR(Sheet1!I14),"",Sheet1!I14)) ->  | J14: =TRIM(IF(ISERR(Sheet1!J14),"",Sheet1!J14)) ->  | K14: =TRIM(IF(ISERR(Sheet1!K14),"",Sheet1!K14)) ->  | L14: =TRIM(IF(ISERR(Sheet1!L14),"",Sheet1!L14)) ->  | M14: =TRIM(IF(ISERR(Sheet1!M14),"",Sheet1!M14)) ->  | N14: =TRIM(IF(ISERR(Sheet1!N14),"",Sheet1!N14)) ->  | O14: =TRIM(IF(ISERR(Sheet1!O14),"",Sheet1!O14)) ->  | P14: =TRIM(IF(ISERR(Sheet1!P14),"",Sheet1!P14)) ->  | Q14: =TRIM(IF(ISERR(Sheet1!Q14),"",Sheet1!Q14)) ->  | R14: =TRIM(IF(ISERR(Sheet1!R14),"",Sheet1!R14)) ->  | S14: =TRIM(IF(ISERR(Sheet1!S14),"",Sheet1!S14)) ->  | T14: =TRIM(IF(ISERR(Sheet1!T14),"",Sheet1!T14)) ->  | U14: =TRIM(IF(ISERR(Sheet1!U14),"",Sheet1!U14)) ->  | V14: =TRIM(IF(ISERR(Sheet1!V14),"",Sheet1!V14)) ->  | W14: =TRIM(IF(ISERR(Sheet1!W14),"",Sheet1!W14)) ->  | X14: =TRIM(IF(ISERR(Sheet1!X14),"",Sheet1!X14)) ->  | Y14: =TRIM(IF(ISERR(Sheet1!Y14),"",Sheet1!Y14)) ->  | Z14: =TRIM(IF(ISERR(Sheet1!Z14),"",Sheet1!Z14)) ->  | AA14: =TRIM(IF(ISERR(Sheet1!AA14),"",Sheet1!AA14)) ->  | AB14: =TRIM(IF(ISERR(Sheet1!AB14),"",Sheet1!AB14)) ->  | AC14: =TRIM(IF(ISERR(Sheet1!AC14),"",Sheet1!AC14)) ->  | AD14: =TRIM(IF(ISERR(Sheet1!AD14),"",Sheet1!AD14)) ->  | AE14: =TRIM(IF(ISERR(Sheet1!AE14),"",Sheet1!AE14)) ->  | AF14: =TRIM(IF(ISERR(Sheet1!AF14),"",Sheet1!AF14)) ->  | AG14: =TRIM(IF(ISERR(Sheet1!AG14),"",Sheet1!AG14)) ->  | AH14: =TRIM(IF(ISERR(Sheet1!AH14),"",Sheet1!AH14)) ->  | AI14: =TRIM(IF(ISERR(Sheet1!AI14),"",Sheet1!AI14)) ->  | AJ14: =TRIM(IF(ISERR(Sheet1!AJ14),"",Sheet1!AJ14)) ->  | AK14: =TRIM(IF(ISERR(Sheet1!AK14),"",Sheet1!AK14)) ->  | AL14: =TRIM(IF(ISERR(Sheet1!AL14),"",Sheet1!AL14)) ->  | AM14: =TRIM(IF(ISERR(Sheet1!AM14),"",Sheet1!AM14)) ->  | AN14: =TRIM(IF(ISERR(Sheet1!AN14),"",Sheet1!AN14)) ->  | AO14: =TRIM(IF(ISERR(Sheet1!AO14),"",Sheet1!AO14)) ->  | AP14: =TRIM(IF(ISERR(Sheet1!AP14),"",Sheet1!AP14)) ->  | AQ14: =TRIM(IF(ISERR(Sheet1!AQ14),"",Sheet1!AQ14)) ->  | AR14: =TRIM(IF(ISERR(Sheet1!AR14),"",Sheet1!AR14)) ->  | AS14: =TRIM(IF(ISERR(Sheet1!AS14),"",Sheet1!AS14)) ->  | AT14: =TRIM(IF(ISERR(Sheet1!AT14),"",Sheet1!AT14)) ->  | AU14: =TRIM(IF(ISERR(Sheet1!AU14),"",Sheet1!AU14)) ->  | AV14: =TRIM(IF(ISERR(Sheet1!AV14),"",Sheet1!AV14)) ->  | AW14: =TRIM(IF(ISERR(Sheet1!AW14),"",Sheet1!AW14)) ->  | AX14: =TRIM(IF(ISERR(Sheet1!AX14),"",Sheet1!AX14)) ->  | AY14: =TRIM(IF(ISERR(Sheet1!AY14),"",Sheet1!AY14)) ->  | AZ14: =TRIM(IF(ISERR(Sheet1!AZ14),"",Sheet1!AZ14)) ->  | BA14: =TRIM(IF(ISERR(Sheet1!BA14),"",Sheet1!BA14)) ->  | BB14: =TRIM(IF(ISERR(Sheet1!BB14),"",Sheet1!BB14)) ->  | BC14: =TRIM(IF(ISERR(Sheet1!BC14),"",Sheet1!BC14)) ->  | BD14: =TRIM(IF(ISERR(Sheet1!BD14),"",Sheet1!BD14)) ->  | BE14: =TRIM(IF(ISERR(Sheet1!BE14),"",Sheet1!BE14)) ->  | BF14: =TRIM(IF(ISERR(Sheet1!BF14),"",Sheet1!BF14)) ->  | BG14: =TRIM(IF(ISERR(Sheet1!BG14),"",Sheet1!BG14)) -> 
C15: =TRIM(IF(ISERR(Sheet1!C15),"",Sheet1!C15)) ->  | D15: =TRIM(IF(ISERR(Sheet1!D15),"",Sheet1!D15)) ->  | E15: =TRIM(IF(ISERR(Sheet1!E15),"",Sheet1!E15)) ->  | F15: =TRIM(IF(ISERR(Sheet1!F15),"",Sheet1!F15)) ->  | G15: =TRIM(IF(ISERR(Sheet1!G15),"",Sheet1!G15)) ->  | H15: =TRIM(IF(ISERR(Sheet1!H15),"",Sheet1!H15)) ->  | I15: =TRIM(IF(ISERR(Sheet1!I15),"",Sheet1!I15)) ->  | J15: =TRIM(IF(ISERR(Sheet1!J15),"",Sheet1!J15)) ->  | K15: =TRIM(IF(ISERR(Sheet1!K15),"",Sheet1!K15)) ->  | L15: =TRIM(IF(ISERR(Sheet1!L15),"",Sheet1!L15)) ->  | M15: =TRIM(IF(ISERR(Sheet1!M15),"",Sheet1!M15)) ->  | N15: =TRIM(IF(ISERR(Sheet1!N15),"",Sheet1!N15)) ->  | O15: =TRIM(IF(ISERR(Sheet1!O15),"",Sheet1!O15)) ->  | P15: =TRIM(IF(ISERR(Sheet1!P15),"",Sheet1!P15)) ->  | Q15: =TRIM(IF(ISERR(Sheet1!Q15),"",Sheet1!Q15)) ->  | R15: =TRIM(IF(ISERR(Sheet1!R15),"",Sheet1!R15)) ->  | S15: =TRIM(IF(ISERR(Sheet1!S15),"",Sheet1!S15)) ->  | T15: =TRIM(IF(ISERR(Sheet1!T15),"",Sheet1!T15)) ->  | U15: =TRIM(IF(ISERR(Sheet1!U15),"",Sheet1!U15)) ->  | V15: =TRIM(IF(ISERR(Sheet1!V15),"",Sheet1!V15)) ->  | W15: =TRIM(IF(ISERR(Sheet1!W15),"",Sheet1!W15)) ->  | X15: =TRIM(IF(ISERR(Sheet1!X15),"",Sheet1!X15)) ->  | Y15: =TRIM(IF(ISERR(Sheet1!Y15),"",Sheet1!Y15)) ->  | Z15: =TRIM(IF(ISERR(Sheet1!Z15),"",Sheet1!Z15)) ->  | AA15: =TRIM(IF(ISERR(Sheet1!AA15),"",Sheet1!AA15)) ->  | AB15: =TRIM(IF(ISERR(Sheet1!AB15),"",Sheet1!AB15)) ->  | AC15: =TRIM(IF(ISERR(Sheet1!AC15),"",Sheet1!AC15)) ->  | AD15: =TRIM(IF(ISERR(Sheet1!AD15),"",Sheet1!AD15)) ->  | AE15: =TRIM(IF(ISERR(Sheet1!AE15),"",Sheet1!AE15)) ->  | AF15: =TRIM(IF(ISERR(Sheet1!AF15),"",Sheet1!AF15)) ->  | AG15: =TRIM(IF(ISERR(Sheet1!AG15),"",Sheet1!AG15)) ->  | AH15: =TRIM(IF(ISERR(Sheet1!AH15),"",Sheet1!AH15)) ->  | AI15: =TRIM(IF(ISERR(Sheet1!AI15),"",Sheet1!AI15)) ->  | AJ15: =TRIM(IF(ISERR(Sheet1!AJ15),"",Sheet1!AJ15)) ->  | AK15: =TRIM(IF(ISERR(Sheet1!AK15),"",Sheet1!AK15)) ->  | AL15: =TRIM(IF(ISERR(Sheet1!AL15),"",Sheet1!AL15)) ->  | AM15: =TRIM(IF(ISERR(Sheet1!AM15),"",Sheet1!AM15)) ->  | AN15: =TRIM(IF(ISERR(Sheet1!AN15),"",Sheet1!AN15)) ->  | AO15: =TRIM(IF(ISERR(Sheet1!AO15),"",Sheet1!AO15)) ->  | AP15: =TRIM(IF(ISERR(Sheet1!AP15),"",Sheet1!AP15)) ->  | AQ15: =TRIM(IF(ISERR(Sheet1!AQ15),"",Sheet1!AQ15)) ->  | AR15: =TRIM(IF(ISERR(Sheet1!AR15),"",Sheet1!AR15)) ->  | AS15: =TRIM(IF(ISERR(Sheet1!AS15),"",Sheet1!AS15)) ->  | AT15: =TRIM(IF(ISERR(Sheet1!AT15),"",Sheet1!AT15)) ->  | AU15: =TRIM(IF(ISERR(Sheet1!AU15),"",Sheet1!AU15)) ->  | AV15: =TRIM(IF(ISERR(Sheet1!AV15),"",Sheet1!AV15)) ->  | AW15: =TRIM(IF(ISERR(Sheet1!AW15),"",Sheet1!AW15)) ->  | AX15: =TRIM(IF(ISERR(Sheet1!AX15),"",Sheet1!AX15)) ->  | AY15: =TRIM(IF(ISERR(Sheet1!AY15),"",Sheet1!AY15)) ->  | AZ15: =TRIM(IF(ISERR(Sheet1!AZ15),"",Sheet1!AZ15)) ->  | BA15: =TRIM(IF(ISERR(Sheet1!BA15),"",Sheet1!BA15)) ->  | BB15: =TRIM(IF(ISERR(Sheet1!BB15),"",Sheet1!BB15)) ->  | BC15: =TRIM(IF(ISERR(Sheet1!BC15),"",Sheet1!BC15)) ->  | BD15: =TRIM(IF(ISERR(Sheet1!BD15),"",Sheet1!BD15)) ->  | BE15: =TRIM(IF(ISERR(Sheet1!BE15),"",Sheet1!BE15)) ->  | BF15: =TRIM(IF(ISERR(Sheet1!BF15),"",Sheet1!BF15)) ->  | BG15: =TRIM(IF(ISERR(Sheet1!BG15),"",Sheet1!BG15)) -> 
C16: =TRIM(IF(ISERR(Sheet1!C16),"",Sheet1!C16)) ->  | D16: =TRIM(IF(ISERR(Sheet1!D16),"",Sheet1!D16)) ->  | E16: =TRIM(IF(ISERR(Sheet1!E16),"",Sheet1!E16)) ->  | F16: =TRIM(IF(ISERR(Sheet1!F16),"",Sheet1!F16)) ->  | G16: =TRIM(IF(ISERR(Sheet1!G16),"",Sheet1!G16)) ->  | H16: =TRIM(IF(ISERR(Sheet1!H16),"",Sheet1!H16)) ->  | I16: =TRIM(IF(ISERR(Sheet1!I16),"",Sheet1!I16)) ->  | J16: =TRIM(IF(ISERR(Sheet1!J16),"",Sheet1!J16)) ->  | K16: =TRIM(IF(ISERR(Sheet1!K16),"",Sheet1!K16)) ->  | L16: =TRIM(IF(ISERR(Sheet1!L16),"",Sheet1!L16)) ->  | M16: =TRIM(IF(ISERR(Sheet1!M16),"",Sheet1!M16)) ->  | N16: =TRIM(IF(ISERR(Sheet1!N16),"",Sheet1!N16)) ->  | O16: =TRIM(IF(ISERR(Sheet1!O16),"",Sheet1!O16)) ->  | P16: =TRIM(IF(ISERR(Sheet1!P16),"",Sheet1!P16)) ->  | Q16: =TRIM(IF(ISERR(Sheet1!Q16),"",Sheet1!Q16)) ->  | R16: =TRIM(IF(ISERR(Sheet1!R16),"",Sheet1!R16)) ->  | S16: =TRIM(IF(ISERR(Sheet1!S16),"",Sheet1!S16)) ->  | T16: =TRIM(IF(ISERR(Sheet1!T16),"",Sheet1!T16)) ->  | U16: =TRIM(IF(ISERR(Sheet1!U16),"",Sheet1!U16)) ->  | V16: =TRIM(IF(ISERR(Sheet1!V16),"",Sheet1!V16)) ->  | W16: =TRIM(IF(ISERR(Sheet1!W16),"",Sheet1!W16)) ->  | X16: =TRIM(IF(ISERR(Sheet1!X16),"",Sheet1!X16)) ->  | Y16: =TRIM(IF(ISERR(Sheet1!Y16),"",Sheet1!Y16)) ->  | Z16: =TRIM(IF(ISERR(Sheet1!Z16),"",Sheet1!Z16)) ->  | AA16: =TRIM(IF(ISERR(Sheet1!AA16),"",Sheet1!AA16)) ->  | AB16: =TRIM(IF(ISERR(Sheet1!AB16),"",Sheet1!AB16)) ->  | AC16: =TRIM(IF(ISERR(Sheet1!AC16),"",Sheet1!AC16)) ->  | AD16: =TRIM(IF(ISERR(Sheet1!AD16),"",Sheet1!AD16)) ->  | AE16: =TRIM(IF(ISERR(Sheet1!AE16),"",Sheet1!AE16)) ->  | AF16: =TRIM(IF(ISERR(Sheet1!AF16),"",Sheet1!AF16)) ->  | AG16: =TRIM(IF(ISERR(Sheet1!AG16),"",Sheet1!AG16)) ->  | AH16: =TRIM(IF(ISERR(Sheet1!AH16),"",Sheet1!AH16)) ->  | AI16: =TRIM(IF(ISERR(Sheet1!AI16),"",Sheet1!AI16)) ->  | AJ16: =TRIM(IF(ISERR(Sheet1!AJ16),"",Sheet1!AJ16)) ->  | AK16: =TRIM(IF(ISERR(Sheet1!AK16),"",Sheet1!AK16)) ->  | AL16: =TRIM(IF(ISERR(Sheet1!AL16),"",Sheet1!AL16)) ->  | AM16: =TRIM(IF(ISERR(Sheet1!AM16),"",Sheet1!AM16)) ->  | AN16: =TRIM(IF(ISERR(Sheet1!AN16),"",Sheet1!AN16)) ->  | AO16: =TRIM(IF(ISERR(Sheet1!AO16),"",Sheet1!AO16)) ->  | AP16: =TRIM(IF(ISERR(Sheet1!AP16),"",Sheet1!AP16)) ->  | AQ16: =TRIM(IF(ISERR(Sheet1!AQ16),"",Sheet1!AQ16)) ->  | AR16: =TRIM(IF(ISERR(Sheet1!AR16),"",Sheet1!AR16)) ->  | AS16: =TRIM(IF(ISERR(Sheet1!AS16),"",Sheet1!AS16)) ->  | AT16: =TRIM(IF(ISERR(Sheet1!AT16),"",Sheet1!AT16)) ->  | AU16: =TRIM(IF(ISERR(Sheet1!AU16),"",Sheet1!AU16)) ->  | AV16: =TRIM(IF(ISERR(Sheet1!AV16),"",Sheet1!AV16)) ->  | AW16: =TRIM(IF(ISERR(Sheet1!AW16),"",Sheet1!AW16)) ->  | AX16: =TRIM(IF(ISERR(Sheet1!AX16),"",Sheet1!AX16)) ->  | AY16: =TRIM(IF(ISERR(Sheet1!AY16),"",Sheet1!AY16)) ->  | AZ16: =TRIM(IF(ISERR(Sheet1!AZ16),"",Sheet1!AZ16)) ->  | BA16: =TRIM(IF(ISERR(Sheet1!BA16),"",Sheet1!BA16)) ->  | BB16: =TRIM(IF(ISERR(Sheet1!BB16),"",Sheet1!BB16)) ->  | BC16: =TRIM(IF(ISERR(Sheet1!BC16),"",Sheet1!BC16)) ->  | BD16: =TRIM(IF(ISERR(Sheet1!BD16),"",Sheet1!BD16)) ->  | BE16: =TRIM(IF(ISERR(Sheet1!BE16),"",Sheet1!BE16)) ->  | BF16: =TRIM(IF(ISERR(Sheet1!BF16),"",Sheet1!BF16)) ->  | BG16: =TRIM(IF(ISERR(Sheet1!BG16),"",Sheet1!BG16)) -> 
C17: =TRIM(IF(ISERR(Sheet1!C17),"",Sheet1!C17)) ->  | D17: =TRIM(IF(ISERR(Sheet1!D17),"",Sheet1!D17)) ->  | E17: =TRIM(IF(ISERR(Sheet1!E17),"",Sheet1!E17)) ->  | F17: =TRIM(IF(ISERR(Sheet1!F17),"",Sheet1!F17)) ->  | G17: =TRIM(IF(ISERR(Sheet1!G17),"",Sheet1!G17)) ->  | H17: =TRIM(IF(ISERR(Sheet1!H17),"",Sheet1!H17)) ->  | I17: =TRIM(IF(ISERR(Sheet1!I17),"",Sheet1!I17)) ->  | J17: =TRIM(IF(ISERR(Sheet1!J17),"",Sheet1!J17)) ->  | K17: =TRIM(IF(ISERR(Sheet1!K17),"",Sheet1!K17)) ->  | L17: =TRIM(IF(ISERR(Sheet1!L17),"",Sheet1!L17)) ->  | M17: =TRIM(IF(ISERR(Sheet1!M17),"",Sheet1!M17)) ->  | N17: =TRIM(IF(ISERR(Sheet1!N17),"",Sheet1!N17)) ->  | O17: =TRIM(IF(ISERR(Sheet1!O17),"",Sheet1!O17)) ->  | P17: =TRIM(IF(ISERR(Sheet1!P17),"",Sheet1!P17)) ->  | Q17: =TRIM(IF(ISERR(Sheet1!Q17),"",Sheet1!Q17)) ->  | R17: =TRIM(IF(ISERR(Sheet1!R17),"",Sheet1!R17)) ->  | S17: =TRIM(IF(ISERR(Sheet1!S17),"",Sheet1!S17)) ->  | T17: =TRIM(IF(ISERR(Sheet1!T17),"",Sheet1!T17)) ->  | U17: =TRIM(IF(ISERR(Sheet1!U17),"",Sheet1!U17)) ->  | V17: =TRIM(IF(ISERR(Sheet1!V17),"",Sheet1!V17)) ->  | W17: =TRIM(IF(ISERR(Sheet1!W17),"",Sheet1!W17)) ->  | X17: =TRIM(IF(ISERR(Sheet1!X17),"",Sheet1!X17)) ->  | Y17: =TRIM(IF(ISERR(Sheet1!Y17),"",Sheet1!Y17)) ->  | Z17: =TRIM(IF(ISERR(Sheet1!Z17),"",Sheet1!Z17)) ->  | AA17: =TRIM(IF(ISERR(Sheet1!AA17),"",Sheet1!AA17)) ->  | AB17: =TRIM(IF(ISERR(Sheet1!AB17),"",Sheet1!AB17)) ->  | AC17: =TRIM(IF(ISERR(Sheet1!AC17),"",Sheet1!AC17)) ->  | AD17: =TRIM(IF(ISERR(Sheet1!AD17),"",Sheet1!AD17)) ->  | AE17: =TRIM(IF(ISERR(Sheet1!AE17),"",Sheet1!AE17)) ->  | AF17: =TRIM(IF(ISERR(Sheet1!AF17),"",Sheet1!AF17)) ->  | AG17: =TRIM(IF(ISERR(Sheet1!AG17),"",Sheet1!AG17)) ->  | AH17: =TRIM(IF(ISERR(Sheet1!AH17),"",Sheet1!AH17)) ->  | AI17: =TRIM(IF(ISERR(Sheet1!AI17),"",Sheet1!AI17)) ->  | AJ17: =TRIM(IF(ISERR(Sheet1!AJ17),"",Sheet1!AJ17)) ->  | AK17: =TRIM(IF(ISERR(Sheet1!AK17),"",Sheet1!AK17)) ->  | AL17: =TRIM(IF(ISERR(Sheet1!AL17),"",Sheet1!AL17)) ->  | AM17: =TRIM(IF(ISERR(Sheet1!AM17),"",Sheet1!AM17)) ->  | AN17: =TRIM(IF(ISERR(Sheet1!AN17),"",Sheet1!AN17)) ->  | AO17: =TRIM(IF(ISERR(Sheet1!AO17),"",Sheet1!AO17)) ->  | AP17: =TRIM(IF(ISERR(Sheet1!AP17),"",Sheet1!AP17)) ->  | AQ17: =TRIM(IF(ISERR(Sheet1!AQ17),"",Sheet1!AQ17)) ->  | AR17: =TRIM(IF(ISERR(Sheet1!AR17),"",Sheet1!AR17)) ->  | AS17: =TRIM(IF(ISERR(Sheet1!AS17),"",Sheet1!AS17)) ->  | AT17: =TRIM(IF(ISERR(Sheet1!AT17),"",Sheet1!AT17)) ->  | AU17: =TRIM(IF(ISERR(Sheet1!AU17),"",Sheet1!AU17)) ->  | AV17: =TRIM(IF(ISERR(Sheet1!AV17),"",Sheet1!AV17)) ->  | AW17: =TRIM(IF(ISERR(Sheet1!AW17),"",Sheet1!AW17)) ->  | AX17: =TRIM(IF(ISERR(Sheet1!AX17),"",Sheet1!AX17)) ->  | AY17: =TRIM(IF(ISERR(Sheet1!AY17),"",Sheet1!AY17)) ->  | AZ17: =TRIM(IF(ISERR(Sheet1!AZ17),"",Sheet1!AZ17)) ->  | BA17: =TRIM(IF(ISERR(Sheet1!BA17),"",Sheet1!BA17)) ->  | BB17: =TRIM(IF(ISERR(Sheet1!BB17),"",Sheet1!BB17)) ->  | BC17: =TRIM(IF(ISERR(Sheet1!BC17),"",Sheet1!BC17)) ->  | BD17: =TRIM(IF(ISERR(Sheet1!BD17),"",Sheet1!BD17)) ->  | BE17: =TRIM(IF(ISERR(Sheet1!BE17),"",Sheet1!BE17)) ->  | BF17: =TRIM(IF(ISERR(Sheet1!BF17),"",Sheet1!BF17)) ->  | BG17: =TRIM(IF(ISERR(Sheet1!BG17),"",Sheet1!BG17)) -> 
C18: =TRIM(IF(ISERR(Sheet1!C18),"",Sheet1!C18)) ->  | D18: =TRIM(IF(ISERR(Sheet1!D18),"",Sheet1!D18)) ->  | E18: =TRIM(IF(ISERR(Sheet1!E18),"",Sheet1!E18)) ->  | F18: =TRIM(IF(ISERR(Sheet1!F18),"",Sheet1!F18)) ->  | G18: =TRIM(IF(ISERR(Sheet1!G18),"",Sheet1!G18)) ->  | H18: =TRIM(IF(ISERR(Sheet1!H18),"",Sheet1!H18)) ->  | I18: =TRIM(IF(ISERR(Sheet1!I18),"",Sheet1!I18)) ->  | J18: =TRIM(IF(ISERR(Sheet1!J18),"",Sheet1!J18)) ->  | K18: =TRIM(IF(ISERR(Sheet1!K18),"",Sheet1!K18)) ->  | L18: =TRIM(IF(ISERR(Sheet1!L18),"",Sheet1!L18)) ->  | M18: =TRIM(IF(ISERR(Sheet1!M18),"",Sheet1!M18)) ->  | N18: =TRIM(IF(ISERR(Sheet1!N18),"",Sheet1!N18)) ->  | O18: =TRIM(IF(ISERR(Sheet1!O18),"",Sheet1!O18)) ->  | P18: =TRIM(IF(ISERR(Sheet1!P18),"",Sheet1!P18)) ->  | Q18: =TRIM(IF(ISERR(Sheet1!Q18),"",Sheet1!Q18)) ->  | R18: =TRIM(IF(ISERR(Sheet1!R18),"",Sheet1!R18)) ->  | S18: =TRIM(IF(ISERR(Sheet1!S18),"",Sheet1!S18)) ->  | T18: =TRIM(IF(ISERR(Sheet1!T18),"",Sheet1!T18)) ->  | U18: =TRIM(IF(ISERR(Sheet1!U18),"",Sheet1!U18)) ->  | V18: =TRIM(IF(ISERR(Sheet1!V18),"",Sheet1!V18)) ->  | W18: =TRIM(IF(ISERR(Sheet1!W18),"",Sheet1!W18)) ->  | X18: =TRIM(IF(ISERR(Sheet1!X18),"",Sheet1!X18)) ->  | Y18: =TRIM(IF(ISERR(Sheet1!Y18),"",Sheet1!Y18)) ->  | Z18: =TRIM(IF(ISERR(Sheet1!Z18),"",Sheet1!Z18)) ->  | AA18: =TRIM(IF(ISERR(Sheet1!AA18),"",Sheet1!AA18)) ->  | AB18: =TRIM(IF(ISERR(Sheet1!AB18),"",Sheet1!AB18)) ->  | AC18: =TRIM(IF(ISERR(Sheet1!AC18),"",Sheet1!AC18)) ->  | AD18: =TRIM(IF(ISERR(Sheet1!AD18),"",Sheet1!AD18)) ->  | AE18: =TRIM(IF(ISERR(Sheet1!AE18),"",Sheet1!AE18)) ->  | AF18: =TRIM(IF(ISERR(Sheet1!AF18),"",Sheet1!AF18)) ->  | AG18: =TRIM(IF(ISERR(Sheet1!AG18),"",Sheet1!AG18)) ->  | AH18: =TRIM(IF(ISERR(Sheet1!AH18),"",Sheet1!AH18)) ->  | AI18: =TRIM(IF(ISERR(Sheet1!AI18),"",Sheet1!AI18)) ->  | AJ18: =TRIM(IF(ISERR(Sheet1!AJ18),"",Sheet1!AJ18)) ->  | AK18: =TRIM(IF(ISERR(Sheet1!AK18),"",Sheet1!AK18)) ->  | AL18: =TRIM(IF(ISERR(Sheet1!AL18),"",Sheet1!AL18)) ->  | AM18: =TRIM(IF(ISERR(Sheet1!AM18),"",Sheet1!AM18)) ->  | AN18: =TRIM(IF(ISERR(Sheet1!AN18),"",Sheet1!AN18)) ->  | AO18: =TRIM(IF(ISERR(Sheet1!AO18),"",Sheet1!AO18)) ->  | AP18: =TRIM(IF(ISERR(Sheet1!AP18),"",Sheet1!AP18)) ->  | AQ18: =TRIM(IF(ISERR(Sheet1!AQ18),"",Sheet1!AQ18)) ->  | AR18: =TRIM(IF(ISERR(Sheet1!AR18),"",Sheet1!AR18)) ->  | AS18: =TRIM(IF(ISERR(Sheet1!AS18),"",Sheet1!AS18)) ->  | AT18: =TRIM(IF(ISERR(Sheet1!AT18),"",Sheet1!AT18)) ->  | AU18: =TRIM(IF(ISERR(Sheet1!AU18),"",Sheet1!AU18)) ->  | AV18: =TRIM(IF(ISERR(Sheet1!AV18),"",Sheet1!AV18)) ->  | AW18: =TRIM(IF(ISERR(Sheet1!AW18),"",Sheet1!AW18)) ->  | AX18: =TRIM(IF(ISERR(Sheet1!AX18),"",Sheet1!AX18)) ->  | AY18: =TRIM(IF(ISERR(Sheet1!AY18),"",Sheet1!AY18)) ->  | AZ18: =TRIM(IF(ISERR(Sheet1!AZ18),"",Sheet1!AZ18)) ->  | BA18: =TRIM(IF(ISERR(Sheet1!BA18),"",Sheet1!BA18)) ->  | BB18: =TRIM(IF(ISERR(Sheet1!BB18),"",Sheet1!BB18)) ->  | BC18: =TRIM(IF(ISERR(Sheet1!BC18),"",Sheet1!BC18)) ->  | BD18: =TRIM(IF(ISERR(Sheet1!BD18),"",Sheet1!BD18)) ->  | BE18: =TRIM(IF(ISERR(Sheet1!BE18),"",Sheet1!BE18)) ->  | BF18: =TRIM(IF(ISERR(Sheet1!BF18),"",Sheet1!BF18)) ->  | BG18: =TRIM(IF(ISERR(Sheet1!BG18),"",Sheet1!BG18)) -> 
C19: =TRIM(IF(ISERR(Sheet1!C19),"",Sheet1!C19)) ->  | D19: =TRIM(IF(ISERR(Sheet1!D19),"",Sheet1!D19)) ->  | E19: =TRIM(IF(ISERR(Sheet1!E19),"",Sheet1!E19)) ->  | F19: =TRIM(IF(ISERR(Sheet1!F19),"",Sheet1!F19)) ->  | G19: =TRIM(IF(ISERR(Sheet1!G19),"",Sheet1!G19)) ->  | H19: =TRIM(IF(ISERR(Sheet1!H19),"",Sheet1!H19)) ->  | I19: =TRIM(IF(ISERR(Sheet1!I19),"",Sheet1!I19)) ->  | J19: =TRIM(IF(ISERR(Sheet1!J19),"",Sheet1!J19)) ->  | K19: =TRIM(IF(ISERR(Sheet1!K19),"",Sheet1!K19)) ->  | L19: =TRIM(IF(ISERR(Sheet1!L19),"",Sheet1!L19)) ->  | M19: =TRIM(IF(ISERR(Sheet1!M19),"",Sheet1!M19)) ->  | N19: =TRIM(IF(ISERR(Sheet1!N19),"",Sheet1!N19)) ->  | O19: =TRIM(IF(ISERR(Sheet1!O19),"",Sheet1!O19)) ->  | P19: =TRIM(IF(ISERR(Sheet1!P19),"",Sheet1!P19)) ->  | Q19: =TRIM(IF(ISERR(Sheet1!Q19),"",Sheet1!Q19)) ->  | R19: =TRIM(IF(ISERR(Sheet1!R19),"",Sheet1!R19)) ->  | S19: =TRIM(IF(ISERR(Sheet1!S19),"",Sheet1!S19)) ->  | T19: =TRIM(IF(ISERR(Sheet1!T19),"",Sheet1!T19)) ->  | U19: =TRIM(IF(ISERR(Sheet1!U19),"",Sheet1!U19)) ->  | V19: =TRIM(IF(ISERR(Sheet1!V19),"",Sheet1!V19)) ->  | W19: =TRIM(IF(ISERR(Sheet1!W19),"",Sheet1!W19)) ->  | X19: =TRIM(IF(ISERR(Sheet1!X19),"",Sheet1!X19)) ->  | Y19: =TRIM(IF(ISERR(Sheet1!Y19),"",Sheet1!Y19)) ->  | Z19: =TRIM(IF(ISERR(Sheet1!Z19),"",Sheet1!Z19)) ->  | AA19: =TRIM(IF(ISERR(Sheet1!AA19),"",Sheet1!AA19)) ->  | AB19: =TRIM(IF(ISERR(Sheet1!AB19),"",Sheet1!AB19)) ->  | AC19: =TRIM(IF(ISERR(Sheet1!AC19),"",Sheet1!AC19)) ->  | AD19: =TRIM(IF(ISERR(Sheet1!AD19),"",Sheet1!AD19)) ->  | AE19: =TRIM(IF(ISERR(Sheet1!AE19),"",Sheet1!AE19)) ->  | AF19: =TRIM(IF(ISERR(Sheet1!AF19),"",Sheet1!AF19)) ->  | AG19: =TRIM(IF(ISERR(Sheet1!AG19),"",Sheet1!AG19)) ->  | AH19: =TRIM(IF(ISERR(Sheet1!AH19),"",Sheet1!AH19)) ->  | AI19: =TRIM(IF(ISERR(Sheet1!AI19),"",Sheet1!AI19)) ->  | AJ19: =TRIM(IF(ISERR(Sheet1!AJ19),"",Sheet1!AJ19)) ->  | AK19: =TRIM(IF(ISERR(Sheet1!AK19),"",Sheet1!AK19)) ->  | AL19: =TRIM(IF(ISERR(Sheet1!AL19),"",Sheet1!AL19)) ->  | AM19: =TRIM(IF(ISERR(Sheet1!AM19),"",Sheet1!AM19)) ->  | AN19: =TRIM(IF(ISERR(Sheet1!AN19),"",Sheet1!AN19)) ->  | AO19: =TRIM(IF(ISERR(Sheet1!AO19),"",Sheet1!AO19)) ->  | AP19: =TRIM(IF(ISERR(Sheet1!AP19),"",Sheet1!AP19)) ->  | AQ19: =TRIM(IF(ISERR(Sheet1!AQ19),"",Sheet1!AQ19)) ->  | AR19: =TRIM(IF(ISERR(Sheet1!AR19),"",Sheet1!AR19)) ->  | AS19: =TRIM(IF(ISERR(Sheet1!AS19),"",Sheet1!AS19)) ->  | AT19: =TRIM(IF(ISERR(Sheet1!AT19),"",Sheet1!AT19)) ->  | AU19: =TRIM(IF(ISERR(Sheet1!AU19),"",Sheet1!AU19)) ->  | AV19: =TRIM(IF(ISERR(Sheet1!AV19),"",Sheet1!AV19)) ->  | AW19: =TRIM(IF(ISERR(Sheet1!AW19),"",Sheet1!AW19)) ->  | AX19: =TRIM(IF(ISERR(Sheet1!AX19),"",Sheet1!AX19)) ->  | AY19: =TRIM(IF(ISERR(Sheet1!AY19),"",Sheet1!AY19)) ->  | AZ19: =TRIM(IF(ISERR(Sheet1!AZ19),"",Sheet1!AZ19)) ->  | BA19: =TRIM(IF(ISERR(Sheet1!BA19),"",Sheet1!BA19)) ->  | BB19: =TRIM(IF(ISERR(Sheet1!BB19),"",Sheet1!BB19)) ->  | BC19: =TRIM(IF(ISERR(Sheet1!BC19),"",Sheet1!BC19)) ->  | BD19: =TRIM(IF(ISERR(Sheet1!BD19),"",Sheet1!BD19)) ->  | BE19: =TRIM(IF(ISERR(Sheet1!BE19),"",Sheet1!BE19)) ->  | BF19: =TRIM(IF(ISERR(Sheet1!BF19),"",Sheet1!BF19)) ->  | BG19: =TRIM(IF(ISERR(Sheet1!BG19),"",Sheet1!BG19)) -> 
C20: =TRIM(IF(ISERR(Sheet1!C20),"",Sheet1!C20)) ->  | D20: =TRIM(IF(ISERR(Sheet1!D20),"",Sheet1!D20)) ->  | E20: =TRIM(IF(ISERR(Sheet1!E20),"",Sheet1!E20)) ->  | F20: =TRIM(IF(ISERR(Sheet1!F20),"",Sheet1!F20)) ->  | G20: =TRIM(IF(ISERR(Sheet1!G20),"",Sheet1!G20)) ->  | H20: =TRIM(IF(ISERR(Sheet1!H20),"",Sheet1!H20)) ->  | I20: =TRIM(IF(ISERR(Sheet1!I20),"",Sheet1!I20)) ->  | J20: =TRIM(IF(ISERR(Sheet1!J20),"",Sheet1!J20)) ->  | K20: =TRIM(IF(ISERR(Sheet1!K20),"",Sheet1!K20)) ->  | L20: =TRIM(IF(ISERR(Sheet1!L20),"",Sheet1!L20)) ->  | M20: =TRIM(IF(ISERR(Sheet1!M20),"",Sheet1!M20)) ->  | N20: =TRIM(IF(ISERR(Sheet1!N20),"",Sheet1!N20)) ->  | O20: =TRIM(IF(ISERR(Sheet1!O20),"",Sheet1!O20)) ->  | P20: =TRIM(IF(ISERR(Sheet1!P20),"",Sheet1!P20)) ->  | Q20: =TRIM(IF(ISERR(Sheet1!Q20),"",Sheet1!Q20)) ->  | R20: =TRIM(IF(ISERR(Sheet1!R20),"",Sheet1!R20)) ->  | S20: =TRIM(IF(ISERR(Sheet1!S20),"",Sheet1!S20)) ->  | T20: =TRIM(IF(ISERR(Sheet1!T20),"",Sheet1!T20)) ->  | U20: =TRIM(IF(ISERR(Sheet1!U20),"",Sheet1!U20)) ->  | V20: =TRIM(IF(ISERR(Sheet1!V20),"",Sheet1!V20)) ->  | W20: =TRIM(IF(ISERR(Sheet1!W20),"",Sheet1!W20)) ->  | X20: =TRIM(IF(ISERR(Sheet1!X20),"",Sheet1!X20)) ->  | Y20: =TRIM(IF(ISERR(Sheet1!Y20),"",Sheet1!Y20)) ->  | Z20: =TRIM(IF(ISERR(Sheet1!Z20),"",Sheet1!Z20)) ->  | AA20: =TRIM(IF(ISERR(Sheet1!AA20),"",Sheet1!AA20)) ->  | AB20: =TRIM(IF(ISERR(Sheet1!AB20),"",Sheet1!AB20)) ->  | AC20: =TRIM(IF(ISERR(Sheet1!AC20),"",Sheet1!AC20)) ->  | AD20: =TRIM(IF(ISERR(Sheet1!AD20),"",Sheet1!AD20)) ->  | AE20: =TRIM(IF(ISERR(Sheet1!AE20),"",Sheet1!AE20)) ->  | AF20: =TRIM(IF(ISERR(Sheet1!AF20),"",Sheet1!AF20)) ->  | AG20: =TRIM(IF(ISERR(Sheet1!AG20),"",Sheet1!AG20)) ->  | AH20: =TRIM(IF(ISERR(Sheet1!AH20),"",Sheet1!AH20)) ->  | AI20: =TRIM(IF(ISERR(Sheet1!AI20),"",Sheet1!AI20)) ->  | AJ20: =TRIM(IF(ISERR(Sheet1!AJ20),"",Sheet1!AJ20)) ->  | AK20: =TRIM(IF(ISERR(Sheet1!AK20),"",Sheet1!AK20)) ->  | AL20: =TRIM(IF(ISERR(Sheet1!AL20),"",Sheet1!AL20)) ->  | AM20: =TRIM(IF(ISERR(Sheet1!AM20),"",Sheet1!AM20)) ->  | AN20: =TRIM(IF(ISERR(Sheet1!AN20),"",Sheet1!AN20)) ->  | AO20: =TRIM(IF(ISERR(Sheet1!AO20),"",Sheet1!AO20)) ->  | AP20: =TRIM(IF(ISERR(Sheet1!AP20),"",Sheet1!AP20)) ->  | AQ20: =TRIM(IF(ISERR(Sheet1!AQ20),"",Sheet1!AQ20)) ->  | AR20: =TRIM(IF(ISERR(Sheet1!AR20),"",Sheet1!AR20)) ->  | AS20: =TRIM(IF(ISERR(Sheet1!AS20),"",Sheet1!AS20)) ->  | AT20: =TRIM(IF(ISERR(Sheet1!AT20),"",Sheet1!AT20)) ->  | AU20: =TRIM(IF(ISERR(Sheet1!AU20),"",Sheet1!AU20)) ->  | AV20: =TRIM(IF(ISERR(Sheet1!AV20),"",Sheet1!AV20)) ->  | AW20: =TRIM(IF(ISERR(Sheet1!AW20),"",Sheet1!AW20)) ->  | AX20: =TRIM(IF(ISERR(Sheet1!AX20),"",Sheet1!AX20)) ->  | AY20: =TRIM(IF(ISERR(Sheet1!AY20),"",Sheet1!AY20)) ->  | AZ20: =TRIM(IF(ISERR(Sheet1!AZ20),"",Sheet1!AZ20)) ->  | BA20: =TRIM(IF(ISERR(Sheet1!BA20),"",Sheet1!BA20)) ->  | BB20: =TRIM(IF(ISERR(Sheet1!BB20),"",Sheet1!BB20)) ->  | BC20: =TRIM(IF(ISERR(Sheet1!BC20),"",Sheet1!BC20)) ->  | BD20: =TRIM(IF(ISERR(Sheet1!BD20),"",Sheet1!BD20)) ->  | BE20: =TRIM(IF(ISERR(Sheet1!BE20),"",Sheet1!BE20)) ->  | BF20: =TRIM(IF(ISERR(Sheet1!BF20),"",Sheet1!BF20)) ->  | BG20: =TRIM(IF(ISERR(Sheet1!BG20),"",Sheet1!BG20)) ->  | CK20: ← | CL20: このボタンは保護解除後有効となります
C21: =TRIM(IF(ISERR(Sheet1!C21),"",Sheet1!C21)) ->  | D21: =TRIM(IF(ISERR(Sheet1!D21),"",Sheet1!D21)) ->  | E21: =TRIM(IF(ISERR(Sheet1!E21),"",Sheet1!E21)) ->  | F21: =TRIM(IF(ISERR(Sheet1!F21),"",Sheet1!F21)) ->  | G21: =TRIM(IF(ISERR(Sheet1!G21),"",Sheet1!G21)) ->  | H21: =TRIM(IF(ISERR(Sheet1!H21),"",Sheet1!H21)) ->  | I21: =TRIM(IF(ISERR(Sheet1!I21),"",Sheet1!I21)) ->  | J21: =TRIM(IF(ISERR(Sheet1!J21),"",Sheet1!J21)) ->  | K21: =TRIM(IF(ISERR(Sheet1!K21),"",Sheet1!K21)) ->  | L21: =TRIM(IF(ISERR(Sheet1!L21),"",Sheet1!L21)) ->  | M21: =TRIM(IF(ISERR(Sheet1!M21),"",Sheet1!M21)) ->  | N21: =TRIM(IF(ISERR(Sheet1!N21),"",Sheet1!N21)) ->  | O21: =TRIM(IF(ISERR(Sheet1!O21),"",Sheet1!O21)) ->  | P21: =TRIM(IF(ISERR(Sheet1!P21),"",Sheet1!P21)) ->  | Q21: =TRIM(IF(ISERR(Sheet1!Q21),"",Sheet1!Q21)) ->  | R21: =TRIM(IF(ISERR(Sheet1!R21),"",Sheet1!R21)) ->  | S21: =TRIM(IF(ISERR(Sheet1!S21),"",Sheet1!S21)) ->  | T21: =TRIM(IF(ISERR(Sheet1!T21),"",Sheet1!T21)) ->  | U21: =TRIM(IF(ISERR(Sheet1!U21),"",Sheet1!U21)) ->  | V21: =TRIM(IF(ISERR(Sheet1!V21),"",Sheet1!V21)) ->  | W21: =TRIM(IF(ISERR(Sheet1!W21),"",Sheet1!W21)) ->  | X21: =TRIM(IF(ISERR(Sheet1!X21),"",Sheet1!X21)) ->  | Y21: =TRIM(IF(ISERR(Sheet1!Y21),"",Sheet1!Y21)) ->  | Z21: =TRIM(IF(ISERR(Sheet1!Z21),"",Sheet1!Z21)) ->  | AA21: =TRIM(IF(ISERR(Sheet1!AA21),"",Sheet1!AA21)) ->  | AB21: =TRIM(IF(ISERR(Sheet1!AB21),"",Sheet1!AB21)) ->  | AC21: =TRIM(IF(ISERR(Sheet1!AC21),"",Sheet1!AC21)) ->  | AD21: =TRIM(IF(ISERR(Sheet1!AD21),"",Sheet1!AD21)) ->  | AE21: =TRIM(IF(ISERR(Sheet1!AE21),"",Sheet1!AE21)) ->  | AF21: =TRIM(IF(ISERR(Sheet1!AF21),"",Sheet1!AF21)) ->  | AG21: =TRIM(IF(ISERR(Sheet1!AG21),"",Sheet1!AG21)) ->  | AH21: =TRIM(IF(ISERR(Sheet1!AH21),"",Sheet1!AH21)) ->  | AI21: =TRIM(IF(ISERR(Sheet1!AI21),"",Sheet1!AI21)) ->  | AJ21: =TRIM(IF(ISERR(Sheet1!AJ21),"",Sheet1!AJ21)) ->  | AK21: =TRIM(IF(ISERR(Sheet1!AK21),"",Sheet1!AK21)) ->  | AL21: =TRIM(IF(ISERR(Sheet1!AL21),"",Sheet1!AL21)) ->  | AM21: =TRIM(IF(ISERR(Sheet1!AM21),"",Sheet1!AM21)) ->  | AN21: =TRIM(IF(ISERR(Sheet1!AN21),"",Sheet1!AN21)) ->  | AO21: =TRIM(IF(ISERR(Sheet1!AO21),"",Sheet1!AO21)) ->  | AP21: =TRIM(IF(ISERR(Sheet1!AP21),"",Sheet1!AP21)) ->  | AQ21: =TRIM(IF(ISERR(Sheet1!AQ21),"",Sheet1!AQ21)) ->  | AR21: =TRIM(IF(ISERR(Sheet1!AR21),"",Sheet1!AR21)) ->  | AS21: =TRIM(IF(ISERR(Sheet1!AS21),"",Sheet1!AS21)) ->  | AT21: =TRIM(IF(ISERR(Sheet1!AT21),"",Sheet1!AT21)) ->  | AU21: =TRIM(IF(ISERR(Sheet1!AU21),"",Sheet1!AU21)) ->  | AV21: =TRIM(IF(ISERR(Sheet1!AV21),"",Sheet1!AV21)) ->  | AW21: =TRIM(IF(ISERR(Sheet1!AW21),"",Sheet1!AW21)) ->  | AX21: =TRIM(IF(ISERR(Sheet1!AX21),"",Sheet1!AX21)) ->  | AY21: =TRIM(IF(ISERR(Sheet1!AY21),"",Sheet1!AY21)) ->  | AZ21: =TRIM(IF(ISERR(Sheet1!AZ21),"",Sheet1!AZ21)) ->  | BA21: =TRIM(IF(ISERR(Sheet1!BA21),"",Sheet1!BA21)) ->  | BB21: =TRIM(IF(ISERR(Sheet1!BB21),"",Sheet1!BB21)) ->  | BC21: =TRIM(IF(ISERR(Sheet1!BC21),"",Sheet1!BC21)) ->  | BD21: =TRIM(IF(ISERR(Sheet1!BD21),"",Sheet1!BD21)) ->  | BE21: =TRIM(IF(ISERR(Sheet1!BE21),"",Sheet1!BE21)) ->  | BF21: =TRIM(IF(ISERR(Sheet1!BF21),"",Sheet1!BF21)) ->  | BG21: =TRIM(IF(ISERR(Sheet1!BG21),"",Sheet1!BG21)) -> 
C22: =TRIM(IF(ISERR(Sheet1!C22),"",Sheet1!C22)) ->  | D22: =TRIM(IF(ISERR(Sheet1!D22),"",Sheet1!D22)) ->  | E22: =TRIM(IF(ISERR(Sheet1!E22),"",Sheet1!E22)) ->  | F22: =TRIM(IF(ISERR(Sheet1!F22),"",Sheet1!F22)) ->  | G22: =TRIM(IF(ISERR(Sheet1!G22),"",Sheet1!G22)) ->  | H22: =TRIM(IF(ISERR(Sheet1!H22),"",Sheet1!H22)) ->  | I22: =TRIM(IF(ISERR(Sheet1!I22),"",Sheet1!I22)) ->  | J22: =TRIM(IF(ISERR(Sheet1!J22),"",Sheet1!J22)) ->  | K22: =TRIM(IF(ISERR(Sheet1!K22),"",Sheet1!K22)) ->  | L22: =TRIM(IF(ISERR(Sheet1!L22),"",Sheet1!L22)) ->  | M22: =TRIM(IF(ISERR(Sheet1!M22),"",Sheet1!M22)) ->  | N22: =TRIM(IF(ISERR(Sheet1!N22),"",Sheet1!N22)) ->  | O22: =TRIM(IF(ISERR(Sheet1!O22),"",Sheet1!O22)) ->  | P22: =TRIM(IF(ISERR(Sheet1!P22),"",Sheet1!P22)) ->  | Q22: =TRIM(IF(ISERR(Sheet1!Q22),"",Sheet1!Q22)) ->  | R22: =TRIM(IF(ISERR(Sheet1!R22),"",Sheet1!R22)) ->  | S22: =TRIM(IF(ISERR(Sheet1!S22),"",Sheet1!S22)) ->  | T22: =TRIM(IF(ISERR(Sheet1!T22),"",Sheet1!T22)) ->  | U22: =TRIM(IF(ISERR(Sheet1!U22),"",Sheet1!U22)) ->  | V22: =TRIM(IF(ISERR(Sheet1!V22),"",Sheet1!V22)) ->  | W22: =TRIM(IF(ISERR(Sheet1!W22),"",Sheet1!W22)) ->  | X22: =TRIM(IF(ISERR(Sheet1!X22),"",Sheet1!X22)) ->  | Y22: =TRIM(IF(ISERR(Sheet1!Y22),"",Sheet1!Y22)) ->  | Z22: =TRIM(IF(ISERR(Sheet1!Z22),"",Sheet1!Z22)) ->  | AA22: =TRIM(IF(ISERR(Sheet1!AA22),"",Sheet1!AA22)) ->  | AB22: =TRIM(IF(ISERR(Sheet1!AB22),"",Sheet1!AB22)) ->  | AC22: =TRIM(IF(ISERR(Sheet1!AC22),"",Sheet1!AC22)) ->  | AD22: =TRIM(IF(ISERR(Sheet1!AD22),"",Sheet1!AD22)) ->  | AE22: =TRIM(IF(ISERR(Sheet1!AE22),"",Sheet1!AE22)) ->  | AF22: =TRIM(IF(ISERR(Sheet1!AF22),"",Sheet1!AF22)) ->  | AG22: =TRIM(IF(ISERR(Sheet1!AG22),"",Sheet1!AG22)) ->  | AH22: =TRIM(IF(ISERR(Sheet1!AH22),"",Sheet1!AH22)) ->  | AI22: =TRIM(IF(ISERR(Sheet1!AI22),"",Sheet1!AI22)) ->  | AJ22: =TRIM(IF(ISERR(Sheet1!AJ22),"",Sheet1!AJ22)) ->  | AK22: =TRIM(IF(ISERR(Sheet1!AK22),"",Sheet1!AK22)) ->  | AL22: =TRIM(IF(ISERR(Sheet1!AL22),"",Sheet1!AL22)) ->  | AM22: =TRIM(IF(ISERR(Sheet1!AM22),"",Sheet1!AM22)) ->  | AN22: =TRIM(IF(ISERR(Sheet1!AN22),"",Sheet1!AN22)) ->  | AO22: =TRIM(IF(ISERR(Sheet1!AO22),"",Sheet1!AO22)) ->  | AP22: =TRIM(IF(ISERR(Sheet1!AP22),"",Sheet1!AP22)) ->  | AQ22: =TRIM(IF(ISERR(Sheet1!AQ22),"",Sheet1!AQ22)) ->  | AR22: =TRIM(IF(ISERR(Sheet1!AR22),"",Sheet1!AR22)) ->  | AS22: =TRIM(IF(ISERR(Sheet1!AS22),"",Sheet1!AS22)) ->  | AT22: =TRIM(IF(ISERR(Sheet1!AT22),"",Sheet1!AT22)) ->  | AU22: =TRIM(IF(ISERR(Sheet1!AU22),"",Sheet1!AU22)) ->  | AV22: =TRIM(IF(ISERR(Sheet1!AV22),"",Sheet1!AV22)) ->  | AW22: =TRIM(IF(ISERR(Sheet1!AW22),"",Sheet1!AW22)) ->  | AX22: =TRIM(IF(ISERR(Sheet1!AX22),"",Sheet1!AX22)) ->  | AY22: =TRIM(IF(ISERR(Sheet1!AY22),"",Sheet1!AY22)) ->  | AZ22: =TRIM(IF(ISERR(Sheet1!AZ22),"",Sheet1!AZ22)) ->  | BA22: =TRIM(IF(ISERR(Sheet1!BA22),"",Sheet1!BA22)) ->  | BB22: =TRIM(IF(ISERR(Sheet1!BB22),"",Sheet1!BB22)) ->  | BC22: =TRIM(IF(ISERR(Sheet1!BC22),"",Sheet1!BC22)) ->  | BD22: =TRIM(IF(ISERR(Sheet1!BD22),"",Sheet1!BD22)) ->  | BE22: =TRIM(IF(ISERR(Sheet1!BE22),"",Sheet1!BE22)) ->  | BF22: =TRIM(IF(ISERR(Sheet1!BF22),"",Sheet1!BF22)) ->  | BG22: =TRIM(IF(ISERR(Sheet1!BG22),"",Sheet1!BG22)) ->  | BY22: このワークシートを印刷したマークシートは、専用ソフト「マーくん（V4.5以降)」を用いて読取り・採点ができます。(下記サイトよりダウンロード)
C23: =TRIM(IF(ISERR(Sheet1!C23),"",Sheet1!C23)) ->  | D23: =TRIM(IF(ISERR(Sheet1!D23),"",Sheet1!D23)) ->  | E23: =TRIM(IF(ISERR(Sheet1!E23),"",Sheet1!E23)) ->  | F23: =TRIM(IF(ISERR(Sheet1!F23),"",Sheet1!F23)) ->  | G23: =TRIM(IF(ISERR(Sheet1!G23),"",Sheet1!G23)) ->  | H23: =TRIM(IF(ISERR(Sheet1!H23),"",Sheet1!H23)) ->  | I23: =TRIM(IF(ISERR(Sheet1!I23),"",Sheet1!I23)) ->  | J23: =TRIM(IF(ISERR(Sheet1!J23),"",Sheet1!J23)) ->  | K23: =TRIM(IF(ISERR(Sheet1!K23),"",Sheet1!K23)) ->  | L23: =TRIM(IF(ISERR(Sheet1!L23),"",Sheet1!L23)) ->  | M23: =TRIM(IF(ISERR(Sheet1!M23),"",Sheet1!M23)) ->  | N23: =TRIM(IF(ISERR(Sheet1!N23),"",Sheet1!N23)) ->  | O23: =TRIM(IF(ISERR(Sheet1!O23),"",Sheet1!O23)) ->  | P23: =TRIM(IF(ISERR(Sheet1!P23),"",Sheet1!P23)) ->  | Q23: =TRIM(IF(ISERR(Sheet1!Q23),"",Sheet1!Q23)) ->  | R23: =TRIM(IF(ISERR(Sheet1!R23),"",Sheet1!R23)) ->  | S23: =TRIM(IF(ISERR(Sheet1!S23),"",Sheet1!S23)) ->  | T23: =TRIM(IF(ISERR(Sheet1!T23),"",Sheet1!T23)) ->  | U23: =TRIM(IF(ISERR(Sheet1!U23),"",Sheet1!U23)) ->  | V23: =TRIM(IF(ISERR(Sheet1!V23),"",Sheet1!V23)) ->  | W23: =TRIM(IF(ISERR(Sheet1!W23),"",Sheet1!W23)) ->  | X23: =TRIM(IF(ISERR(Sheet1!X23),"",Sheet1!X23)) ->  | Y23: =TRIM(IF(ISERR(Sheet1!Y23),"",Sheet1!Y23)) ->  | Z23: =TRIM(IF(ISERR(Sheet1!Z23),"",Sheet1!Z23)) ->  | AA23: =TRIM(IF(ISERR(Sheet1!AA23),"",Sheet1!AA23)) ->  | AB23: =TRIM(IF(ISERR(Sheet1!AB23),"",Sheet1!AB23)) ->  | AC23: =TRIM(IF(ISERR(Sheet1!AC23),"",Sheet1!AC23)) ->  | AD23: =TRIM(IF(ISERR(Sheet1!AD23),"",Sheet1!AD23)) ->  | AE23: =TRIM(IF(ISERR(Sheet1!AE23),"",Sheet1!AE23)) ->  | AF23: =TRIM(IF(ISERR(Sheet1!AF23),"",Sheet1!AF23)) ->  | AG23: =TRIM(IF(ISERR(Sheet1!AG23),"",Sheet1!AG23)) ->  | AH23: =TRIM(IF(ISERR(Sheet1!AH23),"",Sheet1!AH23)) ->  | AI23: =TRIM(IF(ISERR(Sheet1!AI23),"",Sheet1!AI23)) ->  | AJ23: =TRIM(IF(ISERR(Sheet1!AJ23),"",Sheet1!AJ23)) ->  | AK23: =TRIM(IF(ISERR(Sheet1!AK23),"",Sheet1!AK23)) ->  | AL23: =TRIM(IF(ISERR(Sheet1!AL23),"",Sheet1!AL23)) ->  | AM23: =TRIM(IF(ISERR(Sheet1!AM23),"",Sheet1!AM23)) ->  | AN23: =TRIM(IF(ISERR(Sheet1!AN23),"",Sheet1!AN23)) ->  | AO23: =TRIM(IF(ISERR(Sheet1!AO23),"",Sheet1!AO23)) ->  | AP23: =TRIM(IF(ISERR(Sheet1!AP23),"",Sheet1!AP23)) ->  | AQ23: =TRIM(IF(ISERR(Sheet1!AQ23),"",Sheet1!AQ23)) ->  | AR23: =TRIM(IF(ISERR(Sheet1!AR23),"",Sheet1!AR23)) ->  | AS23: =TRIM(IF(ISERR(Sheet1!AS23),"",Sheet1!AS23)) ->  | AT23: =TRIM(IF(ISERR(Sheet1!AT23),"",Sheet1!AT23)) ->  | AU23: =TRIM(IF(ISERR(Sheet1!AU23),"",Sheet1!AU23)) ->  | AV23: =TRIM(IF(ISERR(Sheet1!AV23),"",Sheet1!AV23)) ->  | AW23: =TRIM(IF(ISERR(Sheet1!AW23),"",Sheet1!AW23)) ->  | AX23: =TRIM(IF(ISERR(Sheet1!AX23),"",Sheet1!AX23)) ->  | AY23: =TRIM(IF(ISERR(Sheet1!AY23),"",Sheet1!AY23)) ->  | AZ23: =TRIM(IF(ISERR(Sheet1!AZ23),"",Sheet1!AZ23)) ->  | BA23: =TRIM(IF(ISERR(Sheet1!BA23),"",Sheet1!BA23)) ->  | BB23: =TRIM(IF(ISERR(Sheet1!BB23),"",Sheet1!BB23)) ->  | BC23: =TRIM(IF(ISERR(Sheet1!BC23),"",Sheet1!BC23)) ->  | BD23: =TRIM(IF(ISERR(Sheet1!BD23),"",Sheet1!BD23)) ->  | BE23: =TRIM(IF(ISERR(Sheet1!BE23),"",Sheet1!BE23)) ->  | BF23: =TRIM(IF(ISERR(Sheet1!BF23),"",Sheet1!BF23)) ->  | BG23: =TRIM(IF(ISERR(Sheet1!BG23),"",Sheet1!BG23)) -> 
C24: =TRIM(IF(ISERR(Sheet1!C24),"",Sheet1!C24)) ->  | D24: =TRIM(IF(ISERR(Sheet1!D24),"",Sheet1!D24)) ->  | E24: =TRIM(IF(ISERR(Sheet1!E24),"",Sheet1!E24)) ->  | F24: =TRIM(IF(ISERR(Sheet1!F24),"",Sheet1!F24)) ->  | G24: =TRIM(IF(ISERR(Sheet1!G24),"",Sheet1!G24)) ->  | H24: =TRIM(IF(ISERR(Sheet1!H24),"",Sheet1!H24)) ->  | I24: =TRIM(IF(ISERR(Sheet1!I24),"",Sheet1!I24)) ->  | J24: =TRIM(IF(ISERR(Sheet1!J24),"",Sheet1!J24)) ->  | K24: =TRIM(IF(ISERR(Sheet1!K24),"",Sheet1!K24)) ->  | L24: =TRIM(IF(ISERR(Sheet1!L24),"",Sheet1!L24)) ->  | M24: =TRIM(IF(ISERR(Sheet1!M24),"",Sheet1!M24)) ->  | N24: =TRIM(IF(ISERR(Sheet1!N24),"",Sheet1!N24)) ->  | O24: =TRIM(IF(ISERR(Sheet1!O24),"",Sheet1!O24)) ->  | P24: =TRIM(IF(ISERR(Sheet1!P24),"",Sheet1!P24)) ->  | Q24: =TRIM(IF(ISERR(Sheet1!Q24),"",Sheet1!Q24)) ->  | R24: =TRIM(IF(ISERR(Sheet1!R24),"",Sheet1!R24)) ->  | S24: =TRIM(IF(ISERR(Sheet1!S24),"",Sheet1!S24)) ->  | T24: =TRIM(IF(ISERR(Sheet1!T24),"",Sheet1!T24)) ->  | U24: =TRIM(IF(ISERR(Sheet1!U24),"",Sheet1!U24)) ->  | V24: =TRIM(IF(ISERR(Sheet1!V24),"",Sheet1!V24)) ->  | W24: =TRIM(IF(ISERR(Sheet1!W24),"",Sheet1!W24)) ->  | X24: =TRIM(IF(ISERR(Sheet1!X24),"",Sheet1!X24)) ->  | Y24: =TRIM(IF(ISERR(Sheet1!Y24),"",Sheet1!Y24)) ->  | Z24: =TRIM(IF(ISERR(Sheet1!Z24),"",Sheet1!Z24)) ->  | AA24: =TRIM(IF(ISERR(Sheet1!AA24),"",Sheet1!AA24)) ->  | AB24: =TRIM(IF(ISERR(Sheet1!AB24),"",Sheet1!AB24)) ->  | AC24: =TRIM(IF(ISERR(Sheet1!AC24),"",Sheet1!AC24)) ->  | AD24: =TRIM(IF(ISERR(Sheet1!AD24),"",Sheet1!AD24)) ->  | AE24: =TRIM(IF(ISERR(Sheet1!AE24),"",Sheet1!AE24)) ->  | AF24: =TRIM(IF(ISERR(Sheet1!AF24),"",Sheet1!AF24)) ->  | AG24: =TRIM(IF(ISERR(Sheet1!AG24),"",Sheet1!AG24)) ->  | AH24: =TRIM(IF(ISERR(Sheet1!AH24),"",Sheet1!AH24)) ->  | AI24: =TRIM(IF(ISERR(Sheet1!AI24),"",Sheet1!AI24)) ->  | AJ24: =TRIM(IF(ISERR(Sheet1!AJ24),"",Sheet1!AJ24)) ->  | AK24: =TRIM(IF(ISERR(Sheet1!AK24),"",Sheet1!AK24)) ->  | AL24: =TRIM(IF(ISERR(Sheet1!AL24),"",Sheet1!AL24)) ->  | AM24: =TRIM(IF(ISERR(Sheet1!AM24),"",Sheet1!AM24)) ->  | AN24: =TRIM(IF(ISERR(Sheet1!AN24),"",Sheet1!AN24)) ->  | AO24: =TRIM(IF(ISERR(Sheet1!AO24),"",Sheet1!AO24)) ->  | AP24: =TRIM(IF(ISERR(Sheet1!AP24),"",Sheet1!AP24)) ->  | AQ24: =TRIM(IF(ISERR(Sheet1!AQ24),"",Sheet1!AQ24)) ->  | AR24: =TRIM(IF(ISERR(Sheet1!AR24),"",Sheet1!AR24)) ->  | AS24: =TRIM(IF(ISERR(Sheet1!AS24),"",Sheet1!AS24)) ->  | AT24: =TRIM(IF(ISERR(Sheet1!AT24),"",Sheet1!AT24)) ->  | AU24: =TRIM(IF(ISERR(Sheet1!AU24),"",Sheet1!AU24)) ->  | AV24: =TRIM(IF(ISERR(Sheet1!AV24),"",Sheet1!AV24)) ->  | AW24: =TRIM(IF(ISERR(Sheet1!AW24),"",Sheet1!AW24)) ->  | AX24: =TRIM(IF(ISERR(Sheet1!AX24),"",Sheet1!AX24)) ->  | AY24: =TRIM(IF(ISERR(Sheet1!AY24),"",Sheet1!AY24)) ->  | AZ24: =TRIM(IF(ISERR(Sheet1!AZ24),"",Sheet1!AZ24)) ->  | BA24: =TRIM(IF(ISERR(Sheet1!BA24),"",Sheet1!BA24)) ->  | BB24: =TRIM(IF(ISERR(Sheet1!BB24),"",Sheet1!BB24)) ->  | BC24: =TRIM(IF(ISERR(Sheet1!BC24),"",Sheet1!BC24)) ->  | BD24: =TRIM(IF(ISERR(Sheet1!BD24),"",Sheet1!BD24)) ->  | BE24: =TRIM(IF(ISERR(Sheet1!BE24),"",Sheet1!BE24)) ->  | BF24: =TRIM(IF(ISERR(Sheet1!BF24),"",Sheet1!BF24)) ->  | BG24: =TRIM(IF(ISERR(Sheet1!BG24),"",Sheet1!BG24)) -> 
C25: =TRIM(IF(ISERR(Sheet1!C25),"",Sheet1!C25)) ->  | D25: =TRIM(IF(ISERR(Sheet1!D25),"",Sheet1!D25)) ->  | E25: =TRIM(IF(ISERR(Sheet1!E25),"",Sheet1!E25)) ->  | F25: =TRIM(IF(ISERR(Sheet1!F25),"",Sheet1!F25)) ->  | G25: =TRIM(IF(ISERR(Sheet1!G25),"",Sheet1!G25)) ->  | H25: =TRIM(IF(ISERR(Sheet1!H25),"",Sheet1!H25)) ->  | I25: =TRIM(IF(ISERR(Sheet1!I25),"",Sheet1!I25)) ->  | J25: =TRIM(IF(ISERR(Sheet1!J25),"",Sheet1!J25)) ->  | K25: =TRIM(IF(ISERR(Sheet1!K25),"",Sheet1!K25)) ->  | L25: =TRIM(IF(ISERR(Sheet1!L25),"",Sheet1!L25)) ->  | M25: =TRIM(IF(ISERR(Sheet1!M25),"",Sheet1!M25)) ->  | N25: =TRIM(IF(ISERR(Sheet1!N25),"",Sheet1!N25)) ->  | O25: =TRIM(IF(ISERR(Sheet1!O25),"",Sheet1!O25)) ->  | P25: =TRIM(IF(ISERR(Sheet1!P25),"",Sheet1!P25)) ->  | Q25: =TRIM(IF(ISERR(Sheet1!Q25),"",Sheet1!Q25)) ->  | R25: =TRIM(IF(ISERR(Sheet1!R25),"",Sheet1!R25)) ->  | S25: =TRIM(IF(ISERR(Sheet1!S25),"",Sheet1!S25)) ->  | T25: =TRIM(IF(ISERR(Sheet1!T25),"",Sheet1!T25)) ->  | U25: =TRIM(IF(ISERR(Sheet1!U25),"",Sheet1!U25)) ->  | V25: =TRIM(IF(ISERR(Sheet1!V25),"",Sheet1!V25)) ->  | W25: =TRIM(IF(ISERR(Sheet1!W25),"",Sheet1!W25)) ->  | X25: =TRIM(IF(ISERR(Sheet1!X25),"",Sheet1!X25)) ->  | Y25: =TRIM(IF(ISERR(Sheet1!Y25),"",Sheet1!Y25)) ->  | Z25: =TRIM(IF(ISERR(Sheet1!Z25),"",Sheet1!Z25)) ->  | AA25: =TRIM(IF(ISERR(Sheet1!AA25),"",Sheet1!AA25)) ->  | AB25: =TRIM(IF(ISERR(Sheet1!AB25),"",Sheet1!AB25)) ->  | AC25: =TRIM(IF(ISERR(Sheet1!AC25),"",Sheet1!AC25)) ->  | AD25: =TRIM(IF(ISERR(Sheet1!AD25),"",Sheet1!AD25)) ->  | AE25: =TRIM(IF(ISERR(Sheet1!AE25),"",Sheet1!AE25)) ->  | AF25: =TRIM(IF(ISERR(Sheet1!AF25),"",Sheet1!AF25)) ->  | AG25: =TRIM(IF(ISERR(Sheet1!AG25),"",Sheet1!AG25)) ->  | AH25: =TRIM(IF(ISERR(Sheet1!AH25),"",Sheet1!AH25)) ->  | AI25: =TRIM(IF(ISERR(Sheet1!AI25),"",Sheet1!AI25)) ->  | AJ25: =TRIM(IF(ISERR(Sheet1!AJ25),"",Sheet1!AJ25)) ->  | AK25: =TRIM(IF(ISERR(Sheet1!AK25),"",Sheet1!AK25)) ->  | AL25: =TRIM(IF(ISERR(Sheet1!AL25),"",Sheet1!AL25)) ->  | AM25: =TRIM(IF(ISERR(Sheet1!AM25),"",Sheet1!AM25)) ->  | AN25: =TRIM(IF(ISERR(Sheet1!AN25),"",Sheet1!AN25)) ->  | AO25: =TRIM(IF(ISERR(Sheet1!AO25),"",Sheet1!AO25)) ->  | AP25: =TRIM(IF(ISERR(Sheet1!AP25),"",Sheet1!AP25)) ->  | AQ25: =TRIM(IF(ISERR(Sheet1!AQ25),"",Sheet1!AQ25)) ->  | AR25: =TRIM(IF(ISERR(Sheet1!AR25),"",Sheet1!AR25)) ->  | AS25: =TRIM(IF(ISERR(Sheet1!AS25),"",Sheet1!AS25)) ->  | AT25: =TRIM(IF(ISERR(Sheet1!AT25),"",Sheet1!AT25)) ->  | AU25: =TRIM(IF(ISERR(Sheet1!AU25),"",Sheet1!AU25)) ->  | AV25: =TRIM(IF(ISERR(Sheet1!AV25),"",Sheet1!AV25)) ->  | AW25: =TRIM(IF(ISERR(Sheet1!AW25),"",Sheet1!AW25)) ->  | AX25: =TRIM(IF(ISERR(Sheet1!AX25),"",Sheet1!AX25)) ->  | AY25: =TRIM(IF(ISERR(Sheet1!AY25),"",Sheet1!AY25)) ->  | AZ25: =TRIM(IF(ISERR(Sheet1!AZ25),"",Sheet1!AZ25)) ->  | BA25: =TRIM(IF(ISERR(Sheet1!BA25),"",Sheet1!BA25)) ->  | BB25: =TRIM(IF(ISERR(Sheet1!BB25),"",Sheet1!BB25)) ->  | BC25: =TRIM(IF(ISERR(Sheet1!BC25),"",Sheet1!BC25)) ->  | BD25: =TRIM(IF(ISERR(Sheet1!BD25),"",Sheet1!BD25)) ->  | BE25: =TRIM(IF(ISERR(Sheet1!BE25),"",Sheet1!BE25)) ->  | BF25: =TRIM(IF(ISERR(Sheet1!BF25),"",Sheet1!BF25)) ->  | BG25: =TRIM(IF(ISERR(Sheet1!BG25),"",Sheet1!BG25)) -> 
C26: =TRIM(IF(ISERR(Sheet1!C26),"",Sheet1!C26)) ->  | D26: =TRIM(IF(ISERR(Sheet1!D26),"",Sheet1!D26)) ->  | E26: =TRIM(IF(ISERR(Sheet1!E26),"",Sheet1!E26)) ->  | F26: =TRIM(IF(ISERR(Sheet1!F26),"",Sheet1!F26)) ->  | G26: =TRIM(IF(ISERR(Sheet1!G26),"",Sheet1!G26)) ->  | H26: =TRIM(IF(ISERR(Sheet1!H26),"",Sheet1!H26)) ->  | I26: =TRIM(IF(ISERR(Sheet1!I26),"",Sheet1!I26)) ->  | J26: =TRIM(IF(ISERR(Sheet1!J26),"",Sheet1!J26)) ->  | K26: =TRIM(IF(ISERR(Sheet1!K26),"",Sheet1!K26)) ->  | L26: =TRIM(IF(ISERR(Sheet1!L26),"",Sheet1!L26)) ->  | M26: =TRIM(IF(ISERR(Sheet1!M26),"",Sheet1!M26)) ->  | N26: =TRIM(IF(ISERR(Sheet1!N26),"",Sheet1!N26)) ->  | O26: =TRIM(IF(ISERR(Sheet1!O26),"",Sheet1!O26)) ->  | P26: =TRIM(IF(ISERR(Sheet1!P26),"",Sheet1!P26)) ->  | Q26: =TRIM(IF(ISERR(Sheet1!Q26),"",Sheet1!Q26)) ->  | R26: =TRIM(IF(ISERR(Sheet1!R26),"",Sheet1!R26)) ->  | S26: =TRIM(IF(ISERR(Sheet1!S26),"",Sheet1!S26)) ->  | T26: =TRIM(IF(ISERR(Sheet1!T26),"",Sheet1!T26)) ->  | U26: =TRIM(IF(ISERR(Sheet1!U26),"",Sheet1!U26)) ->  | V26: =TRIM(IF(ISERR(Sheet1!V26),"",Sheet1!V26)) ->  | W26: =TRIM(IF(ISERR(Sheet1!W26),"",Sheet1!W26)) ->  | X26: =TRIM(IF(ISERR(Sheet1!X26),"",Sheet1!X26)) ->  | Y26: =TRIM(IF(ISERR(Sheet1!Y26),"",Sheet1!Y26)) ->  | Z26: =TRIM(IF(ISERR(Sheet1!Z26),"",Sheet1!Z26)) ->  | AA26: =TRIM(IF(ISERR(Sheet1!AA26),"",Sheet1!AA26)) ->  | AB26: =TRIM(IF(ISERR(Sheet1!AB26),"",Sheet1!AB26)) ->  | AC26: =TRIM(IF(ISERR(Sheet1!AC26),"",Sheet1!AC26)) ->  | AD26: =TRIM(IF(ISERR(Sheet1!AD26),"",Sheet1!AD26)) ->  | AE26: =TRIM(IF(ISERR(Sheet1!AE26),"",Sheet1!AE26)) ->  | AF26: =TRIM(IF(ISERR(Sheet1!AF26),"",Sheet1!AF26)) ->  | AG26: =TRIM(IF(ISERR(Sheet1!AG26),"",Sheet1!AG26)) ->  | AH26: =TRIM(IF(ISERR(Sheet1!AH26),"",Sheet1!AH26)) ->  | AI26: =TRIM(IF(ISERR(Sheet1!AI26),"",Sheet1!AI26)) ->  | AJ26: =TRIM(IF(ISERR(Sheet1!AJ26),"",Sheet1!AJ26)) ->  | AK26: =TRIM(IF(ISERR(Sheet1!AK26),"",Sheet1!AK26)) ->  | AL26: =TRIM(IF(ISERR(Sheet1!AL26),"",Sheet1!AL26)) ->  | AM26: =TRIM(IF(ISERR(Sheet1!AM26),"",Sheet1!AM26)) ->  | AN26: =TRIM(IF(ISERR(Sheet1!AN26),"",Sheet1!AN26)) ->  | AO26: =TRIM(IF(ISERR(Sheet1!AO26),"",Sheet1!AO26)) ->  | AP26: =TRIM(IF(ISERR(Sheet1!AP26),"",Sheet1!AP26)) ->  | AQ26: =TRIM(IF(ISERR(Sheet1!AQ26),"",Sheet1!AQ26)) ->  | AR26: =TRIM(IF(ISERR(Sheet1!AR26),"",Sheet1!AR26)) ->  | AS26: =TRIM(IF(ISERR(Sheet1!AS26),"",Sheet1!AS26)) ->  | AT26: =TRIM(IF(ISERR(Sheet1!AT26),"",Sheet1!AT26)) ->  | AU26: =TRIM(IF(ISERR(Sheet1!AU26),"",Sheet1!AU26)) ->  | AV26: =TRIM(IF(ISERR(Sheet1!AV26),"",Sheet1!AV26)) ->  | AW26: =TRIM(IF(ISERR(Sheet1!AW26),"",Sheet1!AW26)) ->  | AX26: =TRIM(IF(ISERR(Sheet1!AX26),"",Sheet1!AX26)) ->  | AY26: =TRIM(IF(ISERR(Sheet1!AY26),"",Sheet1!AY26)) ->  | AZ26: =TRIM(IF(ISERR(Sheet1!AZ26),"",Sheet1!AZ26)) ->  | BA26: =TRIM(IF(ISERR(Sheet1!BA26),"",Sheet1!BA26)) ->  | BB26: =TRIM(IF(ISERR(Sheet1!BB26),"",Sheet1!BB26)) ->  | BC26: =TRIM(IF(ISERR(Sheet1!BC26),"",Sheet1!BC26)) ->  | BD26: =TRIM(IF(ISERR(Sheet1!BD26),"",Sheet1!BD26)) ->  | BE26: =TRIM(IF(ISERR(Sheet1!BE26),"",Sheet1!BE26)) ->  | BF26: =TRIM(IF(ISERR(Sheet1!BF26),"",Sheet1!BF26)) ->  | BG26: =TRIM(IF(ISERR(Sheet1!BG26),"",Sheet1!BG26)) -> 
C27: =TRIM(IF(ISERR(Sheet1!C27),"",Sheet1!C27)) ->  | D27: =TRIM(IF(ISERR(Sheet1!D27),"",Sheet1!D27)) ->  | E27: =TRIM(IF(ISERR(Sheet1!E27),"",Sheet1!E27)) ->  | F27: =TRIM(IF(ISERR(Sheet1!F27),"",Sheet1!F27)) ->  | G27: =TRIM(IF(ISERR(Sheet1!G27),"",Sheet1!G27)) ->  | H27: =TRIM(IF(ISERR(Sheet1!H27),"",Sheet1!H27)) ->  | I27: =TRIM(IF(ISERR(Sheet1!I27),"",Sheet1!I27)) ->  | J27: =TRIM(IF(ISERR(Sheet1!J27),"",Sheet1!J27)) ->  | K27: =TRIM(IF(ISERR(Sheet1!K27),"",Sheet1!K27)) ->  | L27: =TRIM(IF(ISERR(Sheet1!L27),"",Sheet1!L27)) ->  | M27: =TRIM(IF(ISERR(Sheet1!M27),"",Sheet1!M27)) ->  | N27: =TRIM(IF(ISERR(Sheet1!N27),"",Sheet1!N27)) ->  | O27: =TRIM(IF(ISERR(Sheet1!O27),"",Sheet1!O27)) ->  | P27: =TRIM(IF(ISERR(Sheet1!P27),"",Sheet1!P27)) ->  | Q27: =TRIM(IF(ISERR(Sheet1!Q27),"",Sheet1!Q27)) ->  | R27: =TRIM(IF(ISERR(Sheet1!R27),"",Sheet1!R27)) ->  | S27: =TRIM(IF(ISERR(Sheet1!S27),"",Sheet1!S27)) ->  | T27: =TRIM(IF(ISERR(Sheet1!T27),"",Sheet1!T27)) ->  | U27: =TRIM(IF(ISERR(Sheet1!U27),"",Sheet1!U27)) ->  | V27: =TRIM(IF(ISERR(Sheet1!V27),"",Sheet1!V27)) ->  | W27: =TRIM(IF(ISERR(Sheet1!W27),"",Sheet1!W27)) ->  | X27: =TRIM(IF(ISERR(Sheet1!X27),"",Sheet1!X27)) ->  | Y27: =TRIM(IF(ISERR(Sheet1!Y27),"",Sheet1!Y27)) ->  | Z27: =TRIM(IF(ISERR(Sheet1!Z27),"",Sheet1!Z27)) ->  | AA27: =TRIM(IF(ISERR(Sheet1!AA27),"",Sheet1!AA27)) ->  | AB27: =TRIM(IF(ISERR(Sheet1!AB27),"",Sheet1!AB27)) ->  | AC27: =TRIM(IF(ISERR(Sheet1!AC27),"",Sheet1!AC27)) ->  | AD27: =TRIM(IF(ISERR(Sheet1!AD27),"",Sheet1!AD27)) ->  | AE27: =TRIM(IF(ISERR(Sheet1!AE27),"",Sheet1!AE27)) ->  | AF27: =TRIM(IF(ISERR(Sheet1!AF27),"",Sheet1!AF27)) ->  | AG27: =TRIM(IF(ISERR(Sheet1!AG27),"",Sheet1!AG27)) ->  | AH27: =TRIM(IF(ISERR(Sheet1!AH27),"",Sheet1!AH27)) ->  | AI27: =TRIM(IF(ISERR(Sheet1!AI27),"",Sheet1!AI27)) ->  | AJ27: =TRIM(IF(ISERR(Sheet1!AJ27),"",Sheet1!AJ27)) ->  | AK27: =TRIM(IF(ISERR(Sheet1!AK27),"",Sheet1!AK27)) ->  | AL27: =TRIM(IF(ISERR(Sheet1!AL27),"",Sheet1!AL27)) ->  | AM27: =TRIM(IF(ISERR(Sheet1!AM27),"",Sheet1!AM27)) ->  | AN27: =TRIM(IF(ISERR(Sheet1!AN27),"",Sheet1!AN27)) ->  | AO27: =TRIM(IF(ISERR(Sheet1!AO27),"",Sheet1!AO27)) ->  | AP27: =TRIM(IF(ISERR(Sheet1!AP27),"",Sheet1!AP27)) ->  | AQ27: =TRIM(IF(ISERR(Sheet1!AQ27),"",Sheet1!AQ27)) ->  | AR27: =TRIM(IF(ISERR(Sheet1!AR27),"",Sheet1!AR27)) ->  | AS27: =TRIM(IF(ISERR(Sheet1!AS27),"",Sheet1!AS27)) ->  | AT27: =TRIM(IF(ISERR(Sheet1!AT27),"",Sheet1!AT27)) ->  | AU27: =TRIM(IF(ISERR(Sheet1!AU27),"",Sheet1!AU27)) ->  | AV27: =TRIM(IF(ISERR(Sheet1!AV27),"",Sheet1!AV27)) ->  | AW27: =TRIM(IF(ISERR(Sheet1!AW27),"",Sheet1!AW27)) ->  | AX27: =TRIM(IF(ISERR(Sheet1!AX27),"",Sheet1!AX27)) ->  | AY27: =TRIM(IF(ISERR(Sheet1!AY27),"",Sheet1!AY27)) ->  | AZ27: =TRIM(IF(ISERR(Sheet1!AZ27),"",Sheet1!AZ27)) ->  | BA27: =TRIM(IF(ISERR(Sheet1!BA27),"",Sheet1!BA27)) ->  | BB27: =TRIM(IF(ISERR(Sheet1!BB27),"",Sheet1!BB27)) ->  | BC27: =TRIM(IF(ISERR(Sheet1!BC27),"",Sheet1!BC27)) ->  | BD27: =TRIM(IF(ISERR(Sheet1!BD27),"",Sheet1!BD27)) ->  | BE27: =TRIM(IF(ISERR(Sheet1!BE27),"",Sheet1!BE27)) ->  | BF27: =TRIM(IF(ISERR(Sheet1!BF27),"",Sheet1!BF27)) ->  | BG27: =TRIM(IF(ISERR(Sheet1!BG27),"",Sheet1!BG27)) -> 
C28: =TRIM(IF(ISERR(Sheet1!C28),"",Sheet1!C28)) ->  | D28: =TRIM(IF(ISERR(Sheet1!D28),"",Sheet1!D28)) ->  | E28: =TRIM(IF(ISERR(Sheet1!E28),"",Sheet1!E28)) ->  | F28: =TRIM(IF(ISERR(Sheet1!F28),"",Sheet1!F28)) ->  | G28: =TRIM(IF(ISERR(Sheet1!G28),"",Sheet1!G28)) ->  | H28: =TRIM(IF(ISERR(Sheet1!H28),"",Sheet1!H28)) ->  | I28: =TRIM(IF(ISERR(Sheet1!I28),"",Sheet1!I28)) ->  | J28: =TRIM(IF(ISERR(Sheet1!J28),"",Sheet1!J28)) ->  | K28: =TRIM(IF(ISERR(Sheet1!K28),"",Sheet1!K28)) ->  | L28: =TRIM(IF(ISERR(Sheet1!L28),"",Sheet1!L28)) ->  | M28: =TRIM(IF(ISERR(Sheet1!M28),"",Sheet1!M28)) ->  | N28: =TRIM(IF(ISERR(Sheet1!N28),"",Sheet1!N28)) ->  | O28: =TRIM(IF(ISERR(Sheet1!O28),"",Sheet1!O28)) ->  | P28: =TRIM(IF(ISERR(Sheet1!P28),"",Sheet1!P28)) ->  | Q28: =TRIM(IF(ISERR(Sheet1!Q28),"",Sheet1!Q28)) ->  | R28: =TRIM(IF(ISERR(Sheet1!R28),"",Sheet1!R28)) ->  | S28: =TRIM(IF(ISERR(Sheet1!S28),"",Sheet1!S28)) ->  | T28: =TRIM(IF(ISERR(Sheet1!T28),"",Sheet1!T28)) ->  | U28: =TRIM(IF(ISERR(Sheet1!U28),"",Sheet1!U28)) ->  | V28: =TRIM(IF(ISERR(Sheet1!V28),"",Sheet1!V28)) ->  | W28: =TRIM(IF(ISERR(Sheet1!W28),"",Sheet1!W28)) ->  | X28: =TRIM(IF(ISERR(Sheet1!X28),"",Sheet1!X28)) ->  | Y28: =TRIM(IF(ISERR(Sheet1!Y28),"",Sheet1!Y28)) ->  | Z28: =TRIM(IF(ISERR(Sheet1!Z28),"",Sheet1!Z28)) ->  | AA28: =TRIM(IF(ISERR(Sheet1!AA28),"",Sheet1!AA28)) ->  | AB28: =TRIM(IF(ISERR(Sheet1!AB28),"",Sheet1!AB28)) ->  | AC28: =TRIM(IF(ISERR(Sheet1!AC28),"",Sheet1!AC28)) ->  | AD28: =TRIM(IF(ISERR(Sheet1!AD28),"",Sheet1!AD28)) ->  | AE28: =TRIM(IF(ISERR(Sheet1!AE28),"",Sheet1!AE28)) ->  | AF28: =TRIM(IF(ISERR(Sheet1!AF28),"",Sheet1!AF28)) ->  | AG28: =TRIM(IF(ISERR(Sheet1!AG28),"",Sheet1!AG28)) ->  | AH28: =TRIM(IF(ISERR(Sheet1!AH28),"",Sheet1!AH28)) ->  | AI28: =TRIM(IF(ISERR(Sheet1!AI28),"",Sheet1!AI28)) ->  | AJ28: =TRIM(IF(ISERR(Sheet1!AJ28),"",Sheet1!AJ28)) ->  | AK28: =TRIM(IF(ISERR(Sheet1!AK28),"",Sheet1!AK28)) ->  | AL28: =TRIM(IF(ISERR(Sheet1!AL28),"",Sheet1!AL28)) ->  | AM28: =TRIM(IF(ISERR(Sheet1!AM28),"",Sheet1!AM28)) ->  | AN28: =TRIM(IF(ISERR(Sheet1!AN28),"",Sheet1!AN28)) ->  | AO28: =TRIM(IF(ISERR(Sheet1!AO28),"",Sheet1!AO28)) ->  | AP28: =TRIM(IF(ISERR(Sheet1!AP28),"",Sheet1!AP28)) ->  | AQ28: =TRIM(IF(ISERR(Sheet1!AQ28),"",Sheet1!AQ28)) ->  | AR28: =TRIM(IF(ISERR(Sheet1!AR28),"",Sheet1!AR28)) ->  | AS28: =TRIM(IF(ISERR(Sheet1!AS28),"",Sheet1!AS28)) ->  | AT28: =TRIM(IF(ISERR(Sheet1!AT28),"",Sheet1!AT28)) ->  | AU28: =TRIM(IF(ISERR(Sheet1!AU28),"",Sheet1!AU28)) ->  | AV28: =TRIM(IF(ISERR(Sheet1!AV28),"",Sheet1!AV28)) ->  | AW28: =TRIM(IF(ISERR(Sheet1!AW28),"",Sheet1!AW28)) ->  | AX28: =TRIM(IF(ISERR(Sheet1!AX28),"",Sheet1!AX28)) ->  | AY28: =TRIM(IF(ISERR(Sheet1!AY28),"",Sheet1!AY28)) ->  | AZ28: =TRIM(IF(ISERR(Sheet1!AZ28),"",Sheet1!AZ28)) ->  | BA28: =TRIM(IF(ISERR(Sheet1!BA28),"",Sheet1!BA28)) ->  | BB28: =TRIM(IF(ISERR(Sheet1!BB28),"",Sheet1!BB28)) ->  | BC28: =TRIM(IF(ISERR(Sheet1!BC28),"",Sheet1!BC28)) ->  | BD28: =TRIM(IF(ISERR(Sheet1!BD28),"",Sheet1!BD28)) ->  | BE28: =TRIM(IF(ISERR(Sheet1!BE28),"",Sheet1!BE28)) ->  | BF28: =TRIM(IF(ISERR(Sheet1!BF28),"",Sheet1!BF28)) ->  | BG28: =TRIM(IF(ISERR(Sheet1!BG28),"",Sheet1!BG28)) -> 
C29: =TRIM(IF(ISERR(Sheet1!C29),"",Sheet1!C29)) ->  | D29: =TRIM(IF(ISERR(Sheet1!D29),"",Sheet1!D29)) ->  | E29: =TRIM(IF(ISERR(Sheet1!E29),"",Sheet1!E29)) ->  | F29: =TRIM(IF(ISERR(Sheet1!F29),"",Sheet1!F29)) ->  | G29: =TRIM(IF(ISERR(Sheet1!G29),"",Sheet1!G29)) ->  | H29: =TRIM(IF(ISERR(Sheet1!H29),"",Sheet1!H29)) ->  | I29: =TRIM(IF(ISERR(Sheet1!I29),"",Sheet1!I29)) ->  | J29: =TRIM(IF(ISERR(Sheet1!J29),"",Sheet1!J29)) ->  | K29: =TRIM(IF(ISERR(Sheet1!K29),"",Sheet1!K29)) ->  | L29: =TRIM(IF(ISERR(Sheet1!L29),"",Sheet1!L29)) ->  | M29: =TRIM(IF(ISERR(Sheet1!M29),"",Sheet1!M29)) ->  | N29: =TRIM(IF(ISERR(Sheet1!N29),"",Sheet1!N29)) ->  | O29: =TRIM(IF(ISERR(Sheet1!O29),"",Sheet1!O29)) ->  | P29: =TRIM(IF(ISERR(Sheet1!P29),"",Sheet1!P29)) ->  | Q29: =TRIM(IF(ISERR(Sheet1!Q29),"",Sheet1!Q29)) ->  | R29: =TRIM(IF(ISERR(Sheet1!R29),"",Sheet1!R29)) ->  | S29: =TRIM(IF(ISERR(Sheet1!S29),"",Sheet1!S29)) ->  | T29: =TRIM(IF(ISERR(Sheet1!T29),"",Sheet1!T29)) ->  | U29: =TRIM(IF(ISERR(Sheet1!U29),"",Sheet1!U29)) ->  | V29: =TRIM(IF(ISERR(Sheet1!V29),"",Sheet1!V29)) ->  | W29: =TRIM(IF(ISERR(Sheet1!W29),"",Sheet1!W29)) ->  | X29: =TRIM(IF(ISERR(Sheet1!X29),"",Sheet1!X29)) ->  | Y29: =TRIM(IF(ISERR(Sheet1!Y29),"",Sheet1!Y29)) ->  | Z29: =TRIM(IF(ISERR(Sheet1!Z29),"",Sheet1!Z29)) ->  | AA29: =TRIM(IF(ISERR(Sheet1!AA29),"",Sheet1!AA29)) ->  | AB29: =TRIM(IF(ISERR(Sheet1!AB29),"",Sheet1!AB29)) ->  | AC29: =TRIM(IF(ISERR(Sheet1!AC29),"",Sheet1!AC29)) ->  | AD29: =TRIM(IF(ISERR(Sheet1!AD29),"",Sheet1!AD29)) ->  | AE29: =TRIM(IF(ISERR(Sheet1!AE29),"",Sheet1!AE29)) ->  | AF29: =TRIM(IF(ISERR(Sheet1!AF29),"",Sheet1!AF29)) ->  | AG29: =TRIM(IF(ISERR(Sheet1!AG29),"",Sheet1!AG29)) ->  | AH29: =TRIM(IF(ISERR(Sheet1!AH29),"",Sheet1!AH29)) ->  | AI29: =TRIM(IF(ISERR(Sheet1!AI29),"",Sheet1!AI29)) ->  | AJ29: =TRIM(IF(ISERR(Sheet1!AJ29),"",Sheet1!AJ29)) ->  | AK29: =TRIM(IF(ISERR(Sheet1!AK29),"",Sheet1!AK29)) ->  | AL29: =TRIM(IF(ISERR(Sheet1!AL29),"",Sheet1!AL29)) ->  | AM29: =TRIM(IF(ISERR(Sheet1!AM29),"",Sheet1!AM29)) ->  | AN29: =TRIM(IF(ISERR(Sheet1!AN29),"",Sheet1!AN29)) ->  | AO29: =TRIM(IF(ISERR(Sheet1!AO29),"",Sheet1!AO29)) ->  | AP29: =TRIM(IF(ISERR(Sheet1!AP29),"",Sheet1!AP29)) ->  | AQ29: =TRIM(IF(ISERR(Sheet1!AQ29),"",Sheet1!AQ29)) ->  | AR29: =TRIM(IF(ISERR(Sheet1!AR29),"",Sheet1!AR29)) ->  | AS29: =TRIM(IF(ISERR(Sheet1!AS29),"",Sheet1!AS29)) ->  | AT29: =TRIM(IF(ISERR(Sheet1!AT29),"",Sheet1!AT29)) ->  | AU29: =TRIM(IF(ISERR(Sheet1!AU29),"",Sheet1!AU29)) ->  | AV29: =TRIM(IF(ISERR(Sheet1!AV29),"",Sheet1!AV29)) ->  | AW29: =TRIM(IF(ISERR(Sheet1!AW29),"",Sheet1!AW29)) ->  | AX29: =TRIM(IF(ISERR(Sheet1!AX29),"",Sheet1!AX29)) ->  | AY29: =TRIM(IF(ISERR(Sheet1!AY29),"",Sheet1!AY29)) ->  | AZ29: =TRIM(IF(ISERR(Sheet1!AZ29),"",Sheet1!AZ29)) ->  | BA29: =TRIM(IF(ISERR(Sheet1!BA29),"",Sheet1!BA29)) ->  | BB29: =TRIM(IF(ISERR(Sheet1!BB29),"",Sheet1!BB29)) ->  | BC29: =TRIM(IF(ISERR(Sheet1!BC29),"",Sheet1!BC29)) ->  | BD29: =TRIM(IF(ISERR(Sheet1!BD29),"",Sheet1!BD29)) ->  | BE29: =TRIM(IF(ISERR(Sheet1!BE29),"",Sheet1!BE29)) ->  | BF29: =TRIM(IF(ISERR(Sheet1!BF29),"",Sheet1!BF29)) ->  | BG29: =TRIM(IF(ISERR(Sheet1!BG29),"",Sheet1!BG29)) -> 
C30: =TRIM(IF(ISERR(Sheet1!C30),"",Sheet1!C30)) ->  | D30: =TRIM(IF(ISERR(Sheet1!D30),"",Sheet1!D30)) ->  | E30: =TRIM(IF(ISERR(Sheet1!E30),"",Sheet1!E30)) ->  | F30: =TRIM(IF(ISERR(Sheet1!F30),"",Sheet1!F30)) ->  | G30: =TRIM(IF(ISERR(Sheet1!G30),"",Sheet1!G30)) ->  | H30: =TRIM(IF(ISERR(Sheet1!H30),"",Sheet1!H30)) ->  | I30: =TRIM(IF(ISERR(Sheet1!I30),"",Sheet1!I30)) ->  | J30: =TRIM(IF(ISERR(Sheet1!J30),"",Sheet1!J30)) ->  | K30: =TRIM(IF(ISERR(Sheet1!K30),"",Sheet1!K30)) ->  | L30: =TRIM(IF(ISERR(Sheet1!L30),"",Sheet1!L30)) ->  | M30: =TRIM(IF(ISERR(Sheet1!M30),"",Sheet1!M30)) ->  | N30: =TRIM(IF(ISERR(Sheet1!N30),"",Sheet1!N30)) ->  | O30: =TRIM(IF(ISERR(Sheet1!O30),"",Sheet1!O30)) ->  | P30: =TRIM(IF(ISERR(Sheet1!P30),"",Sheet1!P30)) ->  | Q30: =TRIM(IF(ISERR(Sheet1!Q30),"",Sheet1!Q30)) ->  | R30: =TRIM(IF(ISERR(Sheet1!R30),"",Sheet1!R30)) ->  | S30: =TRIM(IF(ISERR(Sheet1!S30),"",Sheet1!S30)) ->  | T30: =TRIM(IF(ISERR(Sheet1!T30),"",Sheet1!T30)) ->  | U30: =TRIM(IF(ISERR(Sheet1!U30),"",Sheet1!U30)) ->  | V30: =TRIM(IF(ISERR(Sheet1!V30),"",Sheet1!V30)) ->  | W30: =TRIM(IF(ISERR(Sheet1!W30),"",Sheet1!W30)) ->  | X30: =TRIM(IF(ISERR(Sheet1!X30),"",Sheet1!X30)) ->  | Y30: =TRIM(IF(ISERR(Sheet1!Y30),"",Sheet1!Y30)) ->  | Z30: =TRIM(IF(ISERR(Sheet1!Z30),"",Sheet1!Z30)) ->  | AA30: =TRIM(IF(ISERR(Sheet1!AA30),"",Sheet1!AA30)) ->  | AB30: =TRIM(IF(ISERR(Sheet1!AB30),"",Sheet1!AB30)) ->  | AC30: =TRIM(IF(ISERR(Sheet1!AC30),"",Sheet1!AC30)) ->  | AD30: =TRIM(IF(ISERR(Sheet1!AD30),"",Sheet1!AD30)) ->  | AE30: =TRIM(IF(ISERR(Sheet1!AE30),"",Sheet1!AE30)) ->  | AF30: =TRIM(IF(ISERR(Sheet1!AF30),"",Sheet1!AF30)) ->  | AG30: =TRIM(IF(ISERR(Sheet1!AG30),"",Sheet1!AG30)) ->  | AH30: =TRIM(IF(ISERR(Sheet1!AH30),"",Sheet1!AH30)) ->  | AI30: =TRIM(IF(ISERR(Sheet1!AI30),"",Sheet1!AI30)) ->  | AJ30: =TRIM(IF(ISERR(Sheet1!AJ30),"",Sheet1!AJ30)) ->  | AK30: =TRIM(IF(ISERR(Sheet1!AK30),"",Sheet1!AK30)) ->  | AL30: =TRIM(IF(ISERR(Sheet1!AL30),"",Sheet1!AL30)) ->  | AM30: =TRIM(IF(ISERR(Sheet1!AM30),"",Sheet1!AM30)) ->  | AN30: =TRIM(IF(ISERR(Sheet1!AN30),"",Sheet1!AN30)) ->  | AO30: =TRIM(IF(ISERR(Sheet1!AO30),"",Sheet1!AO30)) ->  | AP30: =TRIM(IF(ISERR(Sheet1!AP30),"",Sheet1!AP30)) ->  | AQ30: =TRIM(IF(ISERR(Sheet1!AQ30),"",Sheet1!AQ30)) ->  | AR30: =TRIM(IF(ISERR(Sheet1!AR30),"",Sheet1!AR30)) ->  | AS30: =TRIM(IF(ISERR(Sheet1!AS30),"",Sheet1!AS30)) ->  | AT30: =TRIM(IF(ISERR(Sheet1!AT30),"",Sheet1!AT30)) ->  | AU30: =TRIM(IF(ISERR(Sheet1!AU30),"",Sheet1!AU30)) ->  | AV30: =TRIM(IF(ISERR(Sheet1!AV30),"",Sheet1!AV30)) ->  | AW30: =TRIM(IF(ISERR(Sheet1!AW30),"",Sheet1!AW30)) ->  | AX30: =TRIM(IF(ISERR(Sheet1!AX30),"",Sheet1!AX30)) ->  | AY30: =TRIM(IF(ISERR(Sheet1!AY30),"",Sheet1!AY30)) ->  | AZ30: =TRIM(IF(ISERR(Sheet1!AZ30),"",Sheet1!AZ30)) ->  | BA30: =TRIM(IF(ISERR(Sheet1!BA30),"",Sheet1!BA30)) ->  | BB30: =TRIM(IF(ISERR(Sheet1!BB30),"",Sheet1!BB30)) ->  | BC30: =TRIM(IF(ISERR(Sheet1!BC30),"",Sheet1!BC30)) ->  | BD30: =TRIM(IF(ISERR(Sheet1!BD30),"",Sheet1!BD30)) ->  | BE30: =TRIM(IF(ISERR(Sheet1!BE30),"",Sheet1!BE30)) ->  | BF30: =TRIM(IF(ISERR(Sheet1!BF30),"",Sheet1!BF30)) ->  | BG30: =TRIM(IF(ISERR(Sheet1!BG30),"",Sheet1!BG30)) -> 
A35: 1 | C35: 1 | D35: 1 | E35: =E42 -> 0 | F35: 1 | G35: 0 | H35: 0 | I35: 0 | J35: 0 | K35: 0 | L35: =L42 -> 0 | M35: 0 | N35: 0 | O35: 0 | P35: 0 | Q35: 0 | R35: 0 | S35: 0 | T35: 0 | U35: 0 | V35: 0 | W35: 0 | X35: 0 | Y35: 0 | Z35: 0 | AA35: 0 | AB35: 0 | AC35: 0 | AD35: 0 | AE35: 0 | AF35: 0 | AG35: 0 | AH35: 0 | AI35: 0 | AJ35: 0 | AK35: 0 | AL35: 0 | AM35: 0 | AN35: 0 | AO35: 0 | AP35: 0 | AQ35: 0 | AR35: 0 | AS35: 0 | AT35: 0 | AU35: 0 | AV35: 0 | AW35: 0 | AX35: 0 | AY35: 0 | AZ35: 0 | BA35: 0 | BB35: 0 | BC35: 0 | BD35: 0 | BE35: 0 | BF35: 0 | BG35: 0
I37: 1 | J37: 2 | K37: 3 | L37: 4 | M37: 5 | N37: 6 | O37: 7 | P37: 8 | Q37: 9 | R37: 10 | S37: 11 | T37: 12 | U37: 13 | V37: 14 | W37: 15 | X37: 16 | Y37: 17 | Z37: 18 | AA37: 19 | AB37: 20 | AC37: 21 | AD37: 22 | AE37: 23 | AF37: 24 | AG37: 25 | AH37: 26 | AI37: 27 | AJ37: 28 | AK37: 29 | AL37: 30 | AM37: 31 | AN37: 32 | AO37: 33 | AP37: 34 | AQ37: 35 | AR37: 36 | AS37: 37 | AT37: 38 | AU37: 39 | AV37: 40 | AW37: 41 | AX37: 42 | AY37: 43 | AZ37: 44 | BA37: 45 | BB37: 46 | BC37: 47 | BD37: 48 | BE37: 49 | BF37: 50 | BG37: 51 | BH37: 52 | BI37: 53 | BJ37: 54 | BK37: 55 | BL37: 56 | BM37: 57 | BN37: 58 | BO37: 59 | BP37: 60 | BQ37: 61 | BR37: 62 | BS37: 63 | BT37: 64 | BU37: 65 | BV37: 65
A38: 1 | B38: 2 | C38: 3 | D38: 4 | E38: 5 | F38: 6 | G38: 7 | H38: 8 | I38: 9 | J38: 10 | K38: 11 | L38: 12 | M38: 13 | N38: 14 | O38: 15 | P38: 16 | Q38: 17 | R38: 18 | S38: 19 | T38: 20 | U38: 21 | V38: 22 | W38: 23 | X38: 24 | Y38: 25 | Z38: 26 | AA38: 27 | AB38: 28 | AC38: 29 | AD38: 30 | AE38: 31 | AF38: 32 | AG38: 33 | AH38: 34 | AI38: 35 | AJ38: 36 | AK38: 37 | AL38: 38 | AM38: 39 | AN38: 40 | AO38: 41 | AP38: 42 | AQ38: 43 | AR38: 44 | AS38: 45 | AT38: 46 | AU38: 47 | AV38: 48 | AW38: 49 | AX38: 50 | AY38: 51 | AZ38: 52 | BA38: 53 | BB38: 54 | BC38: 55 | BD38: 56 | BE38: 57 | BF38: 58 | BG38: 59 | BH38: 60 | BI38: 61 | BJ38: 62 | BK38: 63 | BL38: 64 | BM38: 65 | BN38: 66 | BO38: 67 | BP38: 68 | BQ38: 69 | BR38: 70 | BS38: 71 | BT38: 72 | BU38: 73 | BV38: 73
A39: （注意） 37～47行 の全ての 内容は 変更しない でください
I40: =IF(ISNA(VLOOKUP(I37,Editor!$BM$39:$BN$48,2,FALSE)),0,VLOOKUP(I37,Editor!$BM$39:$BN$48,2,FALSE)) -> 1 | J40: =IF(ISNA(VLOOKUP(J37,Editor!$BM$39:$BN$48,2,FALSE)),0,VLOOKUP(J37,Editor!$BM$39:$BN$48,2,FALSE)) -> 0 | K40: =IF(ISNA(VLOOKUP(K37,Editor!$BM$39:$BN$48,2,FALSE)),0,VLOOKUP(K37,Editor!$BM$39:$BN$48,2,FALSE)) -> 0 | L40: =IF(ISNA(VLOOKUP(L37,Editor!$BM$39:$BN$48,2,FALSE)),0,VLOOKUP(L37,Editor!$BM$39:$BN$48,2,FALSE)) -> 0 | M40: =IF(ISNA(VLOOKUP(M37,Editor!$BM$39:$BN$48,2,FALSE)),0,VLOOKUP(M37,Editor!$BM$39:$BN$48,2,FALSE)) -> 0 | N40: =IF(ISNA(VLOOKUP(N37,Editor!$BM$39:$BN$48,2,FALSE)),0,VLOOKUP(N37,Editor!$BM$39:$BN$48,2,FALSE)) -> 0 | O40: =IF(ISNA(VLOOKUP(O37,Editor!$BM$39:$BN$48,2,FALSE)),0,VLOOKUP(O37,Editor!$BM$39:$BN$48,2,FALSE)) -> 0 | P40: =IF(ISNA(VLOOKUP(P37,Editor!$BM$39:$BN$48,2,FALSE)),0,VLOOKUP(P37,Editor!$BM$39:$BN$48,2,FALSE)) -> 0 | Q40: =IF(ISNA(VLOOKUP(Q37,Editor!$BM$39:$BN$48,2,FALSE)),0,VLOOKUP(Q37,Editor!$BM$39:$BN$48,2,FALSE)) -> 0 | R40: =IF(ISNA(VLOOKUP(R37,Editor!$BM$39:$BN$48,2,FALSE)),0,VLOOKUP(R37,Editor!$BM$39:$BN$48,2,FALSE)) -> 0 | S40: =IF(ISNA(VLOOKUP(S37,Editor!$BM$39:$BN$48,2,FALSE)),0,VLOOKUP(S37,Editor!$BM$39:$BN$48,2,FALSE)) -> 0 | T40: =IF(ISNA(VLOOKUP(T37,Editor!$BM$39:$BN$48,2,FALSE)),0,VLOOKUP(T37,Editor!$BM$39:$BN$48,2,FALSE)) -> 0 | U40: =IF(ISNA(VLOOKUP(U37,Editor!$BM$39:$BN$48,2,FALSE)),0,VLOOKUP(U37,Editor!$BM$39:$BN$48,2,FALSE)) -> 0 | V40: =IF(ISNA(VLOOKUP(V37,Editor!$BM$39:$BN$48,2,FALSE)),0,VLOOKUP(V37,Editor!$BM$39:$BN$48,2,FALSE)) -> 0 | W40: =IF(ISNA(VLOOKUP(W37,Editor!$BM$39:$BN$48,2,FALSE)),0,VLOOKUP(W37,Editor!$BM$39:$BN$48,2,FALSE)) -> 0 | X40: =IF(ISNA(VLOOKUP(X37,Editor!$BM$39:$BN$48,2,FALSE)),0,VLOOKUP(X37,Editor!$BM$39:$BN$48,2,FALSE)) -> 0 | Y40: =IF(ISNA(VLOOKUP(Y37,Editor!$BM$39:$BN$48,2,FALSE)),0,VLOOKUP(Y37,Editor!$BM$39:$BN$48,2,FALSE)) -> 0 | Z40: =IF(ISNA(VLOOKUP(Z37,Editor!$BM$39:$BN$48,2,FALSE)),0,VLOOKUP(Z37,Editor!$BM$39:$BN$48,2,FALSE)) -> 0 | AA40: =IF(ISNA(VLOOKUP(AA37,Editor!$BM$39:$BN$48,2,FALSE)),0,VLOOKUP(AA37,Editor!$BM$39:$BN$48,2,FALSE)) -> 0 | AB40: =IF(ISNA(VLOOKUP(AB37,Editor!$BM$39:$BN$48,2,FALSE)),0,VLOOKUP(AB37,Editor!$BM$39:$BN$48,2,FALSE)) -> 0 | AC40: =IF(ISNA(VLOOKUP(AC37,Editor!$BM$39:$BN$48,2,FALSE)),0,VLOOKUP(AC37,Editor!$BM$39:$BN$48,2,FALSE)) -> 0 | AD40: =IF(ISNA(VLOOKUP(AD37,Editor!$BM$39:$BN$48,2,FALSE)),0,VLOOKUP(AD37,Editor!$BM$39:$BN$48,2,FALSE)) -> 0 | AE40: =IF(ISNA(VLOOKUP(AE37,Editor!$BM$39:$BN$48,2,FALSE)),0,VLOOKUP(AE37,Editor!$BM$39:$BN$48,2,FALSE)) -> 0 | AF40: =IF(ISNA(VLOOKUP(AF37,Editor!$BM$39:$BN$48,2,FALSE)),0,VLOOKUP(AF37,Editor!$BM$39:$BN$48,2,FALSE)) -> 0 | AG40: =IF(ISNA(VLOOKUP(AG37,Editor!$BM$39:$BN$48,2,FALSE)),0,VLOOKUP(AG37,Editor!$BM$39:$BN$48,2,FALSE)) -> 0 | AH40: =IF(ISNA(VLOOKUP(AH37,Editor!$BM$39:$BN$48,2,FALSE)),0,VLOOKUP(AH37,Editor!$BM$39:$BN$48,2,FALSE)) -> 0 | AI40: =IF(ISNA(VLOOKUP(AI37,Editor!$BM$39:$BN$48,2,FALSE)),0,VLOOKUP(AI37,Editor!$BM$39:$BN$48,2,FALSE)) -> 0 | AJ40: =IF(ISNA(VLOOKUP(AJ37,Editor!$BM$39:$BN$48,2,FALSE)),0,VLOOKUP(AJ37,Editor!$BM$39:$BN$48,2,FALSE)) -> 0 | AK40: =IF(ISNA(VLOOKUP(AK37,Editor!$BM$39:$BN$48,2,FALSE)),0,VLOOKUP(AK37,Editor!$BM$39:$BN$48,2,FALSE)) -> 0 | AL40: =IF(ISNA(VLOOKUP(AL37,Editor!$BM$39:$BN$48,2,FALSE)),0,VLOOKUP(AL37,Editor!$BM$39:$BN$48,2,FALSE)) -> 0 | AM40: =IF(ISNA(VLOOKUP(AM37,Editor!$BM$39:$BN$48,2,FALSE)),0,VLOOKUP(AM37,Editor!$BM$39:$BN$48,2,FALSE)) -> 0 | AN40: =IF(ISNA(VLOOKUP(AN37,Editor!$BM$39:$BN$48,2,FALSE)),0,VLOOKUP(AN37,Editor!$BM$39:$BN$48,2,FALSE)) -> 0 | AO40: =IF(ISNA(VLOOKUP(AO37,Editor!$BM$39:$BN$48,2,FALSE)),0,VLOOKUP(AO37,Editor!$BM$39:$BN$48,2,FALSE)) -> 0 | AP40: =IF(ISNA(VLOOKUP(AP37,Editor!$BM$39:$BN$48,2,FALSE)),0,VLOOKUP(AP37,Editor!$BM$39:$BN$48,2,FALSE)) -> 0 | AQ40: =IF(ISNA(VLOOKUP(AQ37,Editor!$BM$39:$BN$48,2,FALSE)),0,VLOOKUP(AQ37,Editor!$BM$39:$BN$48,2,FALSE)) -> 0 | AR40: =IF(ISNA(VLOOKUP(AR37,Editor!$BM$39:$BN$48,2,FALSE)),0,VLOOKUP(AR37,Editor!$BM$39:$BN$48,2,FALSE)) -> 0 | AS40: =IF(ISNA(VLOOKUP(AS37,Editor!$BM$39:$BN$48,2,FALSE)),0,VLOOKUP(AS37,Editor!$BM$39:$BN$48,2,FALSE)) -> 0 | AT40: =IF(ISNA(VLOOKUP(AT37,Editor!$BM$39:$BN$48,2,FALSE)),0,VLOOKUP(AT37,Editor!$BM$39:$BN$48,2,FALSE)) -> 0 | AU40: =IF(ISNA(VLOOKUP(AU37,Editor!$BM$39:$BN$48,2,FALSE)),0,VLOOKUP(AU37,Editor!$BM$39:$BN$48,2,FALSE)) -> 0 | AV40: =IF(ISNA(VLOOKUP(AV37,Editor!$BM$39:$BN$48,2,FALSE)),0,VLOOKUP(AV37,Editor!$BM$39:$BN$48,2,FALSE)) -> 0 | AW40: =IF(ISNA(VLOOKUP(AW37,Editor!$BM$39:$BN$48,2,FALSE)),0,VLOOKUP(AW37,Editor!$BM$39:$BN$48,2,FALSE)) -> 0 | AX40: =IF(ISNA(VLOOKUP(AX37,Editor!$BM$39:$BN$48,2,FALSE)),0,VLOOKUP(AX37,Editor!$BM$39:$BN$48,2,FALSE)) -> 0 | AY40: =IF(ISNA(VLOOKUP(AY37,Editor!$BM$39:$BN$48,2,FALSE)),0,VLOOKUP(AY37,Editor!$BM$39:$BN$48,2,FALSE)) -> 0 | AZ40: =IF(ISNA(VLOOKUP(AZ37,Editor!$BM$39:$BN$48,2,FALSE)),0,VLOOKUP(AZ37,Editor!$BM$39:$BN$48,2,FALSE)) -> 0 | BA40: =IF(ISNA(VLOOKUP(BA37,Editor!$BM$39:$BN$48,2,FALSE)),0,VLOOKUP(BA37,Editor!$BM$39:$BN$48,2,FALSE)) -> 0 | BB40: =IF(ISNA(VLOOKUP(BB37,Editor!$BM$39:$BN$48,2,FALSE)),0,VLOOKUP(BB37,Editor!$BM$39:$BN$48,2,FALSE)) -> 0 | BC40: =IF(ISNA(VLOOKUP(BC37,Editor!$BM$39:$BN$48,2,FALSE)),0,VLOOKUP(BC37,Editor!$BM$39:$BN$48,2,FALSE)) -> 0 | BD40: =IF(ISNA(VLOOKUP(BD37,Editor!$BM$39:$BN$48,2,FALSE)),0,VLOOKUP(BD37,Editor!$BM$39:$BN$48,2,FALSE)) -> 0 | BE40: =IF(ISNA(VLOOKUP(BE37,Editor!$BM$39:$BN$48,2,FALSE)),0,VLOOKUP(BE37,Editor!$BM$39:$BN$48,2,FALSE)) -> 0 | BF40: =IF(ISNA(VLOOKUP(BF37,Editor!$BM$39:$BN$48,2,FALSE)),0,VLOOKUP(BF37,Editor!$BM$39:$BN$48,2,FALSE)) -> 0 | BG40: =IF(ISNA(VLOOKUP(BG37,Editor!$BM$39:$BN$48,2,FALSE)),0,VLOOKUP(BG37,Editor!$BM$39:$BN$48,2,FALSE)) -> 0 | BH40: =IF(ISNA(VLOOKUP(BH37,Editor!$BM$39:$BN$48,2,FALSE)),0,VLOOKUP(BH37,Editor!$BM$39:$BN$48,2,FALSE)) -> 0 | BI40: =IF(ISNA(VLOOKUP(BI37,Editor!$BM$39:$BN$48,2,FALSE)),0,VLOOKUP(BI37,Editor!$BM$39:$BN$48,2,FALSE)) -> 0 | BJ40: =IF(ISNA(VLOOKUP(BJ37,Editor!$BM$39:$BN$48,2,FALSE)),0,VLOOKUP(BJ37,Editor!$BM$39:$BN$48,2,FALSE)) -> 0 | BK40: =IF(ISNA(VLOOKUP(BK37,Editor!$BM$39:$BN$48,2,FALSE)),0,VLOOKUP(BK37,Editor!$BM$39:$BN$48,2,FALSE)) -> 0 | BL40: =IF(ISNA(VLOOKUP(BL37,Editor!$BM$39:$BN$48,2,FALSE)),0,VLOOKUP(BL37,Editor!$BM$39:$BN$48,2,FALSE)) -> 0 | BM40: =IF(ISNA(VLOOKUP(BM37,Editor!$BM$39:$BN$48,2,FALSE)),0,VLOOKUP(BM37,Editor!$BM$39:$BN$48,2,FALSE)) -> 0 | BN40: =IF(ISNA(VLOOKUP(BN37,Editor!$BM$39:$BN$48,2,FALSE)),0,VLOOKUP(BN37,Editor!$BM$39:$BN$48,2,FALSE)) -> 0 | BO40: =IF(ISNA(VLOOKUP(BO37,Editor!$BM$39:$BN$48,2,FALSE)),0,VLOOKUP(BO37,Editor!$BM$39:$BN$48,2,FALSE)) -> 0 | BP40: =IF(ISNA(VLOOKUP(BP37,Editor!$BM$39:$BN$48,2,FALSE)),0,VLOOKUP(BP37,Editor!$BM$39:$BN$48,2,FALSE)) -> 0 | BQ40: =IF(ISNA(VLOOKUP(BQ37,Editor!$BM$39:$BN$48,2,FALSE)),0,VLOOKUP(BQ37,Editor!$BM$39:$BN$48,2,FALSE)) -> 0 | BR40: =IF(ISNA(VLOOKUP(BR37,Editor!$BM$39:$BN$48,2,FALSE)),0,VLOOKUP(BR37,Editor!$BM$39:$BN$48,2,FALSE)) -> 0 | BS40: =IF(ISNA(VLOOKUP(BS37,Editor!$BM$39:$BN$48,2,FALSE)),0,VLOOKUP(BS37,Editor!$BM$39:$BN$48,2,FALSE)) -> 0 | BT40: =IF(ISNA(VLOOKUP(BT37,Editor!$BM$39:$BN$48,2,FALSE)),0,VLOOKUP(BT37,Editor!$BM$39:$BN$48,2,FALSE)) -> 0 | BU40: =IF(ISNA(VLOOKUP(BU37,Editor!$BM$39:$BN$48,2,FALSE)),0,VLOOKUP(BU37,Editor!$BM$39:$BN$48,2,FALSE)) -> 0 | BV40: =IF(ISNA(VLOOKUP(BV37,Editor!$BM$39:$BN$48,2,FALSE)),0,VLOOKUP(BV37,Editor!$BM$39:$BN$48,2,FALSE)) -> 0
I41: =IF(ISNA(VLOOKUP(I37,Editor!$BO$39:$BP$48,2,FALSE)),0,VLOOKUP(I37,Editor!$BO$39:$BP$48,2,FALSE)) -> 0 | J41: =IF(ISNA(VLOOKUP(J37,Editor!$BO$39:$BP$48,2,FALSE)),0,VLOOKUP(J37,Editor!$BO$39:$BP$48,2,FALSE)) -> 0 | K41: =IF(ISNA(VLOOKUP(K37,Editor!$BO$39:$BP$48,2,FALSE)),0,VLOOKUP(K37,Editor!$BO$39:$BP$48,2,FALSE)) -> 0 | L41: =IF(ISNA(VLOOKUP(L37,Editor!$BO$39:$BP$48,2,FALSE)),0,VLOOKUP(L37,Editor!$BO$39:$BP$48,2,FALSE)) -> 0 | M41: =IF(ISNA(VLOOKUP(M37,Editor!$BO$39:$BP$48,2,FALSE)),0,VLOOKUP(M37,Editor!$BO$39:$BP$48,2,FALSE)) -> 0 | N41: =IF(ISNA(VLOOKUP(N37,Editor!$BO$39:$BP$48,2,FALSE)),0,VLOOKUP(N37,Editor!$BO$39:$BP$48,2,FALSE)) -> 0 | O41: =IF(ISNA(VLOOKUP(O37,Editor!$BO$39:$BP$48,2,FALSE)),0,VLOOKUP(O37,Editor!$BO$39:$BP$48,2,FALSE)) -> 0 | P41: =IF(ISNA(VLOOKUP(P37,Editor!$BO$39:$BP$48,2,FALSE)),0,VLOOKUP(P37,Editor!$BO$39:$BP$48,2,FALSE)) -> 0 | Q41: =IF(ISNA(VLOOKUP(Q37,Editor!$BO$39:$BP$48,2,FALSE)),0,VLOOKUP(Q37,Editor!$BO$39:$BP$48,2,FALSE)) -> 0 | R41: =IF(ISNA(VLOOKUP(R37,Editor!$BO$39:$BP$48,2,FALSE)),0,VLOOKUP(R37,Editor!$BO$39:$BP$48,2,FALSE)) -> 0 | S41: =IF(ISNA(VLOOKUP(S37,Editor!$BO$39:$BP$48,2,FALSE)),0,VLOOKUP(S37,Editor!$BO$39:$BP$48,2,FALSE)) -> 0 | T41: =IF(ISNA(VLOOKUP(T37,Editor!$BO$39:$BP$48,2,FALSE)),0,VLOOKUP(T37,Editor!$BO$39:$BP$48,2,FALSE)) -> 0 | U41: =IF(ISNA(VLOOKUP(U37,Editor!$BO$39:$BP$48,2,FALSE)),0,VLOOKUP(U37,Editor!$BO$39:$BP$48,2,FALSE)) -> 0 | V41: =IF(ISNA(VLOOKUP(V37,Editor!$BO$39:$BP$48,2,FALSE)),0,VLOOKUP(V37,Editor!$BO$39:$BP$48,2,FALSE)) -> 0 | W41: =IF(ISNA(VLOOKUP(W37,Editor!$BO$39:$BP$48,2,FALSE)),0,VLOOKUP(W37,Editor!$BO$39:$BP$48,2,FALSE)) -> 0 | X41: =IF(ISNA(VLOOKUP(X37,Editor!$BO$39:$BP$48,2,FALSE)),0,VLOOKUP(X37,Editor!$BO$39:$BP$48,2,FALSE)) -> 0 | Y41: =IF(ISNA(VLOOKUP(Y37,Editor!$BO$39:$BP$48,2,FALSE)),0,VLOOKUP(Y37,Editor!$BO$39:$BP$48,2,FALSE)) -> 0 | Z41: =IF(ISNA(VLOOKUP(Z37,Editor!$BO$39:$BP$48,2,FALSE)),0,VLOOKUP(Z37,Editor!$BO$39:$BP$48,2,FALSE)) -> 0 | AA41: =IF(ISNA(VLOOKUP(AA37,Editor!$BO$39:$BP$48,2,FALSE)),0,VLOOKUP(AA37,Editor!$BO$39:$BP$48,2,FALSE)) -> 0 | AB41: =IF(ISNA(VLOOKUP(AB37,Editor!$BO$39:$BP$48,2,FALSE)),0,VLOOKUP(AB37,Editor!$BO$39:$BP$48,2,FALSE)) -> 0 | AC41: =IF(ISNA(VLOOKUP(AC37,Editor!$BO$39:$BP$48,2,FALSE)),0,VLOOKUP(AC37,Editor!$BO$39:$BP$48,2,FALSE)) -> 0 | AD41: =IF(ISNA(VLOOKUP(AD37,Editor!$BO$39:$BP$48,2,FALSE)),0,VLOOKUP(AD37,Editor!$BO$39:$BP$48,2,FALSE)) -> 0 | AE41: =IF(ISNA(VLOOKUP(AE37,Editor!$BO$39:$BP$48,2,FALSE)),0,VLOOKUP(AE37,Editor!$BO$39:$BP$48,2,FALSE)) -> 0 | AF41: =IF(ISNA(VLOOKUP(AF37,Editor!$BO$39:$BP$48,2,FALSE)),0,VLOOKUP(AF37,Editor!$BO$39:$BP$48,2,FALSE)) -> 0 | AG41: =IF(ISNA(VLOOKUP(AG37,Editor!$BO$39:$BP$48,2,FALSE)),0,VLOOKUP(AG37,Editor!$BO$39:$BP$48,2,FALSE)) -> 0 | AH41: =IF(ISNA(VLOOKUP(AH37,Editor!$BO$39:$BP$48,2,FALSE)),0,VLOOKUP(AH37,Editor!$BO$39:$BP$48,2,FALSE)) -> 0 | AI41: =IF(ISNA(VLOOKUP(AI37,Editor!$BO$39:$BP$48,2,FALSE)),0,VLOOKUP(AI37,Editor!$BO$39:$BP$48,2,FALSE)) -> 0 | AJ41: =IF(ISNA(VLOOKUP(AJ37,Editor!$BO$39:$BP$48,2,FALSE)),0,VLOOKUP(AJ37,Editor!$BO$39:$BP$48,2,FALSE)) -> 0 | AK41: =IF(ISNA(VLOOKUP(AK37,Editor!$BO$39:$BP$48,2,FALSE)),0,VLOOKUP(AK37,Editor!$BO$39:$BP$48,2,FALSE)) -> 0 | AL41: =IF(ISNA(VLOOKUP(AL37,Editor!$BO$39:$BP$48,2,FALSE)),0,VLOOKUP(AL37,Editor!$BO$39:$BP$48,2,FALSE)) -> 0 | AM41: =IF(ISNA(VLOOKUP(AM37,Editor!$BO$39:$BP$48,2,FALSE)),0,VLOOKUP(AM37,Editor!$BO$39:$BP$48,2,FALSE)) -> 0 | AN41: =IF(ISNA(VLOOKUP(AN37,Editor!$BO$39:$BP$48,2,FALSE)),0,VLOOKUP(AN37,Editor!$BO$39:$BP$48,2,FALSE)) -> 0 | AO41: =IF(ISNA(VLOOKUP(AO37,Editor!$BO$39:$BP$48,2,FALSE)),0,VLOOKUP(AO37,Editor!$BO$39:$BP$48,2,FALSE)) -> 0 | AP41: =IF(ISNA(VLOOKUP(AP37,Editor!$BO$39:$BP$48,2,FALSE)),0,VLOOKUP(AP37,Editor!$BO$39:$BP$48,2,FALSE)) -> 0 | AQ41: =IF(ISNA(VLOOKUP(AQ37,Editor!$BO$39:$BP$48,2,FALSE)),0,VLOOKUP(AQ37,Editor!$BO$39:$BP$48,2,FALSE)) -> 0 | AR41: =IF(ISNA(VLOOKUP(AR37,Editor!$BO$39:$BP$48,2,FALSE)),0,VLOOKUP(AR37,Editor!$BO$39:$BP$48,2,FALSE)) -> 0 | AS41: =IF(ISNA(VLOOKUP(AS37,Editor!$BO$39:$BP$48,2,FALSE)),0,VLOOKUP(AS37,Editor!$BO$39:$BP$48,2,FALSE)) -> 0 | AT41: =IF(ISNA(VLOOKUP(AT37,Editor!$BO$39:$BP$48,2,FALSE)),0,VLOOKUP(AT37,Editor!$BO$39:$BP$48,2,FALSE)) -> 0 | AU41: =IF(ISNA(VLOOKUP(AU37,Editor!$BO$39:$BP$48,2,FALSE)),0,VLOOKUP(AU37,Editor!$BO$39:$BP$48,2,FALSE)) -> 0 | AV41: =IF(ISNA(VLOOKUP(AV37,Editor!$BO$39:$BP$48,2,FALSE)),0,VLOOKUP(AV37,Editor!$BO$39:$BP$48,2,FALSE)) -> 0 | AW41: =IF(ISNA(VLOOKUP(AW37,Editor!$BO$39:$BP$48,2,FALSE)),0,VLOOKUP(AW37,Editor!$BO$39:$BP$48,2,FALSE)) -> 0 | AX41: =IF(ISNA(VLOOKUP(AX37,Editor!$BO$39:$BP$48,2,FALSE)),0,VLOOKUP(AX37,Editor!$BO$39:$BP$48,2,FALSE)) -> 0 | AY41: =IF(ISNA(VLOOKUP(AY37,Editor!$BO$39:$BP$48,2,FALSE)),0,VLOOKUP(AY37,Editor!$BO$39:$BP$48,2,FALSE)) -> 0 | AZ41: =IF(ISNA(VLOOKUP(AZ37,Editor!$BO$39:$BP$48,2,FALSE)),0,VLOOKUP(AZ37,Editor!$BO$39:$BP$48,2,FALSE)) -> 0 | BA41: =IF(ISNA(VLOOKUP(BA37,Editor!$BO$39:$BP$48,2,FALSE)),0,VLOOKUP(BA37,Editor!$BO$39:$BP$48,2,FALSE)) -> 0 | BB41: =IF(ISNA(VLOOKUP(BB37,Editor!$BO$39:$BP$48,2,FALSE)),0,VLOOKUP(BB37,Editor!$BO$39:$BP$48,2,FALSE)) -> 0 | BC41: =IF(ISNA(VLOOKUP(BC37,Editor!$BO$39:$BP$48,2,FALSE)),0,VLOOKUP(BC37,Editor!$BO$39:$BP$48,2,FALSE)) -> 0 | BD41: =IF(ISNA(VLOOKUP(BD37,Editor!$BO$39:$BP$48,2,FALSE)),0,VLOOKUP(BD37,Editor!$BO$39:$BP$48,2,FALSE)) -> 0 | BE41: =IF(ISNA(VLOOKUP(BE37,Editor!$BO$39:$BP$48,2,FALSE)),0,VLOOKUP(BE37,Editor!$BO$39:$BP$48,2,FALSE)) -> 0 | BF41: =IF(ISNA(VLOOKUP(BF37,Editor!$BO$39:$BP$48,2,FALSE)),0,VLOOKUP(BF37,Editor!$BO$39:$BP$48,2,FALSE)) -> 0 | BG41: =IF(ISNA(VLOOKUP(BG37,Editor!$BO$39:$BP$48,2,FALSE)),0,VLOOKUP(BG37,Editor!$BO$39:$BP$48,2,FALSE)) -> 0 | BH41: =IF(ISNA(VLOOKUP(BH37,Editor!$BO$39:$BP$48,2,FALSE)),0,VLOOKUP(BH37,Editor!$BO$39:$BP$48,2,FALSE)) -> 0 | BI41: =IF(ISNA(VLOOKUP(BI37,Editor!$BO$39:$BP$48,2,FALSE)),0,VLOOKUP(BI37,Editor!$BO$39:$BP$48,2,FALSE)) -> 0 | BJ41: =IF(ISNA(VLOOKUP(BJ37,Editor!$BO$39:$BP$48,2,FALSE)),0,VLOOKUP(BJ37,Editor!$BO$39:$BP$48,2,FALSE)) -> 0 | BK41: =IF(ISNA(VLOOKUP(BK37,Editor!$BO$39:$BP$48,2,FALSE)),0,VLOOKUP(BK37,Editor!$BO$39:$BP$48,2,FALSE)) -> 0 | BL41: =IF(ISNA(VLOOKUP(BL37,Editor!$BO$39:$BP$48,2,FALSE)),0,VLOOKUP(BL37,Editor!$BO$39:$BP$48,2,FALSE)) -> 0 | BM41: =IF(ISNA(VLOOKUP(BM37,Editor!$BO$39:$BP$48,2,FALSE)),0,VLOOKUP(BM37,Editor!$BO$39:$BP$48,2,FALSE)) -> 0 | BN41: =IF(ISNA(VLOOKUP(BN37,Editor!$BO$39:$BP$48,2,FALSE)),0,VLOOKUP(BN37,Editor!$BO$39:$BP$48,2,FALSE)) -> 0 | BO41: =IF(ISNA(VLOOKUP(BO37,Editor!$BO$39:$BP$48,2,FALSE)),0,VLOOKUP(BO37,Editor!$BO$39:$BP$48,2,FALSE)) -> 0 | BP41: =IF(ISNA(VLOOKUP(BP37,Editor!$BO$39:$BP$48,2,FALSE)),0,VLOOKUP(BP37,Editor!$BO$39:$BP$48,2,FALSE)) -> 0 | BQ41: =IF(ISNA(VLOOKUP(BQ37,Editor!$BO$39:$BP$48,2,FALSE)),0,VLOOKUP(BQ37,Editor!$BO$39:$BP$48,2,FALSE)) -> 0 | BR41: =IF(ISNA(VLOOKUP(BR37,Editor!$BO$39:$BP$48,2,FALSE)),0,VLOOKUP(BR37,Editor!$BO$39:$BP$48,2,FALSE)) -> 0 | BS41: =IF(ISNA(VLOOKUP(BS37,Editor!$BO$39:$BP$48,2,FALSE)),0,VLOOKUP(BS37,Editor!$BO$39:$BP$48,2,FALSE)) -> 0 | BT41: =IF(ISNA(VLOOKUP(BT37,Editor!$BO$39:$BP$48,2,FALSE)),0,VLOOKUP(BT37,Editor!$BO$39:$BP$48,2,FALSE)) -> 0 | BU41: =IF(ISNA(VLOOKUP(BU37,Editor!$BO$39:$BP$48,2,FALSE)),0,VLOOKUP(BU37,Editor!$BO$39:$BP$48,2,FALSE)) -> 0 | BV41: =IF(ISNA(VLOOKUP(BV37,Editor!$BO$39:$BP$48,2,FALSE)),0,VLOOKUP(BV37,Editor!$BO$39:$BP$48,2,FALSE)) -> 0
F42: =IF(E38=Editor!$AJ$4,1,0) -> 1 | I42: =IF(I47=32,0,I41+I40) -> 0 | J42: =IF(J47=32,0,J41+J40) -> 0 | K42: =IF(K47=32,0,K41+K40) -> 0 | L42: 0 | M42: 0 | N42: 0 | O42: 0 | P42: 0 | Q42: 0 | R42: 0 | S42: 0 | T42: 0 | U42: 0 | V42: 0 | W42: 0 | X42: 0 | Y42: 0 | Z42: 0 | AA42: 0 | AB42: 0 | AC42: 0 | AD42: 0 | AE42: 0 | AF42: 0 | AG42: 0 | AH42: 0 | AI42: 0 | AJ42: 0 | AK42: 0 | AL42: 0 | AM42: 0 | AN42: 0 | AO42: 0 | AP42: 0 | AQ42: 0 | AR42: 0 | AS42: 0 | AT42: 0 | AU42: 0 | AV42: 0 | AW42: 0 | AX42: 0 | AY42: 0 | AZ42: 0 | BA42: 0 | BB42: 0 | BC42: 0 | BD42: 0 | BE42: 0 | BF42: 0 | BG42: 0 | BH42: 0 | BI42: 0 | BJ42: 0 | BK42: 0 | BL42: 0 | BM42: 0 | BN42: 0 | BO42: 0 | BP42: 0 | BQ42: 0 | BR42: 0 | BS42: 0 | BT42: 0 | BU42: 0 | BV42: =IF(BV47=32,0,BV41+BV40) -> 0
F43: =IF(E39=Editor!$AJ$4,1,0) -> 0 | I43: 1 | J43: =IF(J42=1,1,I43+1) -> 2 | K43: =IF(K42=1,1,J43+1) -> 3 | L43: 4 | M43: 5 | N43: 6 | O43: 7 | P43: 8 | Q43: 9 | R43: 10 | S43: 11 | T43: 12 | U43: 13 | V43: 14 | W43: 15 | X43: 16 | Y43: 17 | Z43: 18 | AA43: 19 | AB43: 20 | AC43: 21 | AD43: 22 | AE43: 23 | AF43: 24 | AG43: 25 | AH43: 26 | AI43: 27 | AJ43: 28 | AK43: 29 | AL43: 30 | AM43: 31 | AN43: 32 | AO43: 33 | AP43: 34 | AQ43: 35 | AR43: 36 | AS43: 37 | AT43: 38 | AU43: 39 | AV43: 40 | AW43: 41 | AX43: 42 | AY43: 43 | AZ43: 44 | BA43: 45 | BB43: 46 | BC43: 47 | BD43: 48 | BE43: 49 | BF43: 50 | BG43: 51 | BH43: 52 | BI43: 53 | BJ43: 54 | BK43: 55 | BL43: 56 | BM43: 57 | BN43: 58 | BO43: 59 | BP43: 60 | BQ43: 61 | BR43: 62 | BS43: 63 | BT43: 64 | BU43: 65 | BV43: 66
I44: =COUNTIF(I2:I33,"") -> 32 | J44: =COUNTIF(J2:J33,"") -> 32 | K44: 32 | L44: 32 | M44: 32 | N44: 32 | O44: 32 | P44: 32 | Q44: 32 | R44: 32 | S44: 32 | T44: 32 | U44: 32 | V44: 32 | W44: 32 | X44: 32 | Y44: 32 | Z44: 32 | AA44: 32 | AB44: 32 | AC44: 32 | AD44: 32 | AE44: 32 | AF44: 32 | AG44: 32 | AH44: 32 | AI44: 32 | AJ44: 32 | AK44: 32 | AL44: 32 | AM44: 32 | AN44: 32 | AO44: 32 | AP44: 32 | AQ44: 32 | AR44: 32 | AS44: 32 | AT44: 32 | AU44: 32 | AV44: 32 | AW44: 32 | AX44: 32 | AY44: 32 | AZ44: 32 | BA44: 32 | BB44: 32 | BC44: 32 | BD44: 32 | BE44: 32 | BF44: 32 | BG44: 32 | BH44: 32 | BI44: 32 | BJ44: 32 | BK44: 32 | BL44: 32 | BM44: 32 | BN44: 32 | BO44: 32 | BP44: 32 | BQ44: 32 | BR44: 32 | BS44: 32 | BT44: 32 | BU44: 32 | BV44: =COUNTIF(BV2:BV33,"") -> 32
I45: =COUNTIF(I2:I33,".") -> 0 | J45: =COUNTIF(J2:J33,".") -> 0 | K45: 0 | L45: 0 | M45: 0 | N45: 0 | O45: 0 | P45: 0 | Q45: 0 | R45: 0 | S45: 0 | T45: 0 | U45: 0 | V45: 0 | W45: 0 | X45: 0 | Y45: 0 | Z45: 0 | AA45: 0 | AB45: 0 | AC45: 0 | AD45: 0 | AE45: 0 | AF45: 0 | AG45: 0 | AH45: 0 | AI45: 0 | AJ45: 0 | AK45: 0 | AL45: 0 | AM45: 0 | AN45: 0 | AO45: 0 | AP45: 0 | AQ45: 0 | AR45: 0 | AS45: 0 | AT45: 0 | AU45: 0 | AV45: 0 | AW45: 0 | AX45: 0 | AY45: 0 | AZ45: 0 | BA45: 0 | BB45: 0 | BC45: 0 | BD45: 0 | BE45: 0 | BF45: 0 | BG45: 0 | BH45: 0 | BI45: 0 | BJ45: 0 | BK45: 0 | BL45: 0 | BM45: 0 | BN45: 0 | BO45: 0 | BP45: 0 | BQ45: 0 | BR45: 0 | BS45: 0 | BT45: 0 | BU45: 0 | BV45: =COUNTIF(BV2:BV33,".") -> 0 | BW45: =COUNTIF(BW2:BW33,".") -> 0
I46: =COUNTIF(I2:I33,"_") -> 0 | J46: =COUNTIF(J2:J33,"_") -> 0 | K46: 0 | L46: 0 | M46: 0 | N46: 0 | O46: 0 | P46: 0 | Q46: 0 | R46: 0 | S46: 0 | T46: 0 | U46: 0 | V46: 0 | W46: 0 | X46: 0 | Y46: 0 | Z46: 0 | AA46: 0 | AB46: 0 | AC46: 0 | AD46: 0 | AE46: 0 | AF46: 0 | AG46: 0 | AH46: 0 | AI46: 0 | AJ46: 0 | AK46: 0 | AL46: 0 | AM46: 0 | AN46: 0 | AO46: 0 | AP46: 0 | AQ46: 0 | AR46: 0 | AS46: 0 | AT46: 0 | AU46: 0 | AV46: 0 | AW46: 0 | AX46: 0 | AY46: 0 | AZ46: 0 | BA46: 0 | BB46: 0 | BC46: 0 | BD46: 0 | BE46: 0 | BF46: 0 | BG46: 0 | BH46: 0 | BI46: 0 | BJ46: 0 | BK46: 0 | BL46: 0 | BM46: 0 | BN46: 0 | BO46: 0 | BP46: 0 | BQ46: 0 | BR46: 0 | BS46: 0 | BT46: 0 | BU46: 0 | BV46: =COUNTIF(BV2:BV33,"_") -> 0
I47: =I45+I44+I46 -> 32 | J47: =J45+J44+J46 -> 32 | K47: 32 | L47: 32 | M47: 32 | N47: 32 | O47: 32 | P47: 32 | Q47: 32 | R47: 32 | S47: 32 | T47: 32 | U47: 32 | V47: 32 | W47: 32 | X47: 32 | Y47: 32 | Z47: 32 | AA47: 32 | AB47: 32 | AC47: 32 | AD47: 32 | AE47: 32 | AF47: 32 | AG47: 32 | AH47: 32 | AI47: 32 | AJ47: 32 | AK47: 32 | AL47: 32 | AM47: 32 | AN47: 32 | AO47: 32 | AP47: 32 | AQ47: 32 | AR47: 32 | AS47: 32 | AT47: 32 | AU47: 32 | AV47: 32 | AW47: 32 | AX47: 32 | AY47: 32 | AZ47: 32 | BA47: 32 | BB47: 32 | BC47: 32 | BD47: 32 | BE47: 32 | BF47: 32 | BG47: 32 | BH47: 32 | BI47: 32 | BJ47: 32 | BK47: 32 | BL47: 32 | BM47: 32 | BN47: 32 | BO47: 32 | BP47: 32 | BQ47: 32 | BR47: 32 | BS47: 32 | BT47: 32 | BU47: 32 | BV47: =BV45+BV44+BV46 -> 32
AC48: Copyright (C) 2010 ＰＣソリューション・ヨシダ All Rights Reserved. | BY48: http://e-ict.info/vupmarkun.htm
A67: =TRIM(IF(ISERR(Sheet1!A67),"",Sheet1!A67)) -> 
A68: =TRIM(IF(ISERR(Sheet1!A68),"",Sheet1!A68)) -> 

Sheet Editor
B3: ※Microsoft excel 2000以降に対応 | AF3: 下表のピンクのセルに左表のマークパターンコード（a～9）を書き込み、下のボタンをクリックすればマークシートが作成されます。 | BL3: 長さ | CA3: 長さ
AF4: ＩＤの桁数＝ | AJ4: 5 | AL4: ←４～15 | AP4: MarkunV4.03以前ではID(年組番等記述欄)の桁数5で利用できます。 | HR4: 文字と罫線色設定 | IC4: マーク形状など
AF5: Ⅰ | AI5: Ⅱ | AL5: Ⅲ | AO5: Ⅳ | AR5: Ⅴ | AU5: Ⅵ | AX5: Ⅶ | BA5: Ⅷ | BD5: Ⅸ | BG5: Ⅹ | BL5: Ⅰ | BO5: Ⅱ | BR5: Ⅲ | BU5: Ⅳ | BX5: Ⅴ | CA5: Ⅵ | CD5: Ⅶ | CG5: Ⅷ | CJ5: Ⅸ | CM5: Ⅹ | CP5: Ⅰ | CQ5: Ⅱ | CR5: Ⅲ | CS5: Ⅳ | CT5: Ⅴ | CU5: Ⅵ | CV5: Ⅶ | CW5: Ⅷ | CX5: Ⅸ | CY5: Ⅹ | CZ5: Ⅰ＆Ⅱ＆Ⅲ＆Ⅳ＆Ⅴ | DA5: 1 | DB5: 2 | DC5: 3 | DD5: 4 | DE5: 5 | DF5: 6 | DG5: 7 | DH5: 8 | DI5: 9 | DJ5: 10 | DK5: 11 | DL5: 12 | DM5: 13 | DN5: 14 | DO5: 15 | DP5: 16 | DQ5: 17 | DR5: 18 | DS5: 19 | DT5: 20 | DU5: 21 | DV5: 22 | DW5: 23 | DX5: 24 | DY5: 25 | DZ5: 26 | EA5: 27 | EB5: 28 | EC5: 29 | ED5: 30 | EE5: 31 | EF5: 32 | EG5: 33 | EH5: 34 | EI5: 35 | EJ5: 36 | EK5: 37 | EL5: 38 | EM5: 39 | EN5: 40 | EO5: 41 | EP5: 42 | EQ5: 43 | ER5: 44 | ES5: 45 | ET5: 46 | EU5: 47 | EV5: 48 | EW5: 49 | EX5: 50 | EY5: 51 | EZ5: 52 | FA5: 53 | FB5: 54 | FC5: 55 | FD5: 56 | FE5: 57 | FF5: 58 | FG5: 59 | FH5: 60 | FI5: 61 | FJ5: 62 | FK5: 63 | FL5: 64 | FM5: 65 | FN5: 66 | FO5: 67 | FP5: 68 | FQ5: 69 | FR5: 70 | FS5: 71 | FT5: 72 | FU5: 73 | FV5: 74 | FW5: 75 | FX5: 76 | FY5: 77 | FZ5: 78 | GA5: 79 | GB5: 80 | GC5: 81 | GD5: 82 | GE5: 83 | GF5: 84 | GG5: 85 | GH5: 86 | GI5: 87 | GJ5: 88 | GK5: 89 | GL5: 90 | GM5: 91 | GN5: 92 | GO5: 93 | GP5: 94 | GQ5: 95 | GR5: 96 | GS5: 97 | GT5: 98 | GU5: 99 | GV5: 100 | GW5: 101 | GX5: 102 | GY5: 103 | GZ5: 104 | HA5: 105 | HB5: 106 | HC5: 107 | HD5: 108 | HE5: 109 | HF5: 110 | HG5: 111 | HR5: (文字色サンプル) | IC5: =TRIM(IF(ISERR(Sheet1!IC5),"",Sheet1!IC5)) -> 
B6: a | C6: - | D6: ± | E6: 0 | F6: 1 | G6: 2 | H6: 3 | I6: 4 | J6: 5 | K6: 6 | L6: 7 | M6: 8 | N6: 9 | O6: a | P6: b | Q6: c | R6: d | S6: e | T6: f | U6: g | V6: _ | W6: _ | X6: =21-COUNTIF(C6:W6,"_") -> 19 | Y6: 1 | AF6: 1 | AH6: =IF(ISNA(VLOOKUP(AG6,$B$6:$Y$40,21,FALSE)),0,VLOOKUP(AG6,$B$6:$Y$40,24,FALSE)) -> 0 | AI6: 31 | AK6: =IF(ISNA(VLOOKUP(AJ6,$B$6:$Y$40,21,FALSE)),0,VLOOKUP(AJ6,$B$6:$Y$40,24,FALSE)) -> 0 | AL6: 61 | AN6: =IF(ISNA(VLOOKUP(AM6,$B$6:$Y$40,21,FALSE)),0,VLOOKUP(AM6,$B$6:$Y$40,24,FALSE)) -> 0 | AO6: 91 | AQ6: =IF(ISNA(VLOOKUP(AP6,$B$6:$Y$40,21,FALSE)),0,VLOOKUP(AP6,$B$6:$Y$40,24,FALSE)) -> 0 | AR6: 121 | AT6: =IF(ISNA(VLOOKUP(AS6,$B$6:$Y$40,21,FALSE)),0,VLOOKUP(AS6,$B$6:$Y$40,24,FALSE)) -> 0 | AU6: 151 | AW6: =IF(ISNA(VLOOKUP(AV6,$B$6:$Y$40,21,FALSE)),0,VLOOKUP(AV6,$B$6:$Y$40,24,FALSE)) -> 0 | AX6: 181 | AZ6: =IF(ISNA(VLOOKUP(AY6,$B$6:$Y$40,21,FALSE)),0,VLOOKUP(AY6,$B$6:$Y$40,24,FALSE)) -> 0 | BA6: 211 | BC6: =IF(ISNA(VLOOKUP(BB6,$B$6:$Y$40,21,FALSE)),0,VLOOKUP(BB6,$B$6:$Y$40,24,FALSE)) -> 0 | BD6: 241 | BF6: =IF(ISNA(VLOOKUP(BE6,$B$6:$Y$40,21,FALSE)),0,VLOOKUP(BE6,$B$6:$Y$40,24,FALSE)) -> 0 | BG6: 271 | BI6: =IF(ISNA(VLOOKUP(BH6,$B$6:$Y$40,21,FALSE)),0,VLOOKUP(BH6,$B$6:$Y$40,24,FALSE)) -> 0 | BL6: 1 | BM6: =IF(ISNA(VLOOKUP(AG6,$B$6:$X$40,21,FALSE)),0,VLOOKUP(AG6,$B$6:$X$40,23,FALSE)) -> 0 | BN6: =RIGHT("00"&$AH6,2) -> 00 | BO6: 31 | BP6: =IF(ISNA(VLOOKUP(AJ6,$B$6:$X$40,21,FALSE)),0,VLOOKUP(AJ6,$B$6:$X$40,23,FALSE)) -> 0 | BQ6: =RIGHT("00"&AK6,2) -> 00 | BR6: 61 | BS6: =IF(ISNA(VLOOKUP(AM6,$B$6:$X$40,21,FALSE)),0,VLOOKUP(AM6,$B$6:$X$40,23,FALSE)) -> 0 | BT6: =RIGHT("00"&AN6,2) -> 00 | BU6: 91 | BV6: =IF(ISNA(VLOOKUP(AP6,$B$6:$X$40,21,FALSE)),0,VLOOKUP(AP6,$B$6:$X$40,23,FALSE)) -> 0 | BW6: =RIGHT("00"&AQ6,2) -> 00 | BX6: 121 | BY6: =IF(ISNA(VLOOKUP(AS6,$B$6:$X$40,21,FALSE)),0,VLOOKUP(AS6,$B$6:$X$40,23,FALSE)) -> 0 | BZ6: =RIGHT("00"&AT6,2) -> 00 | CA6: 1 | CB6: =IF(ISNA(VLOOKUP(AV6,$B$6:$X$40,21,FALSE)),0,VLOOKUP(AV6,$B$6:$X$40,23,FALSE)) -> 0 | CC6: =RIGHT("00"&AW6,2) -> 00 | CD6: 31 | CE6: =IF(ISNA(VLOOKUP(AY6,$B$6:$X$40,21,FALSE)),0,VLOOKUP(AY6,$B$6:$X$40,23,FALSE)) -> 0 | CF6: =RIGHT("00"&AZ6,2) -> 00 | CG6: 61 | CH6: =IF(ISNA(VLOOKUP(BB6,$B$6:$X$40,21,FALSE)),0,VLOOKUP(BB6,$B$6:$X$40,23,FALSE)) -> 0 | CI6: =RIGHT("00"&BC6,2) -> 00 | CJ6: 91 | CK6: =IF(ISNA(VLOOKUP(BE6,$B$6:$X$40,21,FALSE)),0,VLOOKUP(BE6,$B$6:$X$40,23,FALSE)) -> 0 | CL6: =RIGHT("00"&BF6,2) -> 00 | CM6: 121 | CN6: =IF(ISNA(VLOOKUP(BH6,$B$6:$X$40,21,FALSE)),0,VLOOKUP(BH6,$B$6:$X$40,23,FALSE)) -> 0 | CO6: =RIGHT("00"&BI6,2) -> 00 | CP6: =REPT(BN6,BM$36) ->  | CQ6: =REPT(BQ6,BP$36) ->  | CR6: =REPT(BT6,BS$36) ->  | CS6: =REPT(BW6,BV$36) ->  | CT6: =REPT(BZ6,BY$36) ->  | CU6: =REPT(CC6,CB$36) ->  | CV6: =REPT(CF6,CE$36) ->  | CW6: =REPT(CI6,CH$36) ->  | CX6: =REPT(CL6,CK$36) ->  | CY6: =REPT(CO6,CN$36) ->  | CZ6: =CP6&CQ6&CR6&CS6&CT6&CU6&CV6&CW6&CX6&CY6 ->  | DA6: =VALUE(MID($CZ6,2*(DA$5-1)+1,2)) ->  | DB6: =VALUE(MID($CZ6,2*(DB$5-1)+1,2)) ->  | DR6: =VALUE(MID($CZ6,2*(DR$5-1)+1,2)) ->  | EH6: =VALUE(MID($CZ6,2*(EH$5-1)+1,2)) ->  | EX6: =VALUE(MID($CZ6,2*(EX$5-1)+1,2)) ->  | FN6: =VALUE(MID($CZ6,2*(FN$5-1)+1,2)) ->  | FV6: =VALUE(MID($CZ6,2*(FV$5-1)+1,2)) ->  | GL6: =VALUE(MID($CZ6,2*(GL$5-1)+1,2)) ->  | HB6: =VALUE(MID($CZ6,2*(HB$5-1)+1,2)) ->  | HS6: 1 | HT6: 53 | HU6: 52 | HV6: 51 | HW6: 49 | HX6: 11 | HY6: 55 | HZ6: 56 | IC6: 1 | IE6: 2 | IK6: 1
B7: b | C7: - | D7: ± | E7: 0 | F7: 1 | G7: 2 | H7: 3 | I7: 4 | J7: 5 | K7: 6 | L7: 7 | M7: 8 | N7: 9 | O7: a | P7: b | Q7: c | R7: d | S7: _ | T7: _ | U7: _ | V7: _ | W7: _ | X7: =21-COUNTIF(C7:W7,"_") -> 16 | Y7: 2 | AF7: 2 | AH7: =IF(ISNA(VLOOKUP(AG7,$B$6:$Y$40,21,FALSE)),0,VLOOKUP(AG7,$B$6:$Y$40,24,FALSE)) -> 0 | AI7: =AI6+1 -> 32 | AK7: =IF(ISNA(VLOOKUP(AJ7,$B$6:$Y$40,21,FALSE)),0,VLOOKUP(AJ7,$B$6:$Y$40,24,FALSE)) -> 0 | AL7: =AL6+1 -> 62 | AN7: =IF(ISNA(VLOOKUP(AM7,$B$6:$Y$40,21,FALSE)),0,VLOOKUP(AM7,$B$6:$Y$40,24,FALSE)) -> 0 | AO7: =AO6+1 -> 92 | AQ7: =IF(ISNA(VLOOKUP(AP7,$B$6:$Y$40,21,FALSE)),0,VLOOKUP(AP7,$B$6:$Y$40,24,FALSE)) -> 0 | AR7: =AR6+1 -> 122 | AT7: =IF(ISNA(VLOOKUP(AS7,$B$6:$Y$40,21,FALSE)),0,VLOOKUP(AS7,$B$6:$Y$40,24,FALSE)) -> 0 | AU7: 152 | AW7: =IF(ISNA(VLOOKUP(AV7,$B$6:$Y$40,21,FALSE)),0,VLOOKUP(AV7,$B$6:$Y$40,24,FALSE)) -> 0 | AX7: =AX6+1 -> 182 | AZ7: =IF(ISNA(VLOOKUP(AY7,$B$6:$Y$40,21,FALSE)),0,VLOOKUP(AY7,$B$6:$Y$40,24,FALSE)) -> 0 | BA7: =BA6+1 -> 212 | BC7: =IF(ISNA(VLOOKUP(BB7,$B$6:$Y$40,21,FALSE)),0,VLOOKUP(BB7,$B$6:$Y$40,24,FALSE)) -> 0 | BD7: =BD6+1 -> 242 | BF7: =IF(ISNA(VLOOKUP(BE7,$B$6:$Y$40,21,FALSE)),0,VLOOKUP(BE7,$B$6:$Y$40,24,FALSE)) -> 0 | BG7: =BG6+1 -> 272 | BI7: =IF(ISNA(VLOOKUP(BH7,$B$6:$Y$40,21,FALSE)),0,VLOOKUP(BH7,$B$6:$Y$40,24,FALSE)) -> 0 | BL7: 2 | BM7: =IF(ISNA(VLOOKUP(AG7,$B$6:$X$40,21,FALSE)),0,VLOOKUP(AG7,$B$6:$X$40,23,FALSE)) -> 0 | BN7: =RIGHT("00"&$AH7,2) -> 00 | BO7: =BO6+1 -> 32 | BP7: =IF(ISNA(VLOOKUP(AJ7,$B$6:$X$40,21,FALSE)),0,VLOOKUP(AJ7,$B$6:$X$40,23,FALSE)) -> 0 | BQ7: =RIGHT("00"&AK7,2) -> 00 | BR7: =BR6+1 -> 62 | BS7: =IF(ISNA(VLOOKUP(AM7,$B$6:$X$40,21,FALSE)),0,VLOOKUP(AM7,$B$6:$X$40,23,FALSE)) -> 0 | BT7: =RIGHT("00"&AN7,2) -> 00 | BU7: =BU6+1 -> 92 | BV7: =IF(ISNA(VLOOKUP(AP7,$B$6:$X$40,21,FALSE)),0,VLOOKUP(AP7,$B$6:$X$40,23,FALSE)) -> 0 | BW7: =RIGHT("00"&AQ7,2) -> 00 | BX7: =BX6+1 -> 122 | BY7: =IF(ISNA(VLOOKUP(AS7,$B$6:$X$40,21,FALSE)),0,VLOOKUP(AS7,$B$6:$X$40,23,FALSE)) -> 0 | BZ7: 00 | CA7: 2 | CB7: =IF(ISNA(VLOOKUP(AV7,$B$6:$X$40,21,FALSE)),0,VLOOKUP(AV7,$B$6:$X$40,23,FALSE)) -> 0 | CC7: 00 | CD7: =CD6+1 -> 32 | CE7: =IF(ISNA(VLOOKUP(AY7,$B$6:$X$40,21,FALSE)),0,VLOOKUP(AY7,$B$6:$X$40,23,FALSE)) -> 0 | CF7: 00 | CG7: =CG6+1 -> 62 | CH7: =IF(ISNA(VLOOKUP(BB7,$B$6:$X$40,21,FALSE)),0,VLOOKUP(BB7,$B$6:$X$40,23,FALSE)) -> 0 | CI7: 00 | CJ7: =CJ6+1 -> 92 | CK7: =IF(ISNA(VLOOKUP(BE7,$B$6:$X$40,21,FALSE)),0,VLOOKUP(BE7,$B$6:$X$40,23,FALSE)) -> 0 | CL7: 00 | CM7: =CM6+1 -> 122 | CN7: =IF(ISNA(VLOOKUP(BH7,$B$6:$X$40,21,FALSE)),0,VLOOKUP(BH7,$B$6:$X$40,23,FALSE)) -> 0 | CO7: 00 | CP7: =REPT(BN7,BM$36) ->  | CQ7: =REPT(BQ7,BP$36) ->  | CR7: =REPT(BT7,BS$36) ->  | CS7: =REPT(BW7,BV$36) ->  | CT7: =REPT(BZ7,BY$36) ->  | CU7: =REPT(CC7,CB$36) ->  | CV7: =REPT(CF7,CE$36) ->  | CW7: =REPT(CI7,CH$36) ->  | CX7: =REPT(CL7,CK$36) ->  | CY7: =REPT(CO7,CN$36) ->  | CZ7: =CP7&CQ7&CR7&CS7&CT7&CU7&CV7&CW7&CX7&CY7 ->  | HS7: 9 | HT7: 46 | HU7: 12 | HV7: 10 | HW7: 14 | HX7: 5 | HY7: 47 | HZ7: 16 | IC7: 3 | IE7: 4
B8: c | C8: 0 | D8: 1 | E8: 2 | F8: 3 | G8: 4 | H8: 5 | I8: 6 | J8: 7 | K8: 8 | L8: 9 | M8: a | N8: b | O8: c | P8: d | Q8: e | R8: f | S8: _ | T8: _ | U8: _ | V8: _ | W8: _ | X8: 16 | Y8: 3 | AF8: 3 | AH8: 0 | AI8: =AI7+1 -> 33 | AK8: 0 | AL8: =AL7+1 -> 63 | AN8: 0 | AO8: =AO7+1 -> 93 | AQ8: 0 | AR8: =AR7+1 -> 123 | AT8: 0 | AU8: =AU7+1 -> 153 | AW8: 0 | AX8: =AX7+1 -> 183 | AZ8: 0 | BA8: =BA7+1 -> 213 | BC8: 0 | BD8: =BD7+1 -> 243 | BF8: 0 | BG8: =BG7+1 -> 273 | BI8: 0 | BL8: 3 | BM8: 0 | BN8: 00 | BO8: =BO7+1 -> 33 | BP8: 0 | BQ8: 00 | BR8: =BR7+1 -> 63 | BS8: 0 | BT8: 00 | BU8: =BU7+1 -> 93 | BV8: 0 | BW8: 00 | BX8: =BX7+1 -> 123 | BY8: 0 | BZ8: 00 | CA8: 3 | CB8: 0 | CC8: 00 | CD8: =CD7+1 -> 33 | CE8: 0 | CF8: 00 | CG8: =CG7+1 -> 63 | CH8: 0 | CI8: 00 | CJ8: =CJ7+1 -> 93 | CK8: 0 | CL8: 00 | CM8: =CM7+1 -> 123 | CN8: 0 | CO8: 00 | HS8: 3 | HT8: 45 | HU8: 43 | HV8: 50 | HW8: 42 | HX8: 41 | HY8: 13 | HZ8: 48 | II8: この番号のマーク使用
B9: d | C9: - | D9: ± | E9: 0 | F9: 1 | G9: 2 | H9: 3 | I9: 4 | J9: 5 | K9: 6 | L9: 7 | M9: 8 | N9: 9 | O9: a | P9: b | Q9: c | R9: _ | S9: _ | T9: _ | U9: _ | V9: _ | W9: _ | X9: 15 | Y9: 4 | AF9: 4 | AH9: 0 | AI9: 34 | AK9: 0 | AL9: 64 | AN9: 0 | AO9: 94 | AQ9: 0 | AR9: 124 | AT9: 0 | AU9: =AU8+1 -> 154 | AW9: 0 | AX9: 184 | AZ9: 0 | BA9: 214 | BC9: 0 | BD9: 244 | BF9: 0 | BG9: 274 | BI9: 0 | BL9: 4 | BM9: 0 | BN9: 00 | BO9: 34 | BP9: 0 | BQ9: 00 | BR9: 64 | BS9: 0 | BT9: 00 | BU9: 94 | BV9: 0 | BW9: 00 | BX9: 124 | BY9: 0 | BZ9: 00 | CA9: 4 | CB9: 0 | CC9: 00 | CD9: 34 | CE9: 0 | CF9: 00 | CG9: 64 | CH9: 0 | CI9: 00 | CJ9: 94 | CK9: 0 | CL9: 00 | CM9: 124 | CN9: 0 | CO9: 00 | HS9: 7 | HT9: 44 | HU9: 6 | HV9: 4 | HW9: 8 | HX9: 33 | HY9: 54 | HZ9: 15
B10: e | C10: - | D10: 0 | E10: 1 | F10: 2 | G10: 3 | H10: 4 | I10: 5 | J10: 6 | K10: 7 | L10: 8 | M10: 9 | N10: a | O10: b | P10: c | Q10: d | R10: _ | S10: _ | T10: _ | U10: _ | V10: _ | W10: _ | X10: 15 | Y10: 5 | AF10: 5 | AH10: 0 | AI10: 35 | AK10: 0 | AL10: 65 | AN10: 0 | AO10: 95 | AQ10: 0 | AR10: 125 | AT10: 0 | AU10: 155 | AW10: 0 | AX10: 185 | AZ10: 0 | BA10: 215 | BC10: 0 | BD10: 245 | BF10: 0 | BG10: 275 | BI10: 0 | BL10: 5 | BM10: 0 | BN10: 00 | BO10: 35 | BP10: 0 | BQ10: 00 | BR10: 65 | BS10: 0 | BT10: 00 | BU10: 95 | BV10: 0 | BW10: 00 | BX10: 125 | BY10: 0 | BZ10: 00 | CA10: 5 | CB10: 0 | CC10: 00 | CD10: 35 | CE10: 0 | CF10: 00 | CG10: 65 | CH10: 0 | CI10: 00 | CJ10: 95 | CK10: 0 | CL10: 00 | CM10: 125 | CN10: 0 | CO10: 00 | HS10: 38 | HT10: 40 | HU10: 36 | HV10: 35 | HW10: 34 | HX10: 37 | HY10: 39 | HZ10: 2
B11: f | C11: - | D11: 0 | E11: 1 | F11: 2 | G11: 3 | H11: 4 | I11: 5 | J11: 6 | K11: 7 | L11: 8 | M11: 9 | N11: a | O11: b | P11: c | Q11: _ | R11: _ | S11: _ | T11: _ | U11: _ | V11: _ | W11: _ | X11: 14 | Y11: 6 | AF11: 6 | AH11: 0 | AI11: 36 | AK11: 0 | AL11: 66 | AN11: 0 | AO11: 96 | AQ11: 0 | AR11: 126 | AT11: 0 | AU11: 156 | AW11: 0 | AX11: 186 | AZ11: 0 | BA11: 216 | BC11: 0 | BD11: 246 | BF11: 0 | BG11: 276 | BI11: 0 | BL11: 6 | BM11: 0 | BN11: 00 | BO11: 36 | BP11: 0 | BQ11: 00 | BR11: 66 | BS11: 0 | BT11: 00 | BU11: 96 | BV11: 0 | BW11: 00 | BX11: 126 | BY11: 0 | BZ11: 00 | CA11: 6 | CB11: 0 | CC11: 00 | CD11: 36 | CE11: 0 | CF11: 00 | CG11: 66 | CH11: 0 | CI11: 00 | CJ11: 96 | CK11: 0 | CL11: 00 | CM11: 126 | CN11: 0 | CO11: 00 | HS11: 17 | HT11: 18 | HU11: 19 | HV11: 20 | HW11: 21 | HX11: 22 | HY11: 23 | HZ11: 24
B12: g | C12: 1 | D12: 2 | E12: 3 | F12: 4 | G12: 5 | H12: 6 | I12: 7 | J12: 8 | K12: 9 | L12: 0 | M12: a | N12: b | O12: c | P12: d | Q12: _ | R12: _ | S12: _ | T12: _ | U12: _ | V12: _ | W12: _ | X12: 14 | Y12: 7 | AF12: 7 | AH12: 0 | AI12: 37 | AK12: 0 | AL12: 67 | AN12: 0 | AO12: 97 | AQ12: 0 | AR12: 127 | AT12: 0 | AU12: 157 | AW12: 0 | AX12: 187 | AZ12: 0 | BA12: 217 | BC12: 0 | BD12: 247 | BF12: 0 | BG12: 277 | BI12: 0 | BL12: 7 | BM12: 0 | BN12: 00 | BO12: 37 | BP12: 0 | BQ12: 00 | BR12: 67 | BS12: 0 | BT12: 00 | BU12: 97 | BV12: 0 | BW12: 00 | BX12: 127 | BY12: 0 | BZ12: 00 | CA12: 7 | CB12: 0 | CC12: 00 | CD12: 37 | CE12: 0 | CF12: 00 | CG12: 67 | CH12: 0 | CI12: 00 | CJ12: 97 | CK12: 0 | CL12: 00 | CM12: 127 | CN12: 0 | CO12: 00 | HS12: 25 | HT12: 26 | HU12: 27 | HV12: 28 | HW12: 29 | HX12: 30 | HY12: 31 | HZ12: 32
B13: h | C13: 1 | D13: 2 | E13: 3 | F13: 4 | G13: 5 | H13: 6 | I13: 7 | J13: 8 | K13: 9 | L13: 0 | M13: a | N13: b | O13: _ | P13: _ | Q13: _ | R13: _ | S13: _ | T13: _ | U13: _ | V13: _ | W13: _ | X13: 12 | Y13: 8 | AF13: 8 | AH13: 0 | AI13: 38 | AK13: 0 | AL13: 68 | AN13: 0 | AO13: 98 | AQ13: 0 | AR13: 128 | AT13: 0 | AU13: 158 | AW13: 0 | AX13: 188 | AZ13: 0 | BA13: 218 | BC13: 0 | BD13: 248 | BF13: 0 | BG13: 278 | BI13: 0 | BL13: 8 | BM13: 0 | BN13: 00 | BO13: 38 | BP13: 0 | BQ13: 00 | BR13: 68 | BS13: 0 | BT13: 00 | BU13: 98 | BV13: 0 | BW13: 00 | BX13: 128 | BY13: 0 | BZ13: 00 | CA13: 8 | CB13: 0 | CC13: 00 | CD13: 38 | CE13: 0 | CF13: 00 | CG13: 68 | CH13: 0 | CI13: 00 | CJ13: 98 | CK13: 0 | CL13: 00 | CM13: 128 | CN13: 0 | CO13: 00 | HS13: 48
B14: i | C14: - | D14: 0 | E14: 1 | F14: 2 | G14: 3 | H14: 4 | I14: 5 | J14: 6 | K14: 7 | L14: 8 | M14: 9 | N14: _ | O14: _ | P14: _ | Q14: _ | R14: _ | S14: _ | T14: _ | U14: _ | V14: _ | W14: _ | X14: 11 | Y14: 9 | AF14: 9 | AH14: 0 | AI14: 39 | AK14: 0 | AL14: 69 | AN14: 0 | AO14: 99 | AQ14: 0 | AR14: 129 | AT14: 0 | AU14: 159 | AW14: 0 | AX14: 189 | AZ14: 0 | BA14: 219 | BC14: 0 | BD14: 249 | BF14: 0 | BG14: 279 | BI14: 0 | BL14: 9 | BM14: 0 | BN14: 00 | BO14: 39 | BP14: 0 | BQ14: 00 | BR14: 69 | BS14: 0 | BT14: 00 | BU14: 99 | BV14: 0 | BW14: 00 | BX14: 129 | BY14: 0 | BZ14: 00 | CA14: 9 | CB14: 0 | CC14: 00 | CD14: 39 | CE14: 0 | CF14: 00 | CG14: 69 | CH14: 0 | CI14: 00 | CJ14: 99 | CK14: 0 | CL14: 00 | CM14: 129 | CN14: 0 | CO14: 00 | HS14: 16
B15: j | C15: 0 | D15: 1 | E15: 2 | F15: 3 | G15: 4 | H15: 5 | I15: 6 | J15: 7 | K15: 8 | L15: 9 | M15: _ | N15: _ | O15: _ | P15: _ | Q15: _ | R15: _ | S15: _ | T15: _ | U15: _ | V15: _ | W15: _ | X15: 10 | Y15: 10 | AF15: 10 | AH15: 0 | AI15: 40 | AK15: 0 | AL15: 70 | AN15: 0 | AO15: 100 | AQ15: 0 | AR15: 130 | AT15: 0 | AU15: 160 | AW15: 0 | AX15: 190 | AZ15: 0 | BA15: 220 | BC15: 0 | BD15: 250 | BF15: 0 | BG15: 280 | BI15: 0 | BL15: 10 | BM15: 0 | BN15: 00 | BO15: 40 | BP15: 0 | BQ15: 00 | BR15: 70 | BS15: 0 | BT15: 00 | BU15: 100 | BV15: 0 | BW15: 00 | BX15: 130 | BY15: 0 | BZ15: 00 | CA15: 10 | CB15: 0 | CC15: 00 | CD15: 40 | CE15: 0 | CF15: 00 | CG15: 70 | CH15: 0 | CI15: 00 | CJ15: 100 | CK15: 0 | CL15: 00 | CM15: 130 | CN15: 0 | CO15: 00
B16: k | C16: 1 | D16: 2 | E16: 3 | F16: 4 | G16: 5 | H16: 6 | I16: 7 | J16: 8 | K16: 9 | L16: 0 | M16: _ | N16: _ | O16: _ | P16: _ | Q16: _ | R16: _ | S16: _ | T16: _ | U16: _ | V16: _ | W16: _ | X16: 10 | Y16: 11 | AF16: 11 | AH16: 0 | AI16: 41 | AK16: 0 | AL16: 71 | AN16: 0 | AO16: 101 | AQ16: 0 | AR16: 131 | AT16: 0 | AU16: 161 | AW16: 0 | AX16: 191 | AZ16: 0 | BA16: 221 | BC16: 0 | BD16: 251 | BF16: 0 | BG16: 281 | BI16: 0 | BL16: 11 | BM16: 0 | BN16: 00 | BO16: 41 | BP16: 0 | BQ16: 00 | BR16: 71 | BS16: 0 | BT16: 00 | BU16: 101 | BV16: 0 | BW16: 00 | BX16: 131 | BY16: 0 | BZ16: 00 | CA16: 11 | CB16: 0 | CC16: 00 | CD16: 41 | CE16: 0 | CF16: 00 | CG16: 71 | CH16: 0 | CI16: 00 | CJ16: 101 | CK16: 0 | CL16: 00 | CM16: 131 | CN16: 0 | CO16: 00
B17: l | C17: 1 | D17: 2 | E17: 3 | F17: 4 | G17: 5 | H17: 6 | I17: 7 | J17: 8 | K17: 9 | L17: _ | M17: _ | N17: _ | O17: _ | P17: _ | Q17: _ | R17: _ | S17: _ | T17: _ | U17: _ | V17: _ | W17: _ | X17: 9 | Y17: 12 | AF17: 12 | AH17: 0 | AI17: 42 | AK17: 0 | AL17: 72 | AN17: 0 | AO17: 102 | AQ17: 0 | AR17: 132 | AT17: 0 | AU17: 162 | AW17: 0 | AX17: 192 | AZ17: 0 | BA17: 222 | BC17: 0 | BD17: 252 | BF17: 0 | BG17: 282 | BI17: 0 | BL17: 12 | BM17: 0 | BN17: 00 | BO17: 42 | BP17: 0 | BQ17: 00 | BR17: 72 | BS17: 0 | BT17: 00 | BU17: 102 | BV17: 0 | BW17: 00 | BX17: 132 | BY17: 0 | BZ17: 00 | CA17: 12 | CB17: 0 | CC17: 00 | CD17: 42 | CE17: 0 | CF17: 00 | CG17: 72 | CH17: 0 | CI17: 00 | CJ17: 102 | CK17: 0 | CL17: 00 | CM17: 132 | CN17: 0 | CO17: 00
B18: m | C18: 0 | D18: 1 | E18: 2 | F18: 3 | G18: 4 | H18: 5 | I18: 6 | J18: 7 | K18: _ | L18: _ | M18: _ | N18: _ | O18: _ | P18: _ | Q18: _ | R18: _ | S18: _ | T18: _ | U18: _ | V18: _ | W18: _ | X18: 8 | Y18: 13 | AF18: 13 | AH18: 0 | AI18: 43 | AK18: 0 | AL18: 73 | AN18: 0 | AO18: 103 | AQ18: 0 | AR18: 133 | AT18: 0 | AU18: 163 | AW18: 0 | AX18: 193 | AZ18: 0 | BA18: 223 | BC18: 0 | BD18: 253 | BF18: 0 | BG18: 283 | BI18: 0 | BL18: 13 | BM18: 0 | BN18: 00 | BO18: 43 | BP18: 0 | BQ18: 00 | BR18: 73 | BS18: 0 | BT18: 00 | BU18: 103 | BV18: 0 | BW18: 00 | BX18: 133 | BY18: 0 | BZ18: 00 | CA18: 13 | CB18: 0 | CC18: 00 | CD18: 43 | CE18: 0 | CF18: 00 | CG18: 73 | CH18: 0 | CI18: 00 | CJ18: 103 | CK18: 0 | CL18: 00 | CM18: 133 | CN18: 0 | CO18: 00 | HS18: このマクロで作成される
B19: n | C19: 1 | D19: 2 | E19: 3 | F19: 4 | G19: 5 | H19: 6 | I19: 7 | J19: 8 | K19: _ | L19: _ | M19: _ | N19: _ | O19: _ | P19: _ | Q19: _ | R19: _ | S19: _ | T19: _ | U19: _ | V19: _ | W19: _ | X19: 8 | Y19: 14 | AF19: 14 | AH19: 0 | AI19: 44 | AK19: 0 | AL19: 74 | AN19: 0 | AO19: 104 | AQ19: 0 | AR19: 134 | AT19: 0 | AU19: 164 | AW19: 0 | AX19: 194 | AZ19: 0 | BA19: 224 | BC19: 0 | BD19: 254 | BF19: 0 | BG19: 284 | BI19: 0 | BL19: 14 | BM19: 0 | BN19: 00 | BO19: 44 | BP19: 0 | BQ19: 00 | BR19: 74 | BS19: 0 | BT19: 00 | BU19: 104 | BV19: 0 | BW19: 00 | BX19: 134 | BY19: 0 | BZ19: 00 | CA19: 14 | CB19: 0 | CC19: 00 | CD19: 44 | CE19: 0 | CF19: 00 | CG19: 74 | CH19: 0 | CI19: 00 | CJ19: 104 | CK19: 0 | CL19: 00 | CM19: 134 | CN19: 0 | CO19: 00 | HS19: マークシートの読み取りには
B20: o | C20: 0 | D20: 1 | E20: 2 | F20: 3 | G20: 4 | H20: 5 | I20: 6 | J20: _ | K20: _ | L20: _ | M20: _ | N20: _ | O20: _ | P20: _ | Q20: _ | R20: _ | S20: _ | T20: _ | U20: _ | V20: _ | W20: _ | X20: 7 | Y20: 15 | AF20: 15 | AH20: 0 | AI20: 45 | AK20: 0 | AL20: 75 | AN20: 0 | AO20: 105 | AQ20: 0 | AR20: 135 | AT20: 0 | AU20: 165 | AW20: 0 | AX20: 195 | AZ20: 0 | BA20: 225 | BC20: 0 | BD20: 255 | BF20: 0 | BG20: 285 | BI20: 0 | BL20: 15 | BM20: 0 | BN20: 00 | BO20: 45 | BP20: 0 | BQ20: 00 | BR20: 75 | BS20: 0 | BT20: 00 | BU20: 105 | BV20: 0 | BW20: 00 | BX20: 135 | BY20: 0 | BZ20: 00 | CA20: 15 | CB20: 0 | CC20: 00 | CD20: 45 | CE20: 0 | CF20: 00 | CG20: 75 | CH20: 0 | CI20: 00 | CJ20: 105 | CK20: 0 | CL20: 00 | CM20: 135 | CN20: 0 | CO20: 00 | HS20: 専用ソフト（下記サイトからＤＬ可能)が必要です
B21: p | C21: 1 | D21: 2 | E21: 3 | F21: 4 | G21: 5 | H21: 6 | I21: 7 | J21: _ | K21: _ | L21: _ | M21: _ | N21: _ | O21: _ | P21: _ | Q21: _ | R21: _ | S21: _ | T21: _ | U21: _ | V21: _ | W21: _ | X21: 7 | Y21: 16 | AF21: 16 | AH21: 0 | AI21: 46 | AK21: 0 | AL21: 76 | AN21: 0 | AO21: 106 | AQ21: 0 | AR21: 136 | AT21: 0 | AU21: 166 | AW21: 0 | AX21: 196 | AZ21: 0 | BA21: 226 | BC21: 0 | BD21: 256 | BF21: 0 | BG21: 286 | BI21: 0 | BL21: 16 | BM21: 0 | BN21: 00 | BO21: 46 | BP21: 0 | BQ21: 00 | BR21: 76 | BS21: 0 | BT21: 00 | BU21: 106 | BV21: 0 | BW21: 00 | BX21: 136 | BY21: 0 | BZ21: 00 | CA21: 16 | CB21: 0 | CC21: 00 | CD21: 46 | CE21: 0 | CF21: 00 | CG21: 76 | CH21: 0 | CI21: 00 | CJ21: 106 | CK21: 0 | CL21: 00 | CM21: 136 | CN21: 0 | CO21: 00 | DQ21: =VALUE(MID($CZ21,2*(DQ$5-1)+1,2)) ->  | EG21: =VALUE(MID($CZ21,2*(EG$5-1)+1,2)) ->  | EW21: =VALUE(MID($CZ21,2*(EW$5-1)+1,2)) ->  | GK21: =VALUE(MID($CZ21,2*(GK$5-1)+1,2)) ->  | HA21: =VALUE(MID($CZ21,2*(HA$5-1)+1,2)) ->  | HS21: http://e-ict.info/page003.html
B22: q | C22: 0 | D22: 1 | E22: 2 | F22: 3 | G22: 4 | H22: 5 | I22: _ | J22: _ | K22: _ | L22: _ | M22: _ | N22: _ | O22: _ | P22: _ | Q22: _ | R22: _ | S22: _ | T22: _ | U22: _ | V22: _ | W22: _ | X22: 6 | Y22: 17 | AF22: 17 | AH22: 0 | AI22: 47 | AK22: 0 | AL22: 77 | AN22: 0 | AO22: 107 | AQ22: 0 | AR22: 137 | AT22: 0 | AU22: 167 | AW22: 0 | AX22: 197 | AZ22: 0 | BA22: 227 | BC22: 0 | BD22: 257 | BF22: 0 | BG22: 287 | BI22: 0 | BL22: 17 | BM22: 0 | BN22: 00 | BO22: 47 | BP22: 0 | BQ22: 00 | BR22: 77 | BS22: 0 | BT22: 00 | BU22: 107 | BV22: 0 | BW22: 00 | BX22: 137 | BY22: 0 | BZ22: 00 | CA22: 17 | CB22: 0 | CC22: 00 | CD22: 47 | CE22: 0 | CF22: 00 | CG22: 77 | CH22: 0 | CI22: 00 | CJ22: 107 | CK22: 0 | CL22: 00 | CM22: 137 | CN22: 0 | CO22: 00 | DB22: =VALUE(MID($CZ22,2*(DB$5-1)+1,2)) ->  | FM22: =VALUE(MID($CZ22,2*(FM$5-1)+1,2)) ->  | FV22: =VALUE(MID($CZ22,2*(FV$5-1)+1,2)) ->  | HS22: ※無断転載、2次加工を禁じます。
B23: r | C23: 1 | D23: 2 | E23: 3 | F23: 4 | G23: 5 | H23: 6 | I23: _ | J23: _ | K23: _ | L23: _ | M23: _ | N23: _ | O23: _ | P23: _ | Q23: _ | R23: _ | S23: _ | T23: _ | U23: _ | V23: _ | W23: _ | X23: 6 | Y23: 18 | AF23: 18 | AH23: 0 | AI23: 48 | AK23: 0 | AL23: 78 | AN23: 0 | AO23: 108 | AQ23: 0 | AR23: 138 | AT23: 0 | AU23: 168 | AW23: 0 | AX23: 198 | AZ23: 0 | BA23: 228 | BC23: 0 | BD23: 258 | BF23: 0 | BG23: 288 | BI23: 0 | BL23: 18 | BM23: 0 | BN23: 00 | BO23: 48 | BP23: 0 | BQ23: 00 | BR23: 78 | BS23: 0 | BT23: 00 | BU23: 108 | BV23: 0 | BW23: 00 | BX23: 138 | BY23: 0 | BZ23: 00 | CA23: 18 | CB23: 0 | CC23: 00 | CD23: 48 | CE23: 0 | CF23: 00 | CG23: 78 | CH23: 0 | CI23: 00 | CJ23: 108 | CK23: 0 | CL23: 00 | CM23: 138 | CN23: 0 | CO23: 00 | DA23: =VALUE(MID($CZ23,2*(DA$5-1)+1,2)) ->  | HS23: Copyright (C) 2010 ＰＣソリューション・ヨシダ All Rights Reserved.
B24: s | C24: 1 | D24: 2 | E24: 3 | F24: 4 | G24: 5 | H24: _ | I24: _ | J24: _ | K24: _ | L24: _ | M24: _ | N24: _ | O24: _ | P24: _ | Q24: _ | R24: _ | S24: _ | T24: _ | U24: _ | V24: _ | W24: _ | X24: 5 | Y24: 19 | AF24: 19 | AH24: 0 | AI24: 49 | AK24: 0 | AL24: 79 | AN24: 0 | AO24: 109 | AQ24: 0 | AR24: 139 | AT24: 0 | AU24: 169 | AW24: 0 | AX24: 199 | AZ24: 0 | BA24: 229 | BC24: 0 | BD24: 259 | BF24: 0 | BG24: 289 | BI24: 0 | BL24: 19 | BM24: 0 | BN24: 00 | BO24: 49 | BP24: 0 | BQ24: 00 | BR24: 79 | BS24: 0 | BT24: 00 | BU24: 109 | BV24: 0 | BW24: 00 | BX24: 139 | BY24: 0 | BZ24: 00 | CA24: 19 | CB24: 0 | CC24: 00 | CD24: 49 | CE24: 0 | CF24: 00 | CG24: 79 | CH24: 0 | CI24: 00 | CJ24: 109 | CK24: 0 | CL24: 00 | CM24: 139 | CN24: 0 | CO24: 00
B25: t | C25: 1 | D25: 2 | E25: 3 | F25: 4 | G25: _ | H25: _ | I25: _ | J25: _ | K25: _ | L25: _ | M25: _ | N25: _ | O25: _ | P25: _ | Q25: _ | R25: _ | S25: _ | T25: _ | U25: _ | V25: _ | W25: _ | X25: 4 | Y25: 20 | AF25: 20 | AH25: 0 | AI25: 50 | AK25: 0 | AL25: 80 | AN25: 0 | AO25: 110 | AQ25: 0 | AR25: 140 | AT25: 0 | AU25: 170 | AW25: 0 | AX25: 200 | AZ25: 0 | BA25: 230 | BC25: 0 | BD25: 260 | BF25: 0 | BG25: 290 | BI25: 0 | BL25: 20 | BM25: 0 | BN25: 00 | BO25: 50 | BP25: 0 | BQ25: 00 | BR25: 80 | BS25: 0 | BT25: 00 | BU25: 110 | BV25: 0 | BW25: 00 | BX25: 140 | BY25: 0 | BZ25: 00 | CA25: 20 | CB25: 0 | CC25: 00 | CD25: 50 | CE25: 0 | CF25: 00 | CG25: 80 | CH25: 0 | CI25: 00 | CJ25: 110 | CK25: 0 | CL25: 00 | CM25: 140 | CN25: 0 | CO25: 00
B26: u | C26: 1 | D26: . | E26: 2 | F26: _ | G26: _ | H26: _ | I26: _ | J26: _ | K26: _ | L26: _ | M26: _ | N26: _ | O26: _ | P26: _ | Q26: _ | R26: _ | S26: _ | T26: _ | U26: _ | V26: _ | W26: _ | X26: 3 | Y26: 21 | AF26: 21 | AH26: 0 | AI26: 51 | AK26: 0 | AL26: 81 | AN26: 0 | AO26: 111 | AQ26: 0 | AR26: 141 | AT26: 0 | AU26: 171 | AW26: 0 | AX26: 201 | AZ26: 0 | BA26: 231 | BC26: 0 | BD26: 261 | BF26: 0 | BG26: 291 | BI26: 0 | BL26: 21 | BM26: 0 | BN26: 00 | BO26: 51 | BP26: 0 | BQ26: 00 | BR26: 81 | BS26: 0 | BT26: 00 | BU26: 111 | BV26: 0 | BW26: 00 | BX26: 141 | BY26: 0 | BZ26: 00 | CA26: 21 | CB26: 0 | CC26: 00 | CD26: 51 | CE26: 0 | CF26: 00 | CG26: 81 | CH26: 0 | CI26: 00 | CJ26: 111 | CK26: 0 | CL26: 00 | CM26: 141 | CN26: 0 | CO26: 00
B27: v | C27: Y | D27: . | E27: N | F27: _ | G27: _ | H27: _ | I27: _ | J27: _ | K27: _ | L27: _ | M27: _ | N27: _ | O27: _ | P27: _ | Q27: _ | R27: _ | S27: _ | T27: _ | U27: _ | V27: _ | W27: _ | X27: 3 | Y27: 22 | AF27: 22 | AH27: 0 | AI27: 52 | AK27: 0 | AL27: 82 | AN27: 0 | AO27: 112 | AQ27: 0 | AR27: 142 | AT27: 0 | AU27: 172 | AW27: 0 | AX27: 202 | AZ27: 0 | BA27: 232 | BC27: 0 | BD27: 262 | BF27: 0 | BG27: 292 | BI27: 0 | BL27: 22 | BM27: 0 | BN27: 00 | BO27: 52 | BP27: 0 | BQ27: 00 | BR27: 82 | BS27: 0 | BT27: 00 | BU27: 112 | BV27: 0 | BW27: 00 | BX27: 142 | BY27: 0 | BZ27: 00 | CA27: 22 | CB27: 0 | CC27: 00 | CD27: 52 | CE27: 0 | CF27: 00 | CG27: 82 | CH27: 0 | CI27: 00 | CJ27: 112 | CK27: 0 | CL27: 00 | CM27: 142 | CN27: 0 | CO27: 00
B28: w | C28: ○ | D28: . | E28: × | F28: _ | G28: _ | H28: _ | I28: _ | J28: _ | K28: _ | L28: _ | M28: _ | N28: _ | O28: _ | P28: _ | Q28: _ | R28: _ | S28: _ | T28: _ | U28: _ | V28: _ | W28: _ | X28: 3 | Y28: 23 | AF28: 23 | AH28: 0 | AI28: 53 | AK28: 0 | AL28: 83 | AN28: 0 | AO28: 113 | AQ28: 0 | AR28: 143 | AT28: 0 | AU28: 173 | AW28: 0 | AX28: 203 | AZ28: 0 | BA28: 233 | BC28: 0 | BD28: 263 | BF28: 0 | BG28: 293 | BI28: 0 | BL28: 23 | BM28: 0 | BN28: 00 | BO28: 53 | BP28: 0 | BQ28: 00 | BR28: 83 | BS28: 0 | BT28: 00 | BU28: 113 | BV28: 0 | BW28: 00 | BX28: 143 | BY28: 0 | BZ28: 00 | CA28: 23 | CB28: 0 | CC28: 00 | CD28: 53 | CE28: 0 | CF28: 00 | CG28: 83 | CH28: 0 | CI28: 00 | CJ28: 113 | CK28: 0 | CL28: 00 | CM28: 143 | CN28: 0 | CO28: 00
B29: x | C29: 0 | D29: . | E29: 1 | F29: . | G29: 2 | H29: . | I29: 3 | J29: . | K29: 4 | L29: . | M29: 5 | N29: _ | O29: _ | P29: _ | Q29: _ | R29: _ | S29: _ | T29: _ | U29: _ | V29: _ | W29: _ | X29: 11 | Y29: 24 | AF29: 24 | AH29: 0 | AI29: 54 | AK29: 0 | AL29: 84 | AN29: 0 | AO29: 114 | AQ29: 0 | AR29: 144 | AT29: 0 | AU29: 174 | AW29: 0 | AX29: 204 | AZ29: 0 | BA29: 234 | BC29: 0 | BD29: 264 | BF29: 0 | BG29: 294 | BI29: 0 | BL29: 24 | BM29: 0 | BN29: 00 | BO29: 54 | BP29: 0 | BQ29: 00 | BR29: 84 | BS29: 0 | BT29: 00 | BU29: 114 | BV29: 0 | BW29: 00 | BX29: 144 | BY29: 0 | BZ29: 00 | CA29: 24 | CB29: 0 | CC29: 00 | CD29: 54 | CE29: 0 | CF29: 00 | CG29: 84 | CH29: 0 | CI29: 00 | CJ29: 114 | CK29: 0 | CL29: 00 | CM29: 144 | CN29: 0 | CO29: 00
B30: y | C30: 1 | D30: . | E30: 2 | F30: . | G30: 3 | H30: . | I30: 4 | J30: . | K30: 5 | L30: _ | M30: _ | N30: _ | O30: _ | P30: _ | Q30: _ | R30: _ | S30: _ | T30: _ | U30: _ | V30: _ | W30: _ | X30: 9 | Y30: 25 | AF30: 25 | AH30: 0 | AI30: 55 | AK30: 0 | AL30: 85 | AN30: 0 | AO30: 115 | AQ30: 0 | AR30: 145 | AT30: 0 | AU30: 175 | AW30: 0 | AX30: 205 | AZ30: 0 | BA30: 235 | BC30: 0 | BD30: 265 | BF30: 0 | BG30: 295 | BI30: 0 | BL30: 25 | BM30: 0 | BN30: 00 | BO30: 55 | BP30: 0 | BQ30: 00 | BR30: 85 | BS30: 0 | BT30: 00 | BU30: 115 | BV30: 0 | BW30: 00 | BX30: 145 | BY30: 0 | BZ30: 00 | CA30: 25 | CB30: 0 | CC30: 00 | CD30: 55 | CE30: 0 | CF30: 00 | CG30: 85 | CH30: 0 | CI30: 00 | CJ30: 115 | CK30: 0 | CL30: 00 | CM30: 145 | CN30: 0 | CO30: 00
B31: 1 | C31: . | D31: _ | E31: _ | F31: _ | G31: _ | H31: _ | I31: _ | J31: _ | K31: _ | L31: _ | M31: _ | N31: _ | O31: _ | P31: _ | Q31: _ | R31: _ | S31: _ | T31: _ | U31: _ | V31: _ | W31: _ | X31: =19-COUNTIF(C31:W31,"_") -> -1 | Y31: 26 | AF31: 26 | AH31: 0 | AI31: 56 | AK31: 0 | AL31: 86 | AN31: 0 | AO31: 116 | AQ31: 0 | AR31: 146 | AT31: 0 | AU31: 176 | AW31: 0 | AX31: 206 | AZ31: 0 | BA31: 236 | BC31: 0 | BD31: 266 | BF31: 0 | BG31: 296 | BI31: 0 | BL31: 26 | BM31: 0 | BN31: 00 | BO31: 56 | BP31: 0 | BQ31: 00 | BR31: 86 | BS31: 0 | BT31: 00 | BU31: 116 | BV31: 0 | BW31: 00 | BX31: 146 | BY31: 0 | BZ31: 00 | CA31: 26 | CB31: 0 | CC31: 00 | CD31: 56 | CE31: 0 | CF31: 00 | CG31: 86 | CH31: 0 | CI31: 00 | CJ31: 116 | CK31: 0 | CL31: 00 | CM31: 146 | CN31: 0 | CO31: 00
B32: 2 | C32: . | D32: . | E32: _ | F32: _ | G32: _ | H32: _ | I32: _ | J32: _ | K32: _ | L32: _ | M32: _ | N32: _ | O32: _ | P32: _ | Q32: _ | R32: _ | S32: _ | T32: _ | U32: _ | V32: _ | W32: _ | X32: -2 | Y32: 27 | AF32: 27 | AH32: 0 | AI32: 57 | AK32: 0 | AL32: 87 | AN32: 0 | AO32: 117 | AQ32: 0 | AR32: 147 | AT32: 0 | AU32: 177 | AW32: 0 | AX32: 207 | AZ32: 0 | BA32: 237 | BC32: 0 | BD32: 267 | BF32: 0 | BG32: 297 | BI32: 0 | BL32: 27 | BM32: 0 | BN32: 00 | BO32: 57 | BP32: 0 | BQ32: 00 | BR32: 87 | BS32: 0 | BT32: 00 | BU32: 117 | BV32: 0 | BW32: 00 | BX32: 147 | BY32: 0 | BZ32: 00 | CA32: 27 | CB32: 0 | CC32: 00 | CD32: 57 | CE32: 0 | CF32: 00 | CG32: 87 | CH32: 0 | CI32: 00 | CJ32: 117 | CK32: 0 | CL32: 00 | CM32: 147 | CN32: 0 | CO32: 00
B33: 3 | C33: . | D33: . | E33: . | F33: _ | G33: _ | H33: _ | I33: _ | J33: _ | K33: _ | L33: _ | M33: _ | N33: _ | O33: _ | P33: _ | Q33: _ | R33: _ | S33: _ | T33: _ | U33: _ | V33: _ | W33: _ | X33: -3 | Y33: 28 | AF33: =AF37 -> 0 | AG33: =AG37 ->  | AH33: 0 | AI33: 0 | AK33: 0 | AL33: 0 | AN33: 0 | AO33: 0 | AQ33: 0 | AR33: 0 | AT33: 0 | AU33: 0 | AW33: 0 | AX33: 0 | AZ33: 0 | BA33: 0 | BC33: 0 | BD33: 0 | BF33: 0 | BG33: 0 | BH33: 0 | BI33: 0 | BL33: 28 | BM33: 0 | BN33: 00 | BO33: 58 | BP33: 0 | BQ33: 00 | BR33: 88 | BS33: 0 | BT33: 00 | BU33: 118 | BV33: 0 | BW33: 00 | BX33: 148 | BY33: 0 | BZ33: 00 | CA33: 28 | CB33: 0 | CC33: 00 | CD33: 58 | CE33: 0 | CF33: 00 | CG33: 88 | CH33: 0 | CI33: 00 | CJ33: 118 | CK33: 0 | CL33: 00 | CM33: 148 | CN33: 0 | CO33: 00
B34: 4 | C34: . | D34: . | E34: . | F34: . | G34: _ | H34: _ | I34: _ | J34: _ | K34: _ | L34: _ | M34: _ | N34: _ | O34: _ | P34: _ | Q34: _ | R34: _ | S34: _ | T34: _ | U34: _ | V34: _ | W34: _ | X34: -4 | Y34: 29 | BI34: 0 | BL34: 29 | BM34: 0 | BN34: 00 | BO34: 59 | BP34: 0 | BQ34: 00 | BR34: 89 | BS34: 0 | BT34: 00 | BU34: 119 | BV34: 0 | BW34: 00 | BX34: 149 | BY34: 0 | BZ34: 00 | CA34: 29 | CB34: 0 | CC34: 00 | CD34: 59 | CE34: 0 | CF34: 00 | CG34: 89 | CH34: 0 | CI34: 00 | CJ34: 119 | CK34: 0 | CL34: 00 | CM34: 149 | CN34: 0 | CO34: 00 | HT34: ここに「エラー」と出るとき
B35: 5 | C35: . | D35: . | E35: . | F35: . | G35: . | H35: _ | I35: _ | J35: _ | K35: _ | L35: _ | M35: _ | N35: _ | O35: _ | P35: _ | Q35: _ | R35: _ | S35: _ | T35: _ | U35: _ | V35: _ | W35: _ | X35: -5 | Y35: 30 | BI35: 0 | BL35: 30 | BM35: 0 | BN35: 00 | BO35: 60 | BP35: 0 | BQ35: 00 | BR35: 90 | BS35: 0 | BT35: 00 | BU35: 120 | BV35: 0 | BW35: 00 | BX35: 150 | BY35: 0 | BZ35: 00 | CA35: 30 | CB35: 0 | CC35: 00 | CD35: 60 | CE35: 0 | CF35: 00 | CG35: 90 | CH35: 0 | CI35: 00 | CJ35: 120 | CK35: 0 | CL35: 00 | CM35: 150 | CN35: 0 | CO35: 00 | HT35: 空白のみの列（Ⅰ～Ⅹ）がそうでない列の間にあるとき
B36: 6 | C36: . | D36: . | E36: . | F36: . | G36: . | H36: . | I36: _ | J36: _ | K36: _ | L36: _ | M36: _ | N36: _ | O36: _ | P36: _ | Q36: _ | R36: _ | S36: _ | T36: _ | U36: _ | V36: _ | W36: _ | X36: -6 | Y36: 31 | AG36: =COUNTA(AG6:AG32) -> 0 | AJ36: =COUNTA(AJ6:AJ32) -> 0 | AM36: =COUNTA(AM6:AM32) -> 0 | AP36: =COUNTA(AP6:AP32) -> 0 | AS36: =COUNTA(AS6:AS32) -> 0 | AV36: =COUNTA(AV6:AV32) -> 0 | AY36: =COUNTA(AY6:AY32) -> 0 | BB36: =COUNTA(BB6:BB32) -> 0 | BE36: =COUNTA(BE6:BE32) -> 0 | BH36: =COUNTA(BH6:BH32) -> 0 | BL36: 010203040506070809101112131415161718192021222324252627282930313233343536 | BM36: =MAX(BN36:BN37) -> 0 | BN36: =IF(MAX(BM6:BM35)>0,MAX(BM6:BM35)+2,0) -> 0 | BP36: =MAX(BQ36:BQ37) -> 0 | BQ36: =IF(MAX(BP6:BP35)>0,MAX(BP6:BP35)+2,0) -> 0 | BS36: =MAX(BT36:BT37) -> 0 | BT36: =IF(MAX(BS6:BS35)>0,MAX(BS6:BS35)+2,0) -> 0 | BV36: =MAX(BW36:BW37) -> 0 | BW36: =IF(MAX(BV6:BV35)>0,MAX(BV6:BV35)+2,0) -> 0 | BY36: =MAX(BZ36:BZ37) -> 0 | BZ36: =IF(MAX(BY6:BY35)>0,MAX(BY6:BY35)+2,0) -> 0 | CA36: 010203040506070809101112131415161718192021 | CB36: =MAX(CC36:CC37) -> 0 | CC36: =IF(MAX(CB6:CB35)>0,MAX(CB6:CB35)+2,0) -> 0 | CE36: =MAX(CF36:CF37) -> 0 | CF36: =IF(MAX(CE6:CE35)>0,MAX(CE6:CE35)+2,0) -> 0 | CH36: =MAX(CI36:CI37) -> 0 | CI36: =IF(MAX(CH6:CH35)>0,MAX(CH6:CH35)+2,0) -> 0 | CK36: =MAX(CL36:CL37) -> 0 | CL36: =IF(MAX(CK6:CK35)>0,MAX(CK6:CK35)+2,0) -> 0 | CN36: =MAX(CO36:CO37) -> 0 | CO36: =IF(MAX(CN6:CN35)>0,MAX(CN6:CN35)+2,0) -> 0 | CP36: =LEFT($BL36,2*BM36) ->  | CQ36: =LEFT(BL36,2*BP36) ->  | CR36: =LEFT(BL36,2*BS36) ->  | CS36: =LEFT($BL36,2*BV36) ->  | CT36: =LEFT($BL36,2*BY36) ->  | CU36: =LEFT($BL36,2*CB36) ->  | CV36: =LEFT($BL36,2*CE36) ->  | CW36: =LEFT($BL36,2*CH36) ->  | CX36: =LEFT($BL36,2*CK36) ->  | CY36: =LEFT($BL36,2*CN36) ->  | DA36: =VALUE(MID($CZ36,2*(DA$5-1)+1,2)) ->  | DB36: =VALUE(MID($CZ36,2*(DB$5-1)+1,2)) ->  | FU36: =VALUE(MID($CZ36,2*(FU$5-1)+1,2)) ->  | HT36: エラー表示されます。
B37: 7 | C37: . | D37: . | E37: . | F37: . | G37: . | H37: . | I37: . | J37: _ | K37: _ | L37: _ | M37: _ | N37: _ | O37: _ | P37: _ | Q37: _ | R37: _ | S37: _ | T37: _ | U37: _ | V37: _ | W37: _ | X37: -7 | Y37: 32 | AG37: =IF(AND(SUM(AJ36:$BH$36)>0,AG36=0),"ｴﾗｰ","") ->  | AJ37: =IF(AND(SUM(AM36:$BH$36)>0,AJ36=0),"ｴﾗｰ","") ->  | AM37: =IF(AND(SUM(AP36:$BH$36)>0,AM36=0),"ｴﾗｰ","") ->  | AP37: =IF(AND(SUM(AS36:$BH$36)>0,AP36=0),"ｴﾗｰ","") ->  | AS37: =IF(AND(SUM(AV36:$BH$36)>0,AS36=0),"ｴﾗｰ","") ->  | AV37: =IF(AND(SUM(AY36:$BH$36)>0,AV36=0),"ｴﾗｰ","") ->  | AY37: =IF(AND(SUM(BB36:$BH$36)>0,AY36=0),"ｴﾗｰ","") ->  | BB37: =IF(AND(SUM(BE36:$BH$36)>0,BB36=0),"ｴﾗｰ","") ->  | BE37: =IF(AND(SUM(BH36:$BH$36)>0,BE36=0),"ｴﾗｰ","") ->  | BM37: =MAX(MAX(BM6:BM35),BN37) -> 0 | BN37: =IF(MIN(BM6:BM35)<0,-MIN(BM6:BM35),0) -> 0 | BP37: =MAX(MAX(BP6:BP35),BQ37) -> 0 | BQ37: =IF(MIN(BP6:BP35)<0,-MIN(BP6:BP35),0) -> 0 | BS37: =MAX(MAX(BS6:BS35),BT37) -> 0 | BT37: =IF(MIN(BS6:BS35)<0,-MIN(BS6:BS35),0) -> 0 | BV37: =MAX(MAX(BV6:BV35),BW37) -> 0 | BW37: =IF(MIN(BV6:BV35)<0,-MIN(BV6:BV35),0) -> 0 | BY37: =MAX(MAX(BY6:BY35),BZ37) -> 0 | BZ37: =IF(MIN(BY6:BY35)<0,-MIN(BY6:BY35),0) -> 0 | CB37: =MAX(MAX(CB6:CB35),CC37) -> 0 | CC37: =IF(MIN(CB6:CB35)<0,-MIN(CB6:CB35),0) -> 0 | CE37: =MAX(MAX(CE6:CE35),CF37) -> 0 | CF37: =IF(MIN(CE6:CE35)<0,-MIN(CE6:CE35),0) -> 0 | CH37: =MAX(MAX(CH6:CH35),CI37) -> 0 | CI37: =IF(MIN(CH6:CH35)<0,-MIN(CH6:CH35),0) -> 0 | CK37: =MAX(MAX(CK6:CK35),CL37) -> 0 | CL37: =IF(MIN(CK6:CK35)<0,-MIN(CK6:CK35),0) -> 0 | CN37: =MAX(MAX(CN6:CN35),CO37) -> 0 | CO37: =IF(MIN(CN6:CN35)<0,-MIN(CN6:CN35),0) -> 0 | HT37: マーク列に間隔を取る場合、数字（1～10）を列のどこか
B38: 8 | C38: . | D38: . | E38: . | F38: . | G38: . | H38: . | I38: . | J38: . | K38: _ | L38: _ | M38: _ | N38: _ | O38: _ | P38: _ | Q38: _ | R38: _ | S38: _ | T38: _ | U38: _ | V38: _ | W38: _ | X38: -8 | Y38: 33 | BM38: 0 | HT38: に記入してください。
B39: 9 | C39: . | D39: . | E39: . | F39: . | G39: . | H39: . | I39: . | J39: . | K39: . | L39: _ | M39: _ | N39: _ | O39: _ | P39: _ | Q39: _ | R39: _ | S39: _ | T39: _ | U39: _ | V39: _ | W39: _ | X39: -9 | Y39: 34 | BL39: =BM37 -> 0 | BM39: 1 | BN39: 1 | BO39: =(BM39+BM37-1)*BQ39 -> 0 | BP39: 2 | BQ39: =IF(BL39>0,1,0) -> 0 | CB39: 1 | CC39: 1 | CD39: =CB39+CB37-1 -> 0 | CE39: 2
B40: 10 | C40: . | D40: . | E40: . | F40: . | G40: . | H40: . | I40: . | J40: . | K40: . | L40: . | M40: _ | N40: _ | O40: _ | P40: _ | Q40: _ | R40: _ | S40: _ | T40: _ | U40: _ | V40: _ | W40: _ | X40: -10 | Y40: 35 | BL40: =BP37 -> 0 | BM40: =(((BM39+BM36-1)*BQ39)+1)*BQ40 -> 0 | BN40: 1 | BO40: =(BM40+BP37-1)*BQ40 -> 0 | BP40: 2 | BQ40: =IF(BL40>0,1,0) -> 0 | CB40: =CD39+3 -> 3 | CC40: 1 | CD40: =CB40+CE37-1 -> 2 | CE40: 2
BL41: =BS37 -> 0 | BM41: =(((((BM40+BP36-1)*BQ40))*BQ40)+1)*BQ41 -> 0 | BN41: 1 | BO41: =(BM41+BS$37-1)*BQ41 -> 0 | BP41: 2 | BQ41: =IF(BL41>0,1,0) -> 0 | CB41: =CD40+3 -> 5 | CC41: 1 | CD41: =CB41+CH37-1 -> 4 | CE41: 2
BL42: =BV37 -> 0 | BM42: =((((BM41+BS36-1))*BQ41)+1)*BQ42 -> 0 | BN42: 1 | BO42: =(BM42+BV$37-1)*BQ42 -> 0 | BP42: 2 | BQ42: 0 | CB42: =CD41+3 -> 7 | CC42: 1 | CD42: =CB42+CK37-1 -> 6 | CE42: 2
BL43: =BY37 -> 0 | BM43: =(((((BM42+BV$36-1)*BQ42))*BQ42)+1)*BQ43 -> 0 | BN43: 1 | BO43: =(BM43+BY$37-1)*BQ43 -> 0 | BP43: 2 | BQ43: 0 | CB43: =CD42+3 -> 9 | CC43: 1 | CD43: =CB43+CN37-1 -> 8 | CE43: 2
BL44: =CB37 -> 0 | BM44: =(((((BM43+BY$36-1)*BQ43))*BQ43)+1)*BQ44 -> 0 | BN44: 1 | BO44: =(BM44+CB$37-1)*BQ44 -> 0 | BP44: 2 | BQ44: 0
BL45: =CE37 -> 0 | BM45: =(((((BM44+CB$36-1)*BQ44))*BQ44)+1)*BQ45 -> 0 | BN45: 1 | BO45: =(BM45+CE$37-1)*BQ45 -> 0 | BP45: 2 | BQ45: 0
BL46: =CH37 -> 0 | BM46: =(((((BM45+CE$36-1)*BQ45))*BQ45)+1)*BQ46 -> 0 | BN46: 1 | BO46: =(BM46+CH$37-1)*BQ46 -> 0 | BP46: 2 | BQ46: 0
BL47: =CK37 -> 0 | BM47: =(((((BM46+CH$36-1)*BQ46))*BQ46)+1)*BQ47 -> 0 | BN47: 1 | BO47: =(BM47+CK$37-1)*BQ47 -> 0 | BP47: 2 | BQ47: 0
BL48: =CN37 -> 0 | BM48: =(((((BM47+CK$36-1)*BQ47))*BQ47)+1)*BQ48 -> 0 | BN48: 1 | BO48: =(BM48+CN$37-1)*BQ48 -> 0 | BP48: 2 | BQ48: 0

Sheet Mark_Shape
B3: 1
B4: 2
B5: 3
B6: 4

Sheet Sheet4 (hidden)
I3: 1 | J3: 2 | K3: 3 | L3: 4 | M3: 5 | N3: 6 | O3: 7 | P3: 8 | Q3: 9 | R3: 10 | S3: 11 | T3: 12 | U3: 13 | V3: 14 | W3: 15 | X3: 16 | Y3: 17 | Z3: 18 | AA3: 19 | AB3: 20 | AC3: 21 | AD3: 22 | AE3: 23 | AF3: 24 | AG3: 25 | AH3: 26 | AI3: 27 | AJ3: 28 | AK3: 29 | AL3: 30 | AM3: 31 | AN3: 32 | AO3: 33 | AP3: 34 | AQ3: 35 | AR3: 36 | AS3: 37 | AT3: 38 | AU3: 39 | AV3: 40 | AW3: 41 | AX3: 42 | AY3: 43 | AZ3: 44 | BA3: 45 | BB3: 46 | BC3: 47 | BD3: 48 | BE3: 49 | BF3: 50 | BG3: 51 | BH3: 52 | BI3: 53 | BJ3: 54 | BK3: 55 | BL3: 56 | BM3: 57 | BN3: 58 | BO3: 59 | BP3: 60 | BQ3: 61 | BR3: 62 | BS3: 63 | BT3: 64 | BU3: 65 | BV3: 66
H4: 1 | I4: =IF(OR(Marksheet!I4="_",Marksheet!I4=".",Marksheet!I4=""),0,1) -> 0 | J4: =IF(OR(Marksheet!J4="_",Marksheet!J4=".",Marksheet!J4=""),0,1) -> 0 | K4: =IF(OR(Marksheet!K4="_",Marksheet!K4=".",Marksheet!K4=""),0,1) -> 0 | L4: =IF(OR(Marksheet!L4="_",Marksheet!L4=".",Marksheet!L4=""),0,1) -> 0 | M4: =IF(OR(Marksheet!M4="_",Marksheet!M4=".",Marksheet!M4=""),0,1) -> 0 | N4: =IF(OR(Marksheet!N4="_",Marksheet!N4=".",Marksheet!N4=""),0,1) -> 0 | O4: =IF(OR(Marksheet!O4="_",Marksheet!O4=".",Marksheet!O4=""),0,1) -> 0 | P4: =IF(OR(Marksheet!P4="_",Marksheet!P4=".",Marksheet!P4=""),0,1) -> 0 | Q4: =IF(OR(Marksheet!Q4="_",Marksheet!Q4=".",Marksheet!Q4=""),0,1) -> 0 | R4: =IF(OR(Marksheet!R4="_",Marksheet!R4=".",Marksheet!R4=""),0,1) -> 0 | S4: =IF(OR(Marksheet!S4="_",Marksheet!S4=".",Marksheet!S4=""),0,1) -> 0 | T4: =IF(OR(Marksheet!T4="_",Marksheet!T4=".",Marksheet!T4=""),0,1) -> 0 | U4: =IF(OR(Marksheet!U4="_",Marksheet!U4=".",Marksheet!U4=""),0,1) -> 0 | V4: =IF(OR(Marksheet!V4="_",Marksheet!V4=".",Marksheet!V4=""),0,1) -> 0 | W4: =IF(OR(Marksheet!W4="_",Marksheet!W4=".",Marksheet!W4=""),0,1) -> 0 | X4: =IF(OR(Marksheet!X4="_",Marksheet!X4=".",Marksheet!X4=""),0,1) -> 0 | Y4: =IF(OR(Marksheet!Y4="_",Marksheet!Y4=".",Marksheet!Y4=""),0,1) -> 0 | Z4: =IF(OR(Marksheet!Z4="_",Marksheet!Z4=".",Marksheet!Z4=""),0,1) -> 0 | AA4: =IF(OR(Marksheet!AA4="_",Marksheet!AA4=".",Marksheet!AA4=""),0,1) -> 0 | AB4: =IF(OR(Marksheet!AB4="_",Marksheet!AB4=".",Marksheet!AB4=""),0,1) -> 0 | AC4: =IF(OR(Marksheet!AC4="_",Marksheet!AC4=".",Marksheet!AC4=""),0,1) -> 0 | AD4: =IF(OR(Marksheet!AD4="_",Marksheet!AD4=".",Marksheet!AD4=""),0,1) -> 0 | AE4: =IF(OR(Marksheet!AE4="_",Marksheet!AE4=".",Marksheet!AE4=""),0,1) -> 0 | AF4: =IF(OR(Marksheet!AF4="_",Marksheet!AF4=".",Marksheet!AF4=""),0,1) -> 0 | AG4: =IF(OR(Marksheet!AG4="_",Marksheet!AG4=".",Marksheet!AG4=""),0,1) -> 0 | AH4: =IF(OR(Marksheet!AH4="_",Marksheet!AH4=".",Marksheet!AH4=""),0,1) -> 0 | AI4: =IF(OR(Marksheet!AI4="_",Marksheet!AI4=".",Marksheet!AI4=""),0,1) -> 0 | AJ4: =IF(OR(Marksheet!AJ4="_",Marksheet!AJ4=".",Marksheet!AJ4=""),0,1) -> 0 | AK4: =IF(OR(Marksheet!AK4="_",Marksheet!AK4=".",Marksheet!AK4=""),0,1) -> 0 | AL4: =IF(OR(Marksheet!AL4="_",Marksheet!AL4=".",Marksheet!AL4=""),0,1) -> 0 | AM4: =IF(OR(Marksheet!AM4="_",Marksheet!AM4=".",Marksheet!AM4=""),0,1) -> 0 | AN4: =IF(OR(Marksheet!AN4="_",Marksheet!AN4=".",Marksheet!AN4=""),0,1) -> 0 | AO4: =IF(OR(Marksheet!AO4="_",Marksheet!AO4=".",Marksheet!AO4=""),0,1) -> 0 | AP4: =IF(OR(Marksheet!AP4="_",Marksheet!AP4=".",Marksheet!AP4=""),0,1) -> 0 | AQ4: =IF(OR(Marksheet!AQ4="_",Marksheet!AQ4=".",Marksheet!AQ4=""),0,1) -> 0 | AR4: =IF(OR(Marksheet!AR4="_",Marksheet!AR4=".",Marksheet!AR4=""),0,1) -> 0 | AS4: =IF(OR(Marksheet!AS4="_",Marksheet!AS4=".",Marksheet!AS4=""),0,1) -> 0 | AT4: =IF(OR(Marksheet!AT4="_",Marksheet!AT4=".",Marksheet!AT4=""),0,1) -> 0 | AU4: =IF(OR(Marksheet!AU4="_",Marksheet!AU4=".",Marksheet!AU4=""),0,1) -> 0 | AV4: =IF(OR(Marksheet!AV4="_",Marksheet!AV4=".",Marksheet!AV4=""),0,1) -> 0 | AW4: =IF(OR(Marksheet!AW4="_",Marksheet!AW4=".",Marksheet!AW4=""),0,1) -> 0 | AX4: =IF(OR(Marksheet!AX4="_",Marksheet!AX4=".",Marksheet!AX4=""),0,1) -> 0 | AY4: =IF(OR(Marksheet!AY4="_",Marksheet!AY4=".",Marksheet!AY4=""),0,1) -> 0 | AZ4: =IF(OR(Marksheet!AZ4="_",Marksheet!AZ4=".",Marksheet!AZ4=""),0,1) -> 0 | BA4: =IF(OR(Marksheet!BA4="_",Marksheet!BA4=".",Marksheet!BA4=""),0,1) -> 0 | BB4: =IF(OR(Marksheet!BB4="_",Marksheet!BB4=".",Marksheet!BB4=""),0,1) -> 0 | BC4: =IF(OR(Marksheet!BC4="_",Marksheet!BC4=".",Marksheet!BC4=""),0,1) -> 0 | BD4: =IF(OR(Marksheet!BD4="_",Marksheet!BD4=".",Marksheet!BD4=""),0,1) -> 0 | BE4: =IF(OR(Marksheet!BE4="_",Marksheet!BE4=".",Marksheet!BE4=""),0,1) -> 0 | BF4: =IF(OR(Marksheet!BF4="_",Marksheet!BF4=".",Marksheet!BF4=""),0,1) -> 0 | BG4: =IF(OR(Marksheet!BG4="_",Marksheet!BG4=".",Marksheet!BG4=""),0,1) -> 0 | BH4: =IF(OR(Marksheet!BH4="_",Marksheet!BH4=".",Marksheet!BH4=""),0,1) -> 0 | BI4: =IF(OR(Marksheet!BI4="_",Marksheet!BI4=".",Marksheet!BI4=""),0,1) -> 0 | BJ4: =IF(OR(Marksheet!BJ4="_",Marksheet!BJ4=".",Marksheet!BJ4=""),0,1) -> 0 | BK4: =IF(OR(Marksheet!BK4="_",Marksheet!BK4=".",Marksheet!BK4=""),0,1) -> 0 | BL4: =IF(OR(Marksheet!BL4="_",Marksheet!BL4=".",Marksheet!BL4=""),0,1) -> 0 | BM4: =IF(OR(Marksheet!BM4="_",Marksheet!BM4=".",Marksheet!BM4=""),0,1) -> 0 | BN4: =IF(OR(Marksheet!BN4="_",Marksheet!BN4=".",Marksheet!BN4=""),0,1) -> 0 | BO4: =IF(OR(Marksheet!BO4="_",Marksheet!BO4=".",Marksheet!BO4=""),0,1) -> 0 | BP4: =IF(OR(Marksheet!BP4="_",Marksheet!BP4=".",Marksheet!BP4=""),0,1) -> 0 | BQ4: =IF(OR(Marksheet!BQ4="_",Marksheet!BQ4=".",Marksheet!BQ4=""),0,1) -> 0 | BR4: =IF(OR(Marksheet!BR4="_",Marksheet!BR4=".",Marksheet!BR4=""),0,1) -> 0 | BS4: =IF(OR(Marksheet!BS4="_",Marksheet!BS4=".",Marksheet!BS4=""),0,1) -> 0 | BT4: =IF(OR(Marksheet!BT4="_",Marksheet!BT4=".",Marksheet!BT4=""),0,1) -> 0 | BU4: =IF(OR(Marksheet!BU4="_",Marksheet!BU4=".",Marksheet!BU4=""),0,1) -> 0 | BV4: =IF(OR(Marksheet!BV4="_",Marksheet!BV4=".",Marksheet!BV4=""),0,1) -> 0
